Workbook

Sheet Changelog (hidden)
A3: Sr. No. | B3: Description | C3: Date | D3: Doer | E3: Checker
A4: 1 | B4: Included annuity rates for NROP, ROP, Deferred Annuity options for SL and JL Rate A, Rate B, Rate C, Rate D, Rate E. Refer sheet Annuity Rate Single Life and Annuity Rates Joint Life | C4: 2023-05-26 | D4: Bhalchandra
A5: 2 | B5: Modified formula to calculate annuity. Refer sheet Details (Cell B21 to F23) and Cell C28 to D32 | C5: 2023-05-26 | D5: Bhalchandra
A6: 3 | B6: Purchase price limit change Rate A (199999), Rate B (499999), Rate C (999999), Rate D (2499999), Rate E (25L and above) | C6: 2023-05-26 | D6: Bhalchandra
A7: 4 | B7: Update the rate for Option 2- Immediate Annuity ROP SL/JL | C7: 2023-06-13 | D7: Dhwani | E7: Bhalchandra
A8: 5 | B8: Update the rate for Option 1- Immediate Annuity NROP SL/JL | C8: 2023-07-26 | D8: Dhwani | E8: Bhalchandra
A9: 6 | B9: Update F1, F2 & F3 factors in details sheet | C9: 2023-07-28 | D9: Dhwani | E9: Bhalchandra
A10: 7

Sheet Corpus Calculation
B3: Corpus Amount | C3: =Input!C20 -> 5000000
B4: GST | C4: =Input!J23 -> 88409
B5: Corpus Amount net of GST | C5: =C3-C4 -> 4911591
B6: Discount | C6: =Input!AM26 -> NA
B7: Corpus Amount net of GST and disocunt | C7: =C5+IF(C6="NA",0,C6) -> 4911591

Sheet Input
C4: Annuity Calculator | AI4: proposal no
AI5: 12345 | AQ5: Policyholder registered under GST | AR5: Yes
G6: Start point | H6: S | AA6: Yes | AB6: A | AC6: Y | AD6: 1 | AF6: =IF(H12="Male","M","F") -> M | AL6: Occ Class | AM6: 1 | AQ6: Tata AIA GST registered state | AR6: Kerala
G7: Option | H7: R | AA7: No | AB7: S | AC7: N | AD7: =AD6+1 -> 2 | AF7: =IF(H16="Male","M","F") -> F | AI7: Yearly | AJ7: A | AL7: Occ Load type | AM7: 1 | AQ7: Policyholder State | AR7: Kerala
C8: Proposal Date | G8: Holiday | AA8: Kerala | AB8: Q | AD8: =AD7+1 -> 3 | AF8: =IF(J12="Single Life","SL","JL") -> JL | AI8: Half-Yearly | AJ8: S | AL8: Occ load value | AM8: 0 | AQ8: Indicator | AR8: =IF(AR5="Yes",0,IF(AND(AR6="Kerala",AR7="Kerala"),1,0)) -> 0
C9: =TODAY() -> 2024-02-05 | H9: =IF(OR(F12<45,IF(J12="Joint Life",F16,F12)<45,F12>85,IF(J12="Joint Life",F16,F12)>85),"Error: Entry Age should be between 45 years and 85 years","") ->  | AA9: Other | AB9: M | AD9: 4 | AF9: =VLOOKUP(J20,$AI$7:$AJ$10,2,0) -> A | AI9: Quarterly | AJ9: Q
AD10: 5 | AI10: Monthly | AJ10: M
C11: Primary Life DOB | H11: Gender | J11: Calculator Options | L11: Yearly Annuity Rate | AD11: 6 | AF11: =VLOOKUP(H20,$AI$12:$AJ$14,2,0) -> 3 | AL11: Starting point | AM11: Purchase Price | AQ11: Whether Employee of Tata & AIA Group | AR11: No
C12: 10 | D12: 5 | E12: 1965 | F12: =DATEDIF(DATE(E12,D12,C12),$C$9,"Y") -> 58 | H12: Male | J12: Joint Life | L12: =AN33 -> 0.0799108 | AD12: 7 | AI12: Immediate Life Annuity Option | AJ12: 1 | AQ12: Online rebate/ Group Purchase discount | AR12: Yes
C13: DD | D13: MM | E13: YYYY | AD13: 8 | AF13: =IF(AR11="Yes","Y","N") -> N | AI13: Immediate Life Annuity with Return of Purchase Price Option | AJ13: 2 | AL13: Purchase Price | AM13: =AM19 -> 4911591
AD14: 9 | AF14: =IF(AR12="Yes","Y","N") -> Y | AI14: Deferred Life Annuity with Return of Purchase Price Option | AJ14: 3 | AL14: Annuity | AM14: 20000
C15: Joint Life DOB | H15: Joint Life Gender | J15: Source of Annuity Investment | L15: =J20&" Annuity Rate" -> Yearly Annuity Rate | AD15: 10
C16: 10 | D16: 5 | E16: 1965 | F16: =DATEDIF(DATE(E16,D16,C16),$C$9,"Y") -> 58 | H16: Female | J16: Superannuation Fund | L16: =VLOOKUP(J20,$AL$33:$AN$36,3,0) -> 0.0799108 | AL16: PT | AM16: =117-IF(Life="SL",xl_insage,MIN(xl_insage,xl_ownage)) -> 59
C17: DD | D17: MM | E17: YYYY | AL17: Option | AM17: =IF(xl_polopt=1,"NROP",IF(xl_polopt=2,"ROP","DEF"&Def_Yrs)) -> DEF2
AF18: Primary life Age | AG18: =F12 -> 58
C19: Purchase Price (Inclusive of Tax) | H19: Annuity options | J19: Annuity Frequency | L19: Deferred years | AF19: Joint life Age | AG19: =F16 -> 58 | AL19: Corpus Fund after allowing for discount and GST | AM19: =ROUND((C20/IF(XL_Staffdisc="Y",0.98,1))/(1+Details!$G$9),0) -> 4911591
C20: 5000000 | H20: Deferred Life Annuity with Return of Purchase Price Option | J20: Yearly | L20: 2
C22: Annuity Amount | H22: =J20&" Annuity" -> Yearly Annuity | J22: Applicable Tax | AL22: Deferred years (Opt 3) | AM22: =IF(xl_polopt=3,DEF_YR_INPUT,0) -> 2
C23: =AM23 -> 399554 | H23: =AM24 -> 399554 | J23: =AM27 -> 88409 | AL23: Annual Annuity Amount | AM23: =Details!G23 -> 399554
AL24: =J20&" Annuity Amount" -> Yearly Annuity Amount | AM24: =Output!D19 -> 399554
C25: Primary Life First Name | H25: Primary Life Last Name | J25: Joint Life First Name | L25: Joint Life Last Name | AL25: Base premium Before GST & Applicable discount | AM25: =IF(AM11="Annuity",Details!D35,Input!AM13) -> 4911591
C26: ABC | H26: xyz | J26: xyz | L26: abc | AL26: Applicable discount on Premium | AM26: =IF(XL_Staffdisc="Y",xl_premium*(1-0.98),"NA") -> NA
AL27: Applicable taxes, cesses & levies on Premium | AM27: =Output!D17 -> 88409
AL32: Yearly annuity rate as per mode: | AM32: Before GST and applicable discount | AN32: After GST and applicable discount
AL33: Yearly | AM33: =(Details!$G$23*Details!C13)/$AM$13 -> 0.08134920029 | AN33: =(Details!$G$23*Details!C13)/$C$20 -> 0.0799108
AL34: Half-Yearly | AM34: =(Details!$G$23*Details!C14)/$AM$13 -> 0.07972221628 | AN34: =(Details!$G$23*Details!C14)/$C$20 -> 0.078312584
AL35: Quarterly | AM35: =(Details!$G$23*Details!C15)/$AM$13 -> 0.07890872428 | AN35: =(Details!$G$23*Details!C15)/$C$20 -> 0.077513476
AL36: Monthly | AM36: =(Details!$G$23*Details!C16)/$AM$13 -> 0.07809523228 | AN36: =(Details!$G$23*Details!C16)/$C$20 -> 0.076714368
C99: Riders | D99: Rider | E99: Premium | F99: Coverage | G99: UIN | H99: Rider Coverage Term
C100: =IF(ISNA(VLOOKUP(1,$C$119:$D$135,1,FALSE)),"",VLOOKUP(1,$C$119:$D$135,1,FALSE)) ->  | D100: =IF(xl_insoccclass<=$B$118,IF(ISNA(VLOOKUP(1,$C$119:$D$135,2,FALSE)),"",VLOOKUP(1,$C$119:$D$135,2,FALSE)),"") ->  | E100: =IF(xl_insoccclass<=$B$118,IF(ISNA(VLOOKUP(1,$C$116:$H$139,4,FALSE)),"",VLOOKUP(1,$C$116:$H$139,4,FALSE)),"") ->  | F100: =IF(xl_insoccclass<=$B$118,IF(ISNA(VLOOKUP(1,$C$116:$H$139,5,FALSE)),"",VLOOKUP(1,$C$116:$H$139,5,FALSE)),"") ->  | G100: =IF(xl_insoccclass<=$B$118,IF(ISNA(VLOOKUP(C100,$C$116:$I$123,6,FALSE)),"",VLOOKUP(C100,$C$116:$I$123,6,FALSE)),"") ->  | H100: =IF(xl_insoccclass<=$B$118,IF(ISNA(VLOOKUP(C100,$C$116:$I$123,7,FALSE)),"",VLOOKUP(C100,$C$116:$I$123,7,FALSE)),"") -> 
C101: =IF(ISNA(VLOOKUP(2,$C$119:$D$135,1,FALSE)),"",VLOOKUP(2,$C$119:$D$135,1,FALSE)) ->  | D101: =IF(xl_insoccclass<=$B$118,IF(ISNA(VLOOKUP(2,$C$119:$D$135,2,FALSE)),"",VLOOKUP(2,$C$119:$D$135,2,FALSE)),"") ->  | E101: =IF(xl_insoccclass<=$B$118,IF(ISNA(VLOOKUP(2,$C$116:$H$139,4,FALSE)),"",VLOOKUP(2,$C$116:$H$139,4,FALSE)),"") ->  | F101: =IF(xl_insoccclass<=$B$118,IF(ISNA(VLOOKUP(2,$C$116:$H$139,5,FALSE)),"",VLOOKUP(2,$C$116:$H$139,5,FALSE)),"") ->  | G101: =IF(xl_insoccclass<=$B$118,IF(ISNA(VLOOKUP(C101,$C$116:$I$123,6,FALSE)),"",VLOOKUP(C101,$C$116:$I$123,6,FALSE)),"") ->  | H101: =IF(xl_insoccclass<=$B$118,IF(ISNA(VLOOKUP(C101,$C$116:$I$123,7,FALSE)),"",VLOOKUP(C101,$C$116:$I$123,7,FALSE)),"") -> 
C102: =IF(ISNA(VLOOKUP(3,$C$119:$D$135,1,FALSE)),"",VLOOKUP(3,$C$119:$D$135,1,FALSE)) ->  | D102: =IF(ISNA(VLOOKUP(3,$C$119:$D$135,2,FALSE)),"",VLOOKUP(3,$C$119:$D$135,2,FALSE)) ->  | E102: =IF(xl_insoccclass<5,IF(ISNA(VLOOKUP(3,$C$116:$H$139,4,FALSE)),"",VLOOKUP(3,$C$116:$H$139,4,FALSE)),"") ->  | F102: =IF(xl_insoccclass<5,IF(ISNA(VLOOKUP(3,$C$116:$H$139,5,FALSE)),"",VLOOKUP(3,$C$116:$H$139,5,FALSE)),"") ->  | G102: =IF(xl_insoccclass<5,IF(ISNA(VLOOKUP(C102,$C$116:$I$123,6,FALSE)),"",VLOOKUP(C102,$C$116:$I$123,6,FALSE)),"") ->  | H102: =IF(xl_insoccclass<=$B$118,IF(ISNA(VLOOKUP(C102,$C$116:$I$123,7,FALSE)),"",VLOOKUP(C102,$C$116:$I$123,7,FALSE)),"") -> 
C103: =IF(ISNA(VLOOKUP(4,$C$119:$D$135,1,FALSE)),"",VLOOKUP(4,$C$119:$D$135,1,FALSE)) ->  | D103: =IF(ISNA(VLOOKUP(4,$C$119:$D$135,2,FALSE)),"",VLOOKUP(4,$C$119:$D$135,2,FALSE)) ->  | E103: =IF(xl_insoccclass<5,IF(ISNA(VLOOKUP(4,$C$116:$H$139,4,FALSE)),"",VLOOKUP(4,$C$116:$H$139,4,FALSE)),"") ->  | F103: =IF(xl_insoccclass<5,IF(ISNA(VLOOKUP(4,$C$116:$H$139,5,FALSE)),"",VLOOKUP(4,$C$116:$H$139,5,FALSE)),"") ->  | G103: =IF(xl_insoccclass<5,IF(ISNA(VLOOKUP(C103,$C$116:$I$123,6,FALSE)),"",VLOOKUP(C103,$C$116:$I$123,6,FALSE)),"") -> 
C104: =IF(ISNA(VLOOKUP(5,$C$119:$D$135,1,FALSE)),"",VLOOKUP(5,$C$119:$D$135,1,FALSE)) ->  | D104: =IF(ISNA(VLOOKUP(5,$C$119:$D$135,2,FALSE)),"",VLOOKUP(5,$C$119:$D$135,2,FALSE)) ->  | E104: =IF(xl_insoccclass<5,IF(ISNA(VLOOKUP(5,$C$116:$H$139,4,FALSE)),"",VLOOKUP(5,$C$116:$H$139,4,FALSE)),"") ->  | F104: =IF(xl_insoccclass<5,IF(ISNA(VLOOKUP(5,$C$116:$H$139,5,FALSE)),"",VLOOKUP(5,$C$116:$H$139,5,FALSE)),"") ->  | G104: =IF(xl_insoccclass<5,IF(ISNA(VLOOKUP(C104,$C$116:$I$123,6,FALSE)),"",VLOOKUP(C104,$C$116:$I$123,6,FALSE)),"") -> 
C106: Rider Validation(ADDL +WOPP) | D106: 0 | E106: =+IF(D106="ERROR","ADDL Rider premium exceeds 30% of base premium ","") -> 
C107: Term Rider option (Lumpsum/Income) | D107: Income
C115: Control
C116: Version
C117: Version1
B118: =+MAX(B119:B121) -> 0 | C118: Order | D118: Riders Attachable: | E118: Selected / Not Selected | F118: Premium | G118: Sum Assured | H118: UIN | I118: Rider Coverage Term
B119: =4*xl_ADDL -> 0 | D119: Tata AIA Life Insurance Accidental Death and Dismemberment (Long Scale) (ADDL) Rider
B120: =5*xl_wopp -> 0 | D120: **Tata AIA Life Insurance Waiver of Premium Plus Rider
B121: =5*xl_Term -> 0 | D121: Tata AIA Life Insurance Term Rider***
C124: Agent Code
C125: Agent Name
C128: Distribution channel | D128: 1 | E128: 1 | F128: Referral / Direct Mkt
E129: 2A | F129: Agency
E130: 2C | F130: Corporate Agents
E131: 3 | F131: Brokers
E132: 4 | F132: Online
C134: Name | D134: Tata AIA Life Insurance Company Ltd. (IRDA of India Regn. No. 110) CIN - U66010MH2000PLC128403
C135: Coadd | D135: Registered and Corporate Office: 14th Floor, Tower A, Peninsula Business Park, Senapati Bapat Marg, Lower Parel, Mumbai- 400013
C136: Help | D136: For more information, Call the Tata AIA Life Insurance Company Ltd Helpline number 1860-266-9966 (Local Charges apply) or Visit us at: www.tataaia.com or SMS 'LIFE' to 58888
C138: Date of Birth of Insured
C139: Date of Birth of Proposer
C140: NSAP
C142: Year of reduced paid-up | D142: 5
C144: Tax Slab | D144: 0.1
C146: Sec 80c | D146: 150000
C148: Surcharge Edu Cess | D148: 0.03

Sheet SIS_Format_2019 (hidden)
C7: Name of the Prospect/Policyholder : | D7: =Output!C8 -> ABC xyz | M7: Proposal No : | N7: =xl_prpno -> 12345
C8: Age (years) : | D8: =Output!D8 -> 58 | G8: Gender: | H8: =Output!E8 -> Male | M8: Name of the Product : | N8: Tata AIA Life Insurance Smart Annuity Plan
C9: Name of the Primary Annuitant : | D9: =D7 -> ABC xyz | M9: Tag Line : | N9: A Non-Linked Non-Participating Annuity plan
C10: Age (years) : | D10: =D8 -> 58 | G10: Gender: | H10: =H8 -> Male | M10: Unique Identification No.: | N10: 110N150V04
C11: Name of the Secondary Annuitant : | D11: =Output!C9 -> xyz abc | M11: GST Rate : | N11: =IF(Input!AR8=1,1.9%,1.8%) -> 0.018
C12: Age (years) : | D12: =Output!D9 -> 58 | G12: Gender: | H12: =IF(D13="Joint Life",Output!E9,"NA") -> Female
C13: Single/ Joint Life : | D13: =Output!E14 -> Joint Life
C14: Premium Payment Term (years) : | D14: Single Premium
C15: Purchase Price (Rs.) : | D15: =Output!D16 -> 4911591
A17: This benefit illustration is intended to show year-wise premiums payable and benefits under the policy.
A19: Policy Details
A20: Policy Option | D20: =Output!D13 -> Deferred Life Annuity with Return of Purchase Price | I20: Annuity Frequency | N20: =Output!D20 -> Yearly
A21: Deferment Period (years) | D21: =SIS!D15 -> 2 | I21: Annuity Payable (Rs.) | N21: =Output!D19 -> 399554
A24: Premium Summary
F25: Base Plan
A26: Instalment Premium without GST (Rs.) | F26: =Output!D16 -> 4911591
A27: Instalment Premium with GST (Rs.) | F27: =Output!D18 -> 5000000
N29: (Amount in Rupees.)
A30: Policy Year | B30: Single/ Annualised Premium | D30: Guaranteed | P30: Non - Guaranteed
D31: Survival Benefit / Loyalty Additions | F31: Other Benefits, if any | H31: Maturity / Vesting Benefit | J31: Death Benefit | M31: Min Guaranteed Surrender Value | P31: Special Surrender Value
A32: 1 | B32: =Output!D16 -> 4911591 | D32: NA | F32: NA | H32: NA | J32: =Output!C27 -> 5402750.1 | M32: =Output!D27 -> 3683693.25 | P32: =Output!E27 -> 4186160.283
A33: =Output!B28 -> 2 | B33: =IF(A33="","",0) -> 0 | D33: =IF(A33="","","NA") -> NA | F33: =IF(A33="","","NA") -> NA | H33: =IF(A33="","","NA") -> NA | J33: =IF(A33="","",Output!C28) -> 5710699 | M33: =IF(A33="","",Output!D28) -> 3683693.25 | P33: =IF(A33="","",Output!E28) -> 4571042.022
A34: =Output!B29 -> 3 | B34: =IF(A34="","",0) -> 0 | D34: =IF(A34="","","NA") -> NA | F34: =IF(A34="","","NA") -> NA | H34: =IF(A34="","","NA") -> NA | J34: =IF(A34="","",Output!C29) -> 5402750.1 | M34: =IF(A34="","",Output!D29) -> 3284139.25 | P34: =IF(A34="","",Output!E29) -> 4572184.163
A35: =Output!B30 -> 4 | B35: 0 | D35: NA | F35: NA | H35: NA | J35: =IF(A35="","",Output!C30) -> 5402750.1 | M35: =IF(A35="","",Output!D30) -> 3621323.9 | P35: =IF(A35="","",Output!E30) -> 4573817.463
A36: =Output!B31 -> 5 | B36: 0 | D36: NA | F36: NA | H36: NA | J36: =IF(A36="","",Output!C31) -> 5402750.1 | M36: =IF(A36="","",Output!D31) -> 3221769.9 | P36: =IF(A36="","",Output!E31) -> 4576924.241
A37: =Output!B32 -> 6 | B37: 0 | D37: NA | F37: NA | H37: NA | J37: =IF(A37="","",Output!C32) -> 5402750.1 | M37: =IF(A37="","",Output!D32) -> 2822215.9 | P37: =IF(A37="","",Output!E32) -> 4578491.274
A38: =Output!B33 -> 7 | B38: 0 | D38: NA | F38: NA | H38: NA | J38: =IF(A38="","",Output!C33) -> 5402750.1 | M38: =IF(A38="","",Output!D33) -> 2422661.9 | P38: =IF(A38="","",Output!E33) -> 4577536.245
A39: =Output!B34 -> 8 | B39: 0 | D39: NA | F39: NA | H39: NA | J39: =IF(A39="","",Output!C34) -> 5402750.1 | M39: =IF(A39="","",Output!D34) -> 2023107.9 | P39: =IF(A39="","",Output!E34) -> 4582541.392
A40: =Output!B35 -> 9 | B40: 0 | D40: NA | F40: NA | H40: NA | J40: =IF(A40="","",Output!C35) -> 5402750.1 | M40: =IF(A40="","",Output!D35) -> 1623553.9 | P40: =IF(A40="","",Output!E35) -> 4584533.317
A41: =Output!B36 -> 10 | B41: 0 | D41: NA | F41: NA | H41: NA | J41: =IF(A41="","",Output!C36) -> 5402750.1 | M41: =IF(A41="","",Output!D36) -> 1223999.9 | P41: =IF(A41="","",Output!E36) -> 4583020.861
A42: =Output!B37 -> 11 | B42: 0 | D42: NA | F42: NA | H42: NA | J42: =IF(A42="","",Output!C37) -> 5402750.1 | M42: =IF(A42="","",Output!D37) -> 824445.9 | P42: =IF(A42="","",Output!E37) -> 4586486.263
A43: =Output!B38 -> 12 | B43: 0 | D43: NA | F43: NA | H43: NA | J43: =IF(A43="","",Output!C38) -> 5402750.1 | M43: =IF(A43="","",Output!D38) -> 424891.9 | P43: =IF(A43="","",Output!E38) -> 4589951.666
A44: =Output!B39 -> 13 | B44: 0 | D44: NA | F44: NA | H44: NA | J44: =IF(A44="","",Output!C39) -> 5402750.1 | M44: =IF(A44="","",Output!D39) -> 25337.9 | P44: =IF(A44="","",Output!E39) -> 4588930.369
A45: =Output!B40 -> 14 | B45: 0 | D45: NA | F45: NA | H45: NA | J45: =IF(A45="","",Output!C40) -> 5402750.1 | M45: =IF(A45="","",Output!D40) -> 0 | P45: =IF(A45="","",Output!E40) -> 4591904.612
A46: =Output!B41 -> 15 | B46: 0 | D46: NA | F46: NA | H46: NA | J46: =IF(A46="","",Output!C41) -> 5402750.1 | M46: =IF(A46="","",Output!D41) -> 0 | P46: =IF(A46="","",Output!E41) -> 4593405.378
A47: =Output!B42 -> 16 | B47: 0 | D47: NA | F47: NA | H47: NA | J47: =IF(A47="","",Output!C42) -> 5402750.1 | M47: =IF(A47="","",Output!D42) -> 0 | P47: =IF(A47="","",Output!E42) -> 4594414.985
A48: =Output!B43 -> 17 | B48: 0 | D48: NA | F48: NA | H48: NA | J48: =IF(A48="","",Output!C43) -> 5402750.1 | M48: =IF(A48="","",Output!D43) -> 0 | P48: =IF(A48="","",Output!E43) -> 4597946.655
A49: =Output!B44 -> 18 | B49: 0 | D49: NA | F49: NA | H49: NA | J49: =IF(A49="","",Output!C44) -> 5402750.1 | M49: =IF(A49="","",Output!D44) -> 0 | P49: =IF(A49="","",Output!E44) -> 4600004.847
A50: =Output!B45 -> 19 | B50: 0 | D50: NA | F50: NA | H50: NA | J50: =IF(A50="","",Output!C45) -> 5402750.1 | M50: =IF(A50="","",Output!D45) -> 0 | P50: =IF(A50="","",Output!E45) -> 4600098.403
A51: =Output!B46 -> 20 | B51: 0 | D51: NA | F51: NA | H51: NA | J51: =IF(A51="","",Output!C46) -> 5402750.1 | M51: =IF(A51="","",Output!D46) -> 0 | P51: =IF(A51="","",Output!E46) -> 4602222.863
A52: =Output!B47 -> 21 | B52: 0 | D52: NA | F52: NA | H52: NA | J52: =IF(A52="","",Output!C47) -> 5402750.1 | M52: =IF(A52="","",Output!D47) -> 0 | P52: =IF(A52="","",Output!E47) -> 4601891.527
A53: =Output!B48 -> 22 | B53: 0 | D53: NA | F53: NA | H53: NA | J53: =IF(A53="","",Output!C48) -> 5402750.1 | M53: =IF(A53="","",Output!D48) -> 0 | P53: =IF(A53="","",Output!E48) -> 4603591.094
A54: =Output!B49 -> 23 | B54: 0 | D54: NA | F54: NA | H54: NA | J54: =IF(A54="","",Output!C49) -> 5402750.1 | M54: =IF(A54="","",Output!D49) -> 0 | P54: =IF(A54="","",Output!E49) -> 4602834.866
A55: =Output!B50 -> 24 | B55: 0 | D55: NA | F55: NA | H55: NA | J55: =IF(A55="","",Output!C50) -> 5402750.1 | M55: =IF(A55="","",Output!D50) -> 0 | P55: =IF(A55="","",Output!E50) -> 4603127.224
A56: =Output!B51 -> 25 | B56: 0 | D56: NA | F56: NA | H56: NA | J56: =IF(A56="","",Output!C51) -> 5402750.1 | M56: =IF(A56="","",Output!D51) -> 0 | P56: =IF(A56="","",Output!E51) -> 4600472.627
A57: =Output!B52 -> 26 | B57: 0 | D57: NA | F57: NA | H57: NA | J57: =IF(A57="","",Output!C52) -> 5402750.1 | M57: =IF(A57="","",Output!D52) -> 0 | P57: =IF(A57="","",Output!E52) -> 4599357.774
A58: =Output!B53 -> 27 | B58: 0 | D58: NA | F58: NA | H58: NA | J58: =IF(A58="","",Output!C53) -> 5402750.1 | M58: =IF(A58="","",Output!D53) -> 0 | P58: =IF(A58="","",Output!E53) -> 4598800.348
A59: =Output!B54 -> 28 | B59: 0 | D59: NA | F59: NA | H59: NA | J59: =IF(A59="","",Output!C54) -> 5402750.1 | M59: =IF(A59="","",Output!D54) -> 0 | P59: =IF(A59="","",Output!E54) -> 4595787.126
A60: =Output!B55 -> 29 | B60: 0 | D60: NA | F60: NA | H60: NA | J60: =IF(A60="","",Output!C55) -> 5402750.1 | M60: =IF(A60="","",Output!D55) -> 0 | P60: =IF(A60="","",Output!E55) -> 4593822.49
A61: =Output!B56 -> 30 | B61: 0 | D61: NA | F61: NA | H61: NA | J61: =IF(A61="","",Output!C56) -> 5402750.1 | M61: =IF(A61="","",Output!D56) -> 0 | P61: =IF(A61="","",Output!E56) -> 4592415.28
A62: =Output!B57 -> 31 | B62: 0 | D62: NA | F62: NA | H62: NA | J62: =IF(A62="","",Output!C57) -> 5402750.1 | M62: =IF(A62="","",Output!D57) -> 0 | P62: =IF(A62="","",Output!E57) -> 4588552.274
A63: =Output!B58 -> 32 | B63: 0 | D63: NA | F63: NA | H63: NA | J63: =IF(A63="","",Output!C58) -> 5402750.1 | M63: =IF(A63="","",Output!D58) -> 0 | P63: =IF(A63="","",Output!E58) -> 4585737.854
A64: =Output!B59 -> 33 | B64: 0 | D64: NA | F64: NA | H64: NA | J64: =IF(A64="","",Output!C59) -> 5402750.1 | M64: =IF(A64="","",Output!D59) -> 0 | P64: =IF(A64="","",Output!E59) -> 4580467.638
A65: =Output!B60 -> 34 | B65: 0 | D65: NA | F65: NA | H65: NA | J65: =IF(A65="","",Output!C60) -> 5402750.1 | M65: =IF(A65="","",Output!D60) -> 0 | P65: =IF(A65="","",Output!E60) -> 4576246.008
A66: =Output!B61 -> 35 | B66: 0 | D66: NA | F66: NA | H66: NA | J66: =IF(A66="","",Output!C61) -> 5402750.1 | M66: =IF(A66="","",Output!D61) -> 0 | P66: =IF(A66="","",Output!E61) -> 4573564.122
A67: =Output!B62 -> 36 | B67: 0 | D67: NA | F67: NA | H67: NA | J67: =IF(A67="","",Output!C62) -> 5402750.1 | M67: =IF(A67="","",Output!D62) -> 0 | P67: =IF(A67="","",Output!E62) -> 4563939.741
A68: =Output!B63 -> 37 | B68: 0 | D68: NA | F68: NA | H68: NA | J68: =IF(A68="","",Output!C63) -> 5402750.1 | M68: =IF(A68="","",Output!D63) -> 0 | P68: =IF(A68="","",Output!E63) -> 4560341.805
A69: =Output!B64 -> 38 | B69: 0 | D69: NA | F69: NA | H69: NA | J69: =IF(A69="","",Output!C64) -> 5402750.1 | M69: =IF(A69="","",Output!D64) -> 0 | P69: =IF(A69="","",Output!E64) -> 4550292.532
A70: =Output!B65 -> 39 | B70: 0 | D70: NA | F70: NA | H70: NA | J70: =IF(A70="","",Output!C65) -> 5402750.1 | M70: =IF(A70="","",Output!D65) -> 0 | P70: =IF(A70="","",Output!E65) -> 4541783.005
A71: =Output!B66 -> 40 | B71: 0 | D71: NA | F71: NA | H71: NA | J71: =IF(A71="","",Output!C66) -> 5402750.1 | M71: =IF(A71="","",Output!D66) -> 0 | P71: =IF(A71="","",Output!E66) -> 4535304.38
A72: =Output!B67 -> 41 | B72: 0 | D72: NA | F72: NA | H72: NA | J72: =IF(A72="","",Output!C67) -> 5402750.1 | M72: =IF(A72="","",Output!D67) -> 0 | P72: =IF(A72="","",Output!E67) -> 4522865.58
A73: =Output!B68 -> 42 | B73: 0 | D73: NA | F73: NA | H73: NA | J73: =IF(A73="","",Output!C68) -> 5402750.1 | M73: =IF(A73="","",Output!D68) -> 0 | P73: =IF(A73="","",Output!E68) -> 4512457.683
A74: =Output!B69 -> 43 | B74: 0 | D74: NA | F74: NA | H74: NA | J74: =IF(A74="","",Output!C69) -> 5402750.1 | M74: =IF(A74="","",Output!D69) -> 0 | P74: =IF(A74="","",Output!E69) -> 4501067.468
A75: =Output!B70 -> 44 | B75: 0 | D75: NA | F75: NA | H75: NA | J75: =IF(A75="","",Output!C70) -> 5402750.1 | M75: =IF(A75="","",Output!D70) -> 0 | P75: =IF(A75="","",Output!E70) -> 4487712.616
A76: =Output!B71 -> 45 | B76: 0 | D76: NA | F76: NA | H76: NA | J76: =IF(A76="","",Output!C71) -> 5402750.1 | M76: =IF(A76="","",Output!D71) -> 0 | P76: =IF(A76="","",Output!E71) -> 4473866.605
A77: =Output!B72 -> 46 | B77: 0 | D77: NA | F77: NA | H77: NA | J77: =IF(A77="","",Output!C72) -> 5402750.1 | M77: =IF(A77="","",Output!D72) -> 0 | P77: =IF(A77="","",Output!E72) -> 4455533.896
A78: =Output!B73 -> 47 | B78: 0 | D78: NA | F78: NA | H78: NA | J78: =IF(A78="","",Output!C73) -> 5402750.1 | M78: =IF(A78="","",Output!D73) -> 0 | P78: =IF(A78="","",Output!E73) -> 4440705.567
A79: =Output!B74 -> 48 | B79: 0 | D79: NA | F79: NA | H79: NA | J79: =IF(A79="","",Output!C74) -> 5402750.1 | M79: =IF(A79="","",Output!D74) -> 0 | P79: =IF(A79="","",Output!E74) -> 4422372.857
A80: =Output!B75 -> 49 | B80: 0 | D80: NA | F80: NA | H80: NA | J80: =IF(A80="","",Output!C75) -> 5402750.1 | M80: =IF(A80="","",Output!D75) -> 0 | P80: =IF(A80="","",Output!E75) -> 4400535.766
A81: =Output!B76 -> 50 | B81: 0 | D81: NA | F81: NA | H81: NA | J81: =IF(A81="","",Output!C76) -> 5402750.1 | M81: =IF(A81="","",Output!D76) -> 0 | P81: =IF(A81="","",Output!E76) -> 4379680.994
A82: =Output!B77 -> 51 | B82: 0 | D82: NA | F82: NA | H82: NA | J82: =IF(A82="","",Output!C77) -> 5402750.1 | M82: =IF(A82="","",Output!D77) -> 0 | P82: =IF(A82="","",Output!E77) -> 4355812.999
A83: =Output!B78 -> 52 | B83: 0 | D83: NA | F83: NA | H83: NA | J83: =IF(A83="","",Output!C78) -> 5402750.1 | M83: =IF(A83="","",Output!D78) -> 0 | P83: =IF(A83="","",Output!E78) -> 4329422.942
A84: =Output!B79 -> 53 | B84: 0 | D84: NA | F84: NA | H84: NA | J84: =IF(A84="","",Output!C79) -> 5402750.1 | M84: =IF(A84="","",Output!D79) -> 0 | P84: =IF(A84="","",Output!E79) -> 4301001.982
A85: =Output!B80 -> 54 | B85: 0 | D85: NA | F85: NA | H85: NA | J85: =IF(A85="","",Output!C80) -> 5402750.1 | M85: =IF(A85="","",Output!D80) -> 0 | P85: =IF(A85="","",Output!E80) -> 4270550.117
A86: =Output!B81 -> 55 | B86: 0 | D86: NA | F86: NA | H86: NA | J86: =IF(A86="","",Output!C81) -> 5402750.1 | M86: =IF(A86="","",Output!D81) -> 0 | P86: =IF(A86="","",Output!E81) -> 4238558.509
A87: =Output!B82 -> 56 | B87: 0 | D87: NA | F87: NA | H87: NA | J87: =IF(A87="","",Output!C82) -> 5402750.1 | M87: =IF(A87="","",Output!D82) -> 0 | P87: =IF(A87="","",Output!E82) -> 4204535.997
A88: =Output!B83 -> 57 | B88: 0 | D88: NA | F88: NA | H88: NA | J88: =IF(A88="","",Output!C83) -> 5402750.1 | M88: =IF(A88="","",Output!D83) -> 0 | P88: =IF(A88="","",Output!E83) -> 4164978.2
A89: =Output!B84 -> 58 | B89: 0 | D89: NA | F89: NA | H89: NA | J89: =IF(A89="","",Output!C84) -> 5402750.1 | M89: =IF(A89="","",Output!D84) -> 0 | P89: =IF(A89="","",Output!E84) -> 4123880.658
A90: =Output!B85 -> 59 | B90: 0 | D90: NA | F90: NA | H90: NA | J90: =IF(A90="","",Output!C85) -> 5402750.1 | M90: =IF(A90="","",Output!D85) -> 0 | P90: =IF(A90="","",Output!E85) -> 4077738.992
A91: =Output!B86 ->  | J91: =IF(A91="","",Output!C86) ->  | M91: =IF(A91="","",Output!D86) ->  | P91: =IF(A91="","",Output!E86) -> 
A92: =Output!B87 ->  | J92: =IF(A92="","",Output!C87) ->  | M92: =IF(A92="","",Output!D87) ->  | P92: =IF(A92="","",Output!E87) -> 
A93: =Output!B88 ->  | J93: =IF(A93="","",Output!C88) ->  | M93: =IF(A93="","",Output!D88) ->  | P93: =IF(A93="","",Output!E88) -> 
A94: =Output!B89 ->  | J94: =IF(A94="","",Output!C89) ->  | M94: =IF(A94="","",Output!D89) ->  | P94: =IF(A94="","",Output!E89) -> 
A95: =Output!B90 ->  | J95: =IF(A95="","",Output!C90) ->  | M95: =IF(A95="","",Output!D90) ->  | P95: =IF(A95="","",Output!E90) -> 
A96: =Output!B91 ->  | J96: =IF(A96="","",Output!C91) ->  | M96: =IF(A96="","",Output!D91) ->  | P96: =IF(A96="","",Output!E91) -> 
A97: =Output!B92 ->  | J97: =IF(A97="","",Output!C92) ->  | M97: =IF(A97="","",Output!D92) ->  | P97: =IF(A97="","",Output!E92) -> 
A98: =Output!B93 ->  | B98: =IF(A98="","",0) ->  | D98: =IF(A98="","","NA") ->  | F98: =IF(A98="","","NA") ->  | H98: =IF(A98="","","NA") ->  | J98: =IF(A98="","",Output!C93) ->  | M98: =IF(A98="","",Output!D93) ->  | P98: =IF(A98="","",Output!E93) -> 
A99: =Output!B94 ->  | J99: =IF(A99="","",Output!C94) ->  | M99: =IF(A99="","",Output!D94) ->  | P99: =IF(A99="","",Output!E94) -> 
A100: =Output!B95 ->  | J100: =IF(A100="","",Output!C95) ->  | M100: =IF(A100="","",Output!D95) ->  | P100: =IF(A100="","",Output!E95) -> 
A101: =Output!B96 ->  | J101: =IF(A101="","",Output!C96) ->  | M101: =IF(A101="","",Output!D96) ->  | P101: =IF(A101="","",Output!E96) -> 
A102: =Output!B97 ->  | J102: =IF(A102="","",Output!C97) ->  | M102: =IF(A102="","",Output!D97) ->  | P102: =IF(A102="","",Output!E97) -> 
A103: =Output!B98 ->  | J103: =IF(A103="","",Output!C98) ->  | M103: =IF(A103="","",Output!D98) ->  | P103: =IF(A103="","",Output!E98) -> 
A105: Annuity payable p.a. based on prevailing annuity rates (Rs.) | J105: =Input!AM23 -> 399554
A106: Annuity Option Selected | J106: =D20 -> Deferred Life Annuity with Return of Purchase Price
A108: Notes:
A109: 1) The values shown above are for illustration purpose only. The actual annuity amount receivable depends on the prevailing annuity rates.
A110: 2) Annualised premium excludes underwriting extra premium, frequency loadings on premiums, the premium paid towards the riders, if any, and Goods and Services Tax.
A111: 3) Refer the sales literature for explanation of terms used in this illustration.
A113: I,………………………… (name), have explained the premiums and benefits under the product fully to the prospect/ policyholder. | K113: I,………………………… (name), having received the information with respect to the above, have understood the above statement before entering into the contract.
A115: Place:
A116: Date: | C116: Signature of Agent/ Intermediary/ Official | K116: Date: | M116: Signature of Prospect/ Policyholder
A118: Tata AIA Life Insurance Company Ltd. (IRDA of India Regn No. 110) (CIN: U66010MH2000PLC128403)
A119: Registered and Corporate Office: 14th Floor, Tower A, Peninsula Business Park, Senapati Bapat Marg, Lower Parel, Mumbai- 400013
A120: Trade logo displayed above belongs to Tata Sons Ltd and AIA Group Ltd. and is used by Tata AIA Life Insurance Company Ltd under a license.
A121: For more information, Call the Tata AIA Life Insurance Company Ltd Helpline number1860-266-9966 (local charges apply) or Visit us at: www.tataaia.com or SMS 'LIFE' to 58888

Sheet Output
B2: BENEFIT ILLUSTRATION Tata AIA Life Insurance Smart Annuity Plan
B3: Tata AIA Life Insurance Smart Annuity Plan A Non-Linked Non-Participating Annuity plan | D3: Proposal No:
B4: UIN: 110N150V06 | D4: Proposal Date & Time:
B6: PERSONAL DETAILS
B7: Annuitant Type | C7: Name | D7: Age (years) | E7: Gender
B8: Proposer / Annuitant/ Primary Annuitant | C8: =xl_insname&" "&Input!H26 -> ABC xyz | D8: =SIS!D8 -> 58 | E8: =Input!H12 -> Male
B9: Joint Annuitant | C9: =xl_ownname&" "&Input!L26 -> xyz abc | D9: =SIS!D9 -> 58 | E9: =IF(E14="Single Life","NA",Input!H16) -> Female
B11: YOUR PLAN DETAILS
B12: Date Of Commencement | D12: =SIS!D12 -> 2024-02-05
B13: Plan Option | D13: =SIS!D13 -> Deferred Life Annuity with Return of Purchase Price
B14: Single/Joint Life | E14: =SIS!E14 -> Joint Life
B15: Deferment Period | D15: =SIS!D15 -> 2
B16: Purchase Price (excluding taxes) | D16: =SIS!D16 -> 4911591
B17: Applicable taxes, cesses & levies on Purchase Price | D17: =SIS!D17 -> 88409
B18: Purchase Price (including taxes) | D18: =SIS!D18 -> 5000000
B19: Annuity Payable | D19: =SIS!D19 -> 399554
B20: Annuity Frequency | D20: =SIS!D20 -> Yearly
B21: First Annuity Date | D21: =SIS!D21 -> 2027-02-05
B22: Currency | D22: INR
B24: Projection of Values (For Illustration Only)
B25: Policy Year | C25: Guaranteed Benefit | E25: Non Guaranteed Benefit
C26: Guaranteed Death Benefit | D26: Guaranteed Surrender Value | E26: Special Surrender Value
B27: =SIS!B26 -> 1 | C27: =SIS!C26 -> 5402750.1 | D27: =IF(B27="","",OFFSET(Details!$AK$3,12*$B27,0)) -> 3683693.25 | E27: =SIS!D26 -> 4186160.283
B28: =SIS!B27 -> 2 | C28: =SIS!C27 -> 5710699 | D28: =IF(B28="","",OFFSET(Details!$AK$3,12*$B28,0)) -> 3683693.25 | E28: =SIS!D27 -> 4571042.022
B29: =SIS!B28 -> 3 | C29: =SIS!C28 -> 5402750.1 | D29: =IF(B29="","",OFFSET(Details!$AK$3,12*$B29,0)) -> 3284139.25 | E29: =SIS!D28 -> 4572184.163
B30: =SIS!B29 -> 4 | C30: =SIS!C29 -> 5402750.1 | D30: =IF(B30="","",OFFSET(Details!$AK$3,12*$B30,0)) -> 3621323.9 | E30: =SIS!D29 -> 4573817.463
B31: =SIS!B30 -> 5 | C31: =SIS!C30 -> 5402750.1 | D31: =IF(B31="","",OFFSET(Details!$AK$3,12*$B31,0)) -> 3221769.9 | E31: =SIS!D30 -> 4576924.241
B32: =SIS!B31 -> 6 | C32: =SIS!C31 -> 5402750.1 | D32: =IF(B32="","",OFFSET(Details!$AK$3,12*$B32,0)) -> 2822215.9 | E32: =SIS!D31 -> 4578491.274
B33: =SIS!B32 -> 7 | C33: =SIS!C32 -> 5402750.1 | D33: =IF(B33="","",OFFSET(Details!$AK$3,12*$B33,0)) -> 2422661.9 | E33: =SIS!D32 -> 4577536.245
B34: =SIS!B33 -> 8 | C34: =SIS!C33 -> 5402750.1 | D34: =IF(B34="","",OFFSET(Details!$AK$3,12*$B34,0)) -> 2023107.9 | E34: =SIS!D33 -> 4582541.392
B35: =SIS!B34 -> 9 | C35: =SIS!C34 -> 5402750.1 | D35: =IF(B35="","",OFFSET(Details!$AK$3,12*$B35,0)) -> 1623553.9 | E35: =SIS!D34 -> 4584533.317
B36: =SIS!B35 -> 10 | C36: =SIS!C35 -> 5402750.1 | D36: =IF(B36="","",OFFSET(Details!$AK$3,12*$B36,0)) -> 1223999.9 | E36: =SIS!D35 -> 4583020.861
B37: =SIS!B36 -> 11 | C37: =SIS!C36 -> 5402750.1 | D37: =IF(B37="","",OFFSET(Details!$AK$3,12*$B37,0)) -> 824445.9 | E37: =SIS!D36 -> 4586486.263
B38: =SIS!B37 -> 12 | C38: =SIS!C37 -> 5402750.1 | D38: =IF(B38="","",OFFSET(Details!$AK$3,12*$B38,0)) -> 424891.9 | E38: =SIS!D37 -> 4589951.666
B39: =SIS!B38 -> 13 | C39: =SIS!C38 -> 5402750.1 | D39: =IF(B39="","",OFFSET(Details!$AK$3,12*$B39,0)) -> 25337.9 | E39: =SIS!D38 -> 4588930.369
B40: =SIS!B39 -> 14 | C40: =SIS!C39 -> 5402750.1 | D40: =IF(B40="","",OFFSET(Details!$AK$3,12*$B40,0)) -> 0 | E40: =SIS!D39 -> 4591904.612
B41: =SIS!B40 -> 15 | C41: =SIS!C40 -> 5402750.1 | D41: =IF(B41="","",OFFSET(Details!$AK$3,12*$B41,0)) -> 0 | E41: =SIS!D40 -> 4593405.378
B42: =SIS!B41 -> 16 | C42: =SIS!C41 -> 5402750.1 | D42: =IF(B42="","",OFFSET(Details!$AK$3,12*$B42,0)) -> 0 | E42: =SIS!D41 -> 4594414.985
B43: =SIS!B42 -> 17 | C43: =SIS!C42 -> 5402750.1 | D43: =IF(B43="","",OFFSET(Details!$AK$3,12*$B43,0)) -> 0 | E43: =SIS!D42 -> 4597946.655
B44: =SIS!B43 -> 18 | C44: =SIS!C43 -> 5402750.1 | D44: =IF(B44="","",OFFSET(Details!$AK$3,12*$B44,0)) -> 0 | E44: =SIS!D43 -> 4600004.847
B45: =SIS!B44 -> 19 | C45: =SIS!C44 -> 5402750.1 | D45: =IF(B45="","",OFFSET(Details!$AK$3,12*$B45,0)) -> 0 | E45: =SIS!D44 -> 4600098.403
B46: =SIS!B45 -> 20 | C46: =SIS!C45 -> 5402750.1 | D46: =IF(B46="","",OFFSET(Details!$AK$3,12*$B46,0)) -> 0 | E46: =SIS!D45 -> 4602222.863
B47: =SIS!B46 -> 21 | C47: =SIS!C46 -> 5402750.1 | D47: =IF(B47="","",OFFSET(Details!$AK$3,12*$B47,0)) -> 0 | E47: =SIS!D46 -> 4601891.527
B48: =SIS!B47 -> 22 | C48: =SIS!C47 -> 5402750.1 | D48: =IF(B48="","",OFFSET(Details!$AK$3,12*$B48,0)) -> 0 | E48: =SIS!D47 -> 4603591.094
B49: =SIS!B48 -> 23 | C49: =SIS!C48 -> 5402750.1 | D49: =IF(B49="","",OFFSET(Details!$AK$3,12*$B49,0)) -> 0 | E49: =SIS!D48 -> 4602834.866
B50: =SIS!B49 -> 24 | C50: =SIS!C49 -> 5402750.1 | D50: =IF(B50="","",OFFSET(Details!$AK$3,12*$B50,0)) -> 0 | E50: =SIS!D49 -> 4603127.224
B51: =SIS!B50 -> 25 | C51: =SIS!C50 -> 5402750.1 | D51: =IF(B51="","",OFFSET(Details!$AK$3,12*$B51,0)) -> 0 | E51: =SIS!D50 -> 4600472.627
B52: =SIS!B51 -> 26 | C52: =SIS!C51 -> 5402750.1 | D52: =IF(B52="","",OFFSET(Details!$AK$3,12*$B52,0)) -> 0 | E52: =SIS!D51 -> 4599357.774
B53: =SIS!B52 -> 27 | C53: =SIS!C52 -> 5402750.1 | D53: =IF(B53="","",OFFSET(Details!$AK$3,12*$B53,0)) -> 0 | E53: =SIS!D52 -> 4598800.348
B54: =SIS!B53 -> 28 | C54: =SIS!C53 -> 5402750.1 | D54: =IF(B54="","",OFFSET(Details!$AK$3,12*$B54,0)) -> 0 | E54: =SIS!D53 -> 4595787.126
B55: =SIS!B54 -> 29 | C55: =SIS!C54 -> 5402750.1 | D55: =IF(B55="","",OFFSET(Details!$AK$3,12*$B55,0)) -> 0 | E55: =SIS!D54 -> 4593822.49
B56: =SIS!B55 -> 30 | C56: =SIS!C55 -> 5402750.1 | D56: =IF(B56="","",OFFSET(Details!$AK$3,12*$B56,0)) -> 0 | E56: =SIS!D55 -> 4592415.28
B57: =SIS!B56 -> 31 | C57: =SIS!C56 -> 5402750.1 | D57: =IF(B57="","",OFFSET(Details!$AK$3,12*$B57,0)) -> 0 | E57: =SIS!D56 -> 4588552.274
B58: =SIS!B57 -> 32 | C58: =SIS!C57 -> 5402750.1 | D58: =IF(B58="","",OFFSET(Details!$AK$3,12*$B58,0)) -> 0 | E58: =SIS!D57 -> 4585737.854
B59: =SIS!B58 -> 33 | C59: =SIS!C58 -> 5402750.1 | D59: =IF(B59="","",OFFSET(Details!$AK$3,12*$B59,0)) -> 0 | E59: =SIS!D58 -> 4580467.638
B60: =SIS!B59 -> 34 | C60: =SIS!C59 -> 5402750.1 | D60: =IF(B60="","",OFFSET(Details!$AK$3,12*$B60,0)) -> 0 | E60: =SIS!D59 -> 4576246.008
B61: =SIS!B60 -> 35 | C61: =SIS!C60 -> 5402750.1 | D61: =IF(B61="","",OFFSET(Details!$AK$3,12*$B61,0)) -> 0 | E61: =SIS!D60 -> 4573564.122
B62: =SIS!B61 -> 36 | C62: =SIS!C61 -> 5402750.1 | D62: =IF(B62="","",OFFSET(Details!$AK$3,12*$B62,0)) -> 0 | E62: =SIS!D61 -> 4563939.741
B63: =SIS!B62 -> 37 | C63: =SIS!C62 -> 5402750.1 | D63: =IF(B63="","",OFFSET(Details!$AK$3,12*$B63,0)) -> 0 | E63: =SIS!D62 -> 4560341.805
B64: =SIS!B63 -> 38 | C64: =SIS!C63 -> 5402750.1 | D64: =IF(B64="","",OFFSET(Details!$AK$3,12*$B64,0)) -> 0 | E64: =SIS!D63 -> 4550292.532
B65: =SIS!B64 -> 39 | C65: =SIS!C64 -> 5402750.1 | D65: =IF(B65="","",OFFSET(Details!$AK$3,12*$B65,0)) -> 0 | E65: =SIS!D64 -> 4541783.005
B66: =SIS!B65 -> 40 | C66: =SIS!C65 -> 5402750.1 | D66: =IF(B66="","",OFFSET(Details!$AK$3,12*$B66,0)) -> 0 | E66: =SIS!D65 -> 4535304.38
B67: =SIS!B66 -> 41 | C67: =SIS!C66 -> 5402750.1 | D67: =IF(B67="","",OFFSET(Details!$AK$3,12*$B67,0)) -> 0 | E67: =SIS!D66 -> 4522865.58
B68: =SIS!B67 -> 42 | C68: =SIS!C67 -> 5402750.1 | D68: =IF(B68="","",OFFSET(Details!$AK$3,12*$B68,0)) -> 0 | E68: =SIS!D67 -> 4512457.683
B69: =SIS!B68 -> 43 | C69: =SIS!C68 -> 5402750.1 | D69: =IF(B69="","",OFFSET(Details!$AK$3,12*$B69,0)) -> 0 | E69: =SIS!D68 -> 4501067.468
B70: =SIS!B69 -> 44 | C70: =SIS!C69 -> 5402750.1 | D70: =IF(B70="","",OFFSET(Details!$AK$3,12*$B70,0)) -> 0 | E70: =SIS!D69 -> 4487712.616
B71: =SIS!B70 -> 45 | C71: =SIS!C70 -> 5402750.1 | D71: =IF(B71="","",OFFSET(Details!$AK$3,12*$B71,0)) -> 0 | E71: =SIS!D70 -> 4473866.605
B72: =SIS!B71 -> 46 | C72: =SIS!C71 -> 5402750.1 | D72: =IF(B72="","",OFFSET(Details!$AK$3,12*$B72,0)) -> 0 | E72: =SIS!D71 -> 4455533.896
B73: =SIS!B72 -> 47 | C73: =SIS!C72 -> 5402750.1 | D73: =IF(B73="","",OFFSET(Details!$AK$3,12*$B73,0)) -> 0 | E73: =SIS!D72 -> 4440705.567
B74: =SIS!B73 -> 48 | C74: =SIS!C73 -> 5402750.1 | D74: =IF(B74="","",OFFSET(Details!$AK$3,12*$B74,0)) -> 0 | E74: =SIS!D73 -> 4422372.857
B75: =SIS!B74 -> 49 | C75: =SIS!C74 -> 5402750.1 | D75: =IF(B75="","",OFFSET(Details!$AK$3,12*$B75,0)) -> 0 | E75: =SIS!D74 -> 4400535.766
B76: =SIS!B75 -> 50 | C76: =SIS!C75 -> 5402750.1 | D76: =IF(B76="","",OFFSET(Details!$AK$3,12*$B76,0)) -> 0 | E76: =SIS!D75 -> 4379680.994
B77: =SIS!B76 -> 51 | C77: =SIS!C76 -> 5402750.1 | D77: =IF(B77="","",OFFSET(Details!$AK$3,12*$B77,0)) -> 0 | E77: =SIS!D76 -> 4355812.999
B78: =SIS!B77 -> 52 | C78: =SIS!C77 -> 5402750.1 | D78: =IF(B78="","",OFFSET(Details!$AK$3,12*$B78,0)) -> 0 | E78: =SIS!D77 -> 4329422.942
B79: =SIS!B78 -> 53 | C79: =SIS!C78 -> 5402750.1 | D79: =IF(B79="","",OFFSET(Details!$AK$3,12*$B79,0)) -> 0 | E79: =SIS!D78 -> 4301001.982
B80: =SIS!B79 -> 54 | C80: =SIS!C79 -> 5402750.1 | D80: =IF(B80="","",OFFSET(Details!$AK$3,12*$B80,0)) -> 0 | E80: =SIS!D79 -> 4270550.117
B81: =SIS!B80 -> 55 | C81: =SIS!C80 -> 5402750.1 | D81: =IF(B81="","",OFFSET(Details!$AK$3,12*$B81,0)) -> 0 | E81: =SIS!D80 -> 4238558.509
B82: =SIS!B81 -> 56 | C82: =SIS!C81 -> 5402750.1 | D82: =IF(B82="","",OFFSET(Details!$AK$3,12*$B82,0)) -> 0 | E82: =SIS!D81 -> 4204535.997
B83: =SIS!B82 -> 57 | C83: =SIS!C82 -> 5402750.1 | D83: =IF(B83="","",OFFSET(Details!$AK$3,12*$B83,0)) -> 0 | E83: =SIS!D82 -> 4164978.2
B84: =SIS!B83 -> 58 | C84: =SIS!C83 -> 5402750.1 | D84: =IF(B84="","",OFFSET(Details!$AK$3,12*$B84,0)) -> 0 | E84: =SIS!D83 -> 4123880.658
B85: =SIS!B84 -> 59 | C85: =SIS!C84 -> 5402750.1 | D85: =IF(B85="","",OFFSET(Details!$AK$3,12*$B85,0)) -> 0 | E85: =SIS!D84 -> 4077738.992
B86: =SIS!B85 ->  | C86: =SIS!C85 ->  | D86: =IF(B86="","",OFFSET(Details!$AK$3,12*$B86,0)) ->  | E86: =SIS!D85 -> 
B87: =SIS!B86 ->  | C87: =SIS!C86 ->  | D87: =IF(B87="","",OFFSET(Details!$AK$3,12*$B87,0)) ->  | E87: =SIS!D86 -> 
B88: =SIS!B87 ->  | C88: =SIS!C87 ->  | D88: =IF(B88="","",OFFSET(Details!$AK$3,12*$B88,0)) ->  | E88: =SIS!D87 -> 
B89: =SIS!B88 ->  | C89: =SIS!C88 ->  | D89: =IF(B89="","",OFFSET(Details!$AK$3,12*$B89,0)) ->  | E89: =SIS!D88 -> 
B90: =SIS!B89 ->  | C90: =SIS!C89 ->  | D90: =IF(B90="","",OFFSET(Details!$AK$3,12*$B90,0)) ->  | E90: =SIS!D89 -> 
B91: =SIS!B90 ->  | C91: =SIS!C90 ->  | D91: =IF(B91="","",OFFSET(Details!$AK$3,12*$B91,0)) ->  | E91: =SIS!D90 -> 
B92: =SIS!B91 ->  | C92: =SIS!C91 ->  | D92: =IF(B92="","",OFFSET(Details!$AK$3,12*$B92,0)) ->  | E92: =SIS!D91 -> 
B93: =SIS!B92 ->  | C93: =SIS!C92 ->  | D93: =IF(B93="","",OFFSET(Details!$AK$3,12*$B93,0)) ->  | E93: =SIS!D92 -> 
B94: =SIS!B93 ->  | C94: =SIS!C93 ->  | D94: =IF(B94="","",OFFSET(Details!$AK$3,12*$B94,0)) ->  | E94: =SIS!D93 -> 
B95: =SIS!B94 ->  | C95: =SIS!C94 ->  | D95: =IF(B95="","",OFFSET(Details!$AK$3,12*$B95,0)) ->  | E95: =SIS!D94 -> 
B96: =SIS!B95 ->  | C96: =SIS!C95 ->  | D96: =IF(B96="","",OFFSET(Details!$AK$3,12*$B96,0)) ->  | E96: =SIS!D95 -> 
B97: =SIS!B96 ->  | C97: =SIS!C96 ->  | D97: =IF(B97="","",OFFSET(Details!$AK$3,12*$B97,0)) ->  | E97: =SIS!D96 -> 
B98: =SIS!B97 ->  | C98: =SIS!C97 ->  | D98: =IF(B98="","",OFFSET(Details!$AK$3,12*$B98,0)) ->  | E98: =SIS!D97 -> 
B99: Some benefits are guaranteed and some are non-guaranteed under this plan. The guaranteed and non-guaranteed benefits have been clearly marked ‘Guaranteed’ and ‘Non Guaranteed’ respectively in the illustration table above.
B101: Notes:
B102: 1. This illustration is not an insurance contract.
B103: 2. The Annuity or Purchase Price will be calculated based on the Annuity Rates applicable as on the date of purchase of annuity.
B104: 3. The plan doesn't offer any Maturity benefit.
B105: 4. The applicable taxes, cesses, and levies, levied by the goverment from time to time, if any, shall be collected separately over and above the policy premiums.
B106: 5. Income Tax benefits would be available as per the prevailing income tax laws, subject to fulfillment of conditions stipulated therein. Tata AIA Life Insurance Company Ltd. does not assume responsibility on tax implication mentioned anywhere in this document. Please consult your own tax consultant to know the tax benefits available to you.
B107: 6. For more details on risk factors, terms and conditions please read sales brochure carefully before concluding a sale.
B108: 7. Surrender value illustrated above is end of the policy year value. Surrender value may be revised depending on the prevailing market conditions.
B110: Declaration:
B111: Declaration of the Proposer/Annuitants | D111: Agent / Intermediary of Tata AIA Life Insurance Co. Ltd.
B112: I have understood the information in the benefit illustration mentioned above as explained to me by the intermediary or agent and I am affixing my signature for the proof. | D112: I have explained the information in the benefit illustration to the Proposer and he has understood the same. I am affixing my signature for the proof.
B113: Proposer's/Annuitant's/Primary Annuitant's Name: | D113: Agent/Intermediary Name:
D114: Agent/Intermediary Number:
B115: Proposer's/Annuitant's Signature: | D115: Agent/Intermediary Contact Number:
D116: Agent/Intermediary Signature:
B117: Date: | D117: Date:
B118: IN CASE THE PROPOSER AFFIXES A THUMB IMPRESSION OR SIGNING IN VERNACULAR: I _____________________________________ holding ______________ (Identity Card type) ____________________ (Identity Card no.) hereby declare that I have explained the contents and benefits of the illustration to the Proposer in ______________ language and that the Proposer has affixed his/her signature/thumb impression on the illustration after fully understanding the contents thereof. Witness Signature: _____________ Signature/ Thumb Impression of Proposer: _____________ Signature of the Person making the Declaration: _______________
B120: Unique Reference Number - L&C/Advt/xxxx/xxx/xxx
B122: Tata AIA Life Insurance Company Ltd. (IRDAI Regn. No. 110); CIN: U66010MH2000PLC128403 Registered and Corporate Office: 14th Floor, Tower A, Peninsula Business Park, Senapati Bapat Marg, Lower Parel, Mumbai- 400013 For any information including cancellation, claims and complaints, please contact our Insurance Advisor / Intermediary or visit Tata AIA Life’s nearest branch office or call 1-860-266-9966 (local charges apply) or write to us at customercare@tataaia.com. Visit us at: www.tataaia.com or SMS 'LIFE’ to 58888

Sheet SIS (hidden)
B2: BENEFIT ILLUSTRATION Tata AIA Life Insurance Smart Annuity Plan
B3: Tata AIA Life Insurance Smart Annuity Plan A Non-Linked Non-Participating Annuity plan | D3: Proposal No:
B4: UIN: xxxxxxxxxx | D4: Proposal Date & Time:
B6: PERSONAL DETAILS
B7: Annuitant Type | C7: Name | D7: Age (years) | E7: Gender
B8: Proposer / Annuitant/ Primary Annuitant | C8: =xl_insname -> ABC | D8: =Input!xl_insage -> 58 | E8: =Input!xl_inssex -> M
B9: Joint Annuitant | C9: =IF(Life="SL","NA",xl_ownname) -> xyz | D9: =IF(Life="SL","NA",xl_ownage) -> 58 | E9: =IF(Life="SL","NA",xl_ownsex) -> F
B11: YOUR PLAN DETAILS
B12: Date Of Commencement | D12: =TODAY() -> 2024-02-05
B13: Plan Option | D13: =IF(xl_polopt=1,"Immediate Life Annuity",IF(xl_polopt=2,"Immediate Life Annuity with Return of Purchase Price","Deferred Life Annuity with Return of Purchase Price")) -> Deferred Life Annuity with Return of Purchase Price
B14: Single/Joint Life | E14: =IF(Life="SL","Single Life", "Joint Life") -> Joint Life
B15: Deferment Period | D15: =IF(xl_polopt=3,Def_Yrs,"NA") -> 2
B16: Purchase Price (excluding taxes) | D16: =Details!B37 -> 4911591
B17: Applicable taxes, cesses & levies on Purchase Price | D17: =ROUND(IF(Input!AR8=1,D16*1.9%,D16*1.8%),0) -> 88409
B18: Purchase Price (including taxes) | D18: =D16+D17 -> 5000000
B19: Annuity Payable | D19: =Details!B7 -> 399554
B20: Annuity Frequency | D20: =VLOOKUP(Details!B5,Details!$A$13:$B$16,2,0) -> Yearly
B21: First Annuity Date | D21: =IF(Input!$AF$9="m",EDATE($D$12,1+12*IF($D$15="NA",0,$D$15)),IF(Input!$AF$9="q",EDATE($D$12,3+12*IF($D$15="NA",0,$D$15)),IF(Input!$AF$9="s",EDATE($D$12,6+12*IF($D$15="NA",0,$D$15)),EDATE($D$12,12+12*IF($D$15="NA",0,$D$15))))) -> 2027-02-05
B22: Currency | D22: INR
B24: Projection of Values (For Illustration Only)
B25: Policy Year | C25: Guaranteed Death Benefit | D25: Non-Guaranteed Surrender Benefit
B26: 1 | C26: =IF(B26="","",OFFSET(Details!$AB$3,(12*SIS!B26),0)) -> 5402750.1 | D26: =IF(B26="","",OFFSET(Details!$AJ$3,12*$B26,0)) -> 4186160.283
B27: =IF(B26>=XL_PT,"",B26+1) -> 2 | C27: =IF(B27="","",OFFSET(Details!$AB$3,(12*SIS!B27),0)) -> 5710699 | D27: =IF(B27="","",OFFSET(Details!$AJ$3,12*$B27,0)) -> 4571042.022
B28: 3 | C28: =IF(B28="","",OFFSET(Details!$AB$3,(12*SIS!B28),0)) -> 5402750.1 | D28: =IF(B28="","",OFFSET(Details!$AJ$3,12*$B28,0)) -> 4572184.163
B29: 4 | C29: =IF(B29="","",OFFSET(Details!$AB$3,(12*SIS!B29),0)) -> 5402750.1 | D29: =IF(B29="","",OFFSET(Details!$AJ$3,12*$B29,0)) -> 4573817.463
B30: 5 | C30: =IF(B30="","",OFFSET(Details!$AB$3,(12*SIS!B30),0)) -> 5402750.1 | D30: =IF(B30="","",OFFSET(Details!$AJ$3,12*$B30,0)) -> 4576924.241
B31: 6 | C31: =IF(B31="","",OFFSET(Details!$AB$3,(12*SIS!B31),0)) -> 5402750.1 | D31: =IF(B31="","",OFFSET(Details!$AJ$3,12*$B31,0)) -> 4578491.274
B32: 7 | C32: =IF(B32="","",OFFSET(Details!$AB$3,(12*SIS!B32),0)) -> 5402750.1 | D32: =IF(B32="","",OFFSET(Details!$AJ$3,12*$B32,0)) -> 4577536.245
B33: 8 | C33: =IF(B33="","",OFFSET(Details!$AB$3,(12*SIS!B33),0)) -> 5402750.1 | D33: =IF(B33="","",OFFSET(Details!$AJ$3,12*$B33,0)) -> 4582541.392
B34: 9 | C34: =IF(B34="","",OFFSET(Details!$AB$3,(12*SIS!B34),0)) -> 5402750.1 | D34: =IF(B34="","",OFFSET(Details!$AJ$3,12*$B34,0)) -> 4584533.317
B35: 10 | C35: =IF(B35="","",OFFSET(Details!$AB$3,(12*SIS!B35),0)) -> 5402750.1 | D35: =IF(B35="","",OFFSET(Details!$AJ$3,12*$B35,0)) -> 4583020.861
B36: 11 | C36: =IF(B36="","",OFFSET(Details!$AB$3,(12*SIS!B36),0)) -> 5402750.1 | D36: =IF(B36="","",OFFSET(Details!$AJ$3,12*$B36,0)) -> 4586486.263
B37: 12 | C37: =IF(B37="","",OFFSET(Details!$AB$3,(12*SIS!B37),0)) -> 5402750.1 | D37: =IF(B37="","",OFFSET(Details!$AJ$3,12*$B37,0)) -> 4589951.666
B38: 13 | C38: =IF(B38="","",OFFSET(Details!$AB$3,(12*SIS!B38),0)) -> 5402750.1 | D38: =IF(B38="","",OFFSET(Details!$AJ$3,12*$B38,0)) -> 4588930.369
B39: 14 | C39: =IF(B39="","",OFFSET(Details!$AB$3,(12*SIS!B39),0)) -> 5402750.1 | D39: =IF(B39="","",OFFSET(Details!$AJ$3,12*$B39,0)) -> 4591904.612
B40: 15 | C40: =IF(B40="","",OFFSET(Details!$AB$3,(12*SIS!B40),0)) -> 5402750.1 | D40: =IF(B40="","",OFFSET(Details!$AJ$3,12*$B40,0)) -> 4593405.378
B41: 16 | C41: =IF(B41="","",OFFSET(Details!$AB$3,(12*SIS!B41),0)) -> 5402750.1 | D41: =IF(B41="","",OFFSET(Details!$AJ$3,12*$B41,0)) -> 4594414.985
B42: 17 | C42: =IF(B42="","",OFFSET(Details!$AB$3,(12*SIS!B42),0)) -> 5402750.1 | D42: =IF(B42="","",OFFSET(Details!$AJ$3,12*$B42,0)) -> 4597946.655
B43: 18 | C43: =IF(B43="","",OFFSET(Details!$AB$3,(12*SIS!B43),0)) -> 5402750.1 | D43: =IF(B43="","",OFFSET(Details!$AJ$3,12*$B43,0)) -> 4600004.847
B44: 19 | C44: =IF(B44="","",OFFSET(Details!$AB$3,(12*SIS!B44),0)) -> 5402750.1 | D44: =IF(B44="","",OFFSET(Details!$AJ$3,12*$B44,0)) -> 4600098.403
B45: 20 | C45: =IF(B45="","",OFFSET(Details!$AB$3,(12*SIS!B45),0)) -> 5402750.1 | D45: =IF(B45="","",OFFSET(Details!$AJ$3,12*$B45,0)) -> 4602222.863
B46: 21 | C46: =IF(B46="","",OFFSET(Details!$AB$3,(12*SIS!B46),0)) -> 5402750.1 | D46: =IF(B46="","",OFFSET(Details!$AJ$3,12*$B46,0)) -> 4601891.527
B47: 22 | C47: =IF(B47="","",OFFSET(Details!$AB$3,(12*SIS!B47),0)) -> 5402750.1 | D47: =IF(B47="","",OFFSET(Details!$AJ$3,12*$B47,0)) -> 4603591.094
B48: 23 | C48: =IF(B48="","",OFFSET(Details!$AB$3,(12*SIS!B48),0)) -> 5402750.1 | D48: =IF(B48="","",OFFSET(Details!$AJ$3,12*$B48,0)) -> 4602834.866
B49: 24 | C49: =IF(B49="","",OFFSET(Details!$AB$3,(12*SIS!B49),0)) -> 5402750.1 | D49: =IF(B49="","",OFFSET(Details!$AJ$3,12*$B49,0)) -> 4603127.224
B50: 25 | C50: =IF(B50="","",OFFSET(Details!$AB$3,(12*SIS!B50),0)) -> 5402750.1 | D50: =IF(B50="","",OFFSET(Details!$AJ$3,12*$B50,0)) -> 4600472.627
B51: 26 | C51: =IF(B51="","",OFFSET(Details!$AB$3,(12*SIS!B51),0)) -> 5402750.1 | D51: =IF(B51="","",OFFSET(Details!$AJ$3,12*$B51,0)) -> 4599357.774
B52: 27 | C52: =IF(B52="","",OFFSET(Details!$AB$3,(12*SIS!B52),0)) -> 5402750.1 | D52: =IF(B52="","",OFFSET(Details!$AJ$3,12*$B52,0)) -> 4598800.348
B53: 28 | C53: =IF(B53="","",OFFSET(Details!$AB$3,(12*SIS!B53),0)) -> 5402750.1 | D53: =IF(B53="","",OFFSET(Details!$AJ$3,12*$B53,0)) -> 4595787.126
B54: 29 | C54: =IF(B54="","",OFFSET(Details!$AB$3,(12*SIS!B54),0)) -> 5402750.1 | D54: =IF(B54="","",OFFSET(Details!$AJ$3,12*$B54,0)) -> 4593822.49
B55: 30 | C55: =IF(B55="","",OFFSET(Details!$AB$3,(12*SIS!B55),0)) -> 5402750.1 | D55: =IF(B55="","",OFFSET(Details!$AJ$3,12*$B55,0)) -> 4592415.28
B56: 31 | C56: =IF(B56="","",OFFSET(Details!$AB$3,(12*SIS!B56),0)) -> 5402750.1 | D56: =IF(B56="","",OFFSET(Details!$AJ$3,12*$B56,0)) -> 4588552.274
B57: 32 | C57: =IF(B57="","",OFFSET(Details!$AB$3,(12*SIS!B57),0)) -> 5402750.1 | D57: =IF(B57="","",OFFSET(Details!$AJ$3,12*$B57,0)) -> 4585737.854
B58: 33 | C58: =IF(B58="","",OFFSET(Details!$AB$3,(12*SIS!B58),0)) -> 5402750.1 | D58: =IF(B58="","",OFFSET(Details!$AJ$3,12*$B58,0)) -> 4580467.638
B59: =IF(B58>=XL_PT,"",B58+1) -> 34 | C59: =IF(B59="","",OFFSET(Details!$AB$3,(12*SIS!B59),0)) -> 5402750.1 | D59: =IF(B59="","",OFFSET(Details!$AJ$3,12*$B59,0)) -> 4576246.008
B60: 35 | C60: =IF(B60="","",OFFSET(Details!$AB$3,(12*SIS!B60),0)) -> 5402750.1 | D60: =IF(B60="","",OFFSET(Details!$AJ$3,12*$B60,0)) -> 4573564.122
B61: 36 | C61: =IF(B61="","",OFFSET(Details!$AB$3,(12*SIS!B61),0)) -> 5402750.1 | D61: =IF(B61="","",OFFSET(Details!$AJ$3,12*$B61,0)) -> 4563939.741
B62: 37 | C62: =IF(B62="","",OFFSET(Details!$AB$3,(12*SIS!B62),0)) -> 5402750.1 | D62: =IF(B62="","",OFFSET(Details!$AJ$3,12*$B62,0)) -> 4560341.805
B63: 38 | C63: =IF(B63="","",OFFSET(Details!$AB$3,(12*SIS!B63),0)) -> 5402750.1 | D63: =IF(B63="","",OFFSET(Details!$AJ$3,12*$B63,0)) -> 4550292.532
B64: 39 | C64: =IF(B64="","",OFFSET(Details!$AB$3,(12*SIS!B64),0)) -> 5402750.1 | D64: =IF(B64="","",OFFSET(Details!$AJ$3,12*$B64,0)) -> 4541783.005
B65: 40 | C65: =IF(B65="","",OFFSET(Details!$AB$3,(12*SIS!B65),0)) -> 5402750.1 | D65: =IF(B65="","",OFFSET(Details!$AJ$3,12*$B65,0)) -> 4535304.38
B66: 41 | C66: =IF(B66="","",OFFSET(Details!$AB$3,(12*SIS!B66),0)) -> 5402750.1 | D66: =IF(B66="","",OFFSET(Details!$AJ$3,12*$B66,0)) -> 4522865.58
B67: 42 | C67: =IF(B67="","",OFFSET(Details!$AB$3,(12*SIS!B67),0)) -> 5402750.1 | D67: =IF(B67="","",OFFSET(Details!$AJ$3,12*$B67,0)) -> 4512457.683
B68: 43 | C68: =IF(B68="","",OFFSET(Details!$AB$3,(12*SIS!B68),0)) -> 5402750.1 | D68: =IF(B68="","",OFFSET(Details!$AJ$3,12*$B68,0)) -> 4501067.468
B69: 44 | C69: =IF(B69="","",OFFSET(Details!$AB$3,(12*SIS!B69),0)) -> 5402750.1 | D69: =IF(B69="","",OFFSET(Details!$AJ$3,12*$B69,0)) -> 4487712.616
B70: 45 | C70: =IF(B70="","",OFFSET(Details!$AB$3,(12*SIS!B70),0)) -> 5402750.1 | D70: =IF(B70="","",OFFSET(Details!$AJ$3,12*$B70,0)) -> 4473866.605
B71: 46 | C71: =IF(B71="","",OFFSET(Details!$AB$3,(12*SIS!B71),0)) -> 5402750.1 | D71: =IF(B71="","",OFFSET(Details!$AJ$3,12*$B71,0)) -> 4455533.896
B72: 47 | C72: =IF(B72="","",OFFSET(Details!$AB$3,(12*SIS!B72),0)) -> 5402750.1 | D72: =IF(B72="","",OFFSET(Details!$AJ$3,12*$B72,0)) -> 4440705.567
B73: 48 | C73: =IF(B73="","",OFFSET(Details!$AB$3,(12*SIS!B73),0)) -> 5402750.1 | D73: =IF(B73="","",OFFSET(Details!$AJ$3,12*$B73,0)) -> 4422372.857
B74: 49 | C74: =IF(B74="","",OFFSET(Details!$AB$3,(12*SIS!B74),0)) -> 5402750.1 | D74: =IF(B74="","",OFFSET(Details!$AJ$3,12*$B74,0)) -> 4400535.766
B75: 50 | C75: =IF(B75="","",OFFSET(Details!$AB$3,(12*SIS!B75),0)) -> 5402750.1 | D75: =IF(B75="","",OFFSET(Details!$AJ$3,12*$B75,0)) -> 4379680.994
B76: 51 | C76: =IF(B76="","",OFFSET(Details!$AB$3,(12*SIS!B76),0)) -> 5402750.1 | D76: =IF(B76="","",OFFSET(Details!$AJ$3,12*$B76,0)) -> 4355812.999
B77: 52 | C77: =IF(B77="","",OFFSET(Details!$AB$3,(12*SIS!B77),0)) -> 5402750.1 | D77: =IF(B77="","",OFFSET(Details!$AJ$3,12*$B77,0)) -> 4329422.942
B78: 53 | C78: =IF(B78="","",OFFSET(Details!$AB$3,(12*SIS!B78),0)) -> 5402750.1 | D78: =IF(B78="","",OFFSET(Details!$AJ$3,12*$B78,0)) -> 4301001.982
B79: 54 | C79: =IF(B79="","",OFFSET(Details!$AB$3,(12*SIS!B79),0)) -> 5402750.1 | D79: =IF(B79="","",OFFSET(Details!$AJ$3,12*$B79,0)) -> 4270550.117
B80: 55 | C80: =IF(B80="","",OFFSET(Details!$AB$3,(12*SIS!B80),0)) -> 5402750.1 | D80: =IF(B80="","",OFFSET(Details!$AJ$3,12*$B80,0)) -> 4238558.509
B81: 56 | C81: =IF(B81="","",OFFSET(Details!$AB$3,(12*SIS!B81),0)) -> 5402750.1 | D81: =IF(B81="","",OFFSET(Details!$AJ$3,12*$B81,0)) -> 4204535.997
B82: 57 | C82: =IF(B82="","",OFFSET(Details!$AB$3,(12*SIS!B82),0)) -> 5402750.1 | D82: =IF(B82="","",OFFSET(Details!$AJ$3,12*$B82,0)) -> 4164978.2
B83: 58 | C83: =IF(B83="","",OFFSET(Details!$AB$3,(12*SIS!B83),0)) -> 5402750.1 | D83: =IF(B83="","",OFFSET(Details!$AJ$3,12*$B83,0)) -> 4123880.658
B84: 59 | C84: =IF(B84="","",OFFSET(Details!$AB$3,(12*SIS!B84),0)) -> 5402750.1 | D84: =IF(B84="","",OFFSET(Details!$AJ$3,12*$B84,0)) -> 4077738.992
C85: =IF(B85="","",OFFSET(Details!$AB$3,(12*SIS!B85),0)) ->  | D85: =IF(B85="","",OFFSET(Details!$AJ$3,12*$B85,0)) -> 
C86: =IF(B86="","",OFFSET(Details!$AB$3,(12*SIS!B86),0)) ->  | D86: =IF(B86="","",OFFSET(Details!$AJ$3,12*$B86,0)) -> 
C87: =IF(B87="","",OFFSET(Details!$AB$3,(12*SIS!B87),0)) ->  | D87: =IF(B87="","",OFFSET(Details!$AJ$3,12*$B87,0)) -> 
C88: =IF(B88="","",OFFSET(Details!$AB$3,(12*SIS!B88),0)) ->  | D88: =IF(B88="","",OFFSET(Details!$AJ$3,12*$B88,0)) -> 
C89: =IF(B89="","",OFFSET(Details!$AB$3,(12*SIS!B89),0)) ->  | D89: =IF(B89="","",OFFSET(Details!$AJ$3,12*$B89,0)) -> 
C90: =IF(B90="","",OFFSET(Details!$AB$3,(12*SIS!B90),0)) ->  | D90: =IF(B90="","",OFFSET(Details!$AJ$3,12*$B90,0)) -> 
B91: =IF(B90>=XL_PT,"",B90+1) ->  | C91: =IF(B91="","",OFFSET(Details!$AB$3,(12*SIS!B91),0)) ->  | D91: =IF(B91="","",OFFSET(Details!$AJ$3,12*$B91,0)) -> 
C92: =IF(B92="","",OFFSET(Details!$AB$3,(12*SIS!B92),0)) ->  | D92: =IF(B92="","",OFFSET(Details!$AJ$3,12*$B92,0)) -> 
C93: =IF(B93="","",OFFSET(Details!$AB$3,(12*SIS!B93),0)) ->  | D93: =IF(B93="","",OFFSET(Details!$AJ$3,12*$B93,0)) -> 
C94: =IF(B94="","",OFFSET(Details!$AB$3,(12*SIS!B94),0)) ->  | D94: =IF(B94="","",OFFSET(Details!$AJ$3,12*$B94,0)) -> 
C95: =IF(B95="","",OFFSET(Details!$AB$3,(12*SIS!B95),0)) ->  | D95: =IF(B95="","",OFFSET(Details!$AJ$3,12*$B95,0)) -> 
C96: =IF(B96="","",OFFSET(Details!$AB$3,(12*SIS!B96),0)) ->  | D96: =IF(B96="","",OFFSET(Details!$AJ$3,12*$B96,0)) -> 
C97: =IF(B97="","",OFFSET(Details!$AB$3,(12*SIS!B97),0)) ->  | D97: =IF(B97="","",OFFSET(Details!$AJ$3,12*$B97,0)) -> 
B98: Some benefits are guaranteed and some are non-guaranteed under this plan. The guaranteed and non-guaranteed benefits have been clearly marked ‘Guaranteed’ and ‘Non Guaranteed’ respectively in the illustration table above.
B100: Notes:
B101: 1. This illustration is not an insurance contract.
B102: 2. The Annuity or Purchase Price will be calculated based on the Annuity Rates applicable as on the date of purchase of annuity.
B103: 3. The plan doesn't offer any Maturity benefit.
B104: 4. The applicable taxes, cesses, and levies, levied by the goverment from time to time, if any, shall be collected separately over and above the policy premiums.
B105: 5. Income Tax benefits would be available as per the prevailing income tax laws, subject to fulfillment of conditions stipulated therein. Tata AIA Life Insurance Company Ltd. does not assume responsibility on tax implication mentioned anywhere in this document. Please consult your own tax consultant to know the tax benefits available to you.
B106: 6. For more details on risk factors, terms and conditions please read sales brochure carefully before concluding a sale.
B107: 7. Surrender value illustrated above is end of the policy year value. Surrender value may be revised depending on the prevailing market conditions.
B109: Declaration:
B110: Declaration of the Proposer/Annuitants | D110: Agent / Intermediary of Tata AIA Life Insurance Co. Ltd.
B111: I have understood the information in the benefit illustration mentioned above as explained to me by the intermediary or agent and I am affixing my signature for the proof. | D111: I have explained the information in the benefit illustration to the Proposer and he has understood the same. I am affixing my signature for the proof.
B112: Proposer's/Annuitant's/Primary Annuitant's Name: | D112: Agent/Intermediary Name:
D113: Agent/Intermediary Number:
B114: Proposer's/Annuitant's Signature: | D114: Agent/Intermediary Contact Number:
D115: Agent/Intermediary Signature:
B116: Date: | D116: Date:
B117: IN CASE THE PROPOSER AFFIXES A THUMB IMPRESSION OR SIGNING IN VERNACULAR: I _____________________________________ holding ______________ (Identity Card type) ____________________ (Identity Card no.) hereby declare that I have explained the contents and benefits of the illustration to the Proposer in ______________ language and that the Proposer has affixed his/her signature/thumb impression on the illustration after fully understanding the contents thereof. Witness Signature: _____________ Signature/ Thumb Impression of Proposer: _____________ Signature of the Person making the Declaration: _______________
B119: Unique Reference Number - L&C/Advt/xxxx/xxx/xxx
B121: Tata AIA Life Insurance Company Ltd. (IRDAI Regn. No. 110); CIN: U66010MH2000PLC128403 Registered and Corporate Office: 14th Floor, Tower A, Peninsula Business Park, Senapati Bapat Marg, Lower Parel, Mumbai- 400013 For any information including cancellation, claims and complaints, please contact our Insurance Advisor / Intermediary or visit Tata AIA Life’s nearest branch office or call 1-860-266-9966 (local charges apply) or write to us at customercare@tataaia.com. Visit us at: www.tataaia.com or SMS 'LIFE’ to 58888

Sheet Details (hidden)
A1: Inputs
A2: Plan_Type | B2: =xl_polopt -> 3 | C2: ROP | M2: Yearly Annuity | N2: Purchase Price | AE2: =IF(Input!$AF$11=3,OFFSET(AE$3,(Def_Yrs-1)*12+1,0),0) -> 4135383.9 | AF2: =IF(xl_polopt=3,OFFSET(AF$3,(Def_Yrs-1)*12+1,0),0) -> 435658.1217 | AI2: =SUM(AE2:AF2) -> 4571042.022 | AW2: Online rebate/ Employee discount/ Group purchase discount | AX2: 0.02
A3: Age at Entry | B3: =Input!xl_insage -> 58 | F3: Policy Year | G3: GSV (% of Single Premium)) | K3: Age at surrender | L3: Year | M3: F1 | N3: F2 | T3: Month | U3: Year | V3: Deferment period | W3: Primary Life | X3: Secondary Life | Y3: Premium | Z3: Acc_Ann | AA3: Cumulative Acc_Ann | AB3: Death Benefit | AC3: Accum Annuity Payout | AD3: Annuity Payout | AE3: F1 | AF3: F2 | AG3: Months to deferment end | AH3: PV factor | AI3: F3 | AJ3: SSV | AK3: GSV | AL3: Surrender benefit | AM3: GSV_Lookup | AP3: Months upto deferment end | AQ3: Discounting factor
A4: Premium | B4: =xl_premium -> 4911591 | E4: 1 | F4: 1 | G4: 0.75 | K4: 45 | L4: 1 | M4: 10.88 | N4: 4.24 | T4: 1 | U4: 1 | V4: =IF(xl_polopt<>3,0,IF($U4<Def_Yrs,U4,0)) -> 1 | W4: =Input!xl_insage -> 58 | X4: =IF(Life="SL",0,xl_ownage) -> 58 | Y4: =IF(AND(T4=1,U4=1),xl_premium,0) -> 4911591 | Z4: =IF($U4<=Def_Yrs,Details!$B$6/12,0) -> 33296.16667 | AA4: =Z4 -> 33296.16667 | AB4: =IF($U4<=XL_PT+1,IF(xl_polopt=1,0,IF(xl_polopt=2,xl_premium,MAX(xl_premium*1.1,AA4+xl_premium-AC4))),0) -> 5402750.1 | AC4: =AD4 -> 0 | AD4: =IF($U4<=XL_PT+1,IF(AND(xl_polopt=3,Details!$U4<=Def_Yrs),0,IF(MOD($T4,12/$B$9)=0,$B$7,0)),0) -> 0 | AE4: =IFERROR(IF(V4=0,VLOOKUP(IF(Life="SL",W4,MIN(W4,X4)),$K$4:$M$76,3,0)*$B$6,0),0) -> 0 | AF4: =IFERROR(IF(V4=0,(VLOOKUP(IF(Life="SL",W4,MIN(W4,X4)),$K$4:$N$76,4,0))/100*$B$4,0),0) -> 0 | AG4: =IF(Def_Yrs=0,0,IF($U4>Def_Yrs,0,Def_Yrs*12-$T4)) -> 23 | AH4: =+VLOOKUP(AG4,$AP$4:$AQ$124,2) -> 0.845 | AI4: =(AG4>0)*AH4*$AI$2 -> 3862530.508 | AJ4: =IF(xl_polopt=1,0,IF(AND(xl_polopt=3,AG4>0),AI4,SUM(AE4:AF4,AI4))) -> 3862530.508 | AK4: =MAX(IF(xl_polopt=1,0,VLOOKUP(U4,$E$4:$G$7,3,TRUE)*xl_premium-SUM(Details!$AD$4:AD4)),0) -> 3683693.25 | AL4: =MAX(AJ4,AK4) -> 3862530.508 | AM4: =IF(OR(xl_polopt=1,xl_polopt=2),"NA",Details!AK4) -> 3683693.25 | AP4: 0 | AQ4: 1
A5: Ann_Freq | B5: =xl_paymod -> A | C5: =VLOOKUP(B5,$A$13:$B$16,2,0) -> Yearly | E5: 2 | F5: =F4+1 -> 2 | G5: 0.75 | K5: 46 | L5: 2 | M5: 10.85 | N5: 4.5 | T5: 2 | U5: 1 | V5: 1 | W5: =W4 -> 58 | X5: 58 | Y5: 0 | Z5: =IF($U5<=Def_Yrs,Details!$B$6/12,0) -> 33296.16667 | AA5: =(Z5+AA4)*($U4<=XL_PT+1) -> 66592.33333 | AB5: 5402750.1 | AC5: =(AC4+AD5)*($U4<=XL_PT+1) -> 0 | AD5: =IF($U5<=XL_PT+1,IF(AND(xl_polopt=3,Details!$U5<=Def_Yrs),0,IF(MOD($T5,12/$B$9)=0,$B$7,0)),0) -> 0 | AE5: =IFERROR(IF(V5=0,VLOOKUP(IF(Life="SL",W5,MIN(W5,X5)),$K$4:$M$76,3,0)*$B$6,0),0) -> 0 | AF5: =IFERROR(IF(V5=0,(VLOOKUP(IF(Life="SL",W5,MIN(W5,X5)),$K$4:$N$76,4,0))/100*$B$4,0),0) -> 0 | AG5: 22 | AH5: =+VLOOKUP(AG5,$AP$4:$AQ$124,2) -> 0.8515 | AI5: =(AG5>0)*AH5*$AI$2 -> 3892242.281 | AJ5: 3892242.281 | AK5: =MAX(IF(xl_polopt=1,0,VLOOKUP(U5,$E$4:$G$7,3,TRUE)*xl_premium-SUM(Details!$AD$4:AD5)),0) -> 3683693.25 | AL5: =MAX(AJ5,AK5) -> 3892242.281 | AM5: =IF(OR(xl_polopt=1,xl_polopt=2),"NA",Details!AK5) -> 3683693.25 | AP5: 1 | AQ5: 0.993
A6: Annuity Payout | B6: =Input!AM23 -> 399554 | E6: 3 | F6: =F5+1 -> 3 | G6: 0.75 | K6: 47 | L6: 3 | M6: 10.82 | N6: 4.77 | T6: 3 | U6: 1 | V6: 1 | W6: =W5 -> 58 | X6: 58 | Y6: 0 | Z6: =IF($U6<=Def_Yrs,Details!$B$6/12,0) -> 33296.16667 | AA6: 99888.5 | AB6: 5402750.1 | AC6: 0 | AD6: =IF($U6<=XL_PT+1,IF(AND(xl_polopt=3,Details!$U6<=Def_Yrs),0,IF(MOD($T6,12/$B$9)=0,$B$7,0)),0) -> 0 | AE6: 0 | AF6: 0 | AG6: 21 | AH6: 0.8579 | AI6: 3921496.95 | AJ6: 3921496.95 | AK6: =MAX(IF(xl_polopt=1,0,VLOOKUP(U6,$E$4:$G$7,3,TRUE)*xl_premium-SUM(Details!$AD$4:AD6)),0) -> 3683693.25 | AL6: 3921496.95 | AM6: =IF(OR(xl_polopt=1,xl_polopt=2),"NA",Details!AK6) -> 3683693.25 | AP6: 2 | AQ6: 0.986
A7: Modal_Payout | B7: =B6*VLOOKUP(B5,$A$13:$C$16,3,0)/VLOOKUP(B5,$A$13:$D$16,4,0) -> 399554 | E7: 4 | F7: 4th year onwards | G7: 0.9 | K7: 48 | L7: 4 | M7: 10.79 | N7: 5.05 | T7: 4 | U7: 1 | V7: 1 | W7: 58 | X7: 58 | Y7: 0 | Z7: =IF($U7<=Def_Yrs,Details!$B$6/12,0) -> 33296.16667 | AA7: 133184.6667 | AB7: 5402750.1 | AC7: 0 | AD7: =IF($U7<=XL_PT+1,IF(AND(xl_polopt=3,Details!$U7<=Def_Yrs),0,IF(MOD($T7,12/$B$9)=0,$B$7,0)),0) -> 0 | AE7: 0 | AF7: 0 | AG7: 20 | AH7: 0.8643 | AI7: 3950751.619 | AJ7: 3950751.619 | AK7: =MAX(IF(xl_polopt=1,0,VLOOKUP(U7,$E$4:$G$7,3,TRUE)*xl_premium-SUM(Details!$AD$4:AD7)),0) -> 3683693.25 | AL7: 3950751.619 | AM7: =IF(OR(xl_polopt=1,xl_polopt=2),"NA",Details!AK7) -> 3683693.25 | AP7: 3 | AQ7: 0.979
A8: Age 2 Entry | B8: 50 | K8: 49 | L8: 5 | M8: 10.75 | N8: 5.35 | T8: 5 | U8: 1 | V8: 1 | W8: 58 | X8: 58 | Y8: 0 | Z8: =IF($U8<=Def_Yrs,Details!$B$6/12,0) -> 33296.16667 | AA8: 166480.8333 | AB8: 5402750.1 | AC8: 0 | AD8: =IF($U8<=XL_PT+1,IF(AND(xl_polopt=3,Details!$U8<=Def_Yrs),0,IF(MOD($T8,12/$B$9)=0,$B$7,0)),0) -> 0 | AE8: 0 | AF8: 0 | AG8: 19 | AH8: 0.8708 | AI8: 3980463.392 | AJ8: 3980463.392 | AK8: =MAX(IF(xl_polopt=1,0,VLOOKUP(U8,$E$4:$G$7,3,TRUE)*xl_premium-SUM(Details!$AD$4:AD8)),0) -> 3683693.25 | AL8: 3980463.392 | AM8: =IF(OR(xl_polopt=1,xl_polopt=2),"NA",Details!AK8) -> 3683693.25 | AP8: 4 | AQ8: 0.9719
A9: Annuity Frequency | B9: =VLOOKUP(B5,$A$13:$D$16,4,0) -> 1 | F9: GST | G9: =IF(Input!AR8=1,1.9%,1.8%) -> 0.018 | K9: 50 | L9: 6 | M9: 10.72 | N9: 5.66 | T9: 6 | U9: 1 | V9: 1 | W9: 58 | X9: 58 | Y9: 0 | Z9: =IF($U9<=Def_Yrs,Details!$B$6/12,0) -> 33296.16667 | AA9: 199777 | AB9: 5402750.1 | AC9: 0 | AD9: =IF($U9<=XL_PT+1,IF(AND(xl_polopt=3,Details!$U9<=Def_Yrs),0,IF(MOD($T9,12/$B$9)=0,$B$7,0)),0) -> 0 | AE9: 0 | AF9: 0 | AG9: 18 | AH9: 0.8772 | AI9: 4009718.061 | AJ9: 4009718.061 | AK9: =MAX(IF(xl_polopt=1,0,VLOOKUP(U9,$E$4:$G$7,3,TRUE)*xl_premium-SUM(Details!$AD$4:AD9)),0) -> 3683693.25 | AL9: 4009718.061 | AM9: =IF(OR(xl_polopt=1,xl_polopt=2),"NA",Details!AK9) -> 3683693.25 | AP9: 5 | AQ9: 0.9649
A10: No yrs Def | B10: 5 | K10: 51 | L10: 7 | M10: 10.68 | N10: 5.98 | T10: 7 | U10: 1 | V10: 1 | W10: 58 | X10: 58 | Y10: 0 | Z10: =IF($U10<=Def_Yrs,Details!$B$6/12,0) -> 33296.16667 | AA10: 233073.1667 | AB10: 5402750.1 | AC10: 0 | AD10: =IF($U10<=XL_PT+1,IF(AND(xl_polopt=3,Details!$U10<=Def_Yrs),0,IF(MOD($T10,12/$B$9)=0,$B$7,0)),0) -> 0 | AE10: 0 | AF10: 0 | AG10: 17 | AH10: 0.8836 | AI10: 4038972.73 | AJ10: 4038972.73 | AK10: =MAX(IF(xl_polopt=1,0,VLOOKUP(U10,$E$4:$G$7,3,TRUE)*xl_premium-SUM(Details!$AD$4:AD10)),0) -> 3683693.25 | AL10: 4038972.73 | AM10: =IF(OR(xl_polopt=1,xl_polopt=2),"NA",Details!AK10) -> 3683693.25 | AP10: 6 | AQ10: 0.9579
K11: 52 | L11: 8 | M11: 10.64 | N11: 6.31 | T11: 8 | U11: 1 | V11: 1 | W11: 58 | X11: 58 | Y11: 0 | Z11: =IF($U11<=Def_Yrs,Details!$B$6/12,0) -> 33296.16667 | AA11: 266369.3333 | AB11: 5402750.1 | AC11: 0 | AD11: =IF($U11<=XL_PT+1,IF(AND(xl_polopt=3,Details!$U11<=Def_Yrs),0,IF(MOD($T11,12/$B$9)=0,$B$7,0)),0) -> 0 | AE11: 0 | AF11: 0 | AG11: 16 | AH11: 0.8901 | AI11: 4068684.504 | AJ11: 4068684.504 | AK11: =MAX(IF(xl_polopt=1,0,VLOOKUP(U11,$E$4:$G$7,3,TRUE)*xl_premium-SUM(Details!$AD$4:AD11)),0) -> 3683693.25 | AL11: 4068684.504 | AM11: =IF(OR(xl_polopt=1,xl_polopt=2),"NA",Details!AK11) -> 3683693.25 | AP11: 7 | AQ11: 0.9509
K12: 53 | L12: 9 | M12: 10.61 | N12: 6.64 | T12: 9 | U12: 1 | V12: 1 | W12: 58 | X12: 58 | Y12: 0 | Z12: =IF($U12<=Def_Yrs,Details!$B$6/12,0) -> 33296.16667 | AA12: 299665.5 | AB12: 5402750.1 | AC12: 0 | AD12: =IF($U12<=XL_PT+1,IF(AND(xl_polopt=3,Details!$U12<=Def_Yrs),0,IF(MOD($T12,12/$B$9)=0,$B$7,0)),0) -> 0 | AE12: 0 | AF12: 0 | AG12: 15 | AH12: 0.8965 | AI12: 4097939.172 | AJ12: 4097939.172 | AK12: =MAX(IF(xl_polopt=1,0,VLOOKUP(U12,$E$4:$G$7,3,TRUE)*xl_premium-SUM(Details!$AD$4:AD12)),0) -> 3683693.25 | AL12: 4097939.172 | AM12: =IF(OR(xl_polopt=1,xl_polopt=2),"NA",Details!AK12) -> 3683693.25 | AP12: 8 | AQ12: 0.9439
A13: A | B13: Yearly | C13: 1 | D13: 1 | K13: 54 | L13: 10 | M13: 10.57 | N13: 6.99 | T13: 10 | U13: 1 | V13: 1 | W13: 58 | X13: 58 | Y13: 0 | Z13: =IF($U13<=Def_Yrs,Details!$B$6/12,0) -> 33296.16667 | AA13: 332961.6667 | AB13: 5402750.1 | AC13: 0 | AD13: =IF($U13<=XL_PT+1,IF(AND(xl_polopt=3,Details!$U13<=Def_Yrs),0,IF(MOD($T13,12/$B$9)=0,$B$7,0)),0) -> 0 | AE13: 0 | AF13: 0 | AG13: 14 | AH13: 0.9029 | AI13: 4127193.841 | AJ13: 4127193.841 | AK13: =MAX(IF(xl_polopt=1,0,VLOOKUP(U13,$E$4:$G$7,3,TRUE)*xl_premium-SUM(Details!$AD$4:AD13)),0) -> 3683693.25 | AL13: 4127193.841 | AM13: =IF(OR(xl_polopt=1,xl_polopt=2),"NA",Details!AK13) -> 3683693.25 | AP13: 9 | AQ13: 0.9369
A14: S | B14: Half-Yearly | C14: 0.98 | D14: 2 | K14: 55 | L14: 11 | M14: 10.53 | N14: 7.34 | T14: 11 | U14: 1 | V14: 1 | W14: 58 | X14: 58 | Y14: 0 | Z14: =IF($U14<=Def_Yrs,Details!$B$6/12,0) -> 33296.16667 | AA14: 366257.8333 | AB14: 5402750.1 | AC14: 0 | AD14: =IF($U14<=XL_PT+1,IF(AND(xl_polopt=3,Details!$U14<=Def_Yrs),0,IF(MOD($T14,12/$B$9)=0,$B$7,0)),0) -> 0 | AE14: 0 | AF14: 0 | AG14: 13 | AH14: 0.9094 | AI14: 4156905.615 | AJ14: 4156905.615 | AK14: =MAX(IF(xl_polopt=1,0,VLOOKUP(U14,$E$4:$G$7,3,TRUE)*xl_premium-SUM(Details!$AD$4:AD14)),0) -> 3683693.25 | AL14: 4156905.615 | AM14: =IF(OR(xl_polopt=1,xl_polopt=2),"NA",Details!AK14) -> 3683693.25 | AP14: 10 | AQ14: 0.9298
A15: Q | B15: Quarterly | C15: =C14-1% -> 0.97 | D15: 4 | K15: 56 | L15: 12 | M15: 10.48 | N15: 7.7 | T15: 12 | U15: 1 | V15: 1 | W15: 58 | X15: 58 | Y15: 0 | Z15: =IF($U15<=Def_Yrs,Details!$B$6/12,0) -> 33296.16667 | AA15: 399554 | AB15: 5402750.1 | AC15: 0 | AD15: =IF($U15<=XL_PT+1,IF(AND(xl_polopt=3,Details!$U15<=Def_Yrs),0,IF(MOD($T15,12/$B$9)=0,$B$7,0)),0) -> 0 | AE15: 0 | AF15: 0 | AG15: 12 | AH15: 0.9158 | AI15: 4186160.283 | AJ15: 4186160.283 | AK15: =MAX(IF(xl_polopt=1,0,VLOOKUP(U15,$E$4:$G$7,3,TRUE)*xl_premium-SUM(Details!$AD$4:AD15)),0) -> 3683693.25 | AL15: 4186160.283 | AM15: =IF(OR(xl_polopt=1,xl_polopt=2),"NA",Details!AK15) -> 3683693.25 | AP15: 11 | AQ15: 0.9228
A16: M | B16: Monthly | C16: =C15-1% -> 0.96 | D16: 12 | K16: 57 | L16: 13 | M16: 10.44 | N16: 8.08 | T16: 13 | U16: 2 | V16: 0 | W16: =W4+1 -> 59 | X16: =X4+1 -> 59 | Y16: 0 | Z16: =IF($U16<=Def_Yrs,Details!$B$6/12,0) -> 33296.16667 | AA16: 432850.1667 | AB16: 5402750.1 | AC16: 0 | AD16: =IF($U16<=XL_PT+1,IF(AND(xl_polopt=3,Details!$U16<=Def_Yrs),0,IF(MOD($T16,12/$B$9)=0,$B$7,0)),0) -> 0 | AE16: 4135383.9 | AF16: 435658.1217 | AG16: 11 | AH16: 0.9228 | AI16: 4218157.578 | AJ16: 4218157.578 | AK16: =MAX(IF(xl_polopt=1,0,VLOOKUP(U16,$E$4:$G$7,3,TRUE)*xl_premium-SUM(Details!$AD$4:AD16)),0) -> 3683693.25 | AL16: 4218157.578 | AM16: =IF(OR(xl_polopt=1,xl_polopt=2),"NA",Details!AK16) -> 3683693.25 | AP16: 12 | AQ16: 0.9158
K17: 58 | L17: 14 | M17: 10.4 | N17: 8.47 | T17: 14 | U17: 2 | V17: 0 | W17: =W5+1 -> 59 | X17: 59 | Y17: 0 | Z17: =IF($U17<=Def_Yrs,Details!$B$6/12,0) -> 33296.16667 | AA17: 466146.3333 | AB17: 5402750.1 | AC17: 0 | AD17: =IF($U17<=XL_PT+1,IF(AND(xl_polopt=3,Details!$U17<=Def_Yrs),0,IF(MOD($T17,12/$B$9)=0,$B$7,0)),0) -> 0 | AE17: 4135383.9 | AF17: 435658.1217 | AG17: 10 | AH17: 0.9298 | AI17: 4250154.872 | AJ17: 4250154.872 | AK17: =MAX(IF(xl_polopt=1,0,VLOOKUP(U17,$E$4:$G$7,3,TRUE)*xl_premium-SUM(Details!$AD$4:AD17)),0) -> 3683693.25 | AL17: 4250154.872 | AM17: =IF(OR(xl_polopt=1,xl_polopt=2),"NA",Details!AK17) -> 3683693.25 | AP17: 13 | AQ17: 0.9094
K18: 59 | L18: 15 | M18: 10.35 | N18: 8.87 | T18: 15 | U18: 2 | V18: 0 | W18: =W6+1 -> 59 | X18: 59 | Y18: 0 | Z18: =IF($U18<=Def_Yrs,Details!$B$6/12,0) -> 33296.16667 | AA18: 499442.5 | AB18: 5411033.5 | AC18: 0 | AD18: =IF($U18<=XL_PT+1,IF(AND(xl_polopt=3,Details!$U18<=Def_Yrs),0,IF(MOD($T18,12/$B$9)=0,$B$7,0)),0) -> 0 | AE18: 4135383.9 | AF18: 435658.1217 | AG18: 9 | AH18: 0.9369 | AI18: 4282609.27 | AJ18: 4282609.27 | AK18: =MAX(IF(xl_polopt=1,0,VLOOKUP(U18,$E$4:$G$7,3,TRUE)*xl_premium-SUM(Details!$AD$4:AD18)),0) -> 3683693.25 | AL18: 4282609.27 | AM18: =IF(OR(xl_polopt=1,xl_polopt=2),"NA",Details!AK18) -> 3683693.25 | AP18: 14 | AQ18: 0.9029
A19: Annuity Rate | K19: 60 | L19: 16 | M19: 10.3 | N19: 9.3 | T19: 16 | U19: 2 | V19: 0 | W19: =W7+1 -> 59 | X19: 59 | Y19: 0 | Z19: =IF($U19<=Def_Yrs,Details!$B$6/12,0) -> 33296.16667 | AA19: 532738.6667 | AB19: 5444329.667 | AC19: 0 | AD19: =IF($U19<=XL_PT+1,IF(AND(xl_polopt=3,Details!$U19<=Def_Yrs),0,IF(MOD($T19,12/$B$9)=0,$B$7,0)),0) -> 0 | AE19: 4135383.9 | AF19: 435658.1217 | AG19: 8 | AH19: 0.9439 | AI19: 4314606.564 | AJ19: 4314606.564 | AK19: =MAX(IF(xl_polopt=1,0,VLOOKUP(U19,$E$4:$G$7,3,TRUE)*xl_premium-SUM(Details!$AD$4:AD19)),0) -> 3683693.25 | AL19: 4314606.564 | AM19: =IF(OR(xl_polopt=1,xl_polopt=2),"NA",Details!AK19) -> 3683693.25 | AP19: 15 | AQ19: 0.8965
B20: RateA | C20: RateB | D20: RateC | E20: RateD | F20: RateE | G20: Total | K20: 61 | L20: 17 | M20: 10.25 | N20: 9.74 | T20: 17 | U20: 2 | V20: 0 | W20: =W8+1 -> 59 | X20: 59 | Y20: 0 | Z20: =IF($U20<=Def_Yrs,Details!$B$6/12,0) -> 33296.16667 | AA20: 566034.8333 | AB20: 5477625.833 | AC20: 0 | AD20: =IF($U20<=XL_PT+1,IF(AND(xl_polopt=3,Details!$U20<=Def_Yrs),0,IF(MOD($T20,12/$B$9)=0,$B$7,0)),0) -> 0 | AE20: 4135383.9 | AF20: 435658.1217 | AG20: 7 | AH20: 0.9509 | AI20: 4346603.858 | AJ20: 4346603.858 | AK20: =MAX(IF(xl_polopt=1,0,VLOOKUP(U20,$E$4:$G$7,3,TRUE)*xl_premium-SUM(Details!$AD$4:AD20)),0) -> 3683693.25 | AL20: 4346603.858 | AM20: =IF(OR(xl_polopt=1,xl_polopt=2),"NA",Details!AK20) -> 3683693.25 | AP20: 16 | AQ20: 0.8901
A21: Joint Life | B21: =IF(Life="JL",INDEX(INDIRECT("JL"&"_"&Input!$AM$17&"_"&B$20),MATCH(xl_insage,'Annuity_Rates_Joint Life'!$B$5:$B$61,0),MATCH(xl_ownage,'Annuity_Rates_Joint Life'!$B$5:$AQ$5,0)),0)*(1+IF(Online_disc="Y",$AX$2,0%)) -> 0.079152 | C21: =IF(Life="JL",INDEX(INDIRECT("JL"&"_"&Input!$AM$17&"_"&C$20),MATCH(xl_insage,'Annuity_Rates_Joint Life'!$B$5:$B$61,0),MATCH(xl_ownage,'Annuity_Rates_Joint Life'!$B$5:$AQ$5,0)),0)*(1+IF(Online_disc="Y",$AX$2,0%)) -> 0.079866 | D21: =IF(Life="JL",INDEX(INDIRECT("JL"&"_"&Input!$AM$17&"_"&D$20),MATCH(xl_insage,'Annuity_Rates_Joint Life'!$B$5:$B$61,0),MATCH(xl_ownage,'Annuity_Rates_Joint Life'!$B$5:$AQ$5,0)),0)*(1+IF(Online_disc="Y",$AX$2,0%)) -> 0.080784 | E21: =IF(Life="JL",INDEX(INDIRECT("JL"&"_"&Input!$AM$17&"_"&E$20),MATCH(xl_insage,'Annuity_Rates_Joint Life'!$B$5:$B$61,0),MATCH(xl_ownage,'Annuity_Rates_Joint Life'!$B$5:$AQ$5,0)),0)*(1+IF(Online_disc="Y",$AX$2,0%)) -> 0.081396 | F21: =IF(Life="JL",INDEX(INDIRECT("JL"&"_"&Input!$AM$17&"_"&F$20),MATCH(xl_insage,'Annuity_Rates_Joint Life'!$B$5:$B$61,0),MATCH(xl_ownage,'Annuity_Rates_Joint Life'!$B$5:$AQ$5,0)),0)*(1+IF(Online_disc="Y",$AX$2,0%)) -> 0.081804 | K21: 62 | L21: 18 | M21: 10.2 | N21: 10.21 | T21: 18 | U21: 2 | V21: 0 | W21: =W9+1 -> 59 | X21: 59 | Y21: 0 | Z21: =IF($U21<=Def_Yrs,Details!$B$6/12,0) -> 33296.16667 | AA21: 599331 | AB21: 5510922 | AC21: 0 | AD21: =IF($U21<=XL_PT+1,IF(AND(xl_polopt=3,Details!$U21<=Def_Yrs),0,IF(MOD($T21,12/$B$9)=0,$B$7,0)),0) -> 0 | AE21: 4135383.9 | AF21: 435658.1217 | AG21: 6 | AH21: 0.9579 | AI21: 4378601.153 | AJ21: 4378601.153 | AK21: =MAX(IF(xl_polopt=1,0,VLOOKUP(U21,$E$4:$G$7,3,TRUE)*xl_premium-SUM(Details!$AD$4:AD21)),0) -> 3683693.25 | AL21: 4378601.153 | AM21: =IF(OR(xl_polopt=1,xl_polopt=2),"NA",Details!AK21) -> 3683693.25 | AP21: 17 | AQ21: 0.8836
A22: Single Life | B22: =IF(Input!xl_inssex="M",VLOOKUP(xl_insage,'Annuity_Rates_Single Life'!$A$1:$BI$104,MATCH(Input!$AM$17&B$20,'Annuity_Rates_Single Life'!$A$1:$BI$1,0),0),VLOOKUP(IF(OR(xl_polopt=2,xl_polopt=3),MAX(45,xl_insage-3),xl_insage-3),'Annuity_Rates_Single Life'!$A$1:$BI$104,MATCH(Input!$AM$17&B$20,'Annuity_Rates_Single Life'!$A$1:$BI$1,0),0))*(1+IF(Online_disc="Y",$AX$2,0%)) -> 0.077928 | C22: =IF(Input!xl_inssex="M",VLOOKUP(xl_insage,'Annuity_Rates_Single Life'!$A$1:$BI$104,MATCH(Input!$AM$17&C$20,'Annuity_Rates_Single Life'!$A$1:$BI$1,0),0),VLOOKUP(IF(OR(xl_polopt=2,xl_polopt=3),MAX(45,xl_insage-3),xl_insage-3),'Annuity_Rates_Single Life'!$A$1:$BI$104,MATCH(Input!$AM$17&C$20,'Annuity_Rates_Single Life'!$A$1:$BI$1,0),0))*(1+IF(Online_disc="Y",$AX$2,0%)) -> 0.079356 | D22: =IF(Input!xl_inssex="M",VLOOKUP(xl_insage,'Annuity_Rates_Single Life'!$A$1:$BI$104,MATCH(Input!$AM$17&D$20,'Annuity_Rates_Single Life'!$A$1:$BI$1,0),0),VLOOKUP(IF(OR(xl_polopt=2,xl_polopt=3),MAX(45,xl_insage-3),xl_insage-3),'Annuity_Rates_Single Life'!$A$1:$BI$104,MATCH(Input!$AM$17&D$20,'Annuity_Rates_Single Life'!$A$1:$BI$1,0),0))*(1+IF(Online_disc="Y",$AX$2,0%)) -> 0.08058 | E22: =IF(Input!xl_inssex="M",VLOOKUP(xl_insage,'Annuity_Rates_Single Life'!$A$1:$BI$104,MATCH(Input!$AM$17&E$20,'Annuity_Rates_Single Life'!$A$1:$BI$1,0),0),VLOOKUP(IF(OR(xl_polopt=2,xl_polopt=3),MAX(45,xl_insage-3),xl_insage-3),'Annuity_Rates_Single Life'!$A$1:$BI$104,MATCH(Input!$AM$17&E$20,'Annuity_Rates_Single Life'!$A$1:$BI$1,0),0))*(1+IF(Online_disc="Y",$AX$2,0%)) -> 0.080682 | F22: =IF(Input!xl_inssex="M",VLOOKUP(xl_insage,'Annuity_Rates_Single Life'!$A$1:$BI$104,MATCH(Input!$AM$17&F$20,'Annuity_Rates_Single Life'!$A$1:$BI$1,0),0),VLOOKUP(IF(OR(xl_polopt=2,xl_polopt=3),MAX(45,xl_insage-3),xl_insage-3),'Annuity_Rates_Single Life'!$A$1:$BI$104,MATCH(Input!$AM$17&F$20,'Annuity_Rates_Single Life'!$A$1:$BI$1,0),0))*(1+IF(Online_disc="Y",$AX$2,0%)) -> 0.080784 | K22: 63 | L22: 19 | M22: 10.14 | N22: 10.73 | T22: 19 | U22: 2 | V22: 0 | W22: =W10+1 -> 59 | X22: 59 | Y22: 0 | Z22: =IF($U22<=Def_Yrs,Details!$B$6/12,0) -> 33296.16667 | AA22: 632627.1667 | AB22: 5544218.167 | AC22: 0 | AD22: =IF($U22<=XL_PT+1,IF(AND(xl_polopt=3,Details!$U22<=Def_Yrs),0,IF(MOD($T22,12/$B$9)=0,$B$7,0)),0) -> 0 | AE22: 4135383.9 | AF22: 435658.1217 | AG22: 5 | AH22: 0.9649 | AI22: 4410598.447 | AJ22: 4410598.447 | AK22: =MAX(IF(xl_polopt=1,0,VLOOKUP(U22,$E$4:$G$7,3,TRUE)*xl_premium-SUM(Details!$AD$4:AD22)),0) -> 3683693.25 | AL22: 4410598.447 | AM22: =IF(OR(xl_polopt=1,xl_polopt=2),"NA",Details!AK22) -> 3683693.25 | AP22: 18 | AQ22: 0.8772
A23: Annuity Amount | B23: =MIN(xl_premium,B25)*IF(Life="SL",B22,B21) -> 15830.32085 | C23: =MAX(0,MIN(xl_premium,C25)-B25)*IF(Life="SL",C22,C21) -> 23959.8 | D23: =MAX(0,MIN(xl_premium,D25)-C25)*IF(Life="SL",D22,D21) -> 40392 | E23: =MAX(0,MIN(xl_premium,E25)-D25)*IF(Life="SL",E22,E21) -> 122094 | F23: =MAX(xl_premium-E25,0)*IF(Life="SL",F22,F21) -> 197277.872 | G23: =ROUND(SUM(B23:F23),0) -> 399554 | K23: 64 | L23: 20 | M23: 10.07 | N23: 11.28 | T23: 20 | U23: 2 | V23: 0 | W23: =W11+1 -> 59 | X23: 59 | Y23: 0 | Z23: =IF($U23<=Def_Yrs,Details!$B$6/12,0) -> 33296.16667 | AA23: 665923.3333 | AB23: 5577514.333 | AC23: 0 | AD23: =IF($U23<=XL_PT+1,IF(AND(xl_polopt=3,Details!$U23<=Def_Yrs),0,IF(MOD($T23,12/$B$9)=0,$B$7,0)),0) -> 0 | AE23: 4135383.9 | AF23: 435658.1217 | AG23: 4 | AH23: 0.9719 | AI23: 4442595.741 | AJ23: 4442595.741 | AK23: =MAX(IF(xl_polopt=1,0,VLOOKUP(U23,$E$4:$G$7,3,TRUE)*xl_premium-SUM(Details!$AD$4:AD23)),0) -> 3683693.25 | AL23: 4442595.741 | AM23: =IF(OR(xl_polopt=1,xl_polopt=2),"NA",Details!AK23) -> 3683693.25 | AP23: 19 | AQ23: 0.8708
K24: 65 | L24: 21 | M24: 10.01 | N24: 11.87 | T24: 21 | U24: 2 | V24: 0 | W24: =W12+1 -> 59 | X24: 59 | Y24: 0 | Z24: =IF($U24<=Def_Yrs,Details!$B$6/12,0) -> 33296.16667 | AA24: 699219.5 | AB24: 5610810.5 | AC24: 0 | AD24: =IF($U24<=XL_PT+1,IF(AND(xl_polopt=3,Details!$U24<=Def_Yrs),0,IF(MOD($T24,12/$B$9)=0,$B$7,0)),0) -> 0 | AE24: 4135383.9 | AF24: 435658.1217 | AG24: 3 | AH24: 0.979 | AI24: 4475050.139 | AJ24: 4475050.139 | AK24: =MAX(IF(xl_polopt=1,0,VLOOKUP(U24,$E$4:$G$7,3,TRUE)*xl_premium-SUM(Details!$AD$4:AD24)),0) -> 3683693.25 | AL24: 4475050.139 | AM24: =IF(OR(xl_polopt=1,xl_polopt=2),"NA",Details!AK24) -> 3683693.25 | AP24: 20 | AQ24: 0.8643
A25: Priced for Rate A/B/C/D/E | B25: 199999 | C25: 499999 | D25: 999999 | E25: 2499999 | K25: 66 | L25: 22 | M25: 9.94 | N25: 12.48 | T25: 22 | U25: 2 | V25: 0 | W25: =W13+1 -> 59 | X25: 59 | Y25: 0 | Z25: =IF($U25<=Def_Yrs,Details!$B$6/12,0) -> 33296.16667 | AA25: 732515.6667 | AB25: 5644106.667 | AC25: 0 | AD25: =IF($U25<=XL_PT+1,IF(AND(xl_polopt=3,Details!$U25<=Def_Yrs),0,IF(MOD($T25,12/$B$9)=0,$B$7,0)),0) -> 0 | AE25: 4135383.9 | AF25: 435658.1217 | AG25: 2 | AH25: 0.986 | AI25: 4507047.433 | AJ25: 4507047.433 | AK25: =MAX(IF(xl_polopt=1,0,VLOOKUP(U25,$E$4:$G$7,3,TRUE)*xl_premium-SUM(Details!$AD$4:AD25)),0) -> 3683693.25 | AL25: 4507047.433 | AM25: =IF(OR(xl_polopt=1,xl_polopt=2),"NA",Details!AK25) -> 3683693.25 | AP25: 21 | AQ25: 0.8579
B26: =MIN(B25,xl_premium) -> 199999 | C26: =MAX(0,MIN(xl_premium,C25)-B25) -> 300000 | D26: =MAX(0,MIN(xl_premium,D25)-C25) -> 500000 | E26: =MAX(0,MIN(xl_premium,E25)-D25) -> 1500000 | F26: =MAX(xl_premium-E25,0) -> 2411592 | K26: 67 | L26: 23 | M26: 9.86 | N26: 13.1 | T26: 23 | U26: 2 | V26: 0 | W26: =W14+1 -> 59 | X26: 59 | Y26: 0 | Z26: =IF($U26<=Def_Yrs,Details!$B$6/12,0) -> 33296.16667 | AA26: 765811.8333 | AB26: 5677402.833 | AC26: 0 | AD26: =IF($U26<=XL_PT+1,IF(AND(xl_polopt=3,Details!$U26<=Def_Yrs),0,IF(MOD($T26,12/$B$9)=0,$B$7,0)),0) -> 0 | AE26: 4135383.9 | AF26: 435658.1217 | AG26: 1 | AH26: 0.993 | AI26: 4539044.728 | AJ26: 4539044.728 | AK26: =MAX(IF(xl_polopt=1,0,VLOOKUP(U26,$E$4:$G$7,3,TRUE)*xl_premium-SUM(Details!$AD$4:AD26)),0) -> 3683693.25 | AL26: 4539044.728 | AM26: =IF(OR(xl_polopt=1,xl_polopt=2),"NA",Details!AK26) -> 3683693.25 | AP26: 22 | AQ26: 0.8515
K27: 68 | L27: 24 | M27: 9.79 | N27: 13.74 | T27: 24 | U27: 2 | V27: 0 | W27: =W15+1 -> 59 | X27: 59 | Y27: 0 | Z27: =IF($U27<=Def_Yrs,Details!$B$6/12,0) -> 33296.16667 | AA27: 799108 | AB27: 5710699 | AC27: 0 | AD27: =IF($U27<=XL_PT+1,IF(AND(xl_polopt=3,Details!$U27<=Def_Yrs),0,IF(MOD($T27,12/$B$9)=0,$B$7,0)),0) -> 0 | AE27: 4135383.9 | AF27: 435658.1217 | AG27: 0 | AH27: 1 | AI27: 0 | AJ27: 4571042.022 | AK27: =MAX(IF(xl_polopt=1,0,VLOOKUP(U27,$E$4:$G$7,3,TRUE)*xl_premium-SUM(Details!$AD$4:AD27)),0) -> 3683693.25 | AL27: 4571042.022 | AM27: =IF(OR(xl_polopt=1,xl_polopt=2),"NA",Details!AK27) -> 3683693.25 | AP27: 23 | AQ27: 0.845
A28: If Annuity is the starting point | K28: 69 | L28: 25 | M28: 9.72 | N28: 14.38 | T28: 25 | U28: 3 | V28: 0 | W28: =W16+1 -> 60 | X28: 60 | Y28: 0 | Z28: =IF($U28<=Def_Yrs,Details!$B$6/12,0) -> 0 | AA28: 799108 | AB28: 5710699 | AC28: 0 | AD28: =IF($U28<=XL_PT+1,IF(AND(xl_polopt=3,Details!$U28<=Def_Yrs),0,IF(MOD($T28,12/$B$9)=0,$B$7,0)),0) -> 0 | AE28: 4115406.2 | AF28: 456777.963 | AG28: 0 | AH28: 1 | AI28: 0 | AJ28: 4572184.163 | AK28: =MAX(IF(xl_polopt=1,0,VLOOKUP(U28,$E$4:$G$7,3,TRUE)*xl_premium-SUM(Details!$AD$4:AD28)),0) -> 3683693.25 | AL28: 4572184.163 | AM28: =IF(OR(xl_polopt=1,xl_polopt=2),"NA",Details!AK28) -> 3683693.25 | AP28: 24 | AQ28: 0.8386
B29: Annuity Rate | C29: Annuity Amount | D29: Purchase Price | K29: 70 | L29: 26 | M29: 9.64 | N29: 15.01 | T29: 26 | U29: 3 | V29: 0 | W29: =W17+1 -> 60 | X29: 60 | Y29: 0 | Z29: =IF($U29<=Def_Yrs,Details!$B$6/12,0) -> 0 | AA29: 799108 | AB29: 5710699 | AC29: 0 | AD29: =IF($U29<=XL_PT+1,IF(AND(xl_polopt=3,Details!$U29<=Def_Yrs),0,IF(MOD($T29,12/$B$9)=0,$B$7,0)),0) -> 0 | AE29: 4115406.2 | AF29: 456777.963 | AG29: 0 | AH29: 1 | AI29: 0 | AJ29: 4572184.163 | AK29: =MAX(IF(xl_polopt=1,0,VLOOKUP(U29,$E$4:$G$7,3,TRUE)*xl_premium-SUM(Details!$AD$4:AD29)),0) -> 3683693.25 | AL29: 4572184.163 | AM29: =IF(OR(xl_polopt=1,xl_polopt=2),"NA",Details!AK29) -> 3683693.25 | AP29: 25 | AQ29: 0.8327
A30: Annuity Amount for Rate A | B30: =IF(Life="JL",B21,B22) -> 0.079152 | C30: =MIN(B30*B25,Req_Annuity) -> 15830.32085 | D30: =C30/B30 -> 199999 | K30: 71 | L30: 27 | M30: 9.57 | N30: 15.64 | T30: 27 | U30: 3 | V30: 0 | W30: =W18+1 -> 60 | X30: 60 | Y30: 0 | Z30: =IF($U30<=Def_Yrs,Details!$B$6/12,0) -> 0 | AA30: 799108 | AB30: 5710699 | AC30: 0 | AD30: =IF($U30<=XL_PT+1,IF(AND(xl_polopt=3,Details!$U30<=Def_Yrs),0,IF(MOD($T30,12/$B$9)=0,$B$7,0)),0) -> 0 | AE30: 4115406.2 | AF30: 456777.963 | AG30: 0 | AH30: 1 | AI30: 0 | AJ30: 4572184.163 | AK30: =MAX(IF(xl_polopt=1,0,VLOOKUP(U30,$E$4:$G$7,3,TRUE)*xl_premium-SUM(Details!$AD$4:AD30)),0) -> 3683693.25 | AL30: 4572184.163 | AM30: =IF(OR(xl_polopt=1,xl_polopt=2),"NA",Details!AK30) -> 3683693.25 | AP30: 26 | AQ30: 0.8268
A31: Annuity Amount for Rate B | B31: =IF(Life="JL",C21,C22) -> 0.079866 | C31: =IF(SUM($C$30:C30)>Req_Annuity,0,MIN(Req_Annuity-SUM(C$30:C30),B31*C25)) -> 4169.679152 | D31: =C31/B31 -> 52208.43853 | K31: 72 | L31: 28 | M31: 9.5 | N31: 16.24 | T31: 28 | U31: 3 | V31: 0 | W31: =W19+1 -> 60 | X31: 60 | Y31: 0 | Z31: =IF($U31<=Def_Yrs,Details!$B$6/12,0) -> 0 | AA31: 799108 | AB31: 5710699 | AC31: 0 | AD31: =IF($U31<=XL_PT+1,IF(AND(xl_polopt=3,Details!$U31<=Def_Yrs),0,IF(MOD($T31,12/$B$9)=0,$B$7,0)),0) -> 0 | AE31: 4115406.2 | AF31: 456777.963 | AG31: 0 | AH31: 1 | AI31: 0 | AJ31: 4572184.163 | AK31: =MAX(IF(xl_polopt=1,0,VLOOKUP(U31,$E$4:$G$7,3,TRUE)*xl_premium-SUM(Details!$AD$4:AD31)),0) -> 3683693.25 | AL31: 4572184.163 | AM31: =IF(OR(xl_polopt=1,xl_polopt=2),"NA",Details!AK31) -> 3683693.25 | AP31: 27 | AQ31: 0.821
A32: Annuity Amount for Rate C | B32: =IF(Life="JL",D21,D22) -> 0.080784 | C32: =IF(SUM($C$30:C31)>Req_Annuity,0,MIN(Req_Annuity-SUM(C$30:C31),B32*D25)) -> 0 | D32: =C32/B32 -> 0 | K32: 73 | L32: 29 | M32: 9.43 | N32: 16.83 | T32: 29 | U32: 3 | V32: 0 | W32: =W20+1 -> 60 | X32: 60 | Y32: 0 | Z32: =IF($U32<=Def_Yrs,Details!$B$6/12,0) -> 0 | AA32: 799108 | AB32: 5710699 | AC32: 0 | AD32: =IF($U32<=XL_PT+1,IF(AND(xl_polopt=3,Details!$U32<=Def_Yrs),0,IF(MOD($T32,12/$B$9)=0,$B$7,0)),0) -> 0 | AE32: 4115406.2 | AF32: 456777.963 | AG32: 0 | AH32: 1 | AI32: 0 | AJ32: 4572184.163 | AK32: =MAX(IF(xl_polopt=1,0,VLOOKUP(U32,$E$4:$G$7,3,TRUE)*xl_premium-SUM(Details!$AD$4:AD32)),0) -> 3683693.25 | AL32: 4572184.163 | AM32: =IF(OR(xl_polopt=1,xl_polopt=2),"NA",Details!AK32) -> 3683693.25 | AP32: 28 | AQ32: 0.8151
A33: Annuity Amount for Rate D | B33: =IF(Life="JL",E21,E22) -> 0.081396 | C33: =IF(SUM($C$30:C32)>Req_Annuity,0,MIN(Req_Annuity-SUM(C$30:C32),B33*E25)) -> 0 | D33: =C33/B33 -> 0 | K33: 74 | L33: 30 | M33: 9.37 | N33: 17.39 | T33: 30 | U33: 3 | V33: 0 | W33: =W21+1 -> 60 | X33: 60 | Y33: 0 | Z33: =IF($U33<=Def_Yrs,Details!$B$6/12,0) -> 0 | AA33: 799108 | AB33: 5710699 | AC33: 0 | AD33: =IF($U33<=XL_PT+1,IF(AND(xl_polopt=3,Details!$U33<=Def_Yrs),0,IF(MOD($T33,12/$B$9)=0,$B$7,0)),0) -> 0 | AE33: 4115406.2 | AF33: 456777.963 | AG33: 0 | AH33: 1 | AI33: 0 | AJ33: 4572184.163 | AK33: =MAX(IF(xl_polopt=1,0,VLOOKUP(U33,$E$4:$G$7,3,TRUE)*xl_premium-SUM(Details!$AD$4:AD33)),0) -> 3683693.25 | AL33: 4572184.163 | AM33: =IF(OR(xl_polopt=1,xl_polopt=2),"NA",Details!AK33) -> 3683693.25 | AP33: 29 | AQ33: 0.8092
A34: Annuity Amount for Rate E | B34: =IF(Life="JL",F21,F22) -> 0.081804 | C34: =IF(SUM($C$30:C33)>Req_Annuity,0,Req_Annuity-SUM($C$30:C33)) -> 0 | D34: =C34/B34 -> 0 | K34: 75 | L34: 31 | M34: 9.31 | N34: 17.92 | T34: 31 | U34: 3 | V34: 0 | W34: =W22+1 -> 60 | X34: 60 | Y34: 0 | Z34: =IF($U34<=Def_Yrs,Details!$B$6/12,0) -> 0 | AA34: 799108 | AB34: 5710699 | AC34: 0 | AD34: =IF($U34<=XL_PT+1,IF(AND(xl_polopt=3,Details!$U34<=Def_Yrs),0,IF(MOD($T34,12/$B$9)=0,$B$7,0)),0) -> 0 | AE34: 4115406.2 | AF34: 456777.963 | AG34: 0 | AH34: 1 | AI34: 0 | AJ34: 4572184.163 | AK34: =MAX(IF(xl_polopt=1,0,VLOOKUP(U34,$E$4:$G$7,3,TRUE)*xl_premium-SUM(Details!$AD$4:AD34)),0) -> 3683693.25 | AL34: 4572184.163 | AM34: =IF(OR(xl_polopt=1,xl_polopt=2),"NA",Details!AK34) -> 3683693.25 | AP34: 30 | AQ34: 0.8033
D35: =ROUND(SUM(D30:D34),0) -> 252207 | K35: 76 | L35: 32 | M35: 9.25 | N35: 18.41 | T35: 32 | U35: 3 | V35: 0 | W35: =W23+1 -> 60 | X35: 60 | Y35: 0 | Z35: =IF($U35<=Def_Yrs,Details!$B$6/12,0) -> 0 | AA35: 799108 | AB35: 5710699 | AC35: 0 | AD35: =IF($U35<=XL_PT+1,IF(AND(xl_polopt=3,Details!$U35<=Def_Yrs),0,IF(MOD($T35,12/$B$9)=0,$B$7,0)),0) -> 0 | AE35: 4115406.2 | AF35: 456777.963 | AG35: 0 | AH35: 1 | AI35: 0 | AJ35: 4572184.163 | AK35: =MAX(IF(xl_polopt=1,0,VLOOKUP(U35,$E$4:$G$7,3,TRUE)*xl_premium-SUM(Details!$AD$4:AD35)),0) -> 3683693.25 | AL35: 4572184.163 | AM35: =IF(OR(xl_polopt=1,xl_polopt=2),"NA",Details!AK35) -> 3683693.25 | AP35: 31 | AQ35: 0.7974
K36: 77 | L36: 33 | M36: 9.2 | N36: 18.86 | T36: 33 | U36: 3 | V36: 0 | W36: =W24+1 -> 60 | X36: 60 | Y36: 0 | Z36: =IF($U36<=Def_Yrs,Details!$B$6/12,0) -> 0 | AA36: 799108 | AB36: 5710699 | AC36: 0 | AD36: =IF($U36<=XL_PT+1,IF(AND(xl_polopt=3,Details!$U36<=Def_Yrs),0,IF(MOD($T36,12/$B$9)=0,$B$7,0)),0) -> 0 | AE36: 4115406.2 | AF36: 456777.963 | AG36: 0 | AH36: 1 | AI36: 0 | AJ36: 4572184.163 | AK36: =MAX(IF(xl_polopt=1,0,VLOOKUP(U36,$E$4:$G$7,3,TRUE)*xl_premium-SUM(Details!$AD$4:AD36)),0) -> 3683693.25 | AL36: 4572184.163 | AM36: =IF(OR(xl_polopt=1,xl_polopt=2),"NA",Details!AK36) -> 3683693.25 | AP36: 32 | AQ36: 0.7915
A37: Employee discount | B37: =IF(XL_Staffdisc="Y",xl_premium*0.98,xl_premium) -> 4911591 | K37: 78 | L37: 34 | M37: 9.15 | N37: 19.26 | T37: 34 | U37: 3 | V37: 0 | W37: =W25+1 -> 60 | X37: 60 | Y37: 0 | Z37: =IF($U37<=Def_Yrs,Details!$B$6/12,0) -> 0 | AA37: 799108 | AB37: 5710699 | AC37: 0 | AD37: =IF($U37<=XL_PT+1,IF(AND(xl_polopt=3,Details!$U37<=Def_Yrs),0,IF(MOD($T37,12/$B$9)=0,$B$7,0)),0) -> 0 | AE37: 4115406.2 | AF37: 456777.963 | AG37: 0 | AH37: 1 | AI37: 0 | AJ37: 4572184.163 | AK37: =MAX(IF(xl_polopt=1,0,VLOOKUP(U37,$E$4:$G$7,3,TRUE)*xl_premium-SUM(Details!$AD$4:AD37)),0) -> 3683693.25 | AL37: 4572184.163 | AM37: =IF(OR(xl_polopt=1,xl_polopt=2),"NA",Details!AK37) -> 3683693.25 | AP37: 33 | AQ37: 0.7857
K38: 79 | L38: 35 | M38: 9.11 | N38: 19.62 | T38: 35 | U38: 3 | V38: 0 | W38: =W26+1 -> 60 | X38: 60 | Y38: 0 | Z38: =IF($U38<=Def_Yrs,Details!$B$6/12,0) -> 0 | AA38: 799108 | AB38: 5710699 | AC38: 0 | AD38: =IF($U38<=XL_PT+1,IF(AND(xl_polopt=3,Details!$U38<=Def_Yrs),0,IF(MOD($T38,12/$B$9)=0,$B$7,0)),0) -> 0 | AE38: 4115406.2 | AF38: 456777.963 | AG38: 0 | AH38: 1 | AI38: 0 | AJ38: 4572184.163 | AK38: =MAX(IF(xl_polopt=1,0,VLOOKUP(U38,$E$4:$G$7,3,TRUE)*xl_premium-SUM(Details!$AD$4:AD38)),0) -> 3683693.25 | AL38: 4572184.163 | AM38: =IF(OR(xl_polopt=1,xl_polopt=2),"NA",Details!AK38) -> 3683693.25 | AP38: 34 | AQ38: 0.7798
K39: 80 | L39: 36 | M39: 9.07 | N39: 19.93 | T39: 36 | U39: 3 | V39: 0 | W39: =W27+1 -> 60 | X39: 60 | Y39: 0 | Z39: =IF($U39<=Def_Yrs,Details!$B$6/12,0) -> 0 | AA39: 799108 | AB39: 5402750.1 | AC39: 399554 | AD39: =IF($U39<=XL_PT+1,IF(AND(xl_polopt=3,Details!$U39<=Def_Yrs),0,IF(MOD($T39,12/$B$9)=0,$B$7,0)),0) -> 399554 | AE39: 4115406.2 | AF39: 456777.963 | AG39: 0 | AH39: 1 | AI39: 0 | AJ39: 4572184.163 | AK39: =MAX(IF(xl_polopt=1,0,VLOOKUP(U39,$E$4:$G$7,3,TRUE)*xl_premium-SUM(Details!$AD$4:AD39)),0) -> 3284139.25 | AL39: 4572184.163 | AM39: =IF(OR(xl_polopt=1,xl_polopt=2),"NA",Details!AK39) -> 3284139.25 | AP39: 35 | AQ39: 0.7739
K40: 81 | L40: 37 | M40: 9.04 | N40: 20.18 | T40: 37 | U40: 4 | V40: 0 | W40: =W28+1 -> 61 | X40: 61 | Y40: 0 | Z40: =IF($U40<=Def_Yrs,Details!$B$6/12,0) -> 0 | AA40: 799108 | AB40: 5402750.1 | AC40: 399554 | AD40: =IF($U40<=XL_PT+1,IF(AND(xl_polopt=3,Details!$U40<=Def_Yrs),0,IF(MOD($T40,12/$B$9)=0,$B$7,0)),0) -> 0 | AE40: 4095428.5 | AF40: 478388.9634 | AG40: 0 | AH40: 1 | AI40: 0 | AJ40: 4573817.463 | AK40: =MAX(IF(xl_polopt=1,0,VLOOKUP(U40,$E$4:$G$7,3,TRUE)*xl_premium-SUM(Details!$AD$4:AD40)),0) -> 4020877.9 | AL40: 4573817.463 | AM40: =IF(OR(xl_polopt=1,xl_polopt=2),"NA",Details!AK40) -> 4020877.9 | AP40: 36 | AQ40: 0.768
K41: 82 | L41: 38 | M41: 9.01 | N41: 20.37 | T41: 38 | U41: 4 | V41: 0 | W41: =W29+1 -> 61 | X41: 61 | Y41: 0 | Z41: =IF($U41<=Def_Yrs,Details!$B$6/12,0) -> 0 | AA41: 799108 | AB41: 5402750.1 | AC41: 399554 | AD41: =IF($U41<=XL_PT+1,IF(AND(xl_polopt=3,Details!$U41<=Def_Yrs),0,IF(MOD($T41,12/$B$9)=0,$B$7,0)),0) -> 0 | AE41: 4095428.5 | AF41: 478388.9634 | AG41: 0 | AH41: 1 | AI41: 0 | AJ41: 4573817.463 | AK41: =MAX(IF(xl_polopt=1,0,VLOOKUP(U41,$E$4:$G$7,3,TRUE)*xl_premium-SUM(Details!$AD$4:AD41)),0) -> 4020877.9 | AL41: 4573817.463 | AM41: =IF(OR(xl_polopt=1,xl_polopt=2),"NA",Details!AK41) -> 4020877.9 | AP41: 37 | AQ41: 0.7626
K42: 83 | L42: 39 | M42: 8.99 | N42: 20.51 | T42: 39 | U42: 4 | V42: 0 | W42: =W30+1 -> 61 | X42: 61 | Y42: 0 | Z42: =IF($U42<=Def_Yrs,Details!$B$6/12,0) -> 0 | AA42: 799108 | AB42: 5402750.1 | AC42: 399554 | AD42: =IF($U42<=XL_PT+1,IF(AND(xl_polopt=3,Details!$U42<=Def_Yrs),0,IF(MOD($T42,12/$B$9)=0,$B$7,0)),0) -> 0 | AE42: 4095428.5 | AF42: 478388.9634 | AG42: 0 | AH42: 1 | AI42: 0 | AJ42: 4573817.463 | AK42: =MAX(IF(xl_polopt=1,0,VLOOKUP(U42,$E$4:$G$7,3,TRUE)*xl_premium-SUM(Details!$AD$4:AD42)),0) -> 4020877.9 | AL42: 4573817.463 | AM42: =IF(OR(xl_polopt=1,xl_polopt=2),"NA",Details!AK42) -> 4020877.9 | AP42: 38 | AQ42: 0.7572
K43: 84 | L43: 40 | M43: 8.98 | N43: 20.58 | T43: 40 | U43: 4 | V43: 0 | W43: =W31+1 -> 61 | X43: 61 | Y43: 0 | Z43: =IF($U43<=Def_Yrs,Details!$B$6/12,0) -> 0 | AA43: 799108 | AB43: 5402750.1 | AC43: 399554 | AD43: =IF($U43<=XL_PT+1,IF(AND(xl_polopt=3,Details!$U43<=Def_Yrs),0,IF(MOD($T43,12/$B$9)=0,$B$7,0)),0) -> 0 | AE43: 4095428.5 | AF43: 478388.9634 | AG43: 0 | AH43: 1 | AI43: 0 | AJ43: 4573817.463 | AK43: =MAX(IF(xl_polopt=1,0,VLOOKUP(U43,$E$4:$G$7,3,TRUE)*xl_premium-SUM(Details!$AD$4:AD43)),0) -> 4020877.9 | AL43: 4573817.463 | AM43: =IF(OR(xl_polopt=1,xl_polopt=2),"NA",Details!AK43) -> 4020877.9 | AP43: 39 | AQ43: 0.7518
K44: 85 | L44: 41 | M44: 8.97 | N44: 20.6 | T44: 41 | U44: 4 | V44: 0 | W44: =W32+1 -> 61 | X44: 61 | Y44: 0 | Z44: =IF($U44<=Def_Yrs,Details!$B$6/12,0) -> 0 | AA44: 799108 | AB44: 5402750.1 | AC44: 399554 | AD44: =IF($U44<=XL_PT+1,IF(AND(xl_polopt=3,Details!$U44<=Def_Yrs),0,IF(MOD($T44,12/$B$9)=0,$B$7,0)),0) -> 0 | AE44: 4095428.5 | AF44: 478388.9634 | AG44: 0 | AH44: 1 | AI44: 0 | AJ44: 4573817.463 | AK44: =MAX(IF(xl_polopt=1,0,VLOOKUP(U44,$E$4:$G$7,3,TRUE)*xl_premium-SUM(Details!$AD$4:AD44)),0) -> 4020877.9 | AL44: 4573817.463 | AM44: =IF(OR(xl_polopt=1,xl_polopt=2),"NA",Details!AK44) -> 4020877.9 | AP44: 40 | AQ44: 0.7464
K45: 86 | L45: 42 | M45: 8.97 | N45: 20.56 | T45: 42 | U45: 4 | V45: 0 | W45: =W33+1 -> 61 | X45: 61 | Y45: 0 | Z45: =IF($U45<=Def_Yrs,Details!$B$6/12,0) -> 0 | AA45: 799108 | AB45: 5402750.1 | AC45: 399554 | AD45: =IF($U45<=XL_PT+1,IF(AND(xl_polopt=3,Details!$U45<=Def_Yrs),0,IF(MOD($T45,12/$B$9)=0,$B$7,0)),0) -> 0 | AE45: 4095428.5 | AF45: 478388.9634 | AG45: 0 | AH45: 1 | AI45: 0 | AJ45: 4573817.463 | AK45: =MAX(IF(xl_polopt=1,0,VLOOKUP(U45,$E$4:$G$7,3,TRUE)*xl_premium-SUM(Details!$AD$4:AD45)),0) -> 4020877.9 | AL45: 4573817.463 | AM45: =IF(OR(xl_polopt=1,xl_polopt=2),"NA",Details!AK45) -> 4020877.9 | AP45: 41 | AQ45: 0.741
K46: 87 | L46: 43 | M46: 8.98 | N46: 20.45 | T46: 43 | U46: 4 | V46: 0 | W46: =W34+1 -> 61 | X46: 61 | Y46: 0 | Z46: =IF($U46<=Def_Yrs,Details!$B$6/12,0) -> 0 | AA46: 799108 | AB46: 5402750.1 | AC46: 399554 | AD46: =IF($U46<=XL_PT+1,IF(AND(xl_polopt=3,Details!$U46<=Def_Yrs),0,IF(MOD($T46,12/$B$9)=0,$B$7,0)),0) -> 0 | AE46: 4095428.5 | AF46: 478388.9634 | AG46: 0 | AH46: 1 | AI46: 0 | AJ46: 4573817.463 | AK46: =MAX(IF(xl_polopt=1,0,VLOOKUP(U46,$E$4:$G$7,3,TRUE)*xl_premium-SUM(Details!$AD$4:AD46)),0) -> 4020877.9 | AL46: 4573817.463 | AM46: =IF(OR(xl_polopt=1,xl_polopt=2),"NA",Details!AK46) -> 4020877.9 | AP46: 42 | AQ46: 0.7357
K47: 88 | L47: 44 | M47: 8.99 | N47: 20.29 | T47: 44 | U47: 4 | V47: 0 | W47: =W35+1 -> 61 | X47: 61 | Y47: 0 | Z47: =IF($U47<=Def_Yrs,Details!$B$6/12,0) -> 0 | AA47: 799108 | AB47: 5402750.1 | AC47: 399554 | AD47: =IF($U47<=XL_PT+1,IF(AND(xl_polopt=3,Details!$U47<=Def_Yrs),0,IF(MOD($T47,12/$B$9)=0,$B$7,0)),0) -> 0 | AE47: 4095428.5 | AF47: 478388.9634 | AG47: 0 | AH47: 1 | AI47: 0 | AJ47: 4573817.463 | AK47: =MAX(IF(xl_polopt=1,0,VLOOKUP(U47,$E$4:$G$7,3,TRUE)*xl_premium-SUM(Details!$AD$4:AD47)),0) -> 4020877.9 | AL47: 4573817.463 | AM47: =IF(OR(xl_polopt=1,xl_polopt=2),"NA",Details!AK47) -> 4020877.9 | AP47: 43 | AQ47: 0.7303
K48: 89 | L48: 45 | M48: 9.01 | N48: 20.07 | T48: 45 | U48: 4 | V48: 0 | W48: =W36+1 -> 61 | X48: 61 | Y48: 0 | Z48: =IF($U48<=Def_Yrs,Details!$B$6/12,0) -> 0 | AA48: 799108 | AB48: 5402750.1 | AC48: 399554 | AD48: =IF($U48<=XL_PT+1,IF(AND(xl_polopt=3,Details!$U48<=Def_Yrs),0,IF(MOD($T48,12/$B$9)=0,$B$7,0)),0) -> 0 | AE48: 4095428.5 | AF48: 478388.9634 | AG48: 0 | AH48: 1 | AI48: 0 | AJ48: 4573817.463 | AK48: =MAX(IF(xl_polopt=1,0,VLOOKUP(U48,$E$4:$G$7,3,TRUE)*xl_premium-SUM(Details!$AD$4:AD48)),0) -> 4020877.9 | AL48: 4573817.463 | AM48: =IF(OR(xl_polopt=1,xl_polopt=2),"NA",Details!AK48) -> 4020877.9 | AP48: 44 | AQ48: 0.7249
K49: 90 | L49: 46 | M49: 9.03 | N49: 19.8 | T49: 46 | U49: 4 | V49: 0 | W49: =W37+1 -> 61 | X49: 61 | Y49: 0 | Z49: =IF($U49<=Def_Yrs,Details!$B$6/12,0) -> 0 | AA49: 799108 | AB49: 5402750.1 | AC49: 399554 | AD49: =IF($U49<=XL_PT+1,IF(AND(xl_polopt=3,Details!$U49<=Def_Yrs),0,IF(MOD($T49,12/$B$9)=0,$B$7,0)),0) -> 0 | AE49: 4095428.5 | AF49: 478388.9634 | AG49: 0 | AH49: 1 | AI49: 0 | AJ49: 4573817.463 | AK49: =MAX(IF(xl_polopt=1,0,VLOOKUP(U49,$E$4:$G$7,3,TRUE)*xl_premium-SUM(Details!$AD$4:AD49)),0) -> 4020877.9 | AL49: 4573817.463 | AM49: =IF(OR(xl_polopt=1,xl_polopt=2),"NA",Details!AK49) -> 4020877.9 | AP49: 45 | AQ49: 0.7195
K50: 91 | L50: 47 | M50: 9.06 | N50: 19.47 | T50: 47 | U50: 4 | V50: 0 | W50: =W38+1 -> 61 | X50: 61 | Y50: 0 | Z50: =IF($U50<=Def_Yrs,Details!$B$6/12,0) -> 0 | AA50: 799108 | AB50: 5402750.1 | AC50: 399554 | AD50: =IF($U50<=XL_PT+1,IF(AND(xl_polopt=3,Details!$U50<=Def_Yrs),0,IF(MOD($T50,12/$B$9)=0,$B$7,0)),0) -> 0 | AE50: 4095428.5 | AF50: 478388.9634 | AG50: 0 | AH50: 1 | AI50: 0 | AJ50: 4573817.463 | AK50: =MAX(IF(xl_polopt=1,0,VLOOKUP(U50,$E$4:$G$7,3,TRUE)*xl_premium-SUM(Details!$AD$4:AD50)),0) -> 4020877.9 | AL50: 4573817.463 | AM50: =IF(OR(xl_polopt=1,xl_polopt=2),"NA",Details!AK50) -> 4020877.9 | AP50: 46 | AQ50: 0.7141
K51: 92 | L51: 48 | M51: 9.1 | N51: 19.09 | T51: 48 | U51: 4 | V51: 0 | W51: =W39+1 -> 61 | X51: 61 | Y51: 0 | Z51: =IF($U51<=Def_Yrs,Details!$B$6/12,0) -> 0 | AA51: 799108 | AB51: 5402750.1 | AC51: 799108 | AD51: =IF($U51<=XL_PT+1,IF(AND(xl_polopt=3,Details!$U51<=Def_Yrs),0,IF(MOD($T51,12/$B$9)=0,$B$7,0)),0) -> 399554 | AE51: 4095428.5 | AF51: 478388.9634 | AG51: 0 | AH51: 1 | AI51: 0 | AJ51: 4573817.463 | AK51: =MAX(IF(xl_polopt=1,0,VLOOKUP(U51,$E$4:$G$7,3,TRUE)*xl_premium-SUM(Details!$AD$4:AD51)),0) -> 3621323.9 | AL51: 4573817.463 | AM51: =IF(OR(xl_polopt=1,xl_polopt=2),"NA",Details!AK51) -> 3621323.9 | AP51: 47 | AQ51: 0.7087
K52: 93 | L52: 49 | M52: 9.13 | N52: 18.65 | T52: 49 | U52: 5 | V52: 0 | W52: =W40+1 -> 62 | X52: 62 | Y52: 0 | Z52: =IF($U52<=Def_Yrs,Details!$B$6/12,0) -> 0 | AA52: 799108 | AB52: 5402750.1 | AC52: 799108 | AD52: =IF($U52<=XL_PT+1,IF(AND(xl_polopt=3,Details!$U52<=Def_Yrs),0,IF(MOD($T52,12/$B$9)=0,$B$7,0)),0) -> 0 | AE52: 4075450.8 | AF52: 501473.4411 | AG52: 0 | AH52: 1 | AI52: 0 | AJ52: 4576924.241 | AK52: =MAX(IF(xl_polopt=1,0,VLOOKUP(U52,$E$4:$G$7,3,TRUE)*xl_premium-SUM(Details!$AD$4:AD52)),0) -> 3621323.9 | AL52: 4576924.241 | AM52: =IF(OR(xl_polopt=1,xl_polopt=2),"NA",Details!AK52) -> 3621323.9 | AP52: 48 | AQ52: 0.7033
K53: 94 | L53: 50 | M53: 9.18 | N53: 18.17 | T53: 50 | U53: 5 | V53: 0 | W53: =W41+1 -> 62 | X53: 62 | Y53: 0 | Z53: =IF($U53<=Def_Yrs,Details!$B$6/12,0) -> 0 | AA53: 799108 | AB53: 5402750.1 | AC53: 799108 | AD53: =IF($U53<=XL_PT+1,IF(AND(xl_polopt=3,Details!$U53<=Def_Yrs),0,IF(MOD($T53,12/$B$9)=0,$B$7,0)),0) -> 0 | AE53: 4075450.8 | AF53: 501473.4411 | AG53: 0 | AH53: 1 | AI53: 0 | AJ53: 4576924.241 | AK53: =MAX(IF(xl_polopt=1,0,VLOOKUP(U53,$E$4:$G$7,3,TRUE)*xl_premium-SUM(Details!$AD$4:AD53)),0) -> 3621323.9 | AL53: 4576924.241 | AM53: =IF(OR(xl_polopt=1,xl_polopt=2),"NA",Details!AK53) -> 3621323.9 | AP53: 49 | AQ53: 0.6984
K54: 95 | L54: 51 | M54: 9.22 | N54: 17.64 | T54: 51 | U54: 5 | V54: 0 | W54: =W42+1 -> 62 | X54: 62 | Y54: 0 | Z54: =IF($U54<=Def_Yrs,Details!$B$6/12,0) -> 0 | AA54: 799108 | AB54: 5402750.1 | AC54: 799108 | AD54: =IF($U54<=XL_PT+1,IF(AND(xl_polopt=3,Details!$U54<=Def_Yrs),0,IF(MOD($T54,12/$B$9)=0,$B$7,0)),0) -> 0 | AE54: 4075450.8 | AF54: 501473.4411 | AG54: 0 | AH54: 1 | AI54: 0 | AJ54: 4576924.241 | AK54: =MAX(IF(xl_polopt=1,0,VLOOKUP(U54,$E$4:$G$7,3,TRUE)*xl_premium-SUM(Details!$AD$4:AD54)),0) -> 3621323.9 | AL54: 4576924.241 | AM54: =IF(OR(xl_polopt=1,xl_polopt=2),"NA",Details!AK54) -> 3621323.9 | AP54: 50 | AQ54: 0.6934
K55: 96 | L55: 52 | M55: 9.27 | N55: 17.06 | T55: 52 | U55: 5 | V55: 0 | W55: =W43+1 -> 62 | X55: 62 | Y55: 0 | Z55: =IF($U55<=Def_Yrs,Details!$B$6/12,0) -> 0 | AA55: 799108 | AB55: 5402750.1 | AC55: 799108 | AD55: =IF($U55<=XL_PT+1,IF(AND(xl_polopt=3,Details!$U55<=Def_Yrs),0,IF(MOD($T55,12/$B$9)=0,$B$7,0)),0) -> 0 | AE55: 4075450.8 | AF55: 501473.4411 | AG55: 0 | AH55: 1 | AI55: 0 | AJ55: 4576924.241 | AK55: =MAX(IF(xl_polopt=1,0,VLOOKUP(U55,$E$4:$G$7,3,TRUE)*xl_premium-SUM(Details!$AD$4:AD55)),0) -> 3621323.9 | AL55: 4576924.241 | AM55: =IF(OR(xl_polopt=1,xl_polopt=2),"NA",Details!AK55) -> 3621323.9 | AP55: 51 | AQ55: 0.6885
K56: 97 | L56: 53 | M56: 9.33 | N56: 16.44 | T56: 53 | U56: 5 | V56: 0 | W56: =W44+1 -> 62 | X56: 62 | Y56: 0 | Z56: =IF($U56<=Def_Yrs,Details!$B$6/12,0) -> 0 | AA56: 799108 | AB56: 5402750.1 | AC56: 799108 | AD56: =IF($U56<=XL_PT+1,IF(AND(xl_polopt=3,Details!$U56<=Def_Yrs),0,IF(MOD($T56,12/$B$9)=0,$B$7,0)),0) -> 0 | AE56: 4075450.8 | AF56: 501473.4411 | AG56: 0 | AH56: 1 | AI56: 0 | AJ56: 4576924.241 | AK56: =MAX(IF(xl_polopt=1,0,VLOOKUP(U56,$E$4:$G$7,3,TRUE)*xl_premium-SUM(Details!$AD$4:AD56)),0) -> 3621323.9 | AL56: 4576924.241 | AM56: =IF(OR(xl_polopt=1,xl_polopt=2),"NA",Details!AK56) -> 3621323.9 | AP56: 52 | AQ56: 0.6836
K57: 98 | L57: 54 | M57: 9.38 | N57: 15.78 | T57: 54 | U57: 5 | V57: 0 | W57: =W45+1 -> 62 | X57: 62 | Y57: 0 | Z57: =IF($U57<=Def_Yrs,Details!$B$6/12,0) -> 0 | AA57: 799108 | AB57: 5402750.1 | AC57: 799108 | AD57: =IF($U57<=XL_PT+1,IF(AND(xl_polopt=3,Details!$U57<=Def_Yrs),0,IF(MOD($T57,12/$B$9)=0,$B$7,0)),0) -> 0 | AE57: 4075450.8 | AF57: 501473.4411 | AG57: 0 | AH57: 1 | AI57: 0 | AJ57: 4576924.241 | AK57: =MAX(IF(xl_polopt=1,0,VLOOKUP(U57,$E$4:$G$7,3,TRUE)*xl_premium-SUM(Details!$AD$4:AD57)),0) -> 3621323.9 | AL57: 4576924.241 | AM57: =IF(OR(xl_polopt=1,xl_polopt=2),"NA",Details!AK57) -> 3621323.9 | AP57: 53 | AQ57: 0.6786
K58: 99 | L58: 55 | M58: 9.44 | N58: 15.08 | T58: 55 | U58: 5 | V58: 0 | W58: =W46+1 -> 62 | X58: 62 | Y58: 0 | Z58: =IF($U58<=Def_Yrs,Details!$B$6/12,0) -> 0 | AA58: 799108 | AB58: 5402750.1 | AC58: 799108 | AD58: =IF($U58<=XL_PT+1,IF(AND(xl_polopt=3,Details!$U58<=Def_Yrs),0,IF(MOD($T58,12/$B$9)=0,$B$7,0)),0) -> 0 | AE58: 4075450.8 | AF58: 501473.4411 | AG58: 0 | AH58: 1 | AI58: 0 | AJ58: 4576924.241 | AK58: =MAX(IF(xl_polopt=1,0,VLOOKUP(U58,$E$4:$G$7,3,TRUE)*xl_premium-SUM(Details!$AD$4:AD58)),0) -> 3621323.9 | AL58: 4576924.241 | AM58: =IF(OR(xl_polopt=1,xl_polopt=2),"NA",Details!AK58) -> 3621323.9 | AP58: 54 | AQ58: 0.6737
K59: 100 | L59: 56 | M59: 9.5 | N59: 14.36 | T59: 56 | U59: 5 | V59: 0 | W59: =W47+1 -> 62 | X59: 62 | Y59: 0 | Z59: =IF($U59<=Def_Yrs,Details!$B$6/12,0) -> 0 | AA59: 799108 | AB59: 5402750.1 | AC59: 799108 | AD59: =IF($U59<=XL_PT+1,IF(AND(xl_polopt=3,Details!$U59<=Def_Yrs),0,IF(MOD($T59,12/$B$9)=0,$B$7,0)),0) -> 0 | AE59: 4075450.8 | AF59: 501473.4411 | AG59: 0 | AH59: 1 | AI59: 0 | AJ59: 4576924.241 | AK59: =MAX(IF(xl_polopt=1,0,VLOOKUP(U59,$E$4:$G$7,3,TRUE)*xl_premium-SUM(Details!$AD$4:AD59)),0) -> 3621323.9 | AL59: 4576924.241 | AM59: =IF(OR(xl_polopt=1,xl_polopt=2),"NA",Details!AK59) -> 3621323.9 | AP59: 55 | AQ59: 0.6688
K60: 101 | L60: 57 | M60: 9.56 | N60: 13.6 | T60: 57 | U60: 5 | V60: 0 | W60: =W48+1 -> 62 | X60: 62 | Y60: 0 | Z60: =IF($U60<=Def_Yrs,Details!$B$6/12,0) -> 0 | AA60: 799108 | AB60: 5402750.1 | AC60: 799108 | AD60: =IF($U60<=XL_PT+1,IF(AND(xl_polopt=3,Details!$U60<=Def_Yrs),0,IF(MOD($T60,12/$B$9)=0,$B$7,0)),0) -> 0 | AE60: 4075450.8 | AF60: 501473.4411 | AG60: 0 | AH60: 1 | AI60: 0 | AJ60: 4576924.241 | AK60: =MAX(IF(xl_polopt=1,0,VLOOKUP(U60,$E$4:$G$7,3,TRUE)*xl_premium-SUM(Details!$AD$4:AD60)),0) -> 3621323.9 | AL60: 4576924.241 | AM60: =IF(OR(xl_polopt=1,xl_polopt=2),"NA",Details!AK60) -> 3621323.9 | AP60: 56 | AQ60: 0.6638
K61: 102 | L61: 58 | M61: 9.62 | N61: 12.83 | T61: 58 | U61: 5 | V61: 0 | W61: =W49+1 -> 62 | X61: 62 | Y61: 0 | Z61: =IF($U61<=Def_Yrs,Details!$B$6/12,0) -> 0 | AA61: 799108 | AB61: 5402750.1 | AC61: 799108 | AD61: =IF($U61<=XL_PT+1,IF(AND(xl_polopt=3,Details!$U61<=Def_Yrs),0,IF(MOD($T61,12/$B$9)=0,$B$7,0)),0) -> 0 | AE61: 4075450.8 | AF61: 501473.4411 | AG61: 0 | AH61: 1 | AI61: 0 | AJ61: 4576924.241 | AK61: =MAX(IF(xl_polopt=1,0,VLOOKUP(U61,$E$4:$G$7,3,TRUE)*xl_premium-SUM(Details!$AD$4:AD61)),0) -> 3621323.9 | AL61: 4576924.241 | AM61: =IF(OR(xl_polopt=1,xl_polopt=2),"NA",Details!AK61) -> 3621323.9 | AP61: 57 | AQ61: 0.6589
K62: 103 | L62: 59 | M62: 9.67 | N62: 12.05 | T62: 59 | U62: 5 | V62: 0 | W62: =W50+1 -> 62 | X62: 62 | Y62: 0 | Z62: =IF($U62<=Def_Yrs,Details!$B$6/12,0) -> 0 | AA62: 799108 | AB62: 5402750.1 | AC62: 799108 | AD62: =IF($U62<=XL_PT+1,IF(AND(xl_polopt=3,Details!$U62<=Def_Yrs),0,IF(MOD($T62,12/$B$9)=0,$B$7,0)),0) -> 0 | AE62: 4075450.8 | AF62: 501473.4411 | AG62: 0 | AH62: 1 | AI62: 0 | AJ62: 4576924.241 | AK62: =MAX(IF(xl_polopt=1,0,VLOOKUP(U62,$E$4:$G$7,3,TRUE)*xl_premium-SUM(Details!$AD$4:AD62)),0) -> 3621323.9 | AL62: 4576924.241 | AM62: =IF(OR(xl_polopt=1,xl_polopt=2),"NA",Details!AK62) -> 3621323.9 | AP62: 58 | AQ62: 0.654
K63: 104 | L63: 60 | M63: 9.73 | N63: 11.26 | T63: 60 | U63: 5 | V63: 0 | W63: =W51+1 -> 62 | X63: 62 | Y63: 0 | Z63: =IF($U63<=Def_Yrs,Details!$B$6/12,0) -> 0 | AA63: 799108 | AB63: 5402750.1 | AC63: 1198662 | AD63: =IF($U63<=XL_PT+1,IF(AND(xl_polopt=3,Details!$U63<=Def_Yrs),0,IF(MOD($T63,12/$B$9)=0,$B$7,0)),0) -> 399554 | AE63: 4075450.8 | AF63: 501473.4411 | AG63: 0 | AH63: 1 | AI63: 0 | AJ63: 4576924.241 | AK63: =MAX(IF(xl_polopt=1,0,VLOOKUP(U63,$E$4:$G$7,3,TRUE)*xl_premium-SUM(Details!$AD$4:AD63)),0) -> 3221769.9 | AL63: 4576924.241 | AM63: =IF(OR(xl_polopt=1,xl_polopt=2),"NA",Details!AK63) -> 3221769.9 | AP63: 59 | AQ63: 0.649
K64: 105 | L64: 61 | M64: 9.78 | N64: 10.48 | T64: 61 | U64: 6 | V64: 0 | W64: =W52+1 -> 63 | X64: 63 | Y64: 0 | Z64: =IF($U64<=Def_Yrs,Details!$B$6/12,0) -> 0 | AA64: 799108 | AB64: 5402750.1 | AC64: 1198662 | AD64: =IF($U64<=XL_PT+1,IF(AND(xl_polopt=3,Details!$U64<=Def_Yrs),0,IF(MOD($T64,12/$B$9)=0,$B$7,0)),0) -> 0 | AE64: 4051477.56 | AF64: 527013.7143 | AG64: 0 | AH64: 1 | AI64: 0 | AJ64: 4578491.274 | AK64: =MAX(IF(xl_polopt=1,0,VLOOKUP(U64,$E$4:$G$7,3,TRUE)*xl_premium-SUM(Details!$AD$4:AD64)),0) -> 3221769.9 | AL64: 4578491.274 | AM64: =IF(OR(xl_polopt=1,xl_polopt=2),"NA",Details!AK64) -> 3221769.9 | AP64: 60 | AQ64: 0.6441
K65: 106 | L65: 62 | M65: 9.82 | N65: 9.71 | T65: 62 | U65: 6 | V65: 0 | W65: =W53+1 -> 63 | X65: 63 | Y65: 0 | Z65: =IF($U65<=Def_Yrs,Details!$B$6/12,0) -> 0 | AA65: 799108 | AB65: 5402750.1 | AC65: 1198662 | AD65: =IF($U65<=XL_PT+1,IF(AND(xl_polopt=3,Details!$U65<=Def_Yrs),0,IF(MOD($T65,12/$B$9)=0,$B$7,0)),0) -> 0 | AE65: 4051477.56 | AF65: 527013.7143 | AG65: 0 | AH65: 1 | AI65: 0 | AJ65: 4578491.274 | AK65: =MAX(IF(xl_polopt=1,0,VLOOKUP(U65,$E$4:$G$7,3,TRUE)*xl_premium-SUM(Details!$AD$4:AD65)),0) -> 3221769.9 | AL65: 4578491.274 | AM65: =IF(OR(xl_polopt=1,xl_polopt=2),"NA",Details!AK65) -> 3221769.9 | AP65: 61 | AQ65: 0.6396
K66: 107 | L66: 63 | M66: 9.86 | N66: 8.96 | T66: 63 | U66: 6 | V66: 0 | W66: =W54+1 -> 63 | X66: 63 | Y66: 0 | Z66: =IF($U66<=Def_Yrs,Details!$B$6/12,0) -> 0 | AA66: 799108 | AB66: 5402750.1 | AC66: 1198662 | AD66: =IF($U66<=XL_PT+1,IF(AND(xl_polopt=3,Details!$U66<=Def_Yrs),0,IF(MOD($T66,12/$B$9)=0,$B$7,0)),0) -> 0 | AE66: 4051477.56 | AF66: 527013.7143 | AG66: 0 | AH66: 1 | AI66: 0 | AJ66: 4578491.274 | AK66: =MAX(IF(xl_polopt=1,0,VLOOKUP(U66,$E$4:$G$7,3,TRUE)*xl_premium-SUM(Details!$AD$4:AD66)),0) -> 3221769.9 | AL66: 4578491.274 | AM66: =IF(OR(xl_polopt=1,xl_polopt=2),"NA",Details!AK66) -> 3221769.9 | AP66: 62 | AQ66: 0.6351
K67: 108 | L67: 64 | M67: 9.89 | N67: 8.23 | T67: 64 | U67: 6 | V67: 0 | W67: =W55+1 -> 63 | X67: 63 | Y67: 0 | Z67: =IF($U67<=Def_Yrs,Details!$B$6/12,0) -> 0 | AA67: 799108 | AB67: 5402750.1 | AC67: 1198662 | AD67: =IF($U67<=XL_PT+1,IF(AND(xl_polopt=3,Details!$U67<=Def_Yrs),0,IF(MOD($T67,12/$B$9)=0,$B$7,0)),0) -> 0 | AE67: 4051477.56 | AF67: 527013.7143 | AG67: 0 | AH67: 1 | AI67: 0 | AJ67: 4578491.274 | AK67: =MAX(IF(xl_polopt=1,0,VLOOKUP(U67,$E$4:$G$7,3,TRUE)*xl_premium-SUM(Details!$AD$4:AD67)),0) -> 3221769.9 | AL67: 4578491.274 | AM67: =IF(OR(xl_polopt=1,xl_polopt=2),"NA",Details!AK67) -> 3221769.9 | AP67: 63 | AQ67: 0.6305
K68: 109 | L68: 65 | M68: 9.91 | N68: 7.53 | T68: 65 | U68: 6 | V68: =IF(xl_polopt<>3,0,IF($U68<Def_Yrs,U68,0)) -> 0 | W68: =W56+1 -> 63 | X68: 63 | Y68: =IF(AND(T68=1,U68=1),xl_premium,0) -> 0 | Z68: =IF($U68<=Def_Yrs,Details!$B$6/12,0) -> 0 | AA68: 799108 | AB68: =IF($U68<=XL_PT+1,IF(xl_polopt=1,0,IF(xl_polopt=2,xl_premium,MAX(xl_premium*1.1,AA68+xl_premium-AC68))),0) -> 5402750.1 | AC68: 1198662 | AD68: =IF($U68<=XL_PT+1,IF(AND(xl_polopt=3,Details!$U68<=Def_Yrs),0,IF(MOD($T68,12/$B$9)=0,$B$7,0)),0) -> 0 | AE68: =IFERROR(IF(V68=0,VLOOKUP(IF(Life="SL",W68,MIN(W68,X68)),$K$4:$M$76,3,0)*$B$6,0),0) -> 4051477.56 | AF68: =IFERROR(IF(V68=0,(VLOOKUP(IF(Life="SL",W68,MIN(W68,X68)),$K$4:$N$76,4,0))/100*$B$4,0),0) -> 527013.7143 | AG68: =IF(Def_Yrs=0,0,IF($U68>Def_Yrs,0,Def_Yrs*12-$T68)) -> 0 | AH68: 1 | AI68: 0 | AJ68: =IF(xl_polopt=1,0,IF(AND(xl_polopt=3,AG68>0),AI68,SUM(AE68:AF68,AI68))) -> 4578491.274 | AK68: =MAX(IF(xl_polopt=1,0,VLOOKUP(U68,$E$4:$G$7,3,TRUE)*xl_premium-SUM(Details!$AD$4:AD68)),0) -> 3221769.9 | AL68: 4578491.274 | AM68: =IF(OR(xl_polopt=1,xl_polopt=2),"NA",Details!AK68) -> 3221769.9 | AP68: 64 | AQ68: 0.626
K69: 110 | L69: 66 | M69: 9.92 | N69: 6.87 | T69: 66 | U69: 6 | V69: 0 | W69: =W57+1 -> 63 | X69: 63 | Y69: 0 | Z69: =IF($U69<=Def_Yrs,Details!$B$6/12,0) -> 0 | AA69: =(Z69+AA68)*($U68<=XL_PT+1) -> 799108 | AB69: 5402750.1 | AC69: =(AC68+AD69)*($U68<=XL_PT+1) -> 1198662 | AD69: =IF($U69<=XL_PT+1,IF(AND(xl_polopt=3,Details!$U69<=Def_Yrs),0,IF(MOD($T69,12/$B$9)=0,$B$7,0)),0) -> 0 | AE69: 4051477.56 | AF69: 527013.7143 | AG69: 0 | AH69: =+VLOOKUP(AG69,$AP$4:$AQ$124,2) -> 1 | AI69: =(AG69>0)*AH69*$AI$2 -> 0 | AJ69: 4578491.274 | AK69: =MAX(IF(xl_polopt=1,0,VLOOKUP(U69,$E$4:$G$7,3,TRUE)*xl_premium-SUM(Details!$AD$4:AD69)),0) -> 3221769.9 | AL69: =MAX(AJ69,AK69) -> 4578491.274 | AM69: =IF(OR(xl_polopt=1,xl_polopt=2),"NA",Details!AK69) -> 3221769.9 | AP69: 65 | AQ69: 0.6215
K70: 111 | L70: 67 | M70: 9.92 | N70: 6.25 | T70: 67 | U70: 6 | V70: 0 | W70: =W58+1 -> 63 | X70: 63 | Y70: 0 | Z70: =IF($U70<=Def_Yrs,Details!$B$6/12,0) -> 0 | AA70: 799108 | AB70: 5402750.1 | AC70: 1198662 | AD70: =IF($U70<=XL_PT+1,IF(AND(xl_polopt=3,Details!$U70<=Def_Yrs),0,IF(MOD($T70,12/$B$9)=0,$B$7,0)),0) -> 0 | AE70: 4051477.56 | AF70: 527013.7143 | AG70: 0 | AH70: 1 | AI70: 0 | AJ70: 4578491.274 | AK70: =MAX(IF(xl_polopt=1,0,VLOOKUP(U70,$E$4:$G$7,3,TRUE)*xl_premium-SUM(Details!$AD$4:AD70)),0) -> 3221769.9 | AL70: 4578491.274 | AM70: =IF(OR(xl_polopt=1,xl_polopt=2),"NA",Details!AK70) -> 3221769.9 | AP70: 66 | AQ70: 0.617
K71: 112 | L71: 68 | M71: 9.91 | N71: 5.68 | T71: 68 | U71: 6 | V71: 0 | W71: =W59+1 -> 63 | X71: 63 | Y71: 0 | Z71: =IF($U71<=Def_Yrs,Details!$B$6/12,0) -> 0 | AA71: 799108 | AB71: 5402750.1 | AC71: 1198662 | AD71: =IF($U71<=XL_PT+1,IF(AND(xl_polopt=3,Details!$U71<=Def_Yrs),0,IF(MOD($T71,12/$B$9)=0,$B$7,0)),0) -> 0 | AE71: 4051477.56 | AF71: 527013.7143 | AG71: 0 | AH71: 1 | AI71: 0 | AJ71: 4578491.274 | AK71: =MAX(IF(xl_polopt=1,0,VLOOKUP(U71,$E$4:$G$7,3,TRUE)*xl_premium-SUM(Details!$AD$4:AD71)),0) -> 3221769.9 | AL71: 4578491.274 | AM71: =IF(OR(xl_polopt=1,xl_polopt=2),"NA",Details!AK71) -> 3221769.9 | AP71: 67 | AQ71: 0.6124
K72: 113 | L72: 69 | M72: 9.89 | N72: 5.15 | T72: 69 | U72: 6 | V72: 0 | W72: =W60+1 -> 63 | X72: 63 | Y72: 0 | Z72: =IF($U72<=Def_Yrs,Details!$B$6/12,0) -> 0 | AA72: 799108 | AB72: 5402750.1 | AC72: 1198662 | AD72: =IF($U72<=XL_PT+1,IF(AND(xl_polopt=3,Details!$U72<=Def_Yrs),0,IF(MOD($T72,12/$B$9)=0,$B$7,0)),0) -> 0 | AE72: 4051477.56 | AF72: 527013.7143 | AG72: 0 | AH72: 1 | AI72: 0 | AJ72: 4578491.274 | AK72: =MAX(IF(xl_polopt=1,0,VLOOKUP(U72,$E$4:$G$7,3,TRUE)*xl_premium-SUM(Details!$AD$4:AD72)),0) -> 3221769.9 | AL72: 4578491.274 | AM72: =IF(OR(xl_polopt=1,xl_polopt=2),"NA",Details!AK72) -> 3221769.9 | AP72: 68 | AQ72: 0.6079
K73: 114 | L73: 70 | M73: 9.85 | N73: 4.67 | T73: 70 | U73: 6 | V73: 0 | W73: =W61+1 -> 63 | X73: 63 | Y73: 0 | Z73: =IF($U73<=Def_Yrs,Details!$B$6/12,0) -> 0 | AA73: 799108 | AB73: 5402750.1 | AC73: 1198662 | AD73: =IF($U73<=XL_PT+1,IF(AND(xl_polopt=3,Details!$U73<=Def_Yrs),0,IF(MOD($T73,12/$B$9)=0,$B$7,0)),0) -> 0 | AE73: 4051477.56 | AF73: 527013.7143 | AG73: 0 | AH73: 1 | AI73: 0 | AJ73: 4578491.274 | AK73: =MAX(IF(xl_polopt=1,0,VLOOKUP(U73,$E$4:$G$7,3,TRUE)*xl_premium-SUM(Details!$AD$4:AD73)),0) -> 3221769.9 | AL73: 4578491.274 | AM73: =IF(OR(xl_polopt=1,xl_polopt=2),"NA",Details!AK73) -> 3221769.9 | AP73: 69 | AQ73: 0.6034
K74: 115 | L74: 71 | M74: 9.8 | N74: 4.24 | T74: 71 | U74: 6 | V74: 0 | W74: =W62+1 -> 63 | X74: 63 | Y74: 0 | Z74: =IF($U74<=Def_Yrs,Details!$B$6/12,0) -> 0 | AA74: 799108 | AB74: 5402750.1 | AC74: 1198662 | AD74: =IF($U74<=XL_PT+1,IF(AND(xl_polopt=3,Details!$U74<=Def_Yrs),0,IF(MOD($T74,12/$B$9)=0,$B$7,0)),0) -> 0 | AE74: 4051477.56 | AF74: 527013.7143 | AG74: 0 | AH74: 1 | AI74: 0 | AJ74: 4578491.274 | AK74: =MAX(IF(xl_polopt=1,0,VLOOKUP(U74,$E$4:$G$7,3,TRUE)*xl_premium-SUM(Details!$AD$4:AD74)),0) -> 3221769.9 | AL74: 4578491.274 | AM74: =IF(OR(xl_polopt=1,xl_polopt=2),"NA",Details!AK74) -> 3221769.9 | AP74: 70 | AQ74: 0.5989
K75: 116 | L75: 72 | M75: 9.73 | N75: 3.87 | T75: 72 | U75: 6 | V75: 0 | W75: =W63+1 -> 63 | X75: 63 | Y75: 0 | Z75: =IF($U75<=Def_Yrs,Details!$B$6/12,0) -> 0 | AA75: 799108 | AB75: 5402750.1 | AC75: 1598216 | AD75: =IF($U75<=XL_PT+1,IF(AND(xl_polopt=3,Details!$U75<=Def_Yrs),0,IF(MOD($T75,12/$B$9)=0,$B$7,0)),0) -> 399554 | AE75: 4051477.56 | AF75: 527013.7143 | AG75: 0 | AH75: 1 | AI75: 0 | AJ75: 4578491.274 | AK75: =MAX(IF(xl_polopt=1,0,VLOOKUP(U75,$E$4:$G$7,3,TRUE)*xl_premium-SUM(Details!$AD$4:AD75)),0) -> 2822215.9 | AL75: 4578491.274 | AM75: =IF(OR(xl_polopt=1,xl_polopt=2),"NA",Details!AK75) -> 2822215.9 | AP75: 71 | AQ75: 0.5943
K76: 117 | L76: 73 | M76: 9.65 | N76: 3.54 | T76: 73 | U76: 7 | V76: 0 | W76: =W64+1 -> 64 | X76: 64 | Y76: 0 | Z76: =IF($U76<=Def_Yrs,Details!$B$6/12,0) -> 0 | AA76: 799108 | AB76: 5402750.1 | AC76: 1598216 | AD76: =IF($U76<=XL_PT+1,IF(AND(xl_polopt=3,Details!$U76<=Def_Yrs),0,IF(MOD($T76,12/$B$9)=0,$B$7,0)),0) -> 0 | AE76: 4023508.78 | AF76: 554027.4648 | AG76: 0 | AH76: 1 | AI76: 0 | AJ76: 4577536.245 | AK76: =MAX(IF(xl_polopt=1,0,VLOOKUP(U76,$E$4:$G$7,3,TRUE)*xl_premium-SUM(Details!$AD$4:AD76)),0) -> 2822215.9 | AL76: 4577536.245 | AM76: =IF(OR(xl_polopt=1,xl_polopt=2),"NA",Details!AK76) -> 2822215.9 | AP76: 72 | AQ76: 0.5898
T77: 74 | U77: 7 | V77: 0 | W77: =W65+1 -> 64 | X77: 64 | Y77: 0 | Z77: =IF($U77<=Def_Yrs,Details!$B$6/12,0) -> 0 | AA77: 799108 | AB77: 5402750.1 | AC77: 1598216 | AD77: =IF($U77<=XL_PT+1,IF(AND(xl_polopt=3,Details!$U77<=Def_Yrs),0,IF(MOD($T77,12/$B$9)=0,$B$7,0)),0) -> 0 | AE77: 4023508.78 | AF77: 554027.4648 | AG77: 0 | AH77: 1 | AI77: 0 | AJ77: 4577536.245 | AK77: =MAX(IF(xl_polopt=1,0,VLOOKUP(U77,$E$4:$G$7,3,TRUE)*xl_premium-SUM(Details!$AD$4:AD77)),0) -> 2822215.9 | AL77: 4577536.245 | AM77: =IF(OR(xl_polopt=1,xl_polopt=2),"NA",Details!AK77) -> 2822215.9 | AP77: 73 | AQ77: 0.5857
T78: 75 | U78: 7 | V78: 0 | W78: =W66+1 -> 64 | X78: 64 | Y78: 0 | Z78: =IF($U78<=Def_Yrs,Details!$B$6/12,0) -> 0 | AA78: 799108 | AB78: 5402750.1 | AC78: 1598216 | AD78: =IF($U78<=XL_PT+1,IF(AND(xl_polopt=3,Details!$U78<=Def_Yrs),0,IF(MOD($T78,12/$B$9)=0,$B$7,0)),0) -> 0 | AE78: 4023508.78 | AF78: 554027.4648 | AG78: 0 | AH78: 1 | AI78: 0 | AJ78: 4577536.245 | AK78: =MAX(IF(xl_polopt=1,0,VLOOKUP(U78,$E$4:$G$7,3,TRUE)*xl_premium-SUM(Details!$AD$4:AD78)),0) -> 2822215.9 | AL78: 4577536.245 | AM78: =IF(OR(xl_polopt=1,xl_polopt=2),"NA",Details!AK78) -> 2822215.9 | AP78: 74 | AQ78: 0.5815
T79: 76 | U79: 7 | V79: 0 | W79: =W67+1 -> 64 | X79: 64 | Y79: 0 | Z79: =IF($U79<=Def_Yrs,Details!$B$6/12,0) -> 0 | AA79: 799108 | AB79: 5402750.1 | AC79: 1598216 | AD79: =IF($U79<=XL_PT+1,IF(AND(xl_polopt=3,Details!$U79<=Def_Yrs),0,IF(MOD($T79,12/$B$9)=0,$B$7,0)),0) -> 0 | AE79: 4023508.78 | AF79: 554027.4648 | AG79: 0 | AH79: 1 | AI79: 0 | AJ79: 4577536.245 | AK79: =MAX(IF(xl_polopt=1,0,VLOOKUP(U79,$E$4:$G$7,3,TRUE)*xl_premium-SUM(Details!$AD$4:AD79)),0) -> 2822215.9 | AL79: 4577536.245 | AM79: =IF(OR(xl_polopt=1,xl_polopt=2),"NA",Details!AK79) -> 2822215.9 | AP79: 75 | AQ79: 0.5774
T80: 77 | U80: 7 | V80: 0 | W80: =W68+1 -> 64 | X80: 64 | Y80: 0 | Z80: =IF($U80<=Def_Yrs,Details!$B$6/12,0) -> 0 | AA80: 799108 | AB80: 5402750.1 | AC80: 1598216 | AD80: =IF($U80<=XL_PT+1,IF(AND(xl_polopt=3,Details!$U80<=Def_Yrs),0,IF(MOD($T80,12/$B$9)=0,$B$7,0)),0) -> 0 | AE80: 4023508.78 | AF80: 554027.4648 | AG80: 0 | AH80: 1 | AI80: 0 | AJ80: 4577536.245 | AK80: =MAX(IF(xl_polopt=1,0,VLOOKUP(U80,$E$4:$G$7,3,TRUE)*xl_premium-SUM(Details!$AD$4:AD80)),0) -> 2822215.9 | AL80: 4577536.245 | AM80: =IF(OR(xl_polopt=1,xl_polopt=2),"NA",Details!AK80) -> 2822215.9 | AP80: 76 | AQ80: 0.5732
T81: 78 | U81: 7 | V81: 0 | W81: =W69+1 -> 64 | X81: 64 | Y81: 0 | Z81: =IF($U81<=Def_Yrs,Details!$B$6/12,0) -> 0 | AA81: 799108 | AB81: 5402750.1 | AC81: 1598216 | AD81: =IF($U81<=XL_PT+1,IF(AND(xl_polopt=3,Details!$U81<=Def_Yrs),0,IF(MOD($T81,12/$B$9)=0,$B$7,0)),0) -> 0 | AE81: 4023508.78 | AF81: 554027.4648 | AG81: 0 | AH81: 1 | AI81: 0 | AJ81: 4577536.245 | AK81: =MAX(IF(xl_polopt=1,0,VLOOKUP(U81,$E$4:$G$7,3,TRUE)*xl_premium-SUM(Details!$AD$4:AD81)),0) -> 2822215.9 | AL81: 4577536.245 | AM81: =IF(OR(xl_polopt=1,xl_polopt=2),"NA",Details!AK81) -> 2822215.9 | AP81: 77 | AQ81: 0.5691
T82: 79 | U82: 7 | V82: 0 | W82: =W70+1 -> 64 | X82: 64 | Y82: 0 | Z82: =IF($U82<=Def_Yrs,Details!$B$6/12,0) -> 0 | AA82: 799108 | AB82: 5402750.1 | AC82: 1598216 | AD82: =IF($U82<=XL_PT+1,IF(AND(xl_polopt=3,Details!$U82<=Def_Yrs),0,IF(MOD($T82,12/$B$9)=0,$B$7,0)),0) -> 0 | AE82: 4023508.78 | AF82: 554027.4648 | AG82: 0 | AH82: 1 | AI82: 0 | AJ82: 4577536.245 | AK82: =MAX(IF(xl_polopt=1,0,VLOOKUP(U82,$E$4:$G$7,3,TRUE)*xl_premium-SUM(Details!$AD$4:AD82)),0) -> 2822215.9 | AL82: 4577536.245 | AM82: =IF(OR(xl_polopt=1,xl_polopt=2),"NA",Details!AK82) -> 2822215.9 | AP82: 78 | AQ82: 0.565
T83: 80 | U83: 7 | V83: 0 | W83: =W71+1 -> 64 | X83: 64 | Y83: 0 | Z83: =IF($U83<=Def_Yrs,Details!$B$6/12,0) -> 0 | AA83: 799108 | AB83: 5402750.1 | AC83: 1598216 | AD83: =IF($U83<=XL_PT+1,IF(AND(xl_polopt=3,Details!$U83<=Def_Yrs),0,IF(MOD($T83,12/$B$9)=0,$B$7,0)),0) -> 0 | AE83: 4023508.78 | AF83: 554027.4648 | AG83: 0 | AH83: 1 | AI83: 0 | AJ83: 4577536.245 | AK83: =MAX(IF(xl_polopt=1,0,VLOOKUP(U83,$E$4:$G$7,3,TRUE)*xl_premium-SUM(Details!$AD$4:AD83)),0) -> 2822215.9 | AL83: 4577536.245 | AM83: =IF(OR(xl_polopt=1,xl_polopt=2),"NA",Details!AK83) -> 2822215.9 | AP83: 79 | AQ83: 0.5608
T84: 81 | U84: 7 | V84: 0 | W84: =W72+1 -> 64 | X84: 64 | Y84: 0 | Z84: =IF($U84<=Def_Yrs,Details!$B$6/12,0) -> 0 | AA84: 799108 | AB84: 5402750.1 | AC84: 1598216 | AD84: =IF($U84<=XL_PT+1,IF(AND(xl_polopt=3,Details!$U84<=Def_Yrs),0,IF(MOD($T84,12/$B$9)=0,$B$7,0)),0) -> 0 | AE84: 4023508.78 | AF84: 554027.4648 | AG84: 0 | AH84: 1 | AI84: 0 | AJ84: 4577536.245 | AK84: =MAX(IF(xl_polopt=1,0,VLOOKUP(U84,$E$4:$G$7,3,TRUE)*xl_premium-SUM(Details!$AD$4:AD84)),0) -> 2822215.9 | AL84: 4577536.245 | AM84: =IF(OR(xl_polopt=1,xl_polopt=2),"NA",Details!AK84) -> 2822215.9 | AP84: 80 | AQ84: 0.5567
T85: 82 | U85: 7 | V85: 0 | W85: =W73+1 -> 64 | X85: 64 | Y85: 0 | Z85: =IF($U85<=Def_Yrs,Details!$B$6/12,0) -> 0 | AA85: 799108 | AB85: 5402750.1 | AC85: 1598216 | AD85: =IF($U85<=XL_PT+1,IF(AND(xl_polopt=3,Details!$U85<=Def_Yrs),0,IF(MOD($T85,12/$B$9)=0,$B$7,0)),0) -> 0 | AE85: 4023508.78 | AF85: 554027.4648 | AG85: 0 | AH85: 1 | AI85: 0 | AJ85: 4577536.245 | AK85: =MAX(IF(xl_polopt=1,0,VLOOKUP(U85,$E$4:$G$7,3,TRUE)*xl_premium-SUM(Details!$AD$4:AD85)),0) -> 2822215.9 | AL85: 4577536.245 | AM85: =IF(OR(xl_polopt=1,xl_polopt=2),"NA",Details!AK85) -> 2822215.9 | AP85: 81 | AQ85: 0.5525
T86: 83 | U86: 7 | V86: 0 | W86: =W74+1 -> 64 | X86: 64 | Y86: 0 | Z86: =IF($U86<=Def_Yrs,Details!$B$6/12,0) -> 0 | AA86: 799108 | AB86: 5402750.1 | AC86: 1598216 | AD86: =IF($U86<=XL_PT+1,IF(AND(xl_polopt=3,Details!$U86<=Def_Yrs),0,IF(MOD($T86,12/$B$9)=0,$B$7,0)),0) -> 0 | AE86: 4023508.78 | AF86: 554027.4648 | AG86: 0 | AH86: 1 | AI86: 0 | AJ86: 4577536.245 | AK86: =MAX(IF(xl_polopt=1,0,VLOOKUP(U86,$E$4:$G$7,3,TRUE)*xl_premium-SUM(Details!$AD$4:AD86)),0) -> 2822215.9 | AL86: 4577536.245 | AM86: =IF(OR(xl_polopt=1,xl_polopt=2),"NA",Details!AK86) -> 2822215.9 | AP86: 82 | AQ86: 0.5484
T87: 84 | U87: 7 | V87: 0 | W87: =W75+1 -> 64 | X87: 64 | Y87: 0 | Z87: =IF($U87<=Def_Yrs,Details!$B$6/12,0) -> 0 | AA87: 799108 | AB87: 5402750.1 | AC87: 1997770 | AD87: =IF($U87<=XL_PT+1,IF(AND(xl_polopt=3,Details!$U87<=Def_Yrs),0,IF(MOD($T87,12/$B$9)=0,$B$7,0)),0) -> 399554 | AE87: 4023508.78 | AF87: 554027.4648 | AG87: 0 | AH87: 1 | AI87: 0 | AJ87: 4577536.245 | AK87: =MAX(IF(xl_polopt=1,0,VLOOKUP(U87,$E$4:$G$7,3,TRUE)*xl_premium-SUM(Details!$AD$4:AD87)),0) -> 2422661.9 | AL87: 4577536.245 | AM87: =IF(OR(xl_polopt=1,xl_polopt=2),"NA",Details!AK87) -> 2422661.9 | AP87: 83 | AQ87: 0.5442
T88: 85 | U88: 8 | V88: 0 | W88: =W76+1 -> 65 | X88: 65 | Y88: 0 | Z88: =IF($U88<=Def_Yrs,Details!$B$6/12,0) -> 0 | AA88: 799108 | AB88: 5402750.1 | AC88: 1997770 | AD88: =IF($U88<=XL_PT+1,IF(AND(xl_polopt=3,Details!$U88<=Def_Yrs),0,IF(MOD($T88,12/$B$9)=0,$B$7,0)),0) -> 0 | AE88: 3999535.54 | AF88: 583005.8517 | AG88: 0 | AH88: 1 | AI88: 0 | AJ88: 4582541.392 | AK88: =MAX(IF(xl_polopt=1,0,VLOOKUP(U88,$E$4:$G$7,3,TRUE)*xl_premium-SUM(Details!$AD$4:AD88)),0) -> 2422661.9 | AL88: 4582541.392 | AM88: =IF(OR(xl_polopt=1,xl_polopt=2),"NA",Details!AK88) -> 2422661.9 | AP88: 84 | AQ88: 0.5401
T89: 86 | U89: 8 | V89: 0 | W89: =W77+1 -> 65 | X89: 65 | Y89: 0 | Z89: =IF($U89<=Def_Yrs,Details!$B$6/12,0) -> 0 | AA89: 799108 | AB89: 5402750.1 | AC89: 1997770 | AD89: =IF($U89<=XL_PT+1,IF(AND(xl_polopt=3,Details!$U89<=Def_Yrs),0,IF(MOD($T89,12/$B$9)=0,$B$7,0)),0) -> 0 | AE89: 3999535.54 | AF89: 583005.8517 | AG89: 0 | AH89: 1 | AI89: 0 | AJ89: 4582541.392 | AK89: =MAX(IF(xl_polopt=1,0,VLOOKUP(U89,$E$4:$G$7,3,TRUE)*xl_premium-SUM(Details!$AD$4:AD89)),0) -> 2422661.9 | AL89: 4582541.392 | AM89: =IF(OR(xl_polopt=1,xl_polopt=2),"NA",Details!AK89) -> 2422661.9 | AP89: 85 | AQ89: 0.5363
T90: 87 | U90: 8 | V90: 0 | W90: =W78+1 -> 65 | X90: 65 | Y90: 0 | Z90: =IF($U90<=Def_Yrs,Details!$B$6/12,0) -> 0 | AA90: 799108 | AB90: 5402750.1 | AC90: 1997770 | AD90: =IF($U90<=XL_PT+1,IF(AND(xl_polopt=3,Details!$U90<=Def_Yrs),0,IF(MOD($T90,12/$B$9)=0,$B$7,0)),0) -> 0 | AE90: 3999535.54 | AF90: 583005.8517 | AG90: 0 | AH90: 1 | AI90: 0 | AJ90: 4582541.392 | AK90: =MAX(IF(xl_polopt=1,0,VLOOKUP(U90,$E$4:$G$7,3,TRUE)*xl_premium-SUM(Details!$AD$4:AD90)),0) -> 2422661.9 | AL90: 4582541.392 | AM90: =IF(OR(xl_polopt=1,xl_polopt=2),"NA",Details!AK90) -> 2422661.9 | AP90: 86 | AQ90: 0.5325
T91: 88 | U91: 8 | V91: 0 | W91: =W79+1 -> 65 | X91: 65 | Y91: 0 | Z91: =IF($U91<=Def_Yrs,Details!$B$6/12,0) -> 0 | AA91: 799108 | AB91: 5402750.1 | AC91: 1997770 | AD91: =IF($U91<=XL_PT+1,IF(AND(xl_polopt=3,Details!$U91<=Def_Yrs),0,IF(MOD($T91,12/$B$9)=0,$B$7,0)),0) -> 0 | AE91: 3999535.54 | AF91: 583005.8517 | AG91: 0 | AH91: 1 | AI91: 0 | AJ91: 4582541.392 | AK91: =MAX(IF(xl_polopt=1,0,VLOOKUP(U91,$E$4:$G$7,3,TRUE)*xl_premium-SUM(Details!$AD$4:AD91)),0) -> 2422661.9 | AL91: 4582541.392 | AM91: =IF(OR(xl_polopt=1,xl_polopt=2),"NA",Details!AK91) -> 2422661.9 | AP91: 87 | AQ91: 0.5287
T92: 89 | U92: 8 | V92: 0 | W92: =W80+1 -> 65 | X92: 65 | Y92: 0 | Z92: =IF($U92<=Def_Yrs,Details!$B$6/12,0) -> 0 | AA92: 799108 | AB92: 5402750.1 | AC92: 1997770 | AD92: =IF($U92<=XL_PT+1,IF(AND(xl_polopt=3,Details!$U92<=Def_Yrs),0,IF(MOD($T92,12/$B$9)=0,$B$7,0)),0) -> 0 | AE92: 3999535.54 | AF92: 583005.8517 | AG92: 0 | AH92: 1 | AI92: 0 | AJ92: 4582541.392 | AK92: =MAX(IF(xl_polopt=1,0,VLOOKUP(U92,$E$4:$G$7,3,TRUE)*xl_premium-SUM(Details!$AD$4:AD92)),0) -> 2422661.9 | AL92: 4582541.392 | AM92: =IF(OR(xl_polopt=1,xl_polopt=2),"NA",Details!AK92) -> 2422661.9 | AP92: 88 | AQ92: 0.5249
T93: 90 | U93: 8 | V93: 0 | W93: =W81+1 -> 65 | X93: 65 | Y93: 0 | Z93: =IF($U93<=Def_Yrs,Details!$B$6/12,0) -> 0 | AA93: 799108 | AB93: 5402750.1 | AC93: 1997770 | AD93: =IF($U93<=XL_PT+1,IF(AND(xl_polopt=3,Details!$U93<=Def_Yrs),0,IF(MOD($T93,12/$B$9)=0,$B$7,0)),0) -> 0 | AE93: 3999535.54 | AF93: 583005.8517 | AG93: 0 | AH93: 1 | AI93: 0 | AJ93: 4582541.392 | AK93: =MAX(IF(xl_polopt=1,0,VLOOKUP(U93,$E$4:$G$7,3,TRUE)*xl_premium-SUM(Details!$AD$4:AD93)),0) -> 2422661.9 | AL93: 4582541.392 | AM93: =IF(OR(xl_polopt=1,xl_polopt=2),"NA",Details!AK93) -> 2422661.9 | AP93: 89 | AQ93: 0.5211
T94: 91 | U94: 8 | V94: 0 | W94: =W82+1 -> 65 | X94: 65 | Y94: 0 | Z94: =IF($U94<=Def_Yrs,Details!$B$6/12,0) -> 0 | AA94: 799108 | AB94: 5402750.1 | AC94: 1997770 | AD94: =IF($U94<=XL_PT+1,IF(AND(xl_polopt=3,Details!$U94<=Def_Yrs),0,IF(MOD($T94,12/$B$9)=0,$B$7,0)),0) -> 0 | AE94: 3999535.54 | AF94: 583005.8517 | AG94: 0 | AH94: 1 | AI94: 0 | AJ94: 4582541.392 | AK94: =MAX(IF(xl_polopt=1,0,VLOOKUP(U94,$E$4:$G$7,3,TRUE)*xl_premium-SUM(Details!$AD$4:AD94)),0) -> 2422661.9 | AL94: 4582541.392 | AM94: =IF(OR(xl_polopt=1,xl_polopt=2),"NA",Details!AK94) -> 2422661.9 | AP94: 90 | AQ94: 0.5174
T95: 92 | U95: 8 | V95: 0 | W95: =W83+1 -> 65 | X95: 65 | Y95: 0 | Z95: =IF($U95<=Def_Yrs,Details!$B$6/12,0) -> 0 | AA95: 799108 | AB95: 5402750.1 | AC95: 1997770 | AD95: =IF($U95<=XL_PT+1,IF(AND(xl_polopt=3,Details!$U95<=Def_Yrs),0,IF(MOD($T95,12/$B$9)=0,$B$7,0)),0) -> 0 | AE95: 3999535.54 | AF95: 583005.8517 | AG95: 0 | AH95: 1 | AI95: 0 | AJ95: 4582541.392 | AK95: =MAX(IF(xl_polopt=1,0,VLOOKUP(U95,$E$4:$G$7,3,TRUE)*xl_premium-SUM(Details!$AD$4:AD95)),0) -> 2422661.9 | AL95: 4582541.392 | AM95: =IF(OR(xl_polopt=1,xl_polopt=2),"NA",Details!AK95) -> 2422661.9 | AP95: 91 | AQ95: 0.5136
T96: 93 | U96: 8 | V96: 0 | W96: =W84+1 -> 65 | X96: 65 | Y96: 0 | Z96: =IF($U96<=Def_Yrs,Details!$B$6/12,0) -> 0 | AA96: 799108 | AB96: 5402750.1 | AC96: 1997770 | AD96: =IF($U96<=XL_PT+1,IF(AND(xl_polopt=3,Details!$U96<=Def_Yrs),0,IF(MOD($T96,12/$B$9)=0,$B$7,0)),0) -> 0 | AE96: 3999535.54 | AF96: 583005.8517 | AG96: 0 | AH96: 1 | AI96: 0 | AJ96: 4582541.392 | AK96: =MAX(IF(xl_polopt=1,0,VLOOKUP(U96,$E$4:$G$7,3,TRUE)*xl_premium-SUM(Details!$AD$4:AD96)),0) -> 2422661.9 | AL96: 4582541.392 | AM96: =IF(OR(xl_polopt=1,xl_polopt=2),"NA",Details!AK96) -> 2422661.9 | AP96: 92 | AQ96: 0.5098
T97: 94 | U97: 8 | V97: 0 | W97: =W85+1 -> 65 | X97: 65 | Y97: 0 | Z97: =IF($U97<=Def_Yrs,Details!$B$6/12,0) -> 0 | AA97: 799108 | AB97: 5402750.1 | AC97: 1997770 | AD97: =IF($U97<=XL_PT+1,IF(AND(xl_polopt=3,Details!$U97<=Def_Yrs),0,IF(MOD($T97,12/$B$9)=0,$B$7,0)),0) -> 0 | AE97: 3999535.54 | AF97: 583005.8517 | AG97: 0 | AH97: 1 | AI97: 0 | AJ97: 4582541.392 | AK97: =MAX(IF(xl_polopt=1,0,VLOOKUP(U97,$E$4:$G$7,3,TRUE)*xl_premium-SUM(Details!$AD$4:AD97)),0) -> 2422661.9 | AL97: 4582541.392 | AM97: =IF(OR(xl_polopt=1,xl_polopt=2),"NA",Details!AK97) -> 2422661.9 | AP97: 93 | AQ97: 0.506
T98: 95 | U98: 8 | V98: 0 | W98: =W86+1 -> 65 | X98: 65 | Y98: 0 | Z98: =IF($U98<=Def_Yrs,Details!$B$6/12,0) -> 0 | AA98: 799108 | AB98: 5402750.1 | AC98: 1997770 | AD98: =IF($U98<=XL_PT+1,IF(AND(xl_polopt=3,Details!$U98<=Def_Yrs),0,IF(MOD($T98,12/$B$9)=0,$B$7,0)),0) -> 0 | AE98: 3999535.54 | AF98: 583005.8517 | AG98: 0 | AH98: 1 | AI98: 0 | AJ98: 4582541.392 | AK98: =MAX(IF(xl_polopt=1,0,VLOOKUP(U98,$E$4:$G$7,3,TRUE)*xl_premium-SUM(Details!$AD$4:AD98)),0) -> 2422661.9 | AL98: 4582541.392 | AM98: =IF(OR(xl_polopt=1,xl_polopt=2),"NA",Details!AK98) -> 2422661.9 | AP98: 94 | AQ98: 0.5022
T99: 96 | U99: 8 | V99: 0 | W99: =W87+1 -> 65 | X99: 65 | Y99: 0 | Z99: =IF($U99<=Def_Yrs,Details!$B$6/12,0) -> 0 | AA99: 799108 | AB99: 5402750.1 | AC99: 2397324 | AD99: =IF($U99<=XL_PT+1,IF(AND(xl_polopt=3,Details!$U99<=Def_Yrs),0,IF(MOD($T99,12/$B$9)=0,$B$7,0)),0) -> 399554 | AE99: 3999535.54 | AF99: 583005.8517 | AG99: 0 | AH99: 1 | AI99: 0 | AJ99: 4582541.392 | AK99: =MAX(IF(xl_polopt=1,0,VLOOKUP(U99,$E$4:$G$7,3,TRUE)*xl_premium-SUM(Details!$AD$4:AD99)),0) -> 2023107.9 | AL99: 4582541.392 | AM99: =IF(OR(xl_polopt=1,xl_polopt=2),"NA",Details!AK99) -> 2023107.9 | AP99: 95 | AQ99: 0.4984
T100: 97 | U100: 9 | V100: 0 | W100: =W88+1 -> 66 | X100: 66 | Y100: 0 | Z100: =IF($U100<=Def_Yrs,Details!$B$6/12,0) -> 0 | AA100: 799108 | AB100: 5402750.1 | AC100: 2397324 | AD100: =IF($U100<=XL_PT+1,IF(AND(xl_polopt=3,Details!$U100<=Def_Yrs),0,IF(MOD($T100,12/$B$9)=0,$B$7,0)),0) -> 0 | AE100: 3971566.76 | AF100: 612966.5568 | AG100: 0 | AH100: 1 | AI100: 0 | AJ100: 4584533.317 | AK100: =MAX(IF(xl_polopt=1,0,VLOOKUP(U100,$E$4:$G$7,3,TRUE)*xl_premium-SUM(Details!$AD$4:AD100)),0) -> 2023107.9 | AL100: 4584533.317 | AM100: =IF(OR(xl_polopt=1,xl_polopt=2),"NA",Details!AK100) -> 2023107.9 | AP100: 96 | AQ100: 0.4946
T101: 98 | U101: 9 | V101: 0 | W101: =W89+1 -> 66 | X101: 66 | Y101: 0 | Z101: =IF($U101<=Def_Yrs,Details!$B$6/12,0) -> 0 | AA101: 799108 | AB101: 5402750.1 | AC101: 2397324 | AD101: =IF($U101<=XL_PT+1,IF(AND(xl_polopt=3,Details!$U101<=Def_Yrs),0,IF(MOD($T101,12/$B$9)=0,$B$7,0)),0) -> 0 | AE101: 3971566.76 | AF101: 612966.5568 | AG101: 0 | AH101: 1 | AI101: 0 | AJ101: 4584533.317 | AK101: =MAX(IF(xl_polopt=1,0,VLOOKUP(U101,$E$4:$G$7,3,TRUE)*xl_premium-SUM(Details!$AD$4:AD101)),0) -> 2023107.9 | AL101: 4584533.317 | AM101: =IF(OR(xl_polopt=1,xl_polopt=2),"NA",Details!AK101) -> 2023107.9 | AP101: 97 | AQ101: 0.4911
T102: 99 | U102: 9 | V102: 0 | W102: =W90+1 -> 66 | X102: 66 | Y102: 0 | Z102: =IF($U102<=Def_Yrs,Details!$B$6/12,0) -> 0 | AA102: 799108 | AB102: 5402750.1 | AC102: 2397324 | AD102: =IF($U102<=XL_PT+1,IF(AND(xl_polopt=3,Details!$U102<=Def_Yrs),0,IF(MOD($T102,12/$B$9)=0,$B$7,0)),0) -> 0 | AE102: 3971566.76 | AF102: 612966.5568 | AG102: 0 | AH102: 1 | AI102: 0 | AJ102: 4584533.317 | AK102: =MAX(IF(xl_polopt=1,0,VLOOKUP(U102,$E$4:$G$7,3,TRUE)*xl_premium-SUM(Details!$AD$4:AD102)),0) -> 2023107.9 | AL102: 4584533.317 | AM102: =IF(OR(xl_polopt=1,xl_polopt=2),"NA",Details!AK102) -> 2023107.9 | AP102: 98 | AQ102: 0.4877
T103: 100 | U103: 9 | V103: 0 | W103: =W91+1 -> 66 | X103: 66 | Y103: 0 | Z103: =IF($U103<=Def_Yrs,Details!$B$6/12,0) -> 0 | AA103: 799108 | AB103: 5402750.1 | AC103: 2397324 | AD103: =IF($U103<=XL_PT+1,IF(AND(xl_polopt=3,Details!$U103<=Def_Yrs),0,IF(MOD($T103,12/$B$9)=0,$B$7,0)),0) -> 0 | AE103: 3971566.76 | AF103: 612966.5568 | AG103: 0 | AH103: 1 | AI103: 0 | AJ103: 4584533.317 | AK103: =MAX(IF(xl_polopt=1,0,VLOOKUP(U103,$E$4:$G$7,3,TRUE)*xl_premium-SUM(Details!$AD$4:AD103)),0) -> 2023107.9 | AL103: 4584533.317 | AM103: =IF(OR(xl_polopt=1,xl_polopt=2),"NA",Details!AK103) -> 2023107.9 | AP103: 99 | AQ103: 0.4842
T104: 101 | U104: 9 | V104: 0 | W104: =W92+1 -> 66 | X104: 66 | Y104: 0 | Z104: =IF($U104<=Def_Yrs,Details!$B$6/12,0) -> 0 | AA104: 799108 | AB104: 5402750.1 | AC104: 2397324 | AD104: =IF($U104<=XL_PT+1,IF(AND(xl_polopt=3,Details!$U104<=Def_Yrs),0,IF(MOD($T104,12/$B$9)=0,$B$7,0)),0) -> 0 | AE104: 3971566.76 | AF104: 612966.5568 | AG104: 0 | AH104: 1 | AI104: 0 | AJ104: 4584533.317 | AK104: =MAX(IF(xl_polopt=1,0,VLOOKUP(U104,$E$4:$G$7,3,TRUE)*xl_premium-SUM(Details!$AD$4:AD104)),0) -> 2023107.9 | AL104: 4584533.317 | AM104: =IF(OR(xl_polopt=1,xl_polopt=2),"NA",Details!AK104) -> 2023107.9 | AP104: 100 | AQ104: 0.4807
T105: 102 | U105: 9 | V105: 0 | W105: =W93+1 -> 66 | X105: 66 | Y105: 0 | Z105: =IF($U105<=Def_Yrs,Details!$B$6/12,0) -> 0 | AA105: 799108 | AB105: 5402750.1 | AC105: 2397324 | AD105: =IF($U105<=XL_PT+1,IF(AND(xl_polopt=3,Details!$U105<=Def_Yrs),0,IF(MOD($T105,12/$B$9)=0,$B$7,0)),0) -> 0 | AE105: 3971566.76 | AF105: 612966.5568 | AG105: 0 | AH105: 1 | AI105: 0 | AJ105: 4584533.317 | AK105: =MAX(IF(xl_polopt=1,0,VLOOKUP(U105,$E$4:$G$7,3,TRUE)*xl_premium-SUM(Details!$AD$4:AD105)),0) -> 2023107.9 | AL105: 4584533.317 | AM105: =IF(OR(xl_polopt=1,xl_polopt=2),"NA",Details!AK105) -> 2023107.9 | AP105: 101 | AQ105: 0.4772
T106: 103 | U106: 9 | V106: 0 | W106: =W94+1 -> 66 | X106: 66 | Y106: 0 | Z106: =IF($U106<=Def_Yrs,Details!$B$6/12,0) -> 0 | AA106: 799108 | AB106: 5402750.1 | AC106: 2397324 | AD106: =IF($U106<=XL_PT+1,IF(AND(xl_polopt=3,Details!$U106<=Def_Yrs),0,IF(MOD($T106,12/$B$9)=0,$B$7,0)),0) -> 0 | AE106: 3971566.76 | AF106: 612966.5568 | AG106: 0 | AH106: 1 | AI106: 0 | AJ106: 4584533.317 | AK106: =MAX(IF(xl_polopt=1,0,VLOOKUP(U106,$E$4:$G$7,3,TRUE)*xl_premium-SUM(Details!$AD$4:AD106)),0) -> 2023107.9 | AL106: 4584533.317 | AM106: =IF(OR(xl_polopt=1,xl_polopt=2),"NA",Details!AK106) -> 2023107.9 | AP106: 102 | AQ106: 0.4738
T107: 104 | U107: 9 | V107: 0 | W107: =W95+1 -> 66 | X107: 66 | Y107: 0 | Z107: =IF($U107<=Def_Yrs,Details!$B$6/12,0) -> 0 | AA107: 799108 | AB107: 5402750.1 | AC107: 2397324 | AD107: =IF($U107<=XL_PT+1,IF(AND(xl_polopt=3,Details!$U107<=Def_Yrs),0,IF(MOD($T107,12/$B$9)=0,$B$7,0)),0) -> 0 | AE107: 3971566.76 | AF107: 612966.5568 | AG107: 0 | AH107: 1 | AI107: 0 | AJ107: 4584533.317 | AK107: =MAX(IF(xl_polopt=1,0,VLOOKUP(U107,$E$4:$G$7,3,TRUE)*xl_premium-SUM(Details!$AD$4:AD107)),0) -> 2023107.9 | AL107: 4584533.317 | AM107: =IF(OR(xl_polopt=1,xl_polopt=2),"NA",Details!AK107) -> 2023107.9 | AP107: 103 | AQ107: 0.4703
T108: 105 | U108: 9 | V108: 0 | W108: =W96+1 -> 66 | X108: 66 | Y108: 0 | Z108: =IF($U108<=Def_Yrs,Details!$B$6/12,0) -> 0 | AA108: 799108 | AB108: 5402750.1 | AC108: 2397324 | AD108: =IF($U108<=XL_PT+1,IF(AND(xl_polopt=3,Details!$U108<=Def_Yrs),0,IF(MOD($T108,12/$B$9)=0,$B$7,0)),0) -> 0 | AE108: 3971566.76 | AF108: 612966.5568 | AG108: 0 | AH108: 1 | AI108: 0 | AJ108: 4584533.317 | AK108: =MAX(IF(xl_polopt=1,0,VLOOKUP(U108,$E$4:$G$7,3,TRUE)*xl_premium-SUM(Details!$AD$4:AD108)),0) -> 2023107.9 | AL108: 4584533.317 | AM108: =IF(OR(xl_polopt=1,xl_polopt=2),"NA",Details!AK108) -> 2023107.9 | AP108: 104 | AQ108: 0.4668
T109: 106 | U109: 9 | V109: 0 | W109: =W97+1 -> 66 | X109: 66 | Y109: 0 | Z109: =IF($U109<=Def_Yrs,Details!$B$6/12,0) -> 0 | AA109: 799108 | AB109: 5402750.1 | AC109: 2397324 | AD109: =IF($U109<=XL_PT+1,IF(AND(xl_polopt=3,Details!$U109<=Def_Yrs),0,IF(MOD($T109,12/$B$9)=0,$B$7,0)),0) -> 0 | AE109: 3971566.76 | AF109: 612966.5568 | AG109: 0 | AH109: 1 | AI109: 0 | AJ109: 4584533.317 | AK109: =MAX(IF(xl_polopt=1,0,VLOOKUP(U109,$E$4:$G$7,3,TRUE)*xl_premium-SUM(Details!$AD$4:AD109)),0) -> 2023107.9 | AL109: 4584533.317 | AM109: =IF(OR(xl_polopt=1,xl_polopt=2),"NA",Details!AK109) -> 2023107.9 | AP109: 105 | AQ109: 0.4633
T110: 107 | U110: 9 | V110: 0 | W110: =W98+1 -> 66 | X110: 66 | Y110: 0 | Z110: =IF($U110<=Def_Yrs,Details!$B$6/12,0) -> 0 | AA110: 799108 | AB110: 5402750.1 | AC110: 2397324 | AD110: =IF($U110<=XL_PT+1,IF(AND(xl_polopt=3,Details!$U110<=Def_Yrs),0,IF(MOD($T110,12/$B$9)=0,$B$7,0)),0) -> 0 | AE110: 3971566.76 | AF110: 612966.5568 | AG110: 0 | AH110: 1 | AI110: 0 | AJ110: 4584533.317 | AK110: =MAX(IF(xl_polopt=1,0,VLOOKUP(U110,$E$4:$G$7,3,TRUE)*xl_premium-SUM(Details!$AD$4:AD110)),0) -> 2023107.9 | AL110: 4584533.317 | AM110: =IF(OR(xl_polopt=1,xl_polopt=2),"NA",Details!AK110) -> 2023107.9 | AP110: 106 | AQ110: 0.4599
T111: 108 | U111: 9 | V111: 0 | W111: =W99+1 -> 66 | X111: 66 | Y111: 0 | Z111: =IF($U111<=Def_Yrs,Details!$B$6/12,0) -> 0 | AA111: 799108 | AB111: 5402750.1 | AC111: 2796878 | AD111: =IF($U111<=XL_PT+1,IF(AND(xl_polopt=3,Details!$U111<=Def_Yrs),0,IF(MOD($T111,12/$B$9)=0,$B$7,0)),0) -> 399554 | AE111: 3971566.76 | AF111: 612966.5568 | AG111: 0 | AH111: 1 | AI111: 0 | AJ111: 4584533.317 | AK111: =MAX(IF(xl_polopt=1,0,VLOOKUP(U111,$E$4:$G$7,3,TRUE)*xl_premium-SUM(Details!$AD$4:AD111)),0) -> 1623553.9 | AL111: 4584533.317 | AM111: =IF(OR(xl_polopt=1,xl_polopt=2),"NA",Details!AK111) -> 1623553.9 | AP111: 107 | AQ111: 0.4564
T112: 109 | U112: 10 | V112: 0 | W112: =W100+1 -> 67 | X112: 67 | Y112: 0 | Z112: =IF($U112<=Def_Yrs,Details!$B$6/12,0) -> 0 | AA112: 799108 | AB112: 5402750.1 | AC112: 2796878 | AD112: =IF($U112<=XL_PT+1,IF(AND(xl_polopt=3,Details!$U112<=Def_Yrs),0,IF(MOD($T112,12/$B$9)=0,$B$7,0)),0) -> 0 | AE112: 3939602.44 | AF112: 643418.421 | AG112: 0 | AH112: 1 | AI112: 0 | AJ112: 4583020.861 | AK112: =MAX(IF(xl_polopt=1,0,VLOOKUP(U112,$E$4:$G$7,3,TRUE)*xl_premium-SUM(Details!$AD$4:AD112)),0) -> 1623553.9 | AL112: 4583020.861 | AM112: =IF(OR(xl_polopt=1,xl_polopt=2),"NA",Details!AK112) -> 1623553.9 | AP112: 108 | AQ112: 0.4529
T113: 110 | U113: 10 | V113: 0 | W113: =W101+1 -> 67 | X113: 67 | Y113: 0 | Z113: =IF($U113<=Def_Yrs,Details!$B$6/12,0) -> 0 | AA113: 799108 | AB113: 5402750.1 | AC113: 2796878 | AD113: =IF($U113<=XL_PT+1,IF(AND(xl_polopt=3,Details!$U113<=Def_Yrs),0,IF(MOD($T113,12/$B$9)=0,$B$7,0)),0) -> 0 | AE113: 3939602.44 | AF113: 643418.421 | AG113: 0 | AH113: 1 | AI113: 0 | AJ113: 4583020.861 | AK113: =MAX(IF(xl_polopt=1,0,VLOOKUP(U113,$E$4:$G$7,3,TRUE)*xl_premium-SUM(Details!$AD$4:AD113)),0) -> 1623553.9 | AL113: 4583020.861 | AM113: =IF(OR(xl_polopt=1,xl_polopt=2),"NA",Details!AK113) -> 1623553.9 | AP113: 109 | AQ113: 0.4497
T114: 111 | U114: 10 | V114: 0 | W114: =W102+1 -> 67 | X114: 67 | Y114: 0 | Z114: =IF($U114<=Def_Yrs,Details!$B$6/12,0) -> 0 | AA114: 799108 | AB114: 5402750.1 | AC114: 2796878 | AD114: =IF($U114<=XL_PT+1,IF(AND(xl_polopt=3,Details!$U114<=Def_Yrs),0,IF(MOD($T114,12/$B$9)=0,$B$7,0)),0) -> 0 | AE114: 3939602.44 | AF114: 643418.421 | AG114: 0 | AH114: 1 | AI114: 0 | AJ114: 4583020.861 | AK114: =MAX(IF(xl_polopt=1,0,VLOOKUP(U114,$E$4:$G$7,3,TRUE)*xl_premium-SUM(Details!$AD$4:AD114)),0) -> 1623553.9 | AL114: 4583020.861 | AM114: =IF(OR(xl_polopt=1,xl_polopt=2),"NA",Details!AK114) -> 1623553.9 | AP114: 110 | AQ114: 0.4466
T115: 112 | U115: 10 | V115: 0 | W115: =W103+1 -> 67 | X115: 67 | Y115: 0 | Z115: =IF($U115<=Def_Yrs,Details!$B$6/12,0) -> 0 | AA115: 799108 | AB115: 5402750.1 | AC115: 2796878 | AD115: =IF($U115<=XL_PT+1,IF(AND(xl_polopt=3,Details!$U115<=Def_Yrs),0,IF(MOD($T115,12/$B$9)=0,$B$7,0)),0) -> 0 | AE115: 3939602.44 | AF115: 643418.421 | AG115: 0 | AH115: 1 | AI115: 0 | AJ115: 4583020.861 | AK115: =MAX(IF(xl_polopt=1,0,VLOOKUP(U115,$E$4:$G$7,3,TRUE)*xl_premium-SUM(Details!$AD$4:AD115)),0) -> 1623553.9 | AL115: 4583020.861 | AM115: =IF(OR(xl_polopt=1,xl_polopt=2),"NA",Details!AK115) -> 1623553.9 | AP115: 111 | AQ115: 0.4434
T116: 113 | U116: 10 | V116: 0 | W116: =W104+1 -> 67 | X116: 67 | Y116: 0 | Z116: =IF($U116<=Def_Yrs,Details!$B$6/12,0) -> 0 | AA116: 799108 | AB116: 5402750.1 | AC116: 2796878 | AD116: =IF($U116<=XL_PT+1,IF(AND(xl_polopt=3,Details!$U116<=Def_Yrs),0,IF(MOD($T116,12/$B$9)=0,$B$7,0)),0) -> 0 | AE116: 3939602.44 | AF116: 643418.421 | AG116: 0 | AH116: 1 | AI116: 0 | AJ116: 4583020.861 | AK116: =MAX(IF(xl_polopt=1,0,VLOOKUP(U116,$E$4:$G$7,3,TRUE)*xl_premium-SUM(Details!$AD$4:AD116)),0) -> 1623553.9 | AL116: 4583020.861 | AM116: =IF(OR(xl_polopt=1,xl_polopt=2),"NA",Details!AK116) -> 1623553.9 | AP116: 112 | AQ116: 0.4402
T117: 114 | U117: 10 | V117: 0 | W117: =W105+1 -> 67 | X117: 67 | Y117: 0 | Z117: =IF($U117<=Def_Yrs,Details!$B$6/12,0) -> 0 | AA117: 799108 | AB117: 5402750.1 | AC117: 2796878 | AD117: =IF($U117<=XL_PT+1,IF(AND(xl_polopt=3,Details!$U117<=Def_Yrs),0,IF(MOD($T117,12/$B$9)=0,$B$7,0)),0) -> 0 | AE117: 3939602.44 | AF117: 643418.421 | AG117: 0 | AH117: 1 | AI117: 0 | AJ117: 4583020.861 | AK117: =MAX(IF(xl_polopt=1,0,VLOOKUP(U117,$E$4:$G$7,3,TRUE)*xl_premium-SUM(Details!$AD$4:AD117)),0) -> 1623553.9 | AL117: 4583020.861 | AM117: =IF(OR(xl_polopt=1,xl_polopt=2),"NA",Details!AK117) -> 1623553.9 | AP117: 113 | AQ117: 0.437
T118: 115 | U118: 10 | V118: 0 | W118: =W106+1 -> 67 | X118: 67 | Y118: 0 | Z118: =IF($U118<=Def_Yrs,Details!$B$6/12,0) -> 0 | AA118: 799108 | AB118: 5402750.1 | AC118: 2796878 | AD118: =IF($U118<=XL_PT+1,IF(AND(xl_polopt=3,Details!$U118<=Def_Yrs),0,IF(MOD($T118,12/$B$9)=0,$B$7,0)),0) -> 0 | AE118: 3939602.44 | AF118: 643418.421 | AG118: 0 | AH118: 1 | AI118: 0 | AJ118: 4583020.861 | AK118: =MAX(IF(xl_polopt=1,0,VLOOKUP(U118,$E$4:$G$7,3,TRUE)*xl_premium-SUM(Details!$AD$4:AD118)),0) -> 1623553.9 | AL118: 4583020.861 | AM118: =IF(OR(xl_polopt=1,xl_polopt=2),"NA",Details!AK118) -> 1623553.9 | AP118: 114 | AQ118: 0.4339
T119: 116 | U119: 10 | V119: 0 | W119: =W107+1 -> 67 | X119: 67 | Y119: 0 | Z119: =IF($U119<=Def_Yrs,Details!$B$6/12,0) -> 0 | AA119: 799108 | AB119: 5402750.1 | AC119: 2796878 | AD119: =IF($U119<=XL_PT+1,IF(AND(xl_polopt=3,Details!$U119<=Def_Yrs),0,IF(MOD($T119,12/$B$9)=0,$B$7,0)),0) -> 0 | AE119: 3939602.44 | AF119: 643418.421 | AG119: 0 | AH119: 1 | AI119: 0 | AJ119: 4583020.861 | AK119: =MAX(IF(xl_polopt=1,0,VLOOKUP(U119,$E$4:$G$7,3,TRUE)*xl_premium-SUM(Details!$AD$4:AD119)),0) -> 1623553.9 | AL119: 4583020.861 | AM119: =IF(OR(xl_polopt=1,xl_polopt=2),"NA",Details!AK119) -> 1623553.9 | AP119: 115 | AQ119: 0.4307
T120: 117 | U120: 10 | V120: 0 | W120: =W108+1 -> 67 | X120: 67 | Y120: 0 | Z120: =IF($U120<=Def_Yrs,Details!$B$6/12,0) -> 0 | AA120: 799108 | AB120: 5402750.1 | AC120: 2796878 | AD120: =IF($U120<=XL_PT+1,IF(AND(xl_polopt=3,Details!$U120<=Def_Yrs),0,IF(MOD($T120,12/$B$9)=0,$B$7,0)),0) -> 0 | AE120: 3939602.44 | AF120: 643418.421 | AG120: 0 | AH120: 1 | AI120: 0 | AJ120: 4583020.861 | AK120: =MAX(IF(xl_polopt=1,0,VLOOKUP(U120,$E$4:$G$7,3,TRUE)*xl_premium-SUM(Details!$AD$4:AD120)),0) -> 1623553.9 | AL120: 4583020.861 | AM120: =IF(OR(xl_polopt=1,xl_polopt=2),"NA",Details!AK120) -> 1623553.9 | AP120: 116 | AQ120: 0.4275
T121: 118 | U121: 10 | V121: 0 | W121: =W109+1 -> 67 | X121: 67 | Y121: 0 | Z121: =IF($U121<=Def_Yrs,Details!$B$6/12,0) -> 0 | AA121: 799108 | AB121: 5402750.1 | AC121: 2796878 | AD121: =IF($U121<=XL_PT+1,IF(AND(xl_polopt=3,Details!$U121<=Def_Yrs),0,IF(MOD($T121,12/$B$9)=0,$B$7,0)),0) -> 0 | AE121: 3939602.44 | AF121: 643418.421 | AG121: 0 | AH121: 1 | AI121: 0 | AJ121: 4583020.861 | AK121: =MAX(IF(xl_polopt=1,0,VLOOKUP(U121,$E$4:$G$7,3,TRUE)*xl_premium-SUM(Details!$AD$4:AD121)),0) -> 1623553.9 | AL121: 4583020.861 | AM121: =IF(OR(xl_polopt=1,xl_polopt=2),"NA",Details!AK121) -> 1623553.9 | AP121: 117 | AQ121: 0.4243
T122: 119 | U122: 10 | V122: 0 | W122: =W110+1 -> 67 | X122: 67 | Y122: 0 | Z122: =IF($U122<=Def_Yrs,Details!$B$6/12,0) -> 0 | AA122: 799108 | AB122: 5402750.1 | AC122: 2796878 | AD122: =IF($U122<=XL_PT+1,IF(AND(xl_polopt=3,Details!$U122<=Def_Yrs),0,IF(MOD($T122,12/$B$9)=0,$B$7,0)),0) -> 0 | AE122: 3939602.44 | AF122: 643418.421 | AG122: 0 | AH122: 1 | AI122: 0 | AJ122: 4583020.861 | AK122: =MAX(IF(xl_polopt=1,0,VLOOKUP(U122,$E$4:$G$7,3,TRUE)*xl_premium-SUM(Details!$AD$4:AD122)),0) -> 1623553.9 | AL122: 4583020.861 | AM122: =IF(OR(xl_polopt=1,xl_polopt=2),"NA",Details!AK122) -> 1623553.9 | AP122: 118 | AQ122: 0.4212
T123: 120 | U123: 10 | V123: 0 | W123: =W111+1 -> 67 | X123: 67 | Y123: 0 | Z123: =IF($U123<=Def_Yrs,Details!$B$6/12,0) -> 0 | AA123: 799108 | AB123: 5402750.1 | AC123: 3196432 | AD123: =IF($U123<=XL_PT+1,IF(AND(xl_polopt=3,Details!$U123<=Def_Yrs),0,IF(MOD($T123,12/$B$9)=0,$B$7,0)),0) -> 399554 | AE123: 3939602.44 | AF123: 643418.421 | AG123: 0 | AH123: 1 | AI123: 0 | AJ123: 4583020.861 | AK123: =MAX(IF(xl_polopt=1,0,VLOOKUP(U123,$E$4:$G$7,3,TRUE)*xl_premium-SUM(Details!$AD$4:AD123)),0) -> 1223999.9 | AL123: 4583020.861 | AM123: =IF(OR(xl_polopt=1,xl_polopt=2),"NA",Details!AK123) -> 1223999.9 | AP123: 119 | AQ123: 0.418
T124: 121 | U124: 11 | V124: 0 | W124: =W112+1 -> 68 | X124: 68 | Y124: 0 | Z124: =IF($U124<=Def_Yrs,Details!$B$6/12,0) -> 0 | AA124: 799108 | AB124: 5402750.1 | AC124: 3196432 | AD124: =IF($U124<=XL_PT+1,IF(AND(xl_polopt=3,Details!$U124<=Def_Yrs),0,IF(MOD($T124,12/$B$9)=0,$B$7,0)),0) -> 0 | AE124: 3911633.66 | AF124: 674852.6034 | AG124: 0 | AH124: 1 | AI124: 0 | AJ124: 4586486.263 | AK124: =MAX(IF(xl_polopt=1,0,VLOOKUP(U124,$E$4:$G$7,3,TRUE)*xl_premium-SUM(Details!$AD$4:AD124)),0) -> 1223999.9 | AL124: 4586486.263 | AM124: =IF(OR(xl_polopt=1,xl_polopt=2),"NA",Details!AK124) -> 1223999.9 | AP124: 120 | AQ124: 0.4148
T125: 122 | U125: 11 | V125: 0 | W125: =W113+1 -> 68 | X125: 68 | Y125: 0 | Z125: =IF($U125<=Def_Yrs,Details!$B$6/12,0) -> 0 | AA125: 799108 | AB125: 5402750.1 | AC125: 3196432 | AD125: =IF($U125<=XL_PT+1,IF(AND(xl_polopt=3,Details!$U125<=Def_Yrs),0,IF(MOD($T125,12/$B$9)=0,$B$7,0)),0) -> 0 | AE125: 3911633.66 | AF125: 674852.6034 | AG125: 0 | AH125: 1 | AI125: 0 | AJ125: 4586486.263 | AK125: =MAX(IF(xl_polopt=1,0,VLOOKUP(U125,$E$4:$G$7,3,TRUE)*xl_premium-SUM(Details!$AD$4:AD125)),0) -> 1223999.9 | AL125: 4586486.263 | AM125: =IF(OR(xl_polopt=1,xl_polopt=2),"NA",Details!AK125) -> 1223999.9
T126: 123 | U126: 11 | V126: 0 | W126: =W114+1 -> 68 | X126: 68 | Y126: 0 | Z126: =IF($U126<=Def_Yrs,Details!$B$6/12,0) -> 0 | AA126: 799108 | AB126: 5402750.1 | AC126: 3196432 | AD126: =IF($U126<=XL_PT+1,IF(AND(xl_polopt=3,Details!$U126<=Def_Yrs),0,IF(MOD($T126,12/$B$9)=0,$B$7,0)),0) -> 0 | AE126: 3911633.66 | AF126: 674852.6034 | AG126: 0 | AH126: 1 | AI126: 0 | AJ126: 4586486.263 | AK126: =MAX(IF(xl_polopt=1,0,VLOOKUP(U126,$E$4:$G$7,3,TRUE)*xl_premium-SUM(Details!$AD$4:AD126)),0) -> 1223999.9 | AL126: 4586486.263 | AM126: =IF(OR(xl_polopt=1,xl_polopt=2),"NA",Details!AK126) -> 1223999.9
T127: 124 | U127: 11 | V127: 0 | W127: =W115+1 -> 68 | X127: 68 | Y127: 0 | Z127: =IF($U127<=Def_Yrs,Details!$B$6/12,0) -> 0 | AA127: 799108 | AB127: 5402750.1 | AC127: 3196432 | AD127: =IF($U127<=XL_PT+1,IF(AND(xl_polopt=3,Details!$U127<=Def_Yrs),0,IF(MOD($T127,12/$B$9)=0,$B$7,0)),0) -> 0 | AE127: 3911633.66 | AF127: 674852.6034 | AG127: 0 | AH127: 1 | AI127: 0 | AJ127: 4586486.263 | AK127: =MAX(IF(xl_polopt=1,0,VLOOKUP(U127,$E$4:$G$7,3,TRUE)*xl_premium-SUM(Details!$AD$4:AD127)),0) -> 1223999.9 | AL127: 4586486.263 | AM127: =IF(OR(xl_polopt=1,xl_polopt=2),"NA",Details!AK127) -> 1223999.9
T128: 125 | U128: 11 | V128: 0 | W128: =W116+1 -> 68 | X128: 68 | Y128: 0 | Z128: =IF($U128<=Def_Yrs,Details!$B$6/12,0) -> 0 | AA128: 799108 | AB128: 5402750.1 | AC128: 3196432 | AD128: =IF($U128<=XL_PT+1,IF(AND(xl_polopt=3,Details!$U128<=Def_Yrs),0,IF(MOD($T128,12/$B$9)=0,$B$7,0)),0) -> 0 | AE128: 3911633.66 | AF128: 674852.6034 | AG128: 0 | AH128: 1 | AI128: 0 | AJ128: 4586486.263 | AK128: =MAX(IF(xl_polopt=1,0,VLOOKUP(U128,$E$4:$G$7,3,TRUE)*xl_premium-SUM(Details!$AD$4:AD128)),0) -> 1223999.9 | AL128: 4586486.263 | AM128: =IF(OR(xl_polopt=1,xl_polopt=2),"NA",Details!AK128) -> 1223999.9
T129: 126 | U129: 11 | V129: 0 | W129: =W117+1 -> 68 | X129: 68 | Y129: 0 | Z129: =IF($U129<=Def_Yrs,Details!$B$6/12,0) -> 0 | AA129: 799108 | AB129: 5402750.1 | AC129: 3196432 | AD129: =IF($U129<=XL_PT+1,IF(AND(xl_polopt=3,Details!$U129<=Def_Yrs),0,IF(MOD($T129,12/$B$9)=0,$B$7,0)),0) -> 0 | AE129: 3911633.66 | AF129: 674852.6034 | AG129: 0 | AH129: 1 | AI129: 0 | AJ129: 4586486.263 | AK129: =MAX(IF(xl_polopt=1,0,VLOOKUP(U129,$E$4:$G$7,3,TRUE)*xl_premium-SUM(Details!$AD$4:AD129)),0) -> 1223999.9 | AL129: 4586486.263 | AM129: =IF(OR(xl_polopt=1,xl_polopt=2),"NA",Details!AK129) -> 1223999.9
T130: 127 | U130: 11 | V130: 0 | W130: =W118+1 -> 68 | X130: 68 | Y130: 0 | Z130: =IF($U130<=Def_Yrs,Details!$B$6/12,0) -> 0 | AA130: 799108 | AB130: 5402750.1 | AC130: 3196432 | AD130: =IF($U130<=XL_PT+1,IF(AND(xl_polopt=3,Details!$U130<=Def_Yrs),0,IF(MOD($T130,12/$B$9)=0,$B$7,0)),0) -> 0 | AE130: 3911633.66 | AF130: 674852.6034 | AG130: 0 | AH130: 1 | AI130: 0 | AJ130: 4586486.263 | AK130: =MAX(IF(xl_polopt=1,0,VLOOKUP(U130,$E$4:$G$7,3,TRUE)*xl_premium-SUM(Details!$AD$4:AD130)),0) -> 1223999.9 | AL130: 4586486.263 | AM130: =IF(OR(xl_polopt=1,xl_polopt=2),"NA",Details!AK130) -> 1223999.9
T131: 128 | U131: 11 | V131: 0 | W131: =W119+1 -> 68 | X131: 68 | Y131: 0 | Z131: =IF($U131<=Def_Yrs,Details!$B$6/12,0) -> 0 | AA131: 799108 | AB131: 5402750.1 | AC131: 3196432 | AD131: =IF($U131<=XL_PT+1,IF(AND(xl_polopt=3,Details!$U131<=Def_Yrs),0,IF(MOD($T131,12/$B$9)=0,$B$7,0)),0) -> 0 | AE131: 3911633.66 | AF131: 674852.6034 | AG131: 0 | AH131: 1 | AI131: 0 | AJ131: 4586486.263 | AK131: =MAX(IF(xl_polopt=1,0,VLOOKUP(U131,$E$4:$G$7,3,TRUE)*xl_premium-SUM(Details!$AD$4:AD131)),0) -> 1223999.9 | AL131: 4586486.263 | AM131: =IF(OR(xl_polopt=1,xl_polopt=2),"NA",Details!AK131) -> 1223999.9
T132: 129 | U132: 11 | V132: =IF(xl_polopt<>3,0,IF($U132<Def_Yrs,U132,0)) -> 0 | W132: =W120+1 -> 68 | X132: 68 | Y132: =IF(AND(T132=1,U132=1),xl_premium,0) -> 0 | Z132: =IF($U132<=Def_Yrs,Details!$B$6/12,0) -> 0 | AA132: 799108 | AB132: =IF($U132<=XL_PT+1,IF(xl_polopt=1,0,IF(xl_polopt=2,xl_premium,MAX(xl_premium*1.1,AA132+xl_premium-AC132))),0) -> 5402750.1 | AC132: 3196432 | AD132: =IF($U132<=XL_PT+1,IF(AND(xl_polopt=3,Details!$U132<=Def_Yrs),0,IF(MOD($T132,12/$B$9)=0,$B$7,0)),0) -> 0 | AE132: =IFERROR(IF(V132=0,VLOOKUP(IF(Life="SL",W132,MIN(W132,X132)),$K$4:$M$76,3,0)*$B$6,0),0) -> 3911633.66 | AF132: =IFERROR(IF(V132=0,(VLOOKUP(IF(Life="SL",W132,MIN(W132,X132)),$K$4:$N$76,4,0))/100*$B$4,0),0) -> 674852.6034 | AG132: =IF(Def_Yrs=0,0,IF($U132>Def_Yrs,0,Def_Yrs*12-$T132)) -> 0 | AH132: 1 | AI132: 0 | AJ132: =IF(xl_polopt=1,0,IF(AND(xl_polopt=3,AG132>0),AI132,SUM(AE132:AF132,AI132))) -> 4586486.263 | AK132: =MAX(IF(xl_polopt=1,0,VLOOKUP(U132,$E$4:$G$7,3,TRUE)*xl_premium-SUM(Details!$AD$4:AD132)),0) -> 1223999.9 | AL132: 4586486.263 | AM132: =IF(OR(xl_polopt=1,xl_polopt=2),"NA",Details!AK132) -> 1223999.9
T133: 130 | U133: 11 | V133: 0 | W133: =W121+1 -> 68 | X133: 68 | Y133: 0 | Z133: =IF($U133<=Def_Yrs,Details!$B$6/12,0) -> 0 | AA133: =(Z133+AA132)*($U132<=XL_PT+1) -> 799108 | AB133: 5402750.1 | AC133: =(AC132+AD133)*($U132<=XL_PT+1) -> 3196432 | AD133: =IF($U133<=XL_PT+1,IF(AND(xl_polopt=3,Details!$U133<=Def_Yrs),0,IF(MOD($T133,12/$B$9)=0,$B$7,0)),0) -> 0 | AE133: 3911633.66 | AF133: 674852.6034 | AG133: 0 | AH133: =+VLOOKUP(AG133,$AP$4:$AQ$124,2) -> 1 | AI133: =(AG133>0)*AH133*$AI$2 -> 0 | AJ133: 4586486.263 | AK133: =MAX(IF(xl_polopt=1,0,VLOOKUP(U133,$E$4:$G$7,3,TRUE)*xl_premium-SUM(Details!$AD$4:AD133)),0) -> 1223999.9 | AL133: =MAX(AJ133,AK133) -> 4586486.263 | AM133: =IF(OR(xl_polopt=1,xl_polopt=2),"NA",Details!AK133) -> 1223999.9
T134: 131 | U134: 11 | V134: 0 | W134: =W122+1 -> 68 | X134: 68 | Y134: 0 | Z134: =IF($U134<=Def_Yrs,Details!$B$6/12,0) -> 0 | AA134: 799108 | AB134: 5402750.1 | AC134: 3196432 | AD134: =IF($U134<=XL_PT+1,IF(AND(xl_polopt=3,Details!$U134<=Def_Yrs),0,IF(MOD($T134,12/$B$9)=0,$B$7,0)),0) -> 0 | AE134: 3911633.66 | AF134: 674852.6034 | AG134: 0 | AH134: 1 | AI134: 0 | AJ134: 4586486.263 | AK134: =MAX(IF(xl_polopt=1,0,VLOOKUP(U134,$E$4:$G$7,3,TRUE)*xl_premium-SUM(Details!$AD$4:AD134)),0) -> 1223999.9 | AL134: 4586486.263 | AM134: =IF(OR(xl_polopt=1,xl_polopt=2),"NA",Details!AK134) -> 1223999.9
T135: 132 | U135: 11 | V135: 0 | W135: =W123+1 -> 68 | X135: 68 | Y135: 0 | Z135: =IF($U135<=Def_Yrs,Details!$B$6/12,0) -> 0 | AA135: 799108 | AB135: 5402750.1 | AC135: 3595986 | AD135: =IF($U135<=XL_PT+1,IF(AND(xl_polopt=3,Details!$U135<=Def_Yrs),0,IF(MOD($T135,12/$B$9)=0,$B$7,0)),0) -> 399554 | AE135: 3911633.66 | AF135: 674852.6034 | AG135: 0 | AH135: 1 | AI135: 0 | AJ135: 4586486.263 | AK135: =MAX(IF(xl_polopt=1,0,VLOOKUP(U135,$E$4:$G$7,3,TRUE)*xl_premium-SUM(Details!$AD$4:AD135)),0) -> 824445.9 | AL135: 4586486.263 | AM135: =IF(OR(xl_polopt=1,xl_polopt=2),"NA",Details!AK135) -> 824445.9
T136: 133 | U136: 12 | V136: 0 | W136: =W124+1 -> 69 | X136: 69 | Y136: 0 | Z136: =IF($U136<=Def_Yrs,Details!$B$6/12,0) -> 0 | AA136: 799108 | AB136: 5402750.1 | AC136: 3595986 | AD136: =IF($U136<=XL_PT+1,IF(AND(xl_polopt=3,Details!$U136<=Def_Yrs),0,IF(MOD($T136,12/$B$9)=0,$B$7,0)),0) -> 0 | AE136: 3883664.88 | AF136: 706286.7858 | AG136: 0 | AH136: 1 | AI136: 0 | AJ136: 4589951.666 | AK136: =MAX(IF(xl_polopt=1,0,VLOOKUP(U136,$E$4:$G$7,3,TRUE)*xl_premium-SUM(Details!$AD$4:AD136)),0) -> 824445.9 | AL136: 4589951.666 | AM136: =IF(OR(xl_polopt=1,xl_polopt=2),"NA",Details!AK136) -> 824445.9
T137: 134 | U137: 12 | V137: 0 | W137: =W125+1 -> 69 | X137: 69 | Y137: 0 | Z137: =IF($U137<=Def_Yrs,Details!$B$6/12,0) -> 0 | AA137: 799108 | AB137: 5402750.1 | AC137: 3595986 | AD137: =IF($U137<=XL_PT+1,IF(AND(xl_polopt=3,Details!$U137<=Def_Yrs),0,IF(MOD($T137,12/$B$9)=0,$B$7,0)),0) -> 0 | AE137: 3883664.88 | AF137: 706286.7858 | AG137: 0 | AH137: 1 | AI137: 0 | AJ137: 4589951.666 | AK137: =MAX(IF(xl_polopt=1,0,VLOOKUP(U137,$E$4:$G$7,3,TRUE)*xl_premium-SUM(Details!$AD$4:AD137)),0) -> 824445.9 | AL137: 4589951.666 | AM137: =IF(OR(xl_polopt=1,xl_polopt=2),"NA",Details!AK137) -> 824445.9
T138: 135 | U138: 12 | V138: 0 | W138: =W126+1 -> 69 | X138: 69 | Y138: 0 | Z138: =IF($U138<=Def_Yrs,Details!$B$6/12,0) -> 0 | AA138: 799108 | AB138: 5402750.1 | AC138: 3595986 | AD138: =IF($U138<=XL_PT+1,IF(AND(xl_polopt=3,Details!$U138<=Def_Yrs),0,IF(MOD($T138,12/$B$9)=0,$B$7,0)),0) -> 0 | AE138: 3883664.88 | AF138: 706286.7858 | AG138: 0 | AH138: 1 | AI138: 0 | AJ138: 4589951.666 | AK138: =MAX(IF(xl_polopt=1,0,VLOOKUP(U138,$E$4:$G$7,3,TRUE)*xl_premium-SUM(Details!$AD$4:AD138)),0) -> 824445.9 | AL138: 4589951.666 | AM138: =IF(OR(xl_polopt=1,xl_polopt=2),"NA",Details!AK138) -> 824445.9
T139: 136 | U139: 12 | V139: 0 | W139: =W127+1 -> 69 | X139: 69 | Y139: 0 | Z139: =IF($U139<=Def_Yrs,Details!$B$6/12,0) -> 0 | AA139: 799108 | AB139: 5402750.1 | AC139: 3595986 | AD139: =IF($U139<=XL_PT+1,IF(AND(xl_polopt=3,Details!$U139<=Def_Yrs),0,IF(MOD($T139,12/$B$9)=0,$B$7,0)),0) -> 0 | AE139: 3883664.88 | AF139: 706286.7858 | AG139: 0 | AH139: 1 | AI139: 0 | AJ139: 4589951.666 | AK139: =MAX(IF(xl_polopt=1,0,VLOOKUP(U139,$E$4:$G$7,3,TRUE)*xl_premium-SUM(Details!$AD$4:AD139)),0) -> 824445.9 | AL139: 4589951.666 | AM139: =IF(OR(xl_polopt=1,xl_polopt=2),"NA",Details!AK139) -> 824445.9
T140: 137 | U140: 12 | V140: 0 | W140: =W128+1 -> 69 | X140: 69 | Y140: 0 | Z140: =IF($U140<=Def_Yrs,Details!$B$6/12,0) -> 0 | AA140: 799108 | AB140: 5402750.1 | AC140: 3595986 | AD140: =IF($U140<=XL_PT+1,IF(AND(xl_polopt=3,Details!$U140<=Def_Yrs),0,IF(MOD($T140,12/$B$9)=0,$B$7,0)),0) -> 0 | AE140: 3883664.88 | AF140: 706286.7858 | AG140: 0 | AH140: 1 | AI140: 0 | AJ140: 4589951.666 | AK140: =MAX(IF(xl_polopt=1,0,VLOOKUP(U140,$E$4:$G$7,3,TRUE)*xl_premium-SUM(Details!$AD$4:AD140)),0) -> 824445.9 | AL140: 4589951.666 | AM140: =IF(OR(xl_polopt=1,xl_polopt=2),"NA",Details!AK140) -> 824445.9
T141: 138 | U141: 12 | V141: 0 | W141: =W129+1 -> 69 | X141: 69 | Y141: 0 | Z141: =IF($U141<=Def_Yrs,Details!$B$6/12,0) -> 0 | AA141: 799108 | AB141: 5402750.1 | AC141: 3595986 | AD141: =IF($U141<=XL_PT+1,IF(AND(xl_polopt=3,Details!$U141<=Def_Yrs),0,IF(MOD($T141,12/$B$9)=0,$B$7,0)),0) -> 0 | AE141: 3883664.88 | AF141: 706286.7858 | AG141: 0 | AH141: 1 | AI141: 0 | AJ141: 4589951.666 | AK141: =MAX(IF(xl_polopt=1,0,VLOOKUP(U141,$E$4:$G$7,3,TRUE)*xl_premium-SUM(Details!$AD$4:AD141)),0) -> 824445.9 | AL141: 4589951.666 | AM141: =IF(OR(xl_polopt=1,xl_polopt=2),"NA",Details!AK141) -> 824445.9
T142: 139 | U142: 12 | V142: 0 | W142: =W130+1 -> 69 | X142: 69 | Y142: 0 | Z142: =IF($U142<=Def_Yrs,Details!$B$6/12,0) -> 0 | AA142: 799108 | AB142: 5402750.1 | AC142: 3595986 | AD142: =IF($U142<=XL_PT+1,IF(AND(xl_polopt=3,Details!$U142<=Def_Yrs),0,IF(MOD($T142,12/$B$9)=0,$B$7,0)),0) -> 0 | AE142: 3883664.88 | AF142: 706286.7858 | AG142: 0 | AH142: 1 | AI142: 0 | AJ142: 4589951.666 | AK142: =MAX(IF(xl_polopt=1,0,VLOOKUP(U142,$E$4:$G$7,3,TRUE)*xl_premium-SUM(Details!$AD$4:AD142)),0) -> 824445.9 | AL142: 4589951.666 | AM142: =IF(OR(xl_polopt=1,xl_polopt=2),"NA",Details!AK142) -> 824445.9
T143: 140 | U143: 12 | V143: 0 | W143: =W131+1 -> 69 | X143: 69 | Y143: 0 | Z143: =IF($U143<=Def_Yrs,Details!$B$6/12,0) -> 0 | AA143: 799108 | AB143: 5402750.1 | AC143: 3595986 | AD143: =IF($U143<=XL_PT+1,IF(AND(xl_polopt=3,Details!$U143<=Def_Yrs),0,IF(MOD($T143,12/$B$9)=0,$B$7,0)),0) -> 0 | AE143: 3883664.88 | AF143: 706286.7858 | AG143: 0 | AH143: 1 | AI143: 0 | AJ143: 4589951.666 | AK143: =MAX(IF(xl_polopt=1,0,VLOOKUP(U143,$E$4:$G$7,3,TRUE)*xl_premium-SUM(Details!$AD$4:AD143)),0) -> 824445.9 | AL143: 4589951.666 | AM143: =IF(OR(xl_polopt=1,xl_polopt=2),"NA",Details!AK143) -> 824445.9
T144: 141 | U144: 12 | V144: 0 | W144: =W132+1 -> 69 | X144: 69 | Y144: 0 | Z144: =IF($U144<=Def_Yrs,Details!$B$6/12,0) -> 0 | AA144: 799108 | AB144: 5402750.1 | AC144: 3595986 | AD144: =IF($U144<=XL_PT+1,IF(AND(xl_polopt=3,Details!$U144<=Def_Yrs),0,IF(MOD($T144,12/$B$9)=0,$B$7,0)),0) -> 0 | AE144: 3883664.88 | AF144: 706286.7858 | AG144: 0 | AH144: 1 | AI144: 0 | AJ144: 4589951.666 | AK144: =MAX(IF(xl_polopt=1,0,VLOOKUP(U144,$E$4:$G$7,3,TRUE)*xl_premium-SUM(Details!$AD$4:AD144)),0) -> 824445.9 | AL144: 4589951.666 | AM144: =IF(OR(xl_polopt=1,xl_polopt=2),"NA",Details!AK144) -> 824445.9
T145: 142 | U145: 12 | V145: 0 | W145: =W133+1 -> 69 | X145: 69 | Y145: 0 | Z145: =IF($U145<=Def_Yrs,Details!$B$6/12,0) -> 0 | AA145: 799108 | AB145: 5402750.1 | AC145: 3595986 | AD145: =IF($U145<=XL_PT+1,IF(AND(xl_polopt=3,Details!$U145<=Def_Yrs),0,IF(MOD($T145,12/$B$9)=0,$B$7,0)),0) -> 0 | AE145: 3883664.88 | AF145: 706286.7858 | AG145: 0 | AH145: 1 | AI145: 0 | AJ145: 4589951.666 | AK145: =MAX(IF(xl_polopt=1,0,VLOOKUP(U145,$E$4:$G$7,3,TRUE)*xl_premium-SUM(Details!$AD$4:AD145)),0) -> 824445.9 | AL145: 4589951.666 | AM145: =IF(OR(xl_polopt=1,xl_polopt=2),"NA",Details!AK145) -> 824445.9
T146: 143 | U146: 12 | V146: 0 | W146: =W134+1 -> 69 | X146: 69 | Y146: 0 | Z146: =IF($U146<=Def_Yrs,Details!$B$6/12,0) -> 0 | AA146: 799108 | AB146: 5402750.1 | AC146: 3595986 | AD146: =IF($U146<=XL_PT+1,IF(AND(xl_polopt=3,Details!$U146<=Def_Yrs),0,IF(MOD($T146,12/$B$9)=0,$B$7,0)),0) -> 0 | AE146: 3883664.88 | AF146: 706286.7858 | AG146: 0 | AH146: 1 | AI146: 0 | AJ146: 4589951.666 | AK146: =MAX(IF(xl_polopt=1,0,VLOOKUP(U146,$E$4:$G$7,3,TRUE)*xl_premium-SUM(Details!$AD$4:AD146)),0) -> 824445.9 | AL146: 4589951.666 | AM146: =IF(OR(xl_polopt=1,xl_polopt=2),"NA",Details!AK146) -> 824445.9
T147: 144 | U147: 12 | V147: 0 | W147: =W135+1 -> 69 | X147: 69 | Y147: 0 | Z147: =IF($U147<=Def_Yrs,Details!$B$6/12,0) -> 0 | AA147: 799108 | AB147: 5402750.1 | AC147: 3995540 | AD147: =IF($U147<=XL_PT+1,IF(AND(xl_polopt=3,Details!$U147<=Def_Yrs),0,IF(MOD($T147,12/$B$9)=0,$B$7,0)),0) -> 399554 | AE147: 3883664.88 | AF147: 706286.7858 | AG147: 0 | AH147: 1 | AI147: 0 | AJ147: 4589951.666 | AK147: =MAX(IF(xl_polopt=1,0,VLOOKUP(U147,$E$4:$G$7,3,TRUE)*xl_premium-SUM(Details!$AD$4:AD147)),0) -> 424891.9 | AL147: 4589951.666 | AM147: =IF(OR(xl_polopt=1,xl_polopt=2),"NA",Details!AK147) -> 424891.9
T148: 145 | U148: 13 | V148: 0 | W148: =W136+1 -> 70 | X148: 70 | Y148: 0 | Z148: =IF($U148<=Def_Yrs,Details!$B$6/12,0) -> 0 | AA148: 799108 | AB148: 5402750.1 | AC148: 3995540 | AD148: =IF($U148<=XL_PT+1,IF(AND(xl_polopt=3,Details!$U148<=Def_Yrs),0,IF(MOD($T148,12/$B$9)=0,$B$7,0)),0) -> 0 | AE148: 3851700.56 | AF148: 737229.8091 | AG148: 0 | AH148: 1 | AI148: 0 | AJ148: 4588930.369 | AK148: =MAX(IF(xl_polopt=1,0,VLOOKUP(U148,$E$4:$G$7,3,TRUE)*xl_premium-SUM(Details!$AD$4:AD148)),0) -> 424891.9 | AL148: 4588930.369 | AM148: =IF(OR(xl_polopt=1,xl_polopt=2),"NA",Details!AK148) -> 424891.9
T149: 146 | U149: 13 | V149: 0 | W149: =W137+1 -> 70 | X149: 70 | Y149: 0 | Z149: =IF($U149<=Def_Yrs,Details!$B$6/12,0) -> 0 | AA149: 799108 | AB149: 5402750.1 | AC149: 3995540 | AD149: =IF($U149<=XL_PT+1,IF(AND(xl_polopt=3,Details!$U149<=Def_Yrs),0,IF(MOD($T149,12/$B$9)=0,$B$7,0)),0) -> 0 | AE149: 3851700.56 | AF149: 737229.8091 | AG149: 0 | AH149: 1 | AI149: 0 | AJ149: 4588930.369 | AK149: =MAX(IF(xl_polopt=1,0,VLOOKUP(U149,$E$4:$G$7,3,TRUE)*xl_premium-SUM(Details!$AD$4:AD149)),0) -> 424891.9 | AL149: 4588930.369 | AM149: =IF(OR(xl_polopt=1,xl_polopt=2),"NA",Details!AK149) -> 424891.9
T150: 147 | U150: 13 | V150: 0 | W150: =W138+1 -> 70 | X150: 70 | Y150: 0 | Z150: =IF($U150<=Def_Yrs,Details!$B$6/12,0) -> 0 | AA150: 799108 | AB150: 5402750.1 | AC150: 3995540 | AD150: =IF($U150<=XL_PT+1,IF(AND(xl_polopt=3,Details!$U150<=Def_Yrs),0,IF(MOD($T150,12/$B$9)=0,$B$7,0)),0) -> 0 | AE150: 3851700.56 | AF150: 737229.8091 | AG150: 0 | AH150: 1 | AI150: 0 | AJ150: 4588930.369 | AK150: =MAX(IF(xl_polopt=1,0,VLOOKUP(U150,$E$4:$G$7,3,TRUE)*xl_premium-SUM(Details!$AD$4:AD150)),0) -> 424891.9 | AL150: 4588930.369 | AM150: =IF(OR(xl_polopt=1,xl_polopt=2),"NA",Details!AK150) -> 424891.9
T151: 148 | U151: 13 | V151: 0 | W151: =W139+1 -> 70 | X151: 70 | Y151: 0 | Z151: =IF($U151<=Def_Yrs,Details!$B$6/12,0) -> 0 | AA151: 799108 | AB151: 5402750.1 | AC151: 3995540 | AD151: =IF($U151<=XL_PT+1,IF(AND(xl_polopt=3,Details!$U151<=Def_Yrs),0,IF(MOD($T151,12/$B$9)=0,$B$7,0)),0) -> 0 | AE151: 3851700.56 | AF151: 737229.8091 | AG151: 0 | AH151: 1 | AI151: 0 | AJ151: 4588930.369 | AK151: =MAX(IF(xl_polopt=1,0,VLOOKUP(U151,$E$4:$G$7,3,TRUE)*xl_premium-SUM(Details!$AD$4:AD151)),0) -> 424891.9 | AL151: 4588930.369 | AM151: =IF(OR(xl_polopt=1,xl_polopt=2),"NA",Details!AK151) -> 424891.9
T152: 149 | U152: 13 | V152: 0 | W152: =W140+1 -> 70 | X152: 70 | Y152: 0 | Z152: =IF($U152<=Def_Yrs,Details!$B$6/12,0) -> 0 | AA152: 799108 | AB152: 5402750.1 | AC152: 3995540 | AD152: =IF($U152<=XL_PT+1,IF(AND(xl_polopt=3,Details!$U152<=Def_Yrs),0,IF(MOD($T152,12/$B$9)=0,$B$7,0)),0) -> 0 | AE152: 3851700.56 | AF152: 737229.8091 | AG152: 0 | AH152: 1 | AI152: 0 | AJ152: 4588930.369 | AK152: =MAX(IF(xl_polopt=1,0,VLOOKUP(U152,$E$4:$G$7,3,TRUE)*xl_premium-SUM(Details!$AD$4:AD152)),0) -> 424891.9 | AL152: 4588930.369 | AM152: =IF(OR(xl_polopt=1,xl_polopt=2),"NA",Details!AK152) -> 424891.9
T153: 150 | U153: 13 | V153: 0 | W153: =W141+1 -> 70 | X153: 70 | Y153: 0 | Z153: =IF($U153<=Def_Yrs,Details!$B$6/12,0) -> 0 | AA153: 799108 | AB153: 5402750.1 | AC153: 3995540 | AD153: =IF($U153<=XL_PT+1,IF(AND(xl_polopt=3,Details!$U153<=Def_Yrs),0,IF(MOD($T153,12/$B$9)=0,$B$7,0)),0) -> 0 | AE153: 3851700.56 | AF153: 737229.8091 | AG153: 0 | AH153: 1 | AI153: 0 | AJ153: 4588930.369 | AK153: =MAX(IF(xl_polopt=1,0,VLOOKUP(U153,$E$4:$G$7,3,TRUE)*xl_premium-SUM(Details!$AD$4:AD153)),0) -> 424891.9 | AL153: 4588930.369 | AM153: =IF(OR(xl_polopt=1,xl_polopt=2),"NA",Details!AK153) -> 424891.9
T154: 151 | U154: 13 | V154: 0 | W154: =W142+1 -> 70 | X154: 70 | Y154: 0 | Z154: =IF($U154<=Def_Yrs,Details!$B$6/12,0) -> 0 | AA154: 799108 | AB154: 5402750.1 | AC154: 3995540 | AD154: =IF($U154<=XL_PT+1,IF(AND(xl_polopt=3,Details!$U154<=Def_Yrs),0,IF(MOD($T154,12/$B$9)=0,$B$7,0)),0) -> 0 | AE154: 3851700.56 | AF154: 737229.8091 | AG154: 0 | AH154: 1 | AI154: 0 | AJ154: 4588930.369 | AK154: =MAX(IF(xl_polopt=1,0,VLOOKUP(U154,$E$4:$G$7,3,TRUE)*xl_premium-SUM(Details!$AD$4:AD154)),0) -> 424891.9 | AL154: 4588930.369 | AM154: =IF(OR(xl_polopt=1,xl_polopt=2),"NA",Details!AK154) -> 424891.9
T155: 152 | U155: 13 | V155: 0 | W155: =W143+1 -> 70 | X155: 70 | Y155: 0 | Z155: =IF($U155<=Def_Yrs,Details!$B$6/12,0) -> 0 | AA155: 799108 | AB155: 5402750.1 | AC155: 3995540 | AD155: =IF($U155<=XL_PT+1,IF(AND(xl_polopt=3,Details!$U155<=Def_Yrs),0,IF(MOD($T155,12/$B$9)=0,$B$7,0)),0) -> 0 | AE155: 3851700.56 | AF155: 737229.8091 | AG155: 0 | AH155: 1 | AI155: 0 | AJ155: 4588930.369 | AK155: =MAX(IF(xl_polopt=1,0,VLOOKUP(U155,$E$4:$G$7,3,TRUE)*xl_premium-SUM(Details!$AD$4:AD155)),0) -> 424891.9 | AL155: 4588930.369 | AM155: =IF(OR(xl_polopt=1,xl_polopt=2),"NA",Details!AK155) -> 424891.9
T156: 153 | U156: 13 | V156: 0 | W156: =W144+1 -> 70 | X156: 70 | Y156: 0 | Z156: =IF($U156<=Def_Yrs,Details!$B$6/12,0) -> 0 | AA156: 799108 | AB156: 5402750.1 | AC156: 3995540 | AD156: =IF($U156<=XL_PT+1,IF(AND(xl_polopt=3,Details!$U156<=Def_Yrs),0,IF(MOD($T156,12/$B$9)=0,$B$7,0)),0) -> 0 | AE156: 3851700.56 | AF156: 737229.8091 | AG156: 0 | AH156: 1 | AI156: 0 | AJ156: 4588930.369 | AK156: =MAX(IF(xl_polopt=1,0,VLOOKUP(U156,$E$4:$G$7,3,TRUE)*xl_premium-SUM(Details!$AD$4:AD156)),0) -> 424891.9 | AL156: 4588930.369 | AM156: =IF(OR(xl_polopt=1,xl_polopt=2),"NA",Details!AK156) -> 424891.9
T157: 154 | U157: 13 | V157: 0 | W157: =W145+1 -> 70 | X157: 70 | Y157: 0 | Z157: =IF($U157<=Def_Yrs,Details!$B$6/12,0) -> 0 | AA157: 799108 | AB157: 5402750.1 | AC157: 3995540 | AD157: =IF($U157<=XL_PT+1,IF(AND(xl_polopt=3,Details!$U157<=Def_Yrs),0,IF(MOD($T157,12/$B$9)=0,$B$7,0)),0) -> 0 | AE157: 3851700.56 | AF157: 737229.8091 | AG157: 0 | AH157: 1 | AI157: 0 | AJ157: 4588930.369 | AK157: =MAX(IF(xl_polopt=1,0,VLOOKUP(U157,$E$4:$G$7,3,TRUE)*xl_premium-SUM(Details!$AD$4:AD157)),0) -> 424891.9 | AL157: 4588930.369 | AM157: =IF(OR(xl_polopt=1,xl_polopt=2),"NA",Details!AK157) -> 424891.9
T158: 155 | U158: 13 | V158: 0 | W158: =W146+1 -> 70 | X158: 70 | Y158: 0 | Z158: =IF($U158<=Def_Yrs,Details!$B$6/12,0) -> 0 | AA158: 799108 | AB158: 5402750.1 | AC158: 3995540 | AD158: =IF($U158<=XL_PT+1,IF(AND(xl_polopt=3,Details!$U158<=Def_Yrs),0,IF(MOD($T158,12/$B$9)=0,$B$7,0)),0) -> 0 | AE158: 3851700.56 | AF158: 737229.8091 | AG158: 0 | AH158: 1 | AI158: 0 | AJ158: 4588930.369 | AK158: =MAX(IF(xl_polopt=1,0,VLOOKUP(U158,$E$4:$G$7,3,TRUE)*xl_premium-SUM(Details!$AD$4:AD158)),0) -> 424891.9 | AL158: 4588930.369 | AM158: =IF(OR(xl_polopt=1,xl_polopt=2),"NA",Details!AK158) -> 424891.9
T159: 156 | U159: 13 | V159: 0 | W159: =W147+1 -> 70 | X159: 70 | Y159: 0 | Z159: =IF($U159<=Def_Yrs,Details!$B$6/12,0) -> 0 | AA159: 799108 | AB159: 5402750.1 | AC159: 4395094 | AD159: =IF($U159<=XL_PT+1,IF(AND(xl_polopt=3,Details!$U159<=Def_Yrs),0,IF(MOD($T159,12/$B$9)=0,$B$7,0)),0) -> 399554 | AE159: 3851700.56 | AF159: 737229.8091 | AG159: 0 | AH159: 1 | AI159: 0 | AJ159: 4588930.369 | AK159: =MAX(IF(xl_polopt=1,0,VLOOKUP(U159,$E$4:$G$7,3,TRUE)*xl_premium-SUM(Details!$AD$4:AD159)),0) -> 25337.9 | AL159: 4588930.369 | AM159: =IF(OR(xl_polopt=1,xl_polopt=2),"NA",Details!AK159) -> 25337.9
T160: 157 | U160: 14 | V160: 0 | W160: =W148+1 -> 71 | X160: 71 | Y160: 0 | Z160: =IF($U160<=Def_Yrs,Details!$B$6/12,0) -> 0 | AA160: 799108 | AB160: 5402750.1 | AC160: 4395094 | AD160: =IF($U160<=XL_PT+1,IF(AND(xl_polopt=3,Details!$U160<=Def_Yrs),0,IF(MOD($T160,12/$B$9)=0,$B$7,0)),0) -> 0 | AE160: 3823731.78 | AF160: 768172.8324 | AG160: 0 | AH160: 1 | AI160: 0 | AJ160: 4591904.612 | AK160: =MAX(IF(xl_polopt=1,0,VLOOKUP(U160,$E$4:$G$7,3,TRUE)*xl_premium-SUM(Details!$AD$4:AD160)),0) -> 25337.9 | AL160: 4591904.612 | AM160: =IF(OR(xl_polopt=1,xl_polopt=2),"NA",Details!AK160) -> 25337.9
T161: 158 | U161: 14 | V161: 0 | W161: =W149+1 -> 71 | X161: 71 | Y161: 0 | Z161: =IF($U161<=Def_Yrs,Details!$B$6/12,0) -> 0 | AA161: 799108 | AB161: 5402750.1 | AC161: 4395094 | AD161: =IF($U161<=XL_PT+1,IF(AND(xl_polopt=3,Details!$U161<=Def_Yrs),0,IF(MOD($T161,12/$B$9)=0,$B$7,0)),0) -> 0 | AE161: 3823731.78 | AF161: 768172.8324 | AG161: 0 | AH161: 1 | AI161: 0 | AJ161: 4591904.612 | AK161: =MAX(IF(xl_polopt=1,0,VLOOKUP(U161,$E$4:$G$7,3,TRUE)*xl_premium-SUM(Details!$AD$4:AD161)),0) -> 25337.9 | AL161: 4591904.612 | AM161: =IF(OR(xl_polopt=1,xl_polopt=2),"NA",Details!AK161) -> 25337.9
T162: 159 | U162: 14 | V162: 0 | W162: =W150+1 -> 71 | X162: 71 | Y162: 0 | Z162: =IF($U162<=Def_Yrs,Details!$B$6/12,0) -> 0 | AA162: 799108 | AB162: 5402750.1 | AC162: 4395094 | AD162: =IF($U162<=XL_PT+1,IF(AND(xl_polopt=3,Details!$U162<=Def_Yrs),0,IF(MOD($T162,12/$B$9)=0,$B$7,0)),0) -> 0 | AE162: 3823731.78 | AF162: 768172.8324 | AG162: 0 | AH162: 1 | AI162: 0 | AJ162: 4591904.612 | AK162: =MAX(IF(xl_polopt=1,0,VLOOKUP(U162,$E$4:$G$7,3,TRUE)*xl_premium-SUM(Details!$AD$4:AD162)),0) -> 25337.9 | AL162: 4591904.612 | AM162: =IF(OR(xl_polopt=1,xl_polopt=2),"NA",Details!AK162) -> 25337.9
T163: 160 | U163: 14 | V163: 0 | W163: =W151+1 -> 71 | X163: 71 | Y163: 0 | Z163: =IF($U163<=Def_Yrs,Details!$B$6/12,0) -> 0 | AA163: 799108 | AB163: 5402750.1 | AC163: 4395094 | AD163: =IF($U163<=XL_PT+1,IF(AND(xl_polopt=3,Details!$U163<=Def_Yrs),0,IF(MOD($T163,12/$B$9)=0,$B$7,0)),0) -> 0 | AE163: 3823731.78 | AF163: 768172.8324 | AG163: 0 | AH163: 1 | AI163: 0 | AJ163: 4591904.612 | AK163: =MAX(IF(xl_polopt=1,0,VLOOKUP(U163,$E$4:$G$7,3,TRUE)*xl_premium-SUM(Details!$AD$4:AD163)),0) -> 25337.9 | AL163: 4591904.612 | AM163: =IF(OR(xl_polopt=1,xl_polopt=2),"NA",Details!AK163) -> 25337.9
T164: 161 | U164: 14 | V164: 0 | W164: =W152+1 -> 71 | X164: 71 | Y164: 0 | Z164: =IF($U164<=Def_Yrs,Details!$B$6/12,0) -> 0 | AA164: 799108 | AB164: 5402750.1 | AC164: 4395094 | AD164: =IF($U164<=XL_PT+1,IF(AND(xl_polopt=3,Details!$U164<=Def_Yrs),0,IF(MOD($T164,12/$B$9)=0,$B$7,0)),0) -> 0 | AE164: 3823731.78 | AF164: 768172.8324 | AG164: 0 | AH164: 1 | AI164: 0 | AJ164: 4591904.612 | AK164: =MAX(IF(xl_polopt=1,0,VLOOKUP(U164,$E$4:$G$7,3,TRUE)*xl_premium-SUM(Details!$AD$4:AD164)),0) -> 25337.9 | AL164: 4591904.612 | AM164: =IF(OR(xl_polopt=1,xl_polopt=2),"NA",Details!AK164) -> 25337.9
T165: 162 | U165: 14 | V165: 0 | W165: =W153+1 -> 71 | X165: 71 | Y165: 0 | Z165: =IF($U165<=Def_Yrs,Details!$B$6/12,0) -> 0 | AA165: 799108 | AB165: 5402750.1 | AC165: 4395094 | AD165: =IF($U165<=XL_PT+1,IF(AND(xl_polopt=3,Details!$U165<=Def_Yrs),0,IF(MOD($T165,12/$B$9)=0,$B$7,0)),0) -> 0 | AE165: 3823731.78 | AF165: 768172.8324 | AG165: 0 | AH165: 1 | AI165: 0 | AJ165: 4591904.612 | AK165: =MAX(IF(xl_polopt=1,0,VLOOKUP(U165,$E$4:$G$7,3,TRUE)*xl_premium-SUM(Details!$AD$4:AD165)),0) -> 25337.9 | AL165: 4591904.612 | AM165: =IF(OR(xl_polopt=1,xl_polopt=2),"NA",Details!AK165) -> 25337.9
T166: 163 | U166: 14 | V166: 0 | W166: =W154+1 -> 71 | X166: 71 | Y166: 0 | Z166: =IF($U166<=Def_Yrs,Details!$B$6/12,0) -> 0 | AA166: 799108 | AB166: 5402750.1 | AC166: 4395094 | AD166: =IF($U166<=XL_PT+1,IF(AND(xl_polopt=3,Details!$U166<=Def_Yrs),0,IF(MOD($T166,12/$B$9)=0,$B$7,0)),0) -> 0 | AE166: 3823731.78 | AF166: 768172.8324 | AG166: 0 | AH166: 1 | AI166: 0 | AJ166: 4591904.612 | AK166: =MAX(IF(xl_polopt=1,0,VLOOKUP(U166,$E$4:$G$7,3,TRUE)*xl_premium-SUM(Details!$AD$4:AD166)),0) -> 25337.9 | AL166: 4591904.612 | AM166: =IF(OR(xl_polopt=1,xl_polopt=2),"NA",Details!AK166) -> 25337.9
T167: 164 | U167: 14 | V167: 0 | W167: =W155+1 -> 71 | X167: 71 | Y167: 0 | Z167: =IF($U167<=Def_Yrs,Details!$B$6/12,0) -> 0 | AA167: 799108 | AB167: 5402750.1 | AC167: 4395094 | AD167: =IF($U167<=XL_PT+1,IF(AND(xl_polopt=3,Details!$U167<=Def_Yrs),0,IF(MOD($T167,12/$B$9)=0,$B$7,0)),0) -> 0 | AE167: 3823731.78 | AF167: 768172.8324 | AG167: 0 | AH167: 1 | AI167: 0 | AJ167: 4591904.612 | AK167: =MAX(IF(xl_polopt=1,0,VLOOKUP(U167,$E$4:$G$7,3,TRUE)*xl_premium-SUM(Details!$AD$4:AD167)),0) -> 25337.9 | AL167: 4591904.612 | AM167: =IF(OR(xl_polopt=1,xl_polopt=2),"NA",Details!AK167) -> 25337.9
T168: 165 | U168: 14 | V168: 0 | W168: =W156+1 -> 71 | X168: 71 | Y168: 0 | Z168: =IF($U168<=Def_Yrs,Details!$B$6/12,0) -> 0 | AA168: 799108 | AB168: 5402750.1 | AC168: 4395094 | AD168: =IF($U168<=XL_PT+1,IF(AND(xl_polopt=3,Details!$U168<=Def_Yrs),0,IF(MOD($T168,12/$B$9)=0,$B$7,0)),0) -> 0 | AE168: 3823731.78 | AF168: 768172.8324 | AG168: 0 | AH168: 1 | AI168: 0 | AJ168: 4591904.612 | AK168: =MAX(IF(xl_polopt=1,0,VLOOKUP(U168,$E$4:$G$7,3,TRUE)*xl_premium-SUM(Details!$AD$4:AD168)),0) -> 25337.9 | AL168: 4591904.612 | AM168: =IF(OR(xl_polopt=1,xl_polopt=2),"NA",Details!AK168) -> 25337.9
T169: 166 | U169: 14 | V169: 0 | W169: =W157+1 -> 71 | X169: 71 | Y169: 0 | Z169: =IF($U169<=Def_Yrs,Details!$B$6/12,0) -> 0 | AA169: 799108 | AB169: 5402750.1 | AC169: 4395094 | AD169: =IF($U169<=XL_PT+1,IF(AND(xl_polopt=3,Details!$U169<=Def_Yrs),0,IF(MOD($T169,12/$B$9)=0,$B$7,0)),0) -> 0 | AE169: 3823731.78 | AF169: 768172.8324 | AG169: 0 | AH169: 1 | AI169: 0 | AJ169: 4591904.612 | AK169: =MAX(IF(xl_polopt=1,0,VLOOKUP(U169,$E$4:$G$7,3,TRUE)*xl_premium-SUM(Details!$AD$4:AD169)),0) -> 25337.9 | AL169: 4591904.612 | AM169: =IF(OR(xl_polopt=1,xl_polopt=2),"NA",Details!AK169) -> 25337.9
T170: 167 | U170: 14 | V170: 0 | W170: =W158+1 -> 71 | X170: 71 | Y170: 0 | Z170: =IF($U170<=Def_Yrs,Details!$B$6/12,0) -> 0 | AA170: 799108 | AB170: 5402750.1 | AC170: 4395094 | AD170: =IF($U170<=XL_PT+1,IF(AND(xl_polopt=3,Details!$U170<=Def_Yrs),0,IF(MOD($T170,12/$B$9)=0,$B$7,0)),0) -> 0 | AE170: 3823731.78 | AF170: 768172.8324 | AG170: 0 | AH170: 1 | AI170: 0 | AJ170: 4591904.612 | AK170: =MAX(IF(xl_polopt=1,0,VLOOKUP(U170,$E$4:$G$7,3,TRUE)*xl_premium-SUM(Details!$AD$4:AD170)),0) -> 25337.9 | AL170: 4591904.612 | AM170: =IF(OR(xl_polopt=1,xl_polopt=2),"NA",Details!AK170) -> 25337.9
T171: 168 | U171: 14 | V171: 0 | W171: =W159+1 -> 71 | X171: 71 | Y171: 0 | Z171: =IF($U171<=Def_Yrs,Details!$B$6/12,0) -> 0 | AA171: 799108 | AB171: 5402750.1 | AC171: 4794648 | AD171: =IF($U171<=XL_PT+1,IF(AND(xl_polopt=3,Details!$U171<=Def_Yrs),0,IF(MOD($T171,12/$B$9)=0,$B$7,0)),0) -> 399554 | AE171: 3823731.78 | AF171: 768172.8324 | AG171: 0 | AH171: 1 | AI171: 0 | AJ171: 4591904.612 | AK171: =MAX(IF(xl_polopt=1,0,VLOOKUP(U171,$E$4:$G$7,3,TRUE)*xl_premium-SUM(Details!$AD$4:AD171)),0) -> 0 | AL171: 4591904.612 | AM171: =IF(OR(xl_polopt=1,xl_polopt=2),"NA",Details!AK171) -> 0
T172: 169 | U172: 15 | V172: 0 | W172: =W160+1 -> 72 | X172: 72 | Y172: 0 | Z172: =IF($U172<=Def_Yrs,Details!$B$6/12,0) -> 0 | AA172: 799108 | AB172: 5402750.1 | AC172: 4794648 | AD172: =IF($U172<=XL_PT+1,IF(AND(xl_polopt=3,Details!$U172<=Def_Yrs),0,IF(MOD($T172,12/$B$9)=0,$B$7,0)),0) -> 0 | AE172: 3795763 | AF172: 797642.3784 | AG172: 0 | AH172: 1 | AI172: 0 | AJ172: 4593405.378 | AK172: =MAX(IF(xl_polopt=1,0,VLOOKUP(U172,$E$4:$G$7,3,TRUE)*xl_premium-SUM(Details!$AD$4:AD172)),0) -> 0 | AL172: 4593405.378 | AM172: =IF(OR(xl_polopt=1,xl_polopt=2),"NA",Details!AK172) -> 0
T173: 170 | U173: 15 | V173: 0 | W173: =W161+1 -> 72 | X173: 72 | Y173: 0 | Z173: =IF($U173<=Def_Yrs,Details!$B$6/12,0) -> 0 | AA173: 799108 | AB173: 5402750.1 | AC173: 4794648 | AD173: =IF($U173<=XL_PT+1,IF(AND(xl_polopt=3,Details!$U173<=Def_Yrs),0,IF(MOD($T173,12/$B$9)=0,$B$7,0)),0) -> 0 | AE173: 3795763 | AF173: 797642.3784 | AG173: 0 | AH173: 1 | AI173: 0 | AJ173: 4593405.378 | AK173: =MAX(IF(xl_polopt=1,0,VLOOKUP(U173,$E$4:$G$7,3,TRUE)*xl_premium-SUM(Details!$AD$4:AD173)),0) -> 0 | AL173: 4593405.378 | AM173: =IF(OR(xl_polopt=1,xl_polopt=2),"NA",Details!AK173) -> 0
T174: 171 | U174: 15 | V174: 0 | W174: =W162+1 -> 72 | X174: 72 | Y174: 0 | Z174: =IF($U174<=Def_Yrs,Details!$B$6/12,0) -> 0 | AA174: 799108 | AB174: 5402750.1 | AC174: 4794648 | AD174: =IF($U174<=XL_PT+1,IF(AND(xl_polopt=3,Details!$U174<=Def_Yrs),0,IF(MOD($T174,12/$B$9)=0,$B$7,0)),0) -> 0 | AE174: 3795763 | AF174: 797642.3784 | AG174: 0 | AH174: 1 | AI174: 0 | AJ174: 4593405.378 | AK174: =MAX(IF(xl_polopt=1,0,VLOOKUP(U174,$E$4:$G$7,3,TRUE)*xl_premium-SUM(Details!$AD$4:AD174)),0) -> 0 | AL174: 4593405.378 | AM174: =IF(OR(xl_polopt=1,xl_polopt=2),"NA",Details!AK174) -> 0
T175: 172 | U175: 15 | V175: 0 | W175: =W163+1 -> 72 | X175: 72 | Y175: 0 | Z175: =IF($U175<=Def_Yrs,Details!$B$6/12,0) -> 0 | AA175: 799108 | AB175: 5402750.1 | AC175: 4794648 | AD175: =IF($U175<=XL_PT+1,IF(AND(xl_polopt=3,Details!$U175<=Def_Yrs),0,IF(MOD($T175,12/$B$9)=0,$B$7,0)),0) -> 0 | AE175: 3795763 | AF175: 797642.3784 | AG175: 0 | AH175: 1 | AI175: 0 | AJ175: 4593405.378 | AK175: =MAX(IF(xl_polopt=1,0,VLOOKUP(U175,$E$4:$G$7,3,TRUE)*xl_premium-SUM(Details!$AD$4:AD175)),0) -> 0 | AL175: 4593405.378 | AM175: =IF(OR(xl_polopt=1,xl_polopt=2),"NA",Details!AK175) -> 0
T176: 173 | U176: 15 | V176: 0 | W176: =W164+1 -> 72 | X176: 72 | Y176: 0 | Z176: =IF($U176<=Def_Yrs,Details!$B$6/12,0) -> 0 | AA176: 799108 | AB176: 5402750.1 | AC176: 4794648 | AD176: =IF($U176<=XL_PT+1,IF(AND(xl_polopt=3,Details!$U176<=Def_Yrs),0,IF(MOD($T176,12/$B$9)=0,$B$7,0)),0) -> 0 | AE176: 3795763 | AF176: 797642.3784 | AG176: 0 | AH176: 1 | AI176: 0 | AJ176: 4593405.378 | AK176: =MAX(IF(xl_polopt=1,0,VLOOKUP(U176,$E$4:$G$7,3,TRUE)*xl_premium-SUM(Details!$AD$4:AD176)),0) -> 0 | AL176: 4593405.378 | AM176: =IF(OR(xl_polopt=1,xl_polopt=2),"NA",Details!AK176) -> 0
T177: 174 | U177: 15 | V177: 0 | W177: =W165+1 -> 72 | X177: 72 | Y177: 0 | Z177: =IF($U177<=Def_Yrs,Details!$B$6/12,0) -> 0 | AA177: 799108 | AB177: 5402750.1 | AC177: 4794648 | AD177: =IF($U177<=XL_PT+1,IF(AND(xl_polopt=3,Details!$U177<=Def_Yrs),0,IF(MOD($T177,12/$B$9)=0,$B$7,0)),0) -> 0 | AE177: 3795763 | AF177: 797642.3784 | AG177: 0 | AH177: 1 | AI177: 0 | AJ177: 4593405.378 | AK177: =MAX(IF(xl_polopt=1,0,VLOOKUP(U177,$E$4:$G$7,3,TRUE)*xl_premium-SUM(Details!$AD$4:AD177)),0) -> 0 | AL177: 4593405.378 | AM177: =IF(OR(xl_polopt=1,xl_polopt=2),"NA",Details!AK177) -> 0
T178: 175 | U178: 15 | V178: 0 | W178: =W166+1 -> 72 | X178: 72 | Y178: 0 | Z178: =IF($U178<=Def_Yrs,Details!$B$6/12,0) -> 0 | AA178: 799108 | AB178: 5402750.1 | AC178: 4794648 | AD178: =IF($U178<=XL_PT+1,IF(AND(xl_polopt=3,Details!$U178<=Def_Yrs),0,IF(MOD($T178,12/$B$9)=0,$B$7,0)),0) -> 0 | AE178: 3795763 | AF178: 797642.3784 | AG178: 0 | AH178: 1 | AI178: 0 | AJ178: 4593405.378 | AK178: =MAX(IF(xl_polopt=1,0,VLOOKUP(U178,$E$4:$G$7,3,TRUE)*xl_premium-SUM(Details!$AD$4:AD178)),0) -> 0 | AL178: 4593405.378 | AM178: =IF(OR(xl_polopt=1,xl_polopt=2),"NA",Details!AK178) -> 0
T179: 176 | U179: 15 | V179: 0 | W179: =W167+1 -> 72 | X179: 72 | Y179: 0 | Z179: =IF($U179<=Def_Yrs,Details!$B$6/12,0) -> 0 | AA179: 799108 | AB179: 5402750.1 | AC179: 4794648 | AD179: =IF($U179<=XL_PT+1,IF(AND(xl_polopt=3,Details!$U179<=Def_Yrs),0,IF(MOD($T179,12/$B$9)=0,$B$7,0)),0) -> 0 | AE179: 3795763 | AF179: 797642.3784 | AG179: 0 | AH179: 1 | AI179: 0 | AJ179: 4593405.378 | AK179: =MAX(IF(xl_polopt=1,0,VLOOKUP(U179,$E$4:$G$7,3,TRUE)*xl_premium-SUM(Details!$AD$4:AD179)),0) -> 0 | AL179: 4593405.378 | AM179: =IF(OR(xl_polopt=1,xl_polopt=2),"NA",Details!AK179) -> 0
T180: 177 | U180: 15 | V180: 0 | W180: =W168+1 -> 72 | X180: 72 | Y180: 0 | Z180: =IF($U180<=Def_Yrs,Details!$B$6/12,0) -> 0 | AA180: 799108 | AB180: 5402750.1 | AC180: 4794648 | AD180: =IF($U180<=XL_PT+1,IF(AND(xl_polopt=3,Details!$U180<=Def_Yrs),0,IF(MOD($T180,12/$B$9)=0,$B$7,0)),0) -> 0 | AE180: 3795763 | AF180: 797642.3784 | AG180: 0 | AH180: 1 | AI180: 0 | AJ180: 4593405.378 | AK180: =MAX(IF(xl_polopt=1,0,VLOOKUP(U180,$E$4:$G$7,3,TRUE)*xl_premium-SUM(Details!$AD$4:AD180)),0) -> 0 | AL180: 4593405.378 | AM180: =IF(OR(xl_polopt=1,xl_polopt=2),"NA",Details!AK180) -> 0
T181: 178 | U181: 15 | V181: 0 | W181: =W169+1 -> 72 | X181: 72 | Y181: 0 | Z181: =IF($U181<=Def_Yrs,Details!$B$6/12,0) -> 0 | AA181: 799108 | AB181: 5402750.1 | AC181: 4794648 | AD181: =IF($U181<=XL_PT+1,IF(AND(xl_polopt=3,Details!$U181<=Def_Yrs),0,IF(MOD($T181,12/$B$9)=0,$B$7,0)),0) -> 0 | AE181: 3795763 | AF181: 797642.3784 | AG181: 0 | AH181: 1 | AI181: 0 | AJ181: 4593405.378 | AK181: =MAX(IF(xl_polopt=1,0,VLOOKUP(U181,$E$4:$G$7,3,TRUE)*xl_premium-SUM(Details!$AD$4:AD181)),0) -> 0 | AL181: 4593405.378 | AM181: =IF(OR(xl_polopt=1,xl_polopt=2),"NA",Details!AK181) -> 0
T182: 179 | U182: 15 | V182: 0 | W182: =W170+1 -> 72 | X182: 72 | Y182: 0 | Z182: =IF($U182<=Def_Yrs,Details!$B$6/12,0) -> 0 | AA182: 799108 | AB182: 5402750.1 | AC182: 4794648 | AD182: =IF($U182<=XL_PT+1,IF(AND(xl_polopt=3,Details!$U182<=Def_Yrs),0,IF(MOD($T182,12/$B$9)=0,$B$7,0)),0) -> 0 | AE182: 3795763 | AF182: 797642.3784 | AG182: 0 | AH182: 1 | AI182: 0 | AJ182: 4593405.378 | AK182: =MAX(IF(xl_polopt=1,0,VLOOKUP(U182,$E$4:$G$7,3,TRUE)*xl_premium-SUM(Details!$AD$4:AD182)),0) -> 0 | AL182: 4593405.378 | AM182: =IF(OR(xl_polopt=1,xl_polopt=2),"NA",Details!AK182) -> 0
T183: 180 | U183: 15 | V183: 0 | W183: =W171+1 -> 72 | X183: 72 | Y183: 0 | Z183: =IF($U183<=Def_Yrs,Details!$B$6/12,0) -> 0 | AA183: 799108 | AB183: 5402750.1 | AC183: 5194202 | AD183: =IF($U183<=XL_PT+1,IF(AND(xl_polopt=3,Details!$U183<=Def_Yrs),0,IF(MOD($T183,12/$B$9)=0,$B$7,0)),0) -> 399554 | AE183: 3795763 | AF183: 797642.3784 | AG183: 0 | AH183: 1 | AI183: 0 | AJ183: 4593405.378 | AK183: =MAX(IF(xl_polopt=1,0,VLOOKUP(U183,$E$4:$G$7,3,TRUE)*xl_premium-SUM(Details!$AD$4:AD183)),0) -> 0 | AL183: 4593405.378 | AM183: =IF(OR(xl_polopt=1,xl_polopt=2),"NA",Details!AK183) -> 0
T184: 181 | U184: 16 | V184: 0 | W184: =W172+1 -> 73 | X184: 73 | Y184: 0 | Z184: =IF($U184<=Def_Yrs,Details!$B$6/12,0) -> 0 | AA184: 799108 | AB184: 5402750.1 | AC184: 5194202 | AD184: =IF($U184<=XL_PT+1,IF(AND(xl_polopt=3,Details!$U184<=Def_Yrs),0,IF(MOD($T184,12/$B$9)=0,$B$7,0)),0) -> 0 | AE184: 3767794.22 | AF184: 826620.7653 | AG184: 0 | AH184: 1 | AI184: 0 | AJ184: 4594414.985 | AK184: =MAX(IF(xl_polopt=1,0,VLOOKUP(U184,$E$4:$G$7,3,TRUE)*xl_premium-SUM(Details!$AD$4:AD184)),0) -> 0 | AL184: 4594414.985 | AM184: =IF(OR(xl_polopt=1,xl_polopt=2),"NA",Details!AK184) -> 0
T185: 182 | U185: 16 | V185: 0 | W185: =W173+1 -> 73 | X185: 73 | Y185: 0 | Z185: =IF($U185<=Def_Yrs,Details!$B$6/12,0) -> 0 | AA185: 799108 | AB185: 5402750.1 | AC185: 5194202 | AD185: =IF($U185<=XL_PT+1,IF(AND(xl_polopt=3,Details!$U185<=Def_Yrs),0,IF(MOD($T185,12/$B$9)=0,$B$7,0)),0) -> 0 | AE185: 3767794.22 | AF185: 826620.7653 | AG185: 0 | AH185: 1 | AI185: 0 | AJ185: 4594414.985 | AK185: =MAX(IF(xl_polopt=1,0,VLOOKUP(U185,$E$4:$G$7,3,TRUE)*xl_premium-SUM(Details!$AD$4:AD185)),0) -> 0 | AL185: 4594414.985 | AM185: =IF(OR(xl_polopt=1,xl_polopt=2),"NA",Details!AK185) -> 0
T186: 183 | U186: 16 | V186: 0 | W186: =W174+1 -> 73 | X186: 73 | Y186: 0 | Z186: =IF($U186<=Def_Yrs,Details!$B$6/12,0) -> 0 | AA186: 799108 | AB186: 5402750.1 | AC186: 5194202 | AD186: =IF($U186<=XL_PT+1,IF(AND(xl_polopt=3,Details!$U186<=Def_Yrs),0,IF(MOD($T186,12/$B$9)=0,$B$7,0)),0) -> 0 | AE186: 3767794.22 | AF186: 826620.7653 | AG186: 0 | AH186: 1 | AI186: 0 | AJ186: 4594414.985 | AK186: =MAX(IF(xl_polopt=1,0,VLOOKUP(U186,$E$4:$G$7,3,TRUE)*xl_premium-SUM(Details!$AD$4:AD186)),0) -> 0 | AL186: 4594414.985 | AM186: =IF(OR(xl_polopt=1,xl_polopt=2),"NA",Details!AK186) -> 0
T187: 184 | U187: 16 | V187: 0 | W187: =W175+1 -> 73 | X187: 73 | Y187: 0 | Z187: =IF($U187<=Def_Yrs,Details!$B$6/12,0) -> 0 | AA187: 799108 | AB187: 5402750.1 | AC187: 5194202 | AD187: =IF($U187<=XL_PT+1,IF(AND(xl_polopt=3,Details!$U187<=Def_Yrs),0,IF(MOD($T187,12/$B$9)=0,$B$7,0)),0) -> 0 | AE187: 3767794.22 | AF187: 826620.7653 | AG187: 0 | AH187: 1 | AI187: 0 | AJ187: 4594414.985 | AK187: =MAX(IF(xl_polopt=1,0,VLOOKUP(U187,$E$4:$G$7,3,TRUE)*xl_premium-SUM(Details!$AD$4:AD187)),0) -> 0 | AL187: 4594414.985 | AM187: =IF(OR(xl_polopt=1,xl_polopt=2),"NA",Details!AK187) -> 0
T188: 185 | U188: 16 | V188: 0 | W188: =W176+1 -> 73 | X188: 73 | Y188: 0 | Z188: =IF($U188<=Def_Yrs,Details!$B$6/12,0) -> 0 | AA188: 799108 | AB188: 5402750.1 | AC188: 5194202 | AD188: =IF($U188<=XL_PT+1,IF(AND(xl_polopt=3,Details!$U188<=Def_Yrs),0,IF(MOD($T188,12/$B$9)=0,$B$7,0)),0) -> 0 | AE188: 3767794.22 | AF188: 826620.7653 | AG188: 0 | AH188: 1 | AI188: 0 | AJ188: 4594414.985 | AK188: =MAX(IF(xl_polopt=1,0,VLOOKUP(U188,$E$4:$G$7,3,TRUE)*xl_premium-SUM(Details!$AD$4:AD188)),0) -> 0 | AL188: 4594414.985 | AM188: =IF(OR(xl_polopt=1,xl_polopt=2),"NA",Details!AK188) -> 0
T189: 186 | U189: 16 | V189: 0 | W189: =W177+1 -> 73 | X189: 73 | Y189: 0 | Z189: =IF($U189<=Def_Yrs,Details!$B$6/12,0) -> 0 | AA189: 799108 | AB189: 5402750.1 | AC189: 5194202 | AD189: =IF($U189<=XL_PT+1,IF(AND(xl_polopt=3,Details!$U189<=Def_Yrs),0,IF(MOD($T189,12/$B$9)=0,$B$7,0)),0) -> 0 | AE189: 3767794.22 | AF189: 826620.7653 | AG189: 0 | AH189: 1 | AI189: 0 | AJ189: 4594414.985 | AK189: =MAX(IF(xl_polopt=1,0,VLOOKUP(U189,$E$4:$G$7,3,TRUE)*xl_premium-SUM(Details!$AD$4:AD189)),0) -> 0 | AL189: 4594414.985 | AM189: =IF(OR(xl_polopt=1,xl_polopt=2),"NA",Details!AK189) -> 0
T190: 187 | U190: 16 | V190: 0 | W190: =W178+1 -> 73 | X190: 73 | Y190: 0 | Z190: =IF($U190<=Def_Yrs,Details!$B$6/12,0) -> 0 | AA190: 799108 | AB190: 5402750.1 | AC190: 5194202 | AD190: =IF($U190<=XL_PT+1,IF(AND(xl_polopt=3,Details!$U190<=Def_Yrs),0,IF(MOD($T190,12/$B$9)=0,$B$7,0)),0) -> 0 | AE190: 3767794.22 | AF190: 826620.7653 | AG190: 0 | AH190: 1 | AI190: 0 | AJ190: 4594414.985 | AK190: =MAX(IF(xl_polopt=1,0,VLOOKUP(U190,$E$4:$G$7,3,TRUE)*xl_premium-SUM(Details!$AD$4:AD190)),0) -> 0 | AL190: 4594414.985 | AM190: =IF(OR(xl_polopt=1,xl_polopt=2),"NA",Details!AK190) -> 0
T191: 188 | U191: 16 | V191: 0 | W191: =W179+1 -> 73 | X191: 73 | Y191: 0 | Z191: =IF($U191<=Def_Yrs,Details!$B$6/12,0) -> 0 | AA191: 799108 | AB191: 5402750.1 | AC191: 5194202 | AD191: =IF($U191<=XL_PT+1,IF(AND(xl_polopt=3,Details!$U191<=Def_Yrs),0,IF(MOD($T191,12/$B$9)=0,$B$7,0)),0) -> 0 | AE191: 3767794.22 | AF191: 826620.7653 | AG191: 0 | AH191: 1 | AI191: 0 | AJ191: 4594414.985 | AK191: =MAX(IF(xl_polopt=1,0,VLOOKUP(U191,$E$4:$G$7,3,TRUE)*xl_premium-SUM(Details!$AD$4:AD191)),0) -> 0 | AL191: 4594414.985 | AM191: =IF(OR(xl_polopt=1,xl_polopt=2),"NA",Details!AK191) -> 0
T192: 189 | U192: 16 | V192: 0 | W192: =W180+1 -> 73 | X192: 73 | Y192: 0 | Z192: =IF($U192<=Def_Yrs,Details!$B$6/12,0) -> 0 | AA192: 799108 | AB192: 5402750.1 | AC192: 5194202 | AD192: =IF($U192<=XL_PT+1,IF(AND(xl_polopt=3,Details!$U192<=Def_Yrs),0,IF(MOD($T192,12/$B$9)=0,$B$7,0)),0) -> 0 | AE192: 3767794.22 | AF192: 826620.7653 | AG192: 0 | AH192: 1 | AI192: 0 | AJ192: 4594414.985 | AK192: =MAX(IF(xl_polopt=1,0,VLOOKUP(U192,$E$4:$G$7,3,TRUE)*xl_premium-SUM(Details!$AD$4:AD192)),0) -> 0 | AL192: 4594414.985 | AM192: =IF(OR(xl_polopt=1,xl_polopt=2),"NA",Details!AK192) -> 0
T193: 190 | U193: 16 | V193: 0 | W193: =W181+1 -> 73 | X193: 73 | Y193: 0 | Z193: =IF($U193<=Def_Yrs,Details!$B$6/12,0) -> 0 | AA193: 799108 | AB193: 5402750.1 | AC193: 5194202 | AD193: =IF($U193<=XL_PT+1,IF(AND(xl_polopt=3,Details!$U193<=Def_Yrs),0,IF(MOD($T193,12/$B$9)=0,$B$7,0)),0) -> 0 | AE193: 3767794.22 | AF193: 826620.7653 | AG193: 0 | AH193: 1 | AI193: 0 | AJ193: 4594414.985 | AK193: =MAX(IF(xl_polopt=1,0,VLOOKUP(U193,$E$4:$G$7,3,TRUE)*xl_premium-SUM(Details!$AD$4:AD193)),0) -> 0 | AL193: 4594414.985 | AM193: =IF(OR(xl_polopt=1,xl_polopt=2),"NA",Details!AK193) -> 0
T194: 191 | U194: 16 | V194: 0 | W194: =W182+1 -> 73 | X194: 73 | Y194: 0 | Z194: =IF($U194<=Def_Yrs,Details!$B$6/12,0) -> 0 | AA194: 799108 | AB194: 5402750.1 | AC194: 5194202 | AD194: =IF($U194<=XL_PT+1,IF(AND(xl_polopt=3,Details!$U194<=Def_Yrs),0,IF(MOD($T194,12/$B$9)=0,$B$7,0)),0) -> 0 | AE194: 3767794.22 | AF194: 826620.7653 | AG194: 0 | AH194: 1 | AI194: 0 | AJ194: 4594414.985 | AK194: =MAX(IF(xl_polopt=1,0,VLOOKUP(U194,$E$4:$G$7,3,TRUE)*xl_premium-SUM(Details!$AD$4:AD194)),0) -> 0 | AL194: 4594414.985 | AM194: =IF(OR(xl_polopt=1,xl_polopt=2),"NA",Details!AK194) -> 0
T195: 192 | U195: 16 | V195: 0 | W195: =W183+1 -> 73 | X195: 73 | Y195: 0 | Z195: =IF($U195<=Def_Yrs,Details!$B$6/12,0) -> 0 | AA195: 799108 | AB195: 5402750.1 | AC195: 5593756 | AD195: =IF($U195<=XL_PT+1,IF(AND(xl_polopt=3,Details!$U195<=Def_Yrs),0,IF(MOD($T195,12/$B$9)=0,$B$7,0)),0) -> 399554 | AE195: 3767794.22 | AF195: 826620.7653 | AG195: 0 | AH195: 1 | AI195: 0 | AJ195: 4594414.985 | AK195: =MAX(IF(xl_polopt=1,0,VLOOKUP(U195,$E$4:$G$7,3,TRUE)*xl_premium-SUM(Details!$AD$4:AD195)),0) -> 0 | AL195: 4594414.985 | AM195: =IF(OR(xl_polopt=1,xl_polopt=2),"NA",Details!AK195) -> 0
T196: 193 | U196: 17 | V196: =IF(xl_polopt<>3,0,IF($U196<Def_Yrs,U196,0)) -> 0 | W196: =W184+1 -> 74 | X196: 74 | Y196: =IF(AND(T196=1,U196=1),xl_premium,0) -> 0 | Z196: =IF($U196<=Def_Yrs,Details!$B$6/12,0) -> 0 | AA196: 799108 | AB196: =IF($U196<=XL_PT+1,IF(xl_polopt=1,0,IF(xl_polopt=2,xl_premium,MAX(xl_premium*1.1,AA196+xl_premium-AC196))),0) -> 5402750.1 | AC196: 5593756 | AD196: =IF($U196<=XL_PT+1,IF(AND(xl_polopt=3,Details!$U196<=Def_Yrs),0,IF(MOD($T196,12/$B$9)=0,$B$7,0)),0) -> 0 | AE196: =IFERROR(IF(V196=0,VLOOKUP(IF(Life="SL",W196,MIN(W196,X196)),$K$4:$M$76,3,0)*$B$6,0),0) -> 3743820.98 | AF196: =IFERROR(IF(V196=0,(VLOOKUP(IF(Life="SL",W196,MIN(W196,X196)),$K$4:$N$76,4,0))/100*$B$4,0),0) -> 854125.6749 | AG196: =IF(Def_Yrs=0,0,IF($U196>Def_Yrs,0,Def_Yrs*12-$T196)) -> 0 | AH196: 1 | AI196: 0 | AJ196: =IF(xl_polopt=1,0,IF(AND(xl_polopt=3,AG196>0),AI196,SUM(AE196:AF196,AI196))) -> 4597946.655 | AK196: =MAX(IF(xl_polopt=1,0,VLOOKUP(U196,$E$4:$G$7,3,TRUE)*xl_premium-SUM(Details!$AD$4:AD196)),0) -> 0 | AL196: 4597946.655 | AM196: =IF(OR(xl_polopt=1,xl_polopt=2),"NA",Details!AK196) -> 0
T197: 194 | U197: 17 | V197: 0 | W197: =W185+1 -> 74 | X197: 74 | Y197: 0 | Z197: =IF($U197<=Def_Yrs,Details!$B$6/12,0) -> 0 | AA197: =(Z197+AA196)*($U196<=XL_PT+1) -> 799108 | AB197: 5402750.1 | AC197: =(AC196+AD197)*($U196<=XL_PT+1) -> 5593756 | AD197: =IF($U197<=XL_PT+1,IF(AND(xl_polopt=3,Details!$U197<=Def_Yrs),0,IF(MOD($T197,12/$B$9)=0,$B$7,0)),0) -> 0 | AE197: 3743820.98 | AF197: 854125.6749 | AG197: 0 | AH197: =+VLOOKUP(AG197,$AP$4:$AQ$124,2) -> 1 | AI197: =(AG197>0)*AH197*$AI$2 -> 0 | AJ197: 4597946.655 | AK197: =MAX(IF(xl_polopt=1,0,VLOOKUP(U197,$E$4:$G$7,3,TRUE)*xl_premium-SUM(Details!$AD$4:AD197)),0) -> 0 | AL197: =MAX(AJ197,AK197) -> 4597946.655 | AM197: =IF(OR(xl_polopt=1,xl_polopt=2),"NA",Details!AK197) -> 0
T198: 195 | U198: 17 | V198: 0 | W198: =W186+1 -> 74 | X198: 74 | Y198: 0 | Z198: =IF($U198<=Def_Yrs,Details!$B$6/12,0) -> 0 | AA198: 799108 | AB198: 5402750.1 | AC198: 5593756 | AD198: =IF($U198<=XL_PT+1,IF(AND(xl_polopt=3,Details!$U198<=Def_Yrs),0,IF(MOD($T198,12/$B$9)=0,$B$7,0)),0) -> 0 | AE198: 3743820.98 | AF198: 854125.6749 | AG198: 0 | AH198: 1 | AI198: 0 | AJ198: 4597946.655 | AK198: =MAX(IF(xl_polopt=1,0,VLOOKUP(U198,$E$4:$G$7,3,TRUE)*xl_premium-SUM(Details!$AD$4:AD198)),0) -> 0 | AL198: 4597946.655 | AM198: =IF(OR(xl_polopt=1,xl_polopt=2),"NA",Details!AK198) -> 0
T199: 196 | U199: 17 | V199: 0 | W199: =W187+1 -> 74 | X199: 74 | Y199: 0 | Z199: =IF($U199<=Def_Yrs,Details!$B$6/12,0) -> 0 | AA199: 799108 | AB199: 5402750.1 | AC199: 5593756 | AD199: =IF($U199<=XL_PT+1,IF(AND(xl_polopt=3,Details!$U199<=Def_Yrs),0,IF(MOD($T199,12/$B$9)=0,$B$7,0)),0) -> 0 | AE199: 3743820.98 | AF199: 854125.6749 | AG199: 0 | AH199: 1 | AI199: 0 | AJ199: 4597946.655 | AK199: =MAX(IF(xl_polopt=1,0,VLOOKUP(U199,$E$4:$G$7,3,TRUE)*xl_premium-SUM(Details!$AD$4:AD199)),0) -> 0 | AL199: 4597946.655 | AM199: =IF(OR(xl_polopt=1,xl_polopt=2),"NA",Details!AK199) -> 0
T200: 197 | U200: 17 | V200: 0 | W200: =W188+1 -> 74 | X200: 74 | Y200: 0 | Z200: =IF($U200<=Def_Yrs,Details!$B$6/12,0) -> 0 | AA200: 799108 | AB200: 5402750.1 | AC200: 5593756 | AD200: =IF($U200<=XL_PT+1,IF(AND(xl_polopt=3,Details!$U200<=Def_Yrs),0,IF(MOD($T200,12/$B$9)=0,$B$7,0)),0) -> 0 | AE200: 3743820.98 | AF200: 854125.6749 | AG200: 0 | AH200: 1 | AI200: 0 | AJ200: 4597946.655 | AK200: =MAX(IF(xl_polopt=1,0,VLOOKUP(U200,$E$4:$G$7,3,TRUE)*xl_premium-SUM(Details!$AD$4:AD200)),0) -> 0 | AL200: 4597946.655 | AM200: =IF(OR(xl_polopt=1,xl_polopt=2),"NA",Details!AK200) -> 0
... 965 more rows

Sheet Annuity_Rates_Single Life (hidden)
B1: =B2&B3 -> NROPRATEA | C1: =B2&C3 -> NROPRATEB | D1: =B2&D3 -> NROPRATEC | E1: =B2&E3 -> NROPRATED | F1: =B2&F3 -> NROPRATEE | G1: =G2&G3 -> ROPRATEA | H1: =G2&H3 -> ROPRATEB | I1: =G2&I3 -> ROPRATEC | J1: =G2&J3 -> ROPRATED | K1: =G2&K3 -> ROPRATEE | L1: =L2&L3 -> Def1RATEA | M1: =L2&M3 -> Def1RATEB | N1: =L2&N3 -> Def1RATEC | O1: =L2&O3 -> Def1RATED | P1: =L2&P3 -> Def1RATEE | Q1: =Q2&Q3 -> Def2RATEA | R1: =Q2&R3 -> Def2RATEB | S1: =Q2&S3 -> Def2RATEC | T1: =Q2&T3 -> Def2RATED | U1: =Q2&U3 -> Def2RATEE | V1: =V2&V3 -> Def3RATEA | W1: =V2&W3 -> Def3RATEB | X1: =V2&X3 -> Def3RATEC | Y1: =V2&Y3 -> Def3RATED | Z1: =V2&Z3 -> Def3RATEE | AA1: =AA2&AA3 -> Def4RATEA | AB1: =AA2&AB3 -> Def4RATEB | AC1: =AA2&AC3 -> Def4RATEC | AD1: =AA2&AD3 -> Def4RATED | AE1: =AA2&AE3 -> Def4RATEE | AF1: =AF2&AF3 -> Def5RATEA | AG1: =AF2&AG3 -> Def5RATEB | AH1: =AF2&AH3 -> Def5RATEC | AI1: =AF2&AI3 -> Def5RATED | AJ1: =AF2&AJ3 -> Def5RATEE | AK1: =AK2&AK3 -> Def6RATEA | AL1: =AK2&AL3 -> Def6RATEB | AM1: =AK2&AM3 -> Def6RATEC | AN1: =AK2&AN3 -> Def6RATED | AO1: =AK2&AO3 -> Def6RATEE | AP1: =AP2&AP3 -> Def7RATEA | AQ1: =AP2&AQ3 -> Def7RATEB | AR1: =AP2&AR3 -> Def7RATEC | AS1: =AP2&AS3 -> Def7RATED | AT1: =AP2&AT3 -> Def7RATEE | AU1: =AU2&AU3 -> Def8RATEA | AV1: =AU2&AV3 -> Def8RATEB | AW1: =AU2&AW3 -> Def8RATEC | AX1: =AU2&AX3 -> Def8RATED | AY1: =AU2&AY3 -> Def8RATEE | AZ1: =AZ2&AZ3 -> Def9RATEA | BA1: =AZ2&BA3 -> Def9RATEB | BB1: =AZ2&BB3 -> Def9RATEC | BC1: =AZ2&BC3 -> Def9RATED | BD1: =AZ2&BD3 -> Def9RATEE | BE1: =BE2&BE3 -> Def10RATEA | BF1: =BE2&BF3 -> Def10RATEB | BG1: =BE2&BG3 -> Def10RATEC | BH1: =BE2&BH3 -> Def10RATED | BI1: =BE2&BI3 -> Def10RATEE
B2: NROP | G2: ROP | L2: Def1 | Q2: Def2 | V2: Def3 | AA2: Def4 | AF2: Def5 | AK2: Def6 | AP2: Def7 | AU2: Def8 | AZ2: Def9 | BE2: Def10 | BI2: Def10
A3: Entry Age | B3: RATEA | C3: RATEB | D3: RATEC | E3: RATED | F3: RATEE | G3: RATEA | H3: RATEB | I3: RATEC | J3: RATED | K3: RATEE | L3: RATEA | M3: RATEB | N3: RATEC | O3: RATED | P3: RATEE | Q3: RATEA | R3: RATEB | S3: RATEC | T3: RATED | U3: RATEE | V3: RATEA | W3: RATEB | X3: RATEC | Y3: RATED | Z3: RATEE | AA3: RATEA | AB3: RATEB | AC3: RATEC | AD3: RATED | AE3: RATEE | AF3: RATEA | AG3: RATEB | AH3: RATEC | AI3: RATED | AJ3: RATEE | AK3: RATEA | AL3: RATEB | AM3: RATEC | AN3: RATED | AO3: RATEE | AP3: RATEA | AQ3: RATEB | AR3: RATEC | AS3: RATED | AT3: RATEE | AU3: RATEA | AV3: RATEB | AW3: RATEC | AX3: RATED | AY3: RATEE | AZ3: RATEA | BA3: RATEB | BB3: RATEC | BC3: RATED | BD3: RATEE | BE3: RATEA | BF3: RATEB | BG3: RATEC | BH3: RATED | BI3: RATEE
A4: 0 | B4: 0.0533 | C4: 0.0543 | D4: 0.0554 | E4: 0.0564 | F4: 0.0574
A5: 1 | B5: 0.0533 | C5: 0.0543 | D5: 0.0554 | E5: 0.0564 | F5: 0.0574
A6: 2 | B6: 0.0533 | C6: 0.0543 | D6: 0.0554 | E6: 0.0564 | F6: 0.0574
A7: 3 | B7: 0.0534 | C7: 0.0544 | D7: 0.0554 | E7: 0.0564 | F7: 0.0574
A8: 4 | B8: 0.0535 | C8: 0.0545 | D8: 0.0555 | E8: 0.0565 | F8: 0.0575
A9: 5 | B9: 0.0536 | C9: 0.0546 | D9: 0.0556 | E9: 0.0565 | F9: 0.0575
A10: 6 | B10: 0.0537 | C10: 0.0547 | D10: 0.0557 | E10: 0.0566 | F10: 0.0576
A11: 7 | B11: 0.0538 | C11: 0.0548 | D11: 0.0557 | E11: 0.0567 | F11: 0.0576
A12: 8 | B12: 0.054 | C12: 0.055 | D12: 0.056 | E12: 0.0569 | F12: 0.0579
A13: 9 | B13: 0.0541 | C13: 0.0551 | D13: 0.056 | E13: 0.057 | F13: 0.0579
A14: 10 | B14: 0.0543 | C14: 0.0553 | D14: 0.0562 | E14: 0.0572 | F14: 0.0581
A15: 11 | B15: 0.0545 | C15: 0.0555 | D15: 0.0564 | E15: 0.0574 | F15: 0.0583
A16: 12 | B16: 0.0546 | C16: 0.0555 | D16: 0.0565 | E16: 0.0574 | F16: 0.0583
A17: 13 | B17: 0.0548 | C17: 0.0557 | D17: 0.0567 | E17: 0.0576 | F17: 0.0585
A18: 14 | B18: 0.055 | C18: 0.0559 | D18: 0.0569 | E18: 0.0578 | F18: 0.0587
A19: 15 | B19: 0.0552 | C19: 0.0561 | D19: 0.057 | E19: 0.0579 | F19: 0.0588
A20: 16 | B20: 0.0554 | C20: 0.0563 | D20: 0.0572 | E20: 0.0581 | F20: 0.059
A21: 17 | B21: 0.0556 | C21: 0.0565 | D21: 0.0574 | E21: 0.0583 | F21: 0.0592
A22: 18 | B22: 0.0558 | C22: 0.0567 | D22: 0.0576 | E22: 0.0584 | F22: 0.0593
A23: 19 | B23: 0.056 | C23: 0.0569 | D23: 0.0578 | E23: 0.0586 | F23: 0.0595
A24: 20 | B24: 0.0562 | C24: 0.0571 | D24: 0.058 | E24: 0.0588 | F24: 0.0597
A25: 21 | B25: 0.0564 | C25: 0.0573 | D25: 0.0581 | E25: 0.059 | F25: 0.0598
A26: 22 | B26: 0.0566 | C26: 0.0575 | D26: 0.0583 | E26: 0.0592 | F26: 0.06
A27: 23 | B27: 0.0568 | C27: 0.0577 | D27: 0.0585 | E27: 0.0594 | F27: 0.0602
A28: 24 | B28: 0.0571 | C28: 0.0579 | D28: 0.0588 | E28: 0.0596 | F28: 0.0604
A29: 25 | B29: 0.0573 | C29: 0.0581 | D29: 0.059 | E29: 0.0598 | F29: 0.0606
A30: 26 | B30: 0.0576 | C30: 0.0584 | D30: 0.0593 | E30: 0.0601 | F30: 0.0609
A31: 27 | B31: 0.0579 | C31: 0.0587 | D31: 0.0595 | E31: 0.0603 | F31: 0.0611
A32: 28 | B32: 0.0582 | C32: 0.059 | D32: 0.0598 | E32: 0.0606 | F32: 0.0614
A33: 29 | B33: 0.0585 | C33: 0.0593 | D33: 0.0601 | E33: 0.0609 | F33: 0.0617
A34: 30 | B34: 0.0618 | C34: 0.0622 | D34: 0.0626 | E34: 0.0627 | F34: 0.0628
A35: 31 | B35: 0.0621 | C35: 0.0625 | D35: 0.0628 | E35: 0.0629 | F35: 0.063
A36: 32 | B36: 0.0624 | C36: 0.0627 | D36: 0.063 | E36: 0.0631 | F36: 0.0632
A37: 33 | B37: 0.0625 | C37: 0.0629 | D37: 0.0633 | E37: 0.0634 | F37: 0.0635
A38: 34 | B38: 0.0628 | C38: 0.0632 | D38: 0.0635 | E38: 0.0636 | F38: 0.0637
A39: 35 | B39: 0.0631 | C39: 0.0635 | D39: 0.0638 | E39: 0.0639 | F39: 0.064
A40: 36 | B40: 0.0634 | C40: 0.0638 | D40: 0.0641 | E40: 0.0642 | F40: 0.0643
A41: 37 | B41: 0.0637 | C41: 0.064 | D41: 0.0643 | E41: 0.0644 | F41: 0.0645
A42: 38 | B42: 0.0641 | C42: 0.0644 | D42: 0.0647 | E42: 0.0648 | F42: 0.0649
A43: 39 | B43: 0.0643 | C43: 0.0647 | D43: 0.065 | E43: 0.0651 | F43: 0.0652
A44: 40 | B44: 0.0646 | C44: 0.065 | D44: 0.0653 | E44: 0.0654 | F44: 0.0655
A45: 41 | B45: 0.0651 | C45: 0.0655 | D45: 0.0658 | E45: 0.0659 | F45: 0.066
A46: 42 | B46: 0.0656 | C46: 0.0659 | D46: 0.0662 | E46: 0.0663 | F46: 0.0664
A47: 43 | B47: 0.066 | C47: 0.0663 | D47: 0.0666 | E47: 0.0667 | F47: 0.0668
A48: 44 | B48: 0.0665 | C48: 0.0668 | D48: 0.067 | E48: 0.0671 | F48: 0.0672
A49: 45 | B49: 0.067 | C49: 0.0673 | D49: 0.0675 | E49: 0.0676 | F49: 0.0677 | G49: 0.0648 | H49: 0.0682 | I49: 0.0692 | J49: 0.0694 | K49: 0.0695 | L49: 0.0691 | M49: 0.0703 | N49: 0.0713 | O49: 0.0714 | P49: 0.0715 | Q49: 0.0747 | R49: 0.0762 | S49: 0.0773 | T49: 0.0774 | U49: 0.0775 | V49: 0.0807 | W49: 0.0822 | X49: 0.0834 | Y49: 0.0835 | Z49: 0.0836 | AA49: 0.0859 | AB49: 0.0881 | AC49: 0.0894 | AD49: 0.0895 | AE49: 0.0896 | AF49: 0.0904 | AG49: 0.0941 | AH49: 0.0955 | AI49: 0.0956 | AJ49: 0.0957 | AK49: 0.0959 | AL49: 0.0996 | AM49: 0.1011 | AN49: 0.1012 | AO49: 0.1013 | AP49: 0.1027 | AQ49: 0.1055 | AR49: 0.1071 | AS49: 0.1072 | AT49: 0.1073 | AU49: 0.1092 | AV49: 0.1116 | AW49: 0.1134 | AX49: 0.1135 | AY49: 0.1136 | AZ49: 0.1153 | BA49: 0.1203 | BB49: 0.1217 | BC49: 0.1219 | BD49: 0.122 | BE49: 0.1223 | BF49: 0.1277 | BG49: 0.1283 | BH49: 0.1295 | BI49: 0.1295
A50: 46 | B50: 0.0674 | C50: 0.0677 | D50: 0.068 | E50: 0.0681 | F50: 0.0682 | G50: 0.0649 | H50: 0.0683 | I50: 0.0694 | J50: 0.0695 | K50: 0.0696 | L50: 0.0692 | M50: 0.0704 | N50: 0.0714 | O50: 0.0715 | P50: 0.0716 | Q50: 0.0749 | R50: 0.0763 | S50: 0.0774 | T50: 0.0775 | U50: 0.0776 | V50: 0.0809 | W50: 0.0824 | X50: 0.0835 | Y50: 0.0836 | Z50: 0.0837 | AA50: 0.0863 | AB50: 0.0884 | AC50: 0.0897 | AD50: 0.0898 | AE50: 0.0899 | AF50: 0.0908 | AG50: 0.0945 | AH50: 0.0957 | AI50: 0.0958 | AJ50: 0.0959 | AK50: 0.0963 | AL50: 0.1 | AM50: 0.1015 | AN50: 0.1016 | AO50: 0.1017 | AP50: 0.1033 | AQ50: 0.1059 | AR50: 0.1076 | AS50: 0.1077 | AT50: 0.1078 | AU50: 0.1098 | AV50: 0.1121 | AW50: 0.1138 | AX50: 0.1139 | AY50: 0.114 | AZ50: 0.1159 | BA50: 0.121 | BB50: 0.1222 | BC50: 0.1225 | BD50: 0.1226 | BE50: 0.123 | BF50: 0.1283 | BG50: 0.1301 | BH50: 0.1302 | BI50: 0.1302
A51: 47 | B51: 0.0679 | C51: 0.0683 | D51: 0.0686 | E51: 0.0687 | F51: 0.0688 | G51: 0.0652 | H51: 0.0685 | I51: 0.0696 | J51: 0.0697 | K51: 0.0698 | L51: 0.0693 | M51: 0.0705 | N51: 0.0715 | O51: 0.0716 | P51: 0.0717 | Q51: 0.075 | R51: 0.0764 | S51: 0.0775 | T51: 0.0776 | U51: 0.0777 | V51: 0.081 | W51: 0.0825 | X51: 0.0837 | Y51: 0.0838 | Z51: 0.0839 | AA51: 0.0866 | AB51: 0.0886 | AC51: 0.0899 | AD51: 0.09 | AE51: 0.0901 | AF51: 0.0913 | AG51: 0.0948 | AH51: 0.0962 | AI51: 0.0963 | AJ51: 0.0964 | AK51: 0.0968 | AL51: 0.1004 | AM51: 0.102 | AN51: 0.1021 | AO51: 0.1022 | AP51: 0.1039 | AQ51: 0.1064 | AR51: 0.108 | AS51: 0.1081 | AT51: 0.1082 | AU51: 0.1103 | AV51: 0.1125 | AW51: 0.1143 | AX51: 0.1144 | AY51: 0.1145 | AZ51: 0.1167 | BA51: 0.1217 | BB51: 0.123 | BC51: 0.1233 | BD51: 0.1234 | BE51: 0.124 | BF51: 0.1294 | BG51: 0.1308 | BH51: 0.1309 | BI51: 0.1309
A52: 48 | B52: 0.0685 | C52: 0.0688 | D52: 0.0691 | E52: 0.0692 | F52: 0.0693 | G52: 0.0653 | H52: 0.0687 | I52: 0.0694 | J52: 0.0695 | K52: 0.0696 | L52: 0.0694 | M52: 0.0706 | N52: 0.0715 | O52: 0.0716 | P52: 0.0717 | Q52: 0.0751 | R52: 0.0765 | S52: 0.0777 | T52: 0.0778 | U52: 0.0779 | V52: 0.0812 | W52: 0.0827 | X52: 0.0839 | Y52: 0.084 | Z52: 0.0841 | AA52: 0.0871 | AB52: 0.0888 | AC52: 0.0901 | AD52: 0.0902 | AE52: 0.0903 | AF52: 0.0916 | AG52: 0.0952 | AH52: 0.0965 | AI52: 0.0966 | AJ52: 0.0967 | AK52: 0.0972 | AL52: 0.1009 | AM52: 0.1024 | AN52: 0.1025 | AO52: 0.1026 | AP52: 0.1045 | AQ52: 0.1068 | AR52: 0.1085 | AS52: 0.1086 | AT52: 0.1087 | AU52: 0.1107 | AV52: 0.113 | AW52: 0.1148 | AX52: 0.1149 | AY52: 0.115 | AZ52: 0.1174 | BA52: 0.1224 | BB52: 0.1237 | BC52: 0.124 | BD52: 0.1241 | BE52: 0.1249 | BF52: 0.13 | BG52: 0.1314 | BH52: 0.1315 | BI52: 0.1316
A53: 49 | B53: 0.069 | C53: 0.0693 | D53: 0.0696 | E53: 0.0697 | F53: 0.0698 | G53: 0.0655 | H53: 0.0689 | I53: 0.0696 | J53: 0.0697 | K53: 0.0698 | L53: 0.0694 | M53: 0.0707 | N53: 0.0716 | O53: 0.0717 | P53: 0.0718 | Q53: 0.0752 | R53: 0.0766 | S53: 0.0778 | T53: 0.0779 | U53: 0.078 | V53: 0.0814 | W53: 0.0829 | X53: 0.0841 | Y53: 0.0842 | Z53: 0.0843 | AA53: 0.0873 | AB53: 0.0891 | AC53: 0.0904 | AD53: 0.0905 | AE53: 0.0906 | AF53: 0.0929 | AG53: 0.0956 | AH53: 0.097 | AI53: 0.0971 | AJ53: 0.0972 | AK53: 0.0985 | AL53: 0.1013 | AM53: 0.1028 | AN53: 0.1029 | AO53: 0.103 | AP53: 0.1052 | AQ53: 0.1073 | AR53: 0.1089 | AS53: 0.109 | AT53: 0.1091 | AU53: 0.1112 | AV53: 0.1134 | AW53: 0.1152 | AX53: 0.1153 | AY53: 0.1154 | AZ53: 0.1183 | BA53: 0.1231 | BB53: 0.1244 | BC53: 0.1247 | BD53: 0.1248 | BE53: 0.1257 | BF53: 0.1307 | BG53: 0.1321 | BH53: 0.1322 | BI53: 0.1322
A54: 50 | B54: 0.0695 | C54: 0.0698 | D54: 0.0701 | E54: 0.0702 | F54: 0.0703 | G54: 0.0657 | H54: 0.069 | I54: 0.0697 | J54: 0.0698 | K54: 0.0699 | L54: 0.0695 | M54: 0.0707 | N54: 0.0717 | O54: 0.0718 | P54: 0.0719 | Q54: 0.0753 | R54: 0.0768 | S54: 0.0779 | T54: 0.078 | U54: 0.0781 | V54: 0.0816 | W54: 0.0831 | X54: 0.0842 | Y54: 0.0843 | Z54: 0.0844 | AA54: 0.0877 | AB54: 0.0893 | AC54: 0.0906 | AD54: 0.0907 | AE54: 0.0908 | AF54: 0.0933 | AG54: 0.096 | AH54: 0.0974 | AI54: 0.0975 | AJ54: 0.0976 | AK54: 0.099 | AL54: 0.1017 | AM54: 0.1032 | AN54: 0.1033 | AO54: 0.1034 | AP54: 0.1056 | AQ54: 0.1077 | AR54: 0.1093 | AS54: 0.1094 | AT54: 0.1095 | AU54: 0.1117 | AV54: 0.1139 | AW54: 0.1157 | AX54: 0.1158 | AY54: 0.1159 | AZ54: 0.119 | BA54: 0.1238 | BB54: 0.1251 | BC54: 0.1254 | BD54: 0.1255 | BE54: 0.1266 | BF54: 0.1313 | BG54: 0.1328 | BH54: 0.1329 | BI54: 0.1331
A55: 51 | B55: 0.0703 | C55: 0.0706 | D55: 0.0708 | E55: 0.0709 | F55: 0.071 | G55: 0.0658 | H55: 0.0691 | I55: 0.0698 | J55: 0.0699 | K55: 0.07 | L55: 0.0696 | M55: 0.0708 | N55: 0.0718 | O55: 0.0719 | P55: 0.072 | Q55: 0.0755 | R55: 0.0769 | S55: 0.078 | T55: 0.0781 | U55: 0.0782 | V55: 0.0817 | W55: 0.0832 | X55: 0.0844 | Y55: 0.0845 | Z55: 0.0846 | AA55: 0.0879 | AB55: 0.0895 | AC55: 0.0908 | AD55: 0.0909 | AE55: 0.091 | AF55: 0.0939 | AG55: 0.0963 | AH55: 0.0977 | AI55: 0.0978 | AJ55: 0.0979 | AK55: 0.0997 | AL55: 0.1021 | AM55: 0.1037 | AN55: 0.1038 | AO55: 0.1039 | AP55: 0.1061 | AQ55: 0.1081 | AR55: 0.1098 | AS55: 0.1099 | AT55: 0.11 | AU55: 0.1121 | AV55: 0.1144 | AW55: 0.1162 | AX55: 0.1163 | AY55: 0.1164 | AZ55: 0.1199 | BA55: 0.1245 | BB55: 0.1258 | BC55: 0.1261 | BD55: 0.1262 | BE55: 0.1284 | BF55: 0.132 | BG55: 0.1342 | BH55: 0.1343 | BI55: 0.1343
A56: 52 | B56: 0.0709 | C56: 0.0713 | D56: 0.0716 | E56: 0.0717 | F56: 0.0718 | G56: 0.0661 | H56: 0.0692 | I56: 0.0702 | J56: 0.0703 | K56: 0.0704 | L56: 0.0697 | M56: 0.0709 | N56: 0.0719 | O56: 0.072 | P56: 0.0721 | Q56: 0.0756 | R56: 0.077 | S56: 0.0781 | T56: 0.0782 | U56: 0.0783 | V56: 0.0819 | W56: 0.0834 | X56: 0.0846 | Y56: 0.0847 | Z56: 0.0848 | AA56: 0.0881 | AB56: 0.0897 | AC56: 0.091 | AD56: 0.0911 | AE56: 0.0912 | AF56: 0.0942 | AG56: 0.0967 | AH56: 0.0981 | AI56: 0.0982 | AJ56: 0.0983 | AK56: 0.1 | AL56: 0.1025 | AM56: 0.1041 | AN56: 0.1042 | AO56: 0.1043 | AP56: 0.1065 | AQ56: 0.1086 | AR56: 0.1102 | AS56: 0.1103 | AT56: 0.1104 | AU56: 0.1126 | AV56: 0.1148 | AW56: 0.1166 | AX56: 0.1167 | AY56: 0.1168 | AZ56: 0.1209 | BA56: 0.1252 | BB56: 0.1265 | BC56: 0.1268 | BD56: 0.1269 | BE56: 0.1295 | BF56: 0.1326 | BG56: 0.1349 | BH56: 0.135 | BI56: 0.1351
A57: 53 | B57: 0.0717 | C57: 0.072 | D57: 0.0723 | E57: 0.0724 | F57: 0.0725 | G57: 0.0663 | H57: 0.0694 | I57: 0.0702 | J57: 0.0703 | K57: 0.0704 | L57: 0.0698 | M57: 0.071 | N57: 0.072 | O57: 0.0721 | P57: 0.0722 | Q57: 0.0757 | R57: 0.0771 | S57: 0.0783 | T57: 0.0784 | U57: 0.0785 | V57: 0.0821 | W57: 0.0836 | X57: 0.0848 | Y57: 0.0849 | Z57: 0.085 | AA57: 0.0883 | AB57: 0.09 | AC57: 0.0913 | AD57: 0.0914 | AE57: 0.0915 | AF57: 0.0947 | AG57: 0.0971 | AH57: 0.0985 | AI57: 0.0986 | AJ57: 0.0987 | AK57: 0.1008 | AL57: 0.103 | AM57: 0.1045 | AN57: 0.1046 | AO57: 0.1047 | AP57: 0.107 | AQ57: 0.109 | AR57: 0.1107 | AS57: 0.1108 | AT57: 0.1109 | AU57: 0.1131 | AV57: 0.1153 | AW57: 0.1171 | AX57: 0.1172 | AY57: 0.1173 | AZ57: 0.1216 | BA57: 0.1259 | BB57: 0.1272 | BC57: 0.1275 | BD57: 0.1276 | BE57: 0.1304 | BF57: 0.1333 | BG57: 0.1355 | BH57: 0.1356 | BI57: 0.1357
A58: 54 | B58: 0.0724 | C58: 0.0728 | D58: 0.0731 | E58: 0.0732 | F58: 0.0733 | G58: 0.0665 | H58: 0.0696 | I58: 0.0706 | J58: 0.0707 | K58: 0.0708 | L58: 0.0699 | M58: 0.0711 | N58: 0.072 | O58: 0.0721 | P58: 0.0722 | Q58: 0.0758 | R58: 0.0772 | S58: 0.0784 | T58: 0.0785 | U58: 0.0786 | V58: 0.0823 | W58: 0.0837 | X58: 0.0849 | Y58: 0.085 | Z58: 0.0851 | AA58: 0.0886 | AB58: 0.0902 | AC58: 0.0915 | AD58: 0.0916 | AE58: 0.0917 | AF58: 0.0952 | AG58: 0.0975 | AH58: 0.0989 | AI58: 0.099 | AJ58: 0.0991 | AK58: 0.1013 | AL58: 0.1034 | AM58: 0.1049 | AN58: 0.105 | AO58: 0.1051 | AP58: 0.1074 | AQ58: 0.1095 | AR58: 0.1111 | AS58: 0.1112 | AT58: 0.1113 | AU58: 0.1135 | AV58: 0.1158 | AW58: 0.1175 | AX58: 0.1176 | AY58: 0.1177 | AZ58: 0.1225 | BA58: 0.1272 | BB58: 0.1279 | BC58: 0.1282 | BD58: 0.1283 | BE58: 0.1312 | BF58: 0.134 | BG58: 0.1362 | BH58: 0.1363 | BI58: 0.1364
A59: 55 | B59: 0.0732 | C59: 0.0735 | D59: 0.0737 | E59: 0.0738 | F59: 0.0739 | G59: 0.0667 | H59: 0.0696 | I59: 0.0707 | J59: 0.0708 | K59: 0.0709 | L59: 0.0699 | M59: 0.0712 | N59: 0.0721 | O59: 0.0722 | P59: 0.0723 | Q59: 0.0759 | R59: 0.0773 | S59: 0.0784 | T59: 0.0785 | U59: 0.0786 | V59: 0.0824 | W59: 0.0839 | X59: 0.085 | Y59: 0.0851 | Z59: 0.0852 | AA59: 0.0888 | AB59: 0.0904 | AC59: 0.0917 | AD59: 0.0918 | AE59: 0.0919 | AF59: 0.0957 | AG59: 0.0978 | AH59: 0.0992 | AI59: 0.0993 | AJ59: 0.0994 | AK59: 0.1019 | AL59: 0.1037 | AM59: 0.1052 | AN59: 0.1053 | AO59: 0.1054 | AP59: 0.1078 | AQ59: 0.1099 | AR59: 0.1115 | AS59: 0.1116 | AT59: 0.1117 | AU59: 0.114 | AV59: 0.1162 | AW59: 0.118 | AX59: 0.1181 | AY59: 0.1182 | AZ59: 0.1234 | BA59: 0.1279 | BB59: 0.1279 | BC59: 0.1294 | BD59: 0.1295 | BE59: 0.1318 | BF59: 0.1346 | BG59: 0.1369 | BH59: 0.137 | BI59: 0.1371
A60: 56 | B60: 0.0741 | C60: 0.0744 | D60: 0.0746 | E60: 0.0747 | F60: 0.0748 | G60: 0.0668 | H60: 0.0697 | I60: 0.0708 | J60: 0.0709 | K60: 0.071 | L60: 0.0701 | M60: 0.0713 | N60: 0.0722 | O60: 0.0723 | P60: 0.0724 | Q60: 0.0761 | R60: 0.0775 | S60: 0.0786 | T60: 0.0787 | U60: 0.0788 | V60: 0.0827 | W60: 0.0842 | X60: 0.0853 | Y60: 0.0854 | Z60: 0.0855 | AA60: 0.0892 | AB60: 0.0908 | AC60: 0.0921 | AD60: 0.0922 | AE60: 0.0923 | AF60: 0.0962 | AG60: 0.0983 | AH60: 0.0997 | AI60: 0.0998 | AJ60: 0.0999 | AK60: 0.1024 | AL60: 0.1043 | AM60: 0.1059 | AN60: 0.106 | AO60: 0.1061 | AP60: 0.1086 | AQ60: 0.1106 | AR60: 0.1123 | AS60: 0.1124 | AT60: 0.1125 | AU60: 0.1148 | AV60: 0.117 | AW60: 0.1188 | AX60: 0.1189 | AY60: 0.119 | AZ60: 0.1242 | BA60: 0.1287 | BB60: 0.1287 | BC60: 0.1302 | BD60: 0.1303 | BE60: 0.1326 | BF60: 0.1354 | BG60: 0.1377 | BH60: 0.1378 | BI60: 0.1379
A61: 57 | B61: 0.075 | C61: 0.0753 | D61: 0.0755 | E61: 0.0756 | F61: 0.0757 | G61: 0.0669 | H61: 0.0698 | I61: 0.0709 | J61: 0.071 | K61: 0.0711 | L61: 0.0702 | M61: 0.0714 | N61: 0.0724 | O61: 0.0725 | P61: 0.0726 | Q61: 0.0763 | R61: 0.0777 | S61: 0.0788 | T61: 0.0789 | U61: 0.079 | V61: 0.083 | W61: 0.0845 | X61: 0.0856 | Y61: 0.0857 | Z61: 0.0858 | AA61: 0.0896 | AB61: 0.0912 | AC61: 0.0925 | AD61: 0.0926 | AE61: 0.0927 | AF61: 0.0965 | AG61: 0.0988 | AH61: 0.1002 | AI61: 0.1003 | AJ61: 0.1004 | AK61: 0.1031 | AL61: 0.105 | AM61: 0.1065 | AN61: 0.1066 | AO61: 0.1067 | AP61: 0.1093 | AQ61: 0.1113 | AR61: 0.113 | AS61: 0.1131 | AT61: 0.1132 | AU61: 0.1155 | AV61: 0.1178 | AW61: 0.1196 | AX61: 0.1197 | AY61: 0.1198 | AZ61: 0.1251 | BA61: 0.1296 | BB61: 0.1296 | BC61: 0.1311 | BD61: 0.1312 | BE61: 0.1334 | BF61: 0.1362 | BG61: 0.1385 | BH61: 0.1386 | BI61: 0.1387
A62: 58 | B62: 0.0759 | C62: 0.0761 | D62: 0.0763 | E62: 0.0764 | F62: 0.0765 | G62: 0.0669 | H62: 0.07 | I62: 0.0708 | J62: 0.0709 | K62: 0.071 | L62: 0.0703 | M62: 0.0715 | N62: 0.0725 | O62: 0.0726 | P62: 0.0727 | Q62: 0.0764 | R62: 0.0778 | S62: 0.079 | T62: 0.0791 | U62: 0.0792 | V62: 0.0833 | W62: 0.0848 | X62: 0.0859 | Y62: 0.086 | Z62: 0.0861 | AA62: 0.0901 | AB62: 0.0917 | AC62: 0.0929 | AD62: 0.093 | AE62: 0.0931 | AF62: 0.0972 | AG62: 0.0993 | AH62: 0.1007 | AI62: 0.1008 | AJ62: 0.1009 | AK62: 0.1037 | AL62: 0.1056 | AM62: 0.1071 | AN62: 0.1072 | AO62: 0.1073 | AP62: 0.11 | AQ62: 0.112 | AR62: 0.1137 | AS62: 0.1138 | AT62: 0.1139 | AU62: 0.1163 | AV62: 0.1186 | AW62: 0.1203 | AX62: 0.1204 | AY62: 0.1205 | AZ62: 0.1259 | BA62: 0.1299 | BB62: 0.13 | BC62: 0.1318 | BD62: 0.1319 | BE62: 0.1343 | BF62: 0.1371 | BG62: 0.1393 | BH62: 0.1394 | BI62: 0.1395
A63: 59 | B63: 0.0767 | C63: 0.077 | D63: 0.0772 | E63: 0.0773 | F63: 0.0774 | G63: 0.067 | H63: 0.0701 | I63: 0.0708 | J63: 0.0709 | K63: 0.071 | L63: 0.0704 | M63: 0.0716 | N63: 0.0726 | O63: 0.0727 | P63: 0.0728 | Q63: 0.0766 | R63: 0.078 | S63: 0.0791 | T63: 0.0792 | U63: 0.0793 | V63: 0.0836 | W63: 0.0851 | X63: 0.0862 | Y63: 0.0863 | Z63: 0.0864 | AA63: 0.0905 | AB63: 0.0921 | AC63: 0.0933 | AD63: 0.0934 | AE63: 0.0935 | AF63: 0.0975 | AG63: 0.0998 | AH63: 0.1012 | AI63: 0.1013 | AJ63: 0.1014 | AK63: 0.1043 | AL63: 0.1062 | AM63: 0.1077 | AN63: 0.1078 | AO63: 0.1079 | AP63: 0.1107 | AQ63: 0.1127 | AR63: 0.1144 | AS63: 0.1145 | AT63: 0.1146 | AU63: 0.1171 | AV63: 0.1193 | AW63: 0.1211 | AX63: 0.1212 | AY63: 0.1213 | AZ63: 0.1266 | BA63: 0.1308 | BB63: 0.1309 | BC63: 0.1326 | BD63: 0.1327 | BE63: 0.1351 | BF63: 0.1379 | BG63: 0.1401 | BH63: 0.1402 | BI63: 0.1403
A64: 60 | B64: 0.0781 | C64: 0.0781 | D64: 0.0781 | E64: 0.0782 | F64: 0.0783 | G64: 0.0671 | H64: 0.0702 | I64: 0.0709 | J64: 0.071 | K64: 0.0711 | L64: 0.0705 | M64: 0.0719 | N64: 0.073 | O64: 0.0731 | P64: 0.0732 | Q64: 0.0768 | R64: 0.0783 | S64: 0.0796 | T64: 0.0797 | U64: 0.0798 | V64: 0.0839 | W64: 0.0856 | X64: 0.087 | Y64: 0.0871 | Z64: 0.0872 | AA64: 0.0909 | AB64: 0.0928 | AC64: 0.0942 | AD64: 0.0943 | AE64: 0.0944 | AF64: 0.098 | AG64: 0.1003 | AH64: 0.1016 | AI64: 0.1017 | AJ64: 0.1018 | AK64: 0.1049 | AL64: 0.1068 | AM64: 0.1083 | AN64: 0.1084 | AO64: 0.1085 | AP64: 0.1114 | AQ64: 0.1134 | AR64: 0.115 | AS64: 0.1151 | AT64: 0.1152 | AU64: 0.1179 | AV64: 0.1201 | AW64: 0.1219 | AX64: 0.122 | AY64: 0.1221 | AZ64: 0.1275 | BA64: 0.1321 | BB64: 0.1321 | BC64: 0.1333 | BD64: 0.1334 | BE64: 0.1359 | BF64: 0.1386 | BG64: 0.1408 | BH64: 0.1409 | BI64: 0.141
A65: 61 | B65: 0.0788 | C65: 0.079 | D65: 0.0792 | E65: 0.0793 | F65: 0.0794 | G65: 0.0672 | H65: 0.0701 | I65: 0.0708 | J65: 0.0709 | K65: 0.071 | L65: 0.0707 | M65: 0.0721 | N65: 0.0732 | O65: 0.0733 | P65: 0.0734 | Q65: 0.077 | R65: 0.0785 | S65: 0.0798 | T65: 0.0799 | U65: 0.08 | V65: 0.0843 | W65: 0.086 | X65: 0.0873 | Y65: 0.0874 | Z65: 0.0875 | AA65: 0.0915 | AB65: 0.0933 | AC65: 0.0948 | AD65: 0.0949 | AE65: 0.095 | AF65: 0.0985 | AG65: 0.1009 | AH65: 0.1018 | AI65: 0.1023 | AJ65: 0.1024 | AK65: 0.105 | AL65: 0.1069 | AM65: 0.1084 | AN65: 0.1085 | AO65: 0.1086 | AP65: 0.1116 | AQ65: 0.1136 | AR65: 0.1153 | AS65: 0.1154 | AT65: 0.1155 | AU65: 0.1183 | AV65: 0.1205 | AW65: 0.1223 | AX65: 0.1224 | AY65: 0.1225 | AZ65: 0.1281 | BA65: 0.1322 | BB65: 0.1334 | BC65: 0.1335 | BD65: 0.1336 | BE65: 0.136 | BF65: 0.1387 | BG65: 0.1409 | BH65: 0.141 | BI65: 0.1411
A66: 62 | B66: 0.08 | C66: 0.0802 | D66: 0.0804 | E66: 0.0805 | F66: 0.0806 | G66: 0.0673 | H66: 0.0702 | I66: 0.0709 | J66: 0.071 | K66: 0.0711 | L66: 0.0708 | M66: 0.0722 | N66: 0.0733 | O66: 0.0734 | P66: 0.0735 | Q66: 0.0772 | R66: 0.0787 | S66: 0.08 | T66: 0.0801 | U66: 0.0802 | V66: 0.0847 | W66: 0.0863 | X66: 0.0877 | Y66: 0.0878 | Z66: 0.0879 | AA66: 0.092 | AB66: 0.0939 | AC66: 0.0954 | AD66: 0.0955 | AE66: 0.0956 | AF66: 0.0983 | AG66: 0.1015 | AH66: 0.1019 | AI66: 0.1024 | AJ66: 0.1025 | AK66: 0.1051 | AL66: 0.107 | AM66: 0.1085 | AN66: 0.1086 | AO66: 0.1087 | AP66: 0.1118 | AQ66: 0.1139 | AR66: 0.1155 | AS66: 0.1156 | AT66: 0.1157 | AU66: 0.1187 | AV66: 0.121 | AW66: 0.1227 | AX66: 0.1228 | AY66: 0.1229 | AZ66: 0.1296 | BA66: 0.1323 | BB66: 0.1344 | BC66: 0.1345 | BD66: 0.1346 | BE66: 0.1361 | BF66: 0.1388 | BG66: 0.141 | BH66: 0.1411 | BI66: 0.1412
A67: 63 | B67: 0.0812 | C67: 0.0815 | D67: 0.0817 | E67: 0.0818 | F67: 0.0819 | G67: 0.0673 | H67: 0.0702 | I67: 0.0711 | J67: 0.0712 | K67: 0.0713 | L67: 0.071 | M67: 0.0723 | N67: 0.0735 | O67: 0.0736 | P67: 0.0737 | Q67: 0.0774 | R67: 0.0789 | S67: 0.0802 | T67: 0.0803 | U67: 0.0804 | V67: 0.085 | W67: 0.0867 | X67: 0.0881 | Y67: 0.0882 | Z67: 0.0883 | AA67: 0.0926 | AB67: 0.0944 | AC67: 0.0959 | AD67: 0.096 | AE67: 0.0961 | AF67: 0.0997 | AG67: 0.1016 | AH67: 0.102 | AI67: 0.1031 | AJ67: 0.1032 | AK67: 0.1052 | AL67: 0.1071 | AM67: 0.1086 | AN67: 0.1087 | AO67: 0.1088 | AP67: 0.1121 | AQ67: 0.1141 | AR67: 0.1157 | AS67: 0.1158 | AT67: 0.1159 | AU67: 0.1192 | AV67: 0.1214 | AW67: 0.1232 | AX67: 0.1233 | AY67: 0.1234 | AZ67: 0.1299 | BA67: 0.1324 | BB67: 0.1345 | BC67: 0.1346 | BD67: 0.1347 | BE67: 0.1362 | BF67: 0.1389 | BG67: 0.1411 | BH67: 0.1412 | BI67: 0.1413
A68: 64 | B68: 0.0824 | C68: 0.0827 | D68: 0.0829 | E68: 0.083 | F68: 0.0831 | G68: 0.0674 | H68: 0.0703 | I68: 0.0712 | J68: 0.0713 | K68: 0.0714 | L68: 0.0711 | M68: 0.0725 | N68: 0.0736 | O68: 0.0737 | P68: 0.0738 | Q68: 0.0776 | R68: 0.0791 | S68: 0.0804 | T68: 0.0805 | U68: 0.0806 | V68: 0.0854 | W68: 0.0871 | X68: 0.0884 | Y68: 0.0885 | Z68: 0.0886 | AA68: 0.0931 | AB68: 0.095 | AC68: 0.096 | AD68: 0.0965 | AE68: 0.0966 | AF68: 0.0993 | AG68: 0.1017 | AH68: 0.1021 | AI68: 0.1037 | AJ68: 0.1038 | AK68: 0.1053 | AL68: 0.1072 | AM68: 0.1087 | AN68: 0.1088 | AO68: 0.1089 | AP68: 0.1123 | AQ68: 0.1143 | AR68: 0.1159 | AS68: 0.116 | AT68: 0.1161 | AU68: 0.1196 | AV68: 0.1218 | AW68: 0.1236 | AX68: 0.1237 | AY68: 0.1238 | AZ68: 0.13 | BA68: 0.1325 | BB68: 0.1346 | BC68: 0.1347 | BD68: 0.1348 | BE68: 0.1363 | BF68: 0.139 | BG68: 0.1412 | BH68: 0.1413 | BI68: 0.1414
A69: 65 | B69: 0.0835 | C69: 0.0838 | D69: 0.0841 | E69: 0.0842 | F69: 0.0843 | G69: 0.0675 | H69: 0.0703 | I69: 0.0708 | J69: 0.0709 | K69: 0.071 | L69: 0.0713 | M69: 0.0727 | N69: 0.0738 | O69: 0.0739 | P69: 0.074 | Q69: 0.0778 | R69: 0.0793 | S69: 0.0805 | T69: 0.0806 | U69: 0.0807 | V69: 0.0858 | W69: 0.0875 | X69: 0.0888 | Y69: 0.0889 | Z69: 0.089 | AA69: 0.0936 | AB69: 0.0955 | AC69: 0.096 | AD69: 0.0967 | AE69: 0.0968 | AF69: 0.0999 | AG69: 0.103 | AH69: 0.1038 | AI69: 0.1042 | AJ69: 0.1043 | AK69: 0.1054 | AL69: 0.1073 | AM69: 0.1088 | AN69: 0.1089 | AO69: 0.109 | AP69: 0.1125 | AQ69: 0.1145 | AR69: 0.1162 | AS69: 0.1163 | AT69: 0.1164 | AU69: 0.12 | AV69: 0.1222 | AW69: 0.124 | AX69: 0.1241 | AY69: 0.1242 | AZ69: 0.1301 | BA69: 0.1326 | BB69: 0.1347 | BC69: 0.1348 | BD69: 0.1349 | BE69: 0.1364 | BF69: 0.1391 | BG69: 0.1413 | BH69: 0.1414 | BI69: 0.1415
A70: 66 | B70: 0.0853 | C70: 0.0856 | D70: 0.0859 | E70: 0.086 | F70: 0.0861 | G70: 0.0675 | H70: 0.0703 | I70: 0.0706 | J70: 0.0707 | K70: 0.0708 | L70: 0.0714 | M70: 0.0728 | N70: 0.0739 | O70: 0.074 | P70: 0.0741 | Q70: 0.078 | R70: 0.0795 | S70: 0.0808 | T70: 0.0809 | U70: 0.081 | V70: 0.0861 | W70: 0.0878 | X70: 0.0892 | Y70: 0.0893 | Z70: 0.0894 | AA70: 0.0931 | AB70: 0.0961 | AC70: 0.0962 | AD70: 0.097 | AE70: 0.0971 | AF70: 0.1004 | AG70: 0.1036 | AH70: 0.104 | AI70: 0.1047 | AJ70: 0.1048 | AK70: 0.1055 | AL70: 0.1074 | AM70: 0.1089 | AN70: 0.109 | AO70: 0.1091 | AP70: 0.1127 | AQ70: 0.1148 | AR70: 0.1164 | AS70: 0.1165 | AT70: 0.1166 | AU70: 0.1204 | AV70: 0.1226 | AW70: 0.1244 | AX70: 0.1245 | AY70: 0.1246 | AZ70: 0.1302 | BA70: 0.1327 | BB70: 0.1348 | BC70: 0.1349 | BD70: 0.135 | BE70: 0.1365 | BF70: 0.1392 | BG70: 0.1414 | BH70: 0.1415 | BI70: 0.1416
A71: 67 | B71: 0.0871 | C71: 0.0873 | D71: 0.0875 | E71: 0.0876 | F71: 0.0877 | G71: 0.0674 | H71: 0.0702 | I71: 0.0705 | J71: 0.0706 | K71: 0.0707 | L71: 0.0715 | M71: 0.0729 | N71: 0.0741 | O71: 0.0742 | P71: 0.0743 | Q71: 0.0782 | R71: 0.0797 | S71: 0.081 | T71: 0.0811 | U71: 0.0812 | V71: 0.0865 | W71: 0.0882 | X71: 0.0896 | Y71: 0.0897 | Z71: 0.0898 | AA71: 0.0936 | AB71: 0.0966 | AC71: 0.0971 | AD71: 0.0974 | AE71: 0.0975 | AF71: 0.1007 | AG71: 0.1042 | AH71: 0.1044 | AI71: 0.105 | AJ71: 0.1051 | AK71: 0.1056 | AL71: 0.1075 | AM71: 0.109 | AN71: 0.1091 | AO71: 0.1092 | AP71: 0.1129 | AQ71: 0.115 | AR71: 0.1166 | AS71: 0.1167 | AT71: 0.1168 | AU71: 0.1208 | AV71: 0.1231 | AW71: 0.1248 | AX71: 0.1249 | AY71: 0.125 | AZ71: 0.1303 | BA71: 0.1328 | BB71: 0.1349 | BC71: 0.135 | BD71: 0.1351 | BE71: 0.1366 | BF71: 0.1393 | BG71: 0.1415 | BH71: 0.1416 | BI71: 0.1417
A72: 68 | B72: 0.0888 | C72: 0.0891 | D72: 0.0893 | E72: 0.0894 | F72: 0.0895 | G72: 0.0674 | H72: 0.0702 | I72: 0.0705 | J72: 0.0706 | K72: 0.0707 | L72: 0.0713 | M72: 0.0727 | N72: 0.0739 | O72: 0.074 | P72: 0.0741 | Q72: 0.078 | R72: 0.0795 | S72: 0.0808 | T72: 0.0809 | U72: 0.081 | V72: 0.0863 | W72: 0.088 | X72: 0.0894 | Y72: 0.0895 | Z72: 0.0896 | AA72: 0.0945 | AB72: 0.0964 | AC72: 0.0969 | AD72: 0.0972 | AE72: 0.0973 | AF72: 0.1013 | AG72: 0.1046 | AH72: 0.1048 | AI72: 0.1051 | AJ72: 0.1052 | AK72: 0.1043 | AL72: 0.1062 | AM72: 0.1077 | AN72: 0.1078 | AO72: 0.1079 | AP72: 0.1127 | AQ72: 0.1148 | AR72: 0.1164 | AS72: 0.1165 | AT72: 0.1166 | AU72: 0.1206 | AV72: 0.1229 | AW72: 0.1246 | AX72: 0.1247 | AY72: 0.1248 | AZ72: 0.1246 | BA72: 0.1271 | BB72: 0.129 | BC72: 0.1291 | BD72: 0.1292 | BE72: 0.1297 | BF72: 0.1324 | BG72: 0.1345 | BH72: 0.1346 | BI72: 0.1347
A73: 69 | B73: 0.0906 | C73: 0.0908 | D73: 0.091 | E73: 0.0911 | F73: 0.0912 | G73: 0.0673 | H73: 0.0701 | I73: 0.0704 | J73: 0.0705 | K73: 0.0706 | L73: 0.0711 | M73: 0.0725 | N73: 0.0737 | O73: 0.0738 | P73: 0.0739 | Q73: 0.0778 | R73: 0.0793 | S73: 0.0806 | T73: 0.0807 | U73: 0.0808 | V73: 0.0861 | W73: 0.0878 | X73: 0.0892 | Y73: 0.0893 | Z73: 0.0894 | AA73: 0.0944 | AB73: 0.0962 | AC73: 0.0977 | AD73: 0.0978 | AE73: 0.0979 | AF73: 0.1023 | AG73: 0.1044 | AH73: 0.1046 | AI73: 0.1049 | AJ73: 0.105 | AK73: 0.1041 | AL73: 0.106 | AM73: 0.1075 | AN73: 0.1076 | AO73: 0.1077 | AP73: 0.1125 | AQ73: 0.1146 | AR73: 0.1162 | AS73: 0.1163 | AT73: 0.1164 | AU73: 0.118 | AV73: 0.1202 | AW73: 0.122 | AX73: 0.1221 | AY73: 0.1222 | AZ73: 0.1234 | BA73: 0.1259 | BB73: 0.1278 | BC73: 0.1279 | BD73: 0.128 | BE73: 0.1289 | BF73: 0.1315 | BG73: 0.1335 | BH73: 0.1336 | BI73: 0.1337
A74: 70 | B74: 0.0924 | C74: 0.0926 | D74: 0.0928 | E74: 0.0929 | F74: 0.093 | G74: 0.0673 | H74: 0.0701 | I74: 0.0704 | J74: 0.0705 | K74: 0.0706 | L74: 0.0709 | M74: 0.0723 | N74: 0.0735 | O74: 0.0736 | P74: 0.0737 | Q74: 0.0776 | R74: 0.0791 | S74: 0.0804 | T74: 0.0805 | U74: 0.0806 | V74: 0.0859 | W74: 0.0876 | X74: 0.089 | Y74: 0.0891 | Z74: 0.0892 | AA74: 0.0942 | AB74: 0.096 | AC74: 0.0975 | AD74: 0.0976 | AE74: 0.0977 | AF74: 0.1024 | AG74: 0.1042 | AH74: 0.1055 | AI74: 0.1056 | AJ74: 0.1057 | AK74: 0.1039 | AL74: 0.1058 | AM74: 0.1073 | AN74: 0.1074 | AO74: 0.1075 | AP74: 0.1123 | AQ74: 0.1144 | AR74: 0.116 | AS74: 0.1161 | AT74: 0.1162 | AU74: 0.1176 | AV74: 0.1198 | AW74: 0.1215 | AX74: 0.1216 | AY74: 0.1217 | AZ74: 0.1228 | BA74: 0.1252 | BB74: 0.127 | BC74: 0.1271 | BD74: 0.1272 | BE74: 0.128 | BF74: 0.1306 | BG74: 0.1325 | BH74: 0.1326 | BI74: 0.1327
A75: 71 | B75: 0.0949 | C75: 0.0951 | D75: 0.0953 | E75: 0.0954 | F75: 0.0955 | G75: 0.0672 | H75: 0.07 | I75: 0.0703 | J75: 0.0704 | K75: 0.0705 | L75: 0.0707 | M75: 0.0721 | N75: 0.0733 | O75: 0.0734 | P75: 0.0735 | Q75: 0.0774 | R75: 0.0789 | S75: 0.0802 | T75: 0.0803 | U75: 0.0804 | V75: 0.0857 | W75: 0.0874 | X75: 0.0888 | Y75: 0.0889 | Z75: 0.089 | AA75: 0.094 | AB75: 0.0958 | AC75: 0.0973 | AD75: 0.0974 | AE75: 0.0975 | AF75: 0.1022 | AG75: 0.104 | AH75: 0.1053 | AI75: 0.1054 | AJ75: 0.1055 | AK75: 0.1037 | AL75: 0.1056 | AM75: 0.1071 | AN75: 0.1072 | AO75: 0.1073 | AP75: 0.1121 | AQ75: 0.1142 | AR75: 0.1158 | AS75: 0.1159 | AT75: 0.116 | AU75: 0.1172 | AV75: 0.1194 | AW75: 0.1211 | AX75: 0.1212 | AY75: 0.1213 | AZ75: 0.1222 | BA75: 0.1246 | BB75: 0.1263 | BC75: 0.1264 | BD75: 0.1265 | BE75: 0.1272 | BF75: 0.1297 | BG75: 0.1315 | BH75: 0.1316 | BI75: 0.1317
A76: 72 | B76: 0.0972 | C76: 0.0975 | D76: 0.0977 | E76: 0.0978 | F76: 0.0979 | G76: 0.067 | H76: 0.0698 | I76: 0.0701 | J76: 0.0702 | K76: 0.0703 | L76: 0.0705 | M76: 0.0719 | N76: 0.0731 | O76: 0.0732 | P76: 0.0733 | Q76: 0.0772 | R76: 0.0787 | S76: 0.08 | T76: 0.0801 | U76: 0.0802 | V76: 0.0855 | W76: 0.0872 | X76: 0.0886 | Y76: 0.0887 | Z76: 0.0888 | AA76: 0.0938 | AB76: 0.0956 | AC76: 0.0971 | AD76: 0.0972 | AE76: 0.0973 | AF76: 0.102 | AG76: 0.1038 | AH76: 0.1051 | AI76: 0.1052 | AJ76: 0.1053 | AK76: 0.1035 | AL76: 0.1054 | AM76: 0.1069 | AN76: 0.107 | AO76: 0.1071 | AP76: 0.1119 | AQ76: 0.114 | AR76: 0.1156 | AS76: 0.1157 | AT76: 0.1158 | AU76: 0.1167 | AV76: 0.1189 | AW76: 0.1206 | AX76: 0.1207 | AY76: 0.1208 | AZ76: 0.1215 | BA76: 0.1239 | BB76: 0.1256 | BC76: 0.1257 | BD76: 0.1258 | BE76: 0.1263 | BF76: 0.1288 | BG76: 0.1305 | BH76: 0.1306 | BI76: 0.1307
A77: 73 | B77: 0.0997 | C77: 0.1 | D77: 0.1002 | E77: 0.1003 | F77: 0.1004 | G77: 0.0669 | H77: 0.0697 | I77: 0.07 | J77: 0.0701 | K77: 0.0702 | L77: 0.0703 | M77: 0.0717 | N77: 0.0729 | O77: 0.073 | P77: 0.0731 | Q77: 0.077 | R77: 0.0785 | S77: 0.0798 | T77: 0.0799 | U77: 0.08 | V77: 0.0853 | W77: 0.087 | X77: 0.0884 | Y77: 0.0885 | Z77: 0.0886 | AA77: 0.0936 | AB77: 0.0954 | AC77: 0.0969 | AD77: 0.097 | AE77: 0.0971 | AF77: 0.1018 | AG77: 0.1036 | AH77: 0.1049 | AI77: 0.105 | AJ77: 0.1051 | AK77: 0.1033 | AL77: 0.1052 | AM77: 0.1067 | AN77: 0.1068 | AO77: 0.1069 | AP77: 0.1117 | AQ77: 0.1138 | AR77: 0.1154 | AS77: 0.1155 | AT77: 0.1156 | AU77: 0.1163 | AV77: 0.1185 | AW77: 0.1201 | AX77: 0.1202 | AY77: 0.1203 | AZ77: 0.1209 | BA77: 0.1232 | BB77: 0.1248 | BC77: 0.1249 | BD77: 0.125 | BE77: 0.1255 | BF77: 0.1279 | BG77: 0.1295 | BH77: 0.1296 | BI77: 0.1297
A78: 74 | B78: 0.1021 | C78: 0.1023 | D78: 0.1025 | E78: 0.1026 | F78: 0.1027 | G78: 0.0667 | H78: 0.0695 | I78: 0.0698 | J78: 0.0699 | K78: 0.07 | L78: 0.0701 | M78: 0.0715 | N78: 0.0727 | O78: 0.0728 | P78: 0.0729 | Q78: 0.0768 | R78: 0.0783 | S78: 0.0796 | T78: 0.0797 | U78: 0.0798 | V78: 0.0851 | W78: 0.0868 | X78: 0.0882 | Y78: 0.0883 | Z78: 0.0884 | AA78: 0.0934 | AB78: 0.0952 | AC78: 0.0967 | AD78: 0.0968 | AE78: 0.0969 | AF78: 0.1016 | AG78: 0.1034 | AH78: 0.1047 | AI78: 0.1048 | AJ78: 0.1049 | AK78: 0.1031 | AL78: 0.105 | AM78: 0.1065 | AN78: 0.1066 | AO78: 0.1067 | AP78: 0.1115 | AQ78: 0.1136 | AR78: 0.1152 | AS78: 0.1153 | AT78: 0.1154 | AU78: 0.1159 | AV78: 0.1181 | AW78: 0.1197 | AX78: 0.1198 | AY78: 0.1199 | AZ78: 0.1203 | BA78: 0.1226 | BB78: 0.1241 | BC78: 0.1242 | BD78: 0.1243 | BE78: 0.1246 | BF78: 0.127 | BG78: 0.1285 | BH78: 0.1286 | BI78: 0.1287
A79: 75 | B79: 0.1046 | C79: 0.1048 | D79: 0.105 | E79: 0.1051 | F79: 0.1052 | G79: 0.0666 | H79: 0.0694 | I79: 0.0697 | J79: 0.0698 | K79: 0.0699 | L79: 0.0699 | M79: 0.0713 | N79: 0.0725 | O79: 0.0726 | P79: 0.0727 | Q79: 0.0766 | R79: 0.0781 | S79: 0.0794 | T79: 0.0795 | U79: 0.0796 | V79: 0.0849 | W79: 0.0866 | X79: 0.088 | Y79: 0.0881 | Z79: 0.0882 | AA79: 0.0932 | AB79: 0.095 | AC79: 0.0965 | AD79: 0.0966 | AE79: 0.0967 | AF79: 0.1014 | AG79: 0.1032 | AH79: 0.1045 | AI79: 0.1046 | AJ79: 0.1047 | AK79: 0.1029 | AL79: 0.1048 | AM79: 0.1063 | AN79: 0.1064 | AO79: 0.1065 | AP79: 0.1113 | AQ79: 0.1134 | AR79: 0.115 | AS79: 0.1151 | AT79: 0.1152 | AU79: 0.1155 | AV79: 0.1176 | AW79: 0.1192 | AX79: 0.1193 | AY79: 0.1194 | AZ79: 0.1196 | BA79: 0.1219 | BB79: 0.1234 | BC79: 0.1235 | BD79: 0.1236 | BE79: 0.1238 | BF79: 0.1261 | BG79: 0.1275 | BH79: 0.1276 | BI79: 0.1277
A80: 76 | B80: 0.1078 | C80: 0.108 | D80: 0.1082 | E80: 0.1083 | F80: 0.1084 | G80: 0.0664 | H80: 0.0692 | I80: 0.0695 | J80: 0.0696 | K80: 0.0697 | L80: 0.0697 | M80: 0.0711 | N80: 0.0723 | O80: 0.0724 | P80: 0.0725 | Q80: 0.0764 | R80: 0.0779 | S80: 0.0792 | T80: 0.0793 | U80: 0.0794 | V80: 0.0847 | W80: 0.0864 | X80: 0.0878 | Y80: 0.0879 | Z80: 0.088 | AA80: 0.093 | AB80: 0.0948 | AC80: 0.0963 | AD80: 0.0964 | AE80: 0.0965 | AF80: 0.1012 | AG80: 0.103 | AH80: 0.1043 | AI80: 0.1044 | AJ80: 0.1045 | AK80: 0.1027 | AL80: 0.1046 | AM80: 0.1061 | AN80: 0.1062 | AO80: 0.1063 | AP80: 0.1111 | AQ80: 0.1132 | AR80: 0.1148 | AS80: 0.1149 | AT80: 0.115 | AU80: 0.1151 | AV80: 0.1172 | AW80: 0.1187 | AX80: 0.1188 | AY80: 0.1189 | AZ80: 0.119 | BA80: 0.1212 | BB80: 0.1226 | BC80: 0.1227 | BD80: 0.1228 | BE80: 0.1229 | BF80: 0.1252 | BG80: 0.1265 | BH80: 0.1266 | BI80: 0.1267
A81: 77 | B81: 0.111 | C81: 0.1112 | D81: 0.1114 | E81: 0.1115 | F81: 0.1116 | G81: 0.0663 | H81: 0.0689 | I81: 0.0692 | J81: 0.0693 | K81: 0.0694 | L81: 0.0695 | M81: 0.0709 | N81: 0.0721 | O81: 0.0722 | P81: 0.0723 | Q81: 0.0762 | R81: 0.0777 | S81: 0.079 | T81: 0.0791 | U81: 0.0792 | V81: 0.0845 | W81: 0.0862 | X81: 0.0876 | Y81: 0.0877 | Z81: 0.0878 | AA81: 0.0928 | AB81: 0.0946 | AC81: 0.0961 | AD81: 0.0962 | AE81: 0.0963 | AF81: 0.101 | AG81: 0.1028 | AH81: 0.1041 | AI81: 0.1042 | AJ81: 0.1043 | AK81: 0.1025 | AL81: 0.1044 | AM81: 0.1059 | AN81: 0.106 | AO81: 0.1061 | AP81: 0.1109 | AQ81: 0.113 | AR81: 0.1146 | AS81: 0.1147 | AT81: 0.1148 | AU81: 0.1147 | AV81: 0.1168 | AW81: 0.1183 | AX81: 0.1184 | AY81: 0.1185 | AZ81: 0.1184 | BA81: 0.1206 | BB81: 0.1219 | BC81: 0.122 | BD81: 0.1221 | BE81: 0.1221 | BF81: 0.1243 | BG81: 0.1255 | BH81: 0.1256 | BI81: 0.1257
A82: 78 | B82: 0.1143 | C82: 0.1145 | D82: 0.1146 | E82: 0.1147 | F82: 0.1148 | G82: 0.0661 | H82: 0.0689 | I82: 0.0692 | J82: 0.0693 | K82: 0.0694 | L82: 0.0693 | M82: 0.0707 | N82: 0.0719 | O82: 0.072 | P82: 0.0721 | Q82: 0.076 | R82: 0.0775 | S82: 0.0788 | T82: 0.0789 | U82: 0.079 | V82: 0.0843 | W82: 0.086 | X82: 0.0874 | Y82: 0.0875 | Z82: 0.0876 | AA82: 0.0926 | AB82: 0.0944 | AC82: 0.0959 | AD82: 0.096 | AE82: 0.0961 | AF82: 0.1008 | AG82: 0.1026 | AH82: 0.1039 | AI82: 0.104 | AJ82: 0.1041 | AK82: 0.1023 | AL82: 0.1042 | AM82: 0.1057 | AN82: 0.1058 | AO82: 0.1059 | AP82: 0.1107 | AQ82: 0.1128 | AR82: 0.1144 | AS82: 0.1145 | AT82: 0.1146 | AU82: 0.1142 | AV82: 0.1163 | AW82: 0.1178 | AX82: 0.1179 | AY82: 0.118 | AZ82: 0.1177 | BA82: 0.1199 | BB82: 0.1212 | BC82: 0.1213 | BD82: 0.1214 | BE82: 0.1212 | BF82: 0.1234 | BG82: 0.1245 | BH82: 0.1246 | BI82: 0.1247
A83: 79 | B83: 0.1174 | C83: 0.1176 | D83: 0.1178 | E83: 0.1179 | F83: 0.118 | G83: 0.066 | H83: 0.0686 | I83: 0.0689 | J83: 0.069 | K83: 0.0691 | L83: 0.0691 | M83: 0.0705 | N83: 0.0717 | O83: 0.0718 | P83: 0.0719 | Q83: 0.0758 | R83: 0.0773 | S83: 0.0786 | T83: 0.0787 | U83: 0.0788 | V83: 0.0841 | W83: 0.0858 | X83: 0.0872 | Y83: 0.0873 | Z83: 0.0874 | AA83: 0.0924 | AB83: 0.0942 | AC83: 0.0957 | AD83: 0.0958 | AE83: 0.0959 | AF83: 0.1006 | AG83: 0.1024 | AH83: 0.1037 | AI83: 0.1038 | AJ83: 0.1039 | AK83: 0.1021 | AL83: 0.104 | AM83: 0.1055 | AN83: 0.1056 | AO83: 0.1057 | AP83: 0.1105 | AQ83: 0.1126 | AR83: 0.1142 | AS83: 0.1143 | AT83: 0.1144 | AU83: 0.1138 | AV83: 0.1159 | AW83: 0.1173 | AX83: 0.1174 | AY83: 0.1175 | AZ83: 0.1171 | BA83: 0.1192 | BB83: 0.1204 | BC83: 0.1205 | BD83: 0.1206 | BE83: 0.1204 | BF83: 0.1225 | BG83: 0.1235 | BH83: 0.1236 | BI83: 0.1237
A84: 80 | B84: 0.1206 | C84: 0.1208 | D84: 0.1209 | E84: 0.121 | F84: 0.1211 | G84: 0.0658 | H84: 0.0684 | I84: 0.0687 | J84: 0.0688 | K84: 0.0689 | L84: 0.0689 | M84: 0.0703 | N84: 0.0715 | O84: 0.0716 | P84: 0.0717 | Q84: 0.0756 | R84: 0.0771 | S84: 0.0784 | T84: 0.0785 | U84: 0.0786 | V84: 0.0839 | W84: 0.0856 | X84: 0.087 | Y84: 0.0871 | Z84: 0.0872 | AA84: 0.0922 | AB84: 0.094 | AC84: 0.0955 | AD84: 0.0956 | AE84: 0.0957 | AF84: 0.1004 | AG84: 0.1022 | AH84: 0.1035 | AI84: 0.1036 | AJ84: 0.1037 | AK84: 0.1019 | AL84: 0.1038 | AM84: 0.1053 | AN84: 0.1054 | AO84: 0.1055 | AP84: 0.1103 | AQ84: 0.1124 | AR84: 0.114 | AS84: 0.1141 | AT84: 0.1142 | AU84: 0.1134 | AV84: 0.1155 | AW84: 0.1169 | AX84: 0.117 | AY84: 0.1171 | AZ84: 0.1165 | BA84: 0.1186 | BB84: 0.1197 | BC84: 0.1198 | BD84: 0.1199 | BE84: 0.1195 | BF84: 0.1216 | BG84: 0.1225 | BH84: 0.1226 | BI84: 0.1227
A85: 81 | B85: 0.1247 | C85: 0.1249 | D85: 0.125 | E85: 0.1251 | F85: 0.1252 | G85: 0.0656 | H85: 0.0682 | I85: 0.0685 | J85: 0.0686 | K85: 0.0687 | L85: 0.0687 | M85: 0.0701 | N85: 0.0713 | O85: 0.0714 | P85: 0.0715 | Q85: 0.0754 | R85: 0.0769 | S85: 0.0782 | T85: 0.0783 | U85: 0.0784 | V85: 0.0837 | W85: 0.0854 | X85: 0.0868 | Y85: 0.0869 | Z85: 0.087 | AA85: 0.092 | AB85: 0.0938 | AC85: 0.0953 | AD85: 0.0954 | AE85: 0.0955 | AF85: 0.1002 | AG85: 0.102 | AH85: 0.1033 | AI85: 0.1034 | AJ85: 0.1035 | AK85: 0.1017 | AL85: 0.1036 | AM85: 0.1051 | AN85: 0.1052 | AO85: 0.1053 | AP85: 0.1101 | AQ85: 0.1122 | AR85: 0.1138 | AS85: 0.1139 | AT85: 0.114 | AU85: 0.113 | AV85: 0.115 | AW85: 0.1164 | AX85: 0.1165 | AY85: 0.1166 | AZ85: 0.1158 | BA85: 0.1179 | BB85: 0.119 | BC85: 0.1191 | BD85: 0.1192 | BE85: 0.1187 | BF85: 0.1207 | BG85: 0.1215 | BH85: 0.1216 | BI85: 0.1217
A86: 82 | B86: 0.1288 | C86: 0.129 | D86: 0.1292 | E86: 0.1293 | F86: 0.1294 | G86: 0.0654 | H86: 0.068 | I86: 0.0683 | J86: 0.0684 | K86: 0.0685 | L86: 0.0685 | M86: 0.0699 | N86: 0.0711 | O86: 0.0712 | P86: 0.0713 | Q86: 0.0752 | R86: 0.0767 | S86: 0.078 | T86: 0.0781 | U86: 0.0782 | V86: 0.0835 | W86: 0.0852 | X86: 0.0866 | Y86: 0.0867 | Z86: 0.0868 | AA86: 0.0918 | AB86: 0.0936 | AC86: 0.0951 | AD86: 0.0952 | AE86: 0.0953 | AF86: 0.1 | AG86: 0.1018 | AH86: 0.1031 | AI86: 0.1032 | AJ86: 0.1033 | AK86: 0.1015 | AL86: 0.1034 | AM86: 0.1049 | AN86: 0.105 | AO86: 0.1051 | AP86: 0.1099 | AQ86: 0.112 | AR86: 0.1136 | AS86: 0.1137 | AT86: 0.1138 | AU86: 0.1126 | AV86: 0.1146 | AW86: 0.1159 | AX86: 0.116 | AY86: 0.1161 | AZ86: 0.1152 | BA86: 0.1172 | BB86: 0.1182 | BC86: 0.1183 | BD86: 0.1184 | BE86: 0.1178 | BF86: 0.1198 | BG86: 0.1205 | BH86: 0.1206 | BI86: 0.1207
A87: 83 | B87: 0.133 | C87: 0.1332 | D87: 0.1333 | E87: 0.1334 | F87: 0.1335 | G87: 0.0652 | H87: 0.0678 | I87: 0.0681 | J87: 0.0682 | K87: 0.0683 | L87: 0.0683 | M87: 0.0697 | N87: 0.0709 | O87: 0.071 | P87: 0.0711 | Q87: 0.075 | R87: 0.0765 | S87: 0.0778 | T87: 0.0779 | U87: 0.078 | V87: 0.0833 | W87: 0.085 | X87: 0.0864 | Y87: 0.0865 | Z87: 0.0866 | AA87: 0.0916 | AB87: 0.0934 | AC87: 0.0949 | AD87: 0.095 | AE87: 0.0951 | AF87: 0.0998 | AG87: 0.1016 | AH87: 0.1029 | AI87: 0.103 | AJ87: 0.1031 | AK87: 0.1013 | AL87: 0.1032 | AM87: 0.1047 | AN87: 0.1048 | AO87: 0.1049 | AP87: 0.1097 | AQ87: 0.1118 | AR87: 0.1134 | AS87: 0.1135 | AT87: 0.1136 | AU87: 0.1122 | AV87: 0.1142 | AW87: 0.1155 | AX87: 0.1156 | AY87: 0.1157 | AZ87: 0.1146 | BA87: 0.1166 | BB87: 0.1175 | BC87: 0.1176 | BD87: 0.1177 | BE87: 0.117 | BF87: 0.1189 | BG87: 0.1195 | BH87: 0.1196 | BI87: 0.1197
A88: 84 | B88: 0.1371 | C88: 0.1373 | D88: 0.1375 | E88: 0.1376 | F88: 0.1377 | G88: 0.065 | H88: 0.0676 | I88: 0.0679 | J88: 0.068 | K88: 0.0681 | L88: 0.0681 | M88: 0.0695 | N88: 0.0707 | O88: 0.0708 | P88: 0.0709 | Q88: 0.0748 | R88: 0.0763 | S88: 0.0776 | T88: 0.0777 | U88: 0.0778 | V88: 0.0831 | W88: 0.0848 | X88: 0.0862 | Y88: 0.0863 | Z88: 0.0864 | AA88: 0.0914 | AB88: 0.0932 | AC88: 0.0947 | AD88: 0.0948 | AE88: 0.0949 | AF88: 0.0996 | AG88: 0.1014 | AH88: 0.1027 | AI88: 0.1028 | AJ88: 0.1029 | AK88: 0.1011 | AL88: 0.103 | AM88: 0.1045 | AN88: 0.1046 | AO88: 0.1047 | AP88: 0.1095 | AQ88: 0.1116 | AR88: 0.1132 | AS88: 0.1133 | AT88: 0.1134 | AU88: 0.1117 | AV88: 0.1137 | AW88: 0.115 | AX88: 0.1151 | AY88: 0.1152 | AZ88: 0.1139 | BA88: 0.1159 | BB88: 0.1168 | BC88: 0.1169 | BD88: 0.117 | BE88: 0.1149 | BF88: 0.118 | BG88: 0.1185 | BH88: 0.1186 | BI88: 0.1187
A89: 85 | B89: 0.1411 | C89: 0.1414 | D89: 0.1416 | E89: 0.1417 | F89: 0.1418 | G89: 0.0648 | H89: 0.0674 | I89: 0.0677 | J89: 0.0678 | K89: 0.0679 | L89: 0.0679 | M89: 0.0693 | N89: 0.0705 | O89: 0.0706 | P89: 0.0707 | Q89: 0.0746 | R89: 0.0761 | S89: 0.0774 | T89: 0.0775 | U89: 0.0776 | V89: 0.0829 | W89: 0.0846 | X89: 0.086 | Y89: 0.0861 | Z89: 0.0862 | AA89: 0.0912 | AB89: 0.093 | AC89: 0.0945 | AD89: 0.0946 | AE89: 0.0947 | AF89: 0.0994 | AG89: 0.1012 | AH89: 0.1025 | AI89: 0.1026 | AJ89: 0.1027 | AK89: 0.1009 | AL89: 0.1028 | AM89: 0.1043 | AN89: 0.1044 | AO89: 0.1045 | AP89: 0.1093 | AQ89: 0.1114 | AR89: 0.113 | AS89: 0.1131 | AT89: 0.1132 | AU89: 0.1113 | AV89: 0.1133 | AW89: 0.1145 | AX89: 0.1146 | AY89: 0.1147 | AZ89: 0.1133 | BA89: 0.1152 | BB89: 0.116 | BC89: 0.1161 | BD89: 0.1162 | BE89: 0.1127 | BF89: 0.1161 | BG89: 0.1166 | BH89: 0.1167 | BI89: 0.1168
A90: 86 | B90: 0.1449 | C90: 0.1453 | D90: 0.1457 | E90: 0.146 | F90: 0.1464
A91: 87 | B91: 0.1501 | C91: 0.1505 | D91: 0.1508 | E91: 0.1512 | F91: 0.1515
A92: 88 | B92: 0.1555 | C92: 0.1559 | D92: 0.1562 | E92: 0.1566 | F92: 0.1569
A93: 89 | B93: 0.1613 | C93: 0.1617 | D93: 0.162 | E93: 0.1624 | F93: 0.1627
A94: 90 | B94: 0.1673 | C94: 0.1677 | D94: 0.168 | E94: 0.1684 | F94: 0.1687
A95: 91 | B95: 0.1737 | C95: 0.174 | D95: 0.1744 | E95: 0.1747 | F95: 0.175
A96: 92 | B96: 0.1802 | C96: 0.1805 | D96: 0.1809 | E96: 0.1812 | F96: 0.1815
A97: 93 | B97: 0.1869 | C97: 0.1873 | D97: 0.1876 | E97: 0.188 | F97: 0.1883
A98: 94 | B98: 0.1941 | C98: 0.1944 | D98: 0.1948 | E98: 0.1951 | F98: 0.1954
A99: 95 | B99: 0.2015 | C99: 0.2018 | D99: 0.2022 | E99: 0.2025 | F99: 0.2028
A100: 96 | B100: 0.2092 | C100: 0.2095 | D100: 0.2099 | E100: 0.2102 | F100: 0.2105
A101: 97 | B101: 0.2172 | C101: 0.2175 | D101: 0.2179 | E101: 0.2182 | F101: 0.2185
A102: 98 | B102: 0.2253 | C102: 0.2256 | D102: 0.226 | E102: 0.2263 | F102: 0.2266
A103: 99 | B103: 0.234 | C103: 0.2343 | D103: 0.2346 | E103: 0.2349 | F103: 0.2352
A104: 100 | B104: 0.2426 | C104: 0.2429 | D104: 0.2433 | E104: 0.2436 | F104: 0.2439
V119: 2 | W119: 3 | AA119: 4 | AB119: 5
H120: TATA
A121: Def 10 | H121: Def 5 | M121: Def 10
A122: Rate A | B122: Rate B | G122: Age | H122: Rate A | L122: Rate B | M122: Rate A | Q122: Rate B
A123: 0.1154 | B123: 0.1217 | G123: 45 | H123: 0.08488351524 | L123: 0.08925731235 | M123: 0.1154538401 | Q123: 0.1216597937 | V123: -1.648475944e-05 | W123: -4.268764787e-05 | AA123: 5.384012759e-05 | AB123: -4.020632659e-05
A124: 0.1163 | B124: 0.1224 | G124: 50 | H124: 0.08706407585 | L124: 0.09107551638 | M124: 0.1197871474 | Q124: 0.125529087 | V124: -3.592415142e-05 | W124: -2.448361662e-05 | AA124: -1.285256095e-05 | AB124: 2.908699694e-05
A125: 0.1171 | B125: 0.1232 | G125: 55 | H125: 0.08927905328 | L125: 0.09296733719 | M125: 0.1243450852 | Q125: 0.1296702076 | V125: -2.094671954e-05 | W125: -3.266280965e-05 | AA125: 4.508515031e-05 | AB125: -2.979237699e-05
A126: 0.118 | B126: 0.1239 | G126: 60 | H126: 0.09166020839 | L126: 0.09507045345 | M126: 0.1283264851 | Q126: 0.1332501659 | V126: -3.97916111e-05 | W126: -2.954654839e-05 | AA126: 2.648510966e-05 | AB126: 5.016589179e-05
A127: 0.1189 | B127: 0.1247 | G127: 65 | H127: 0.09408355907 | L127: 0.09724991923 | M127: 0.1302465572 | Q127: 0.134736573 | V127: -1.644093349e-05 | W127: -5.00807654e-05 | AA127: 4.65572243e-05 | AB127: 3.657301712e-05
A128: 0.1198 | B128: 0.1255 | G128: 70 | H128: 0.0962025677 | L128: 0.09914903626 | M128: 0.1289620694 | Q128: 0.1329754356 | V128: 2.567695991e-06 | W128: -5.096373774e-05 | AA128: -3.793062593e-05 | AB128: -2.456437296e-05
A129: 0.1207 | B129: 0.1263
A130: 0.1216 | B130: 0.1272
A131: 0.1225 | B131: 0.128
A132: 0.1234 | B132: 0.1288
A133: 0.1243 | B133: 0.1297
A134: 0.1252 | B134: 0.1305
A135: 0.1261 | B135: 0.1313
A136: 0.1269 | B136: 0.132
A137: 0.1276 | B137: 0.1326
A138: 0.1283 | B138: 0.1332
A139: 0.1289 | B139: 0.1338
A140: 0.1294 | B140: 0.1342
A141: 0.1298 | B141: 0.1345
A142: 0.1301 | B142: 0.1347
A143: 0.1302 | B143: 0.1347
A144: 0.1303 | B144: 0.1347
A145: 0.1302 | B145: 0.1345
A146: 0.1299 | B146: 0.1341
A147: 0.1295 | B147: 0.1337
A148: 0.129 | B148: 0.133
A149: 0.1284 | B149: 0.1323
A150: 0.1276 | B150: 0.1314
A151: 0.1266 | B151: 0.1303
A152: 0.1256 | B152: 0.1292
A153: 0.1244 | B153: 0.1279
A154: 0.123 | B154: 0.1265
A155: 0.1216 | B155: 0.1249
A156: 0.1201 | B156: 0.1233
A157: 0.1184 | B157: 0.1216
A158: 0.1167 | B158: 0.1197
A159: 0.1148 | B159: 0.1178
A160: 0.1129 | B160: 0.1158
A161: 0.1109 | B161: 0.1137
A162: 0.1088 | B162: 0.1115
A163: 0.1067 | B163: 0.1093
A164: 0.1045 | B164: 0.107
A165: 0.1022 | B165: 0.1046
A166: 0.0999 | B166: 0.1023
A167: 0.0976 | B167: 0.0999
A168: 0.0952 | B168: 0.0974
A169: 0.0928 | B169: 0.095
A170: 0.0905 | B170: 0.0926
A171: 0.0882 | B171: 0.0902
A172: 0.0859 | B172: 0.0879
A173: 0.0837 | B173: 0.0856
A174: 0.0816 | B174: 0.0834
A175: 0.0795 | B175: 0.0813
A176: 0.0774 | B176: 0.0792
A177: 0.0755 | B177: 0.0772
A178: 0.0735 | B178: 0.0752

Sheet Annuity_Rates_Joint Life (hidden)
B2: Immediate NROP | AS2: Immediate NROP
C3: =SUM(C21:AQ61) -> 123.2207 | AT3: =SUM(AT21:CH61) -> 123.6577 | CK3: =SUM(CK21:DY61) -> 124.0271 | EB3: =SUM(EB21:FP61) -> 124.1952 | FS3: =SUM(FS21:HG61) -> 124.3633
B4: Primary Annuitant Age/ Secondary Annuitant Age | C4: Rate A | AS4: Primary Annuitant Age/ Secondary Annuitant Age | AT4: Rate B | CJ4: Primary Annuitant Age/ Secondary Annuitant Age | CK4: Rate C | EA4: Primary Annuitant Age/ Secondary Annuitant Age | EB4: Rate D | FR4: Primary Annuitant Age/ Secondary Annuitant Age | FS4: Rate E
C5: 45 | D5: 46 | E5: 47 | F5: 48 | G5: 49 | H5: 50 | I5: 51 | J5: 52 | K5: 53 | L5: 54 | M5: 55 | N5: 56 | O5: 57 | P5: 58 | Q5: 59 | R5: 60 | S5: 61 | T5: 62 | U5: 63 | V5: 64 | W5: 65 | X5: 66 | Y5: 67 | Z5: 68 | AA5: 69 | AB5: 70 | AC5: 71 | AD5: 72 | AE5: 73 | AF5: 74 | AG5: 75 | AH5: 76 | AI5: 77 | AJ5: 78 | AK5: 79 | AL5: 80 | AM5: 81 | AN5: 82 | AO5: 83 | AP5: 84 | AQ5: 85 | AT5: 45 | AU5: 46 | AV5: 47 | AW5: 48 | AX5: 49 | AY5: 50 | AZ5: 51 | BA5: 52 | BB5: 53 | BC5: 54 | BD5: 55 | BE5: 56 | BF5: 57 | BG5: 58 | BH5: 59 | BI5: 60 | BJ5: 61 | BK5: 62 | BL5: 63 | BM5: 64 | BN5: 65 | BO5: 66 | BP5: 67 | BQ5: 68 | BR5: 69 | BS5: 70 | BT5: 71 | BU5: 72 | BV5: 73 | BW5: 74 | BX5: 75 | BY5: 76 | BZ5: 77 | CA5: 78 | CB5: 79 | CC5: 80 | CD5: 81 | CE5: 82 | CF5: 83 | CG5: 84 | CH5: 85 | CK5: 45 | CL5: 46 | CM5: 47 | CN5: 48 | CO5: 49 | CP5: 50 | CQ5: 51 | CR5: 52 | CS5: 53 | CT5: 54 | CU5: 55 | CV5: 56 | CW5: 57 | CX5: 58 | CY5: 59 | CZ5: 60 | DA5: 61 | DB5: 62 | DC5: 63 | DD5: 64 | DE5: 65 | DF5: 66 | DG5: 67 | DH5: 68 | DI5: 69 | DJ5: 70 | DK5: 71 | DL5: 72 | DM5: 73 | DN5: 74 | DO5: 75 | DP5: 76 | DQ5: 77 | DR5: 78 | DS5: 79 | DT5: 80 | DU5: 81 | DV5: 82 | DW5: 83 | DX5: 84 | DY5: 85 | EB5: 45 | EC5: 46 | ED5: 47 | EE5: 48 | EF5: 49 | EG5: 50 | EH5: 51 | EI5: 52 | EJ5: 53 | EK5: 54 | EL5: 55 | EM5: 56 | EN5: 57 | EO5: 58 | EP5: 59 | EQ5: 60 | ER5: 61 | ES5: 62 | ET5: 63 | EU5: 64 | EV5: 65 | EW5: 66 | EX5: 67 | EY5: 68 | EZ5: 69 | FA5: 70 | FB5: 71 | FC5: 72 | FD5: 73 | FE5: 74 | FF5: 75 | FG5: 76 | FH5: 77 | FI5: 78 | FJ5: 79 | FK5: 80 | FL5: 81 | FM5: 82 | FN5: 83 | FO5: 84 | FP5: 85 | FS5: 45 | FT5: 46 | FU5: 47 | FV5: 48 | FW5: 49 | FX5: 50 | FY5: 51 | FZ5: 52 | GA5: 53 | GB5: 54 | GC5: 55 | GD5: 56 | GE5: 57 | GF5: 58 | GG5: 59 | GH5: 60 | GI5: 61 | GJ5: 62 | GK5: 63 | GL5: 64 | GM5: 65 | GN5: 66 | GO5: 67 | GP5: 68 | GQ5: 69 | GR5: 70 | GS5: 71 | GT5: 72 | GU5: 73 | GV5: 74 | GW5: 75 | GX5: 76 | GY5: 77 | GZ5: 78 | HA5: 79 | HB5: 80 | HC5: 81 | HD5: 82 | HE5: 83 | HF5: 84 | HG5: 85
B21: 45 | C21: 0.0631 | D21: 0.0632 | E21: 0.0634 | F21: 0.0635 | G21: 0.0637 | H21: 0.0638 | I21: 0.0639 | J21: 0.0641 | K21: 0.0642 | L21: 0.0644 | M21: 0.0645 | N21: 0.0646 | O21: 0.0647 | P21: 0.0648 | Q21: 0.0649 | R21: 0.065 | S21: 0.0651 | T21: 0.0652 | U21: 0.0653 | V21: 0.0653 | W21: 0.0654 | X21: 0.0655 | Y21: 0.0656 | Z21: 0.0657 | AA21: 0.0658 | AB21: 0.0659 | AC21: 0.066 | AD21: 0.066 | AE21: 0.0661 | AF21: 0.0661 | AG21: 0.0662 | AH21: 0.0662 | AI21: 0.0663 | AJ21: 0.0663 | AK21: 0.0664 | AL21: 0.0664 | AM21: 0.0665 | AN21: 0.0665 | AO21: 0.0666 | AP21: 0.0666 | AQ21: 0.0667 | AS21: 45 | AT21: 0.0634 | AU21: 0.0635 | AV21: 0.0637 | AW21: 0.0638 | AX21: 0.064 | AY21: 0.0641 | AZ21: 0.0642 | BA21: 0.0644 | BB21: 0.0645 | BC21: 0.0647 | BD21: 0.0648 | BE21: 0.0649 | BF21: 0.065 | BG21: 0.0651 | BH21: 0.0652 | BI21: 0.0653 | BJ21: 0.0654 | BK21: 0.0655 | BL21: 0.0656 | BM21: 0.0656 | BN21: 0.0657 | BO21: 0.0658 | BP21: 0.0659 | BQ21: 0.066 | BR21: 0.0661 | BS21: 0.0662 | BT21: 0.0663 | BU21: 0.0663 | BV21: 0.0664 | BW21: 0.0664 | BX21: 0.0665 | BY21: 0.0665 | BZ21: 0.0666 | CA21: 0.0666 | CB21: 0.0667 | CC21: 0.0667 | CD21: 0.0668 | CE21: 0.0668 | CF21: 0.0669 | CG21: 0.0669 | CH21: 0.067 | CJ21: 45 | CK21: 0.0637 | CL21: 0.0638 | CM21: 0.064 | CN21: 0.0641 | CO21: 0.0643 | CP21: 0.0644 | CQ21: 0.0645 | CR21: 0.0647 | CS21: 0.0648 | CT21: 0.065 | CU21: 0.0651 | CV21: 0.0652 | CW21: 0.0653 | CX21: 0.0654 | CY21: 0.0655 | CZ21: 0.0656 | DA21: 0.0657 | DB21: 0.0658 | DC21: 0.0658 | DD21: 0.0658 | DE21: 0.0659 | DF21: 0.066 | DG21: 0.0661 | DH21: 0.0662 | DI21: 0.0663 | DJ21: 0.0664 | DK21: 0.0665 | DL21: 0.0666 | DM21: 0.0666 | DN21: 0.0667 | DO21: 0.0668 | DP21: 0.0668 | DQ21: 0.0669 | DR21: 0.0669 | DS21: 0.067 | DT21: 0.067 | DU21: 0.067 | DV21: 0.0671 | DW21: 0.0671 | DX21: 0.0672 | DY21: 0.0672 | EA21: 45 | EB21: 0.0638 | EC21: 0.0639 | ED21: 0.0641 | EE21: 0.0642 | EF21: 0.0644 | EG21: 0.0645 | EH21: 0.0646 | EI21: 0.0648 | EJ21: 0.0649 | EK21: 0.0651 | EL21: 0.0652 | EM21: 0.0653 | EN21: 0.0654 | EO21: 0.0655 | EP21: 0.0656 | EQ21: 0.0657 | ER21: 0.0658 | ES21: 0.0659 | ET21: 0.0659 | EU21: 0.0659 | EV21: 0.066 | EW21: 0.0661 | EX21: 0.0662 | EY21: 0.0663 | EZ21: 0.0664 | FA21: 0.0665 | FB21: 0.0666 | FC21: 0.0667 | FD21: 0.0667 | FE21: 0.0668 | FF21: 0.0669 | FG21: 0.0669 | FH21: 0.067 | FI21: 0.067 | FJ21: 0.0671 | FK21: 0.0671 | FL21: 0.0671 | FM21: 0.0672 | FN21: 0.0672 | FO21: 0.0673 | FP21: 0.0673 | FR21: 45 | FS21: 0.0639 | FT21: 0.064 | FU21: 0.0642 | FV21: 0.0643 | FW21: 0.0645 | FX21: 0.0646 | FY21: 0.0647 | FZ21: 0.0649 | GA21: 0.065 | GB21: 0.0652 | GC21: 0.0653 | GD21: 0.0654 | GE21: 0.0655 | GF21: 0.0656 | GG21: 0.0657 | GH21: 0.0658 | GI21: 0.0659 | GJ21: 0.066 | GK21: 0.066 | GL21: 0.066 | GM21: 0.0661 | GN21: 0.0662 | GO21: 0.0663 | GP21: 0.0664 | GQ21: 0.0665 | GR21: 0.0666 | GS21: 0.0667 | GT21: 0.0668 | GU21: 0.0668 | GV21: 0.0669 | GW21: 0.067 | GX21: 0.067 | GY21: 0.0671 | GZ21: 0.0671 | HA21: 0.0672 | HB21: 0.0672 | HC21: 0.0672 | HD21: 0.0673 | HE21: 0.0673 | HF21: 0.0674 | HG21: 0.0674
B22: 46 | C22: 0.0632 | D22: 0.0634 | E22: 0.0635 | F22: 0.0637 | G22: 0.0638 | H22: 0.064 | I22: 0.0641 | J22: 0.0643 | K22: 0.0644 | L22: 0.0646 | M22: 0.0647 | N22: 0.0649 | O22: 0.065 | P22: 0.0651 | Q22: 0.0652 | R22: 0.0653 | S22: 0.0654 | T22: 0.0654 | U22: 0.0655 | V22: 0.0656 | W22: 0.0657 | X22: 0.0658 | Y22: 0.066 | Z22: 0.0661 | AA22: 0.0662 | AB22: 0.0663 | AC22: 0.0663 | AD22: 0.0664 | AE22: 0.0665 | AF22: 0.0666 | AG22: 0.0666 | AH22: 0.0667 | AI22: 0.0667 | AJ22: 0.0668 | AK22: 0.0668 | AL22: 0.0669 | AM22: 0.0669 | AN22: 0.067 | AO22: 0.067 | AP22: 0.0671 | AQ22: 0.0672 | AS22: 46 | AT22: 0.0635 | AU22: 0.0637 | AV22: 0.0638 | AW22: 0.064 | AX22: 0.0641 | AY22: 0.0643 | AZ22: 0.0644 | BA22: 0.0646 | BB22: 0.0647 | BC22: 0.0649 | BD22: 0.065 | BE22: 0.0652 | BF22: 0.0653 | BG22: 0.0654 | BH22: 0.0655 | BI22: 0.0656 | BJ22: 0.0657 | BK22: 0.0657 | BL22: 0.0658 | BM22: 0.0659 | BN22: 0.066 | BO22: 0.0661 | BP22: 0.0663 | BQ22: 0.0664 | BR22: 0.0665 | BS22: 0.0666 | BT22: 0.0666 | BU22: 0.0667 | BV22: 0.0668 | BW22: 0.0669 | BX22: 0.0669 | BY22: 0.067 | BZ22: 0.067 | CA22: 0.0671 | CB22: 0.0671 | CC22: 0.0672 | CD22: 0.0672 | CE22: 0.0673 | CF22: 0.0673 | CG22: 0.0674 | CH22: 0.0675 | CJ22: 46 | CK22: 0.0638 | CL22: 0.064 | CM22: 0.0641 | CN22: 0.0643 | CO22: 0.0644 | CP22: 0.0646 | CQ22: 0.0647 | CR22: 0.0649 | CS22: 0.065 | CT22: 0.0652 | CU22: 0.0653 | CV22: 0.0655 | CW22: 0.0656 | CX22: 0.0657 | CY22: 0.0658 | CZ22: 0.0659 | DA22: 0.066 | DB22: 0.066 | DC22: 0.0661 | DD22: 0.0662 | DE22: 0.0663 | DF22: 0.0664 | DG22: 0.0665 | DH22: 0.0666 | DI22: 0.0667 | DJ22: 0.0668 | DK22: 0.0669 | DL22: 0.0669 | DM22: 0.067 | DN22: 0.0671 | DO22: 0.0672 | DP22: 0.0672 | DQ22: 0.0673 | DR22: 0.0673 | DS22: 0.0674 | DT22: 0.0674 | DU22: 0.0675 | DV22: 0.0675 | DW22: 0.0676 | DX22: 0.0676 | DY22: 0.0677 | EA22: 46 | EB22: 0.0639 | EC22: 0.0641 | ED22: 0.0642 | EE22: 0.0644 | EF22: 0.0645 | EG22: 0.0647 | EH22: 0.0648 | EI22: 0.065 | EJ22: 0.0651 | EK22: 0.0653 | EL22: 0.0654 | EM22: 0.0656 | EN22: 0.0657 | EO22: 0.0658 | EP22: 0.0659 | EQ22: 0.066 | ER22: 0.0661 | ES22: 0.0661 | ET22: 0.0662 | EU22: 0.0663 | EV22: 0.0664 | EW22: 0.0665 | EX22: 0.0666 | EY22: 0.0667 | EZ22: 0.0668 | FA22: 0.0669 | FB22: 0.067 | FC22: 0.067 | FD22: 0.0671 | FE22: 0.0672 | FF22: 0.0673 | FG22: 0.0673 | FH22: 0.0674 | FI22: 0.0674 | FJ22: 0.0675 | FK22: 0.0675 | FL22: 0.0676 | FM22: 0.0676 | FN22: 0.0677 | FO22: 0.0677 | FP22: 0.0678 | FR22: 46 | FS22: 0.064 | FT22: 0.0642 | FU22: 0.0643 | FV22: 0.0645 | FW22: 0.0646 | FX22: 0.0648 | FY22: 0.0649 | FZ22: 0.0651 | GA22: 0.0652 | GB22: 0.0654 | GC22: 0.0655 | GD22: 0.0657 | GE22: 0.0658 | GF22: 0.0659 | GG22: 0.066 | GH22: 0.0661 | GI22: 0.0662 | GJ22: 0.0662 | GK22: 0.0663 | GL22: 0.0664 | GM22: 0.0665 | GN22: 0.0666 | GO22: 0.0667 | GP22: 0.0668 | GQ22: 0.0669 | GR22: 0.067 | GS22: 0.0671 | GT22: 0.0671 | GU22: 0.0672 | GV22: 0.0673 | GW22: 0.0674 | GX22: 0.0674 | GY22: 0.0675 | GZ22: 0.0675 | HA22: 0.0676 | HB22: 0.0676 | HC22: 0.0677 | HD22: 0.0677 | HE22: 0.0678 | HF22: 0.0678 | HG22: 0.0679
B23: 47 | C23: 0.0634 | D23: 0.0635 | E23: 0.0637 | F23: 0.0638 | G23: 0.064 | H23: 0.0642 | I23: 0.0643 | J23: 0.0645 | K23: 0.0647 | L23: 0.0648 | M23: 0.065 | N23: 0.0651 | O23: 0.0652 | P23: 0.0654 | Q23: 0.0655 | R23: 0.0656 | S23: 0.0656 | T23: 0.0657 | U23: 0.0658 | V23: 0.066 | W23: 0.0661 | X23: 0.0662 | Y23: 0.0663 | Z23: 0.0664 | AA23: 0.0665 | AB23: 0.0667 | AC23: 0.0667 | AD23: 0.0668 | AE23: 0.0669 | AF23: 0.067 | AG23: 0.067 | AH23: 0.0671 | AI23: 0.0672 | AJ23: 0.0672 | AK23: 0.0673 | AL23: 0.0673 | AM23: 0.0674 | AN23: 0.0674 | AO23: 0.0675 | AP23: 0.0676 | AQ23: 0.0676 | AS23: 47 | AT23: 0.0637 | AU23: 0.0638 | AV23: 0.064 | AW23: 0.0642 | AX23: 0.0643 | AY23: 0.0645 | AZ23: 0.0647 | BA23: 0.0648 | BB23: 0.065 | BC23: 0.0651 | BD23: 0.0653 | BE23: 0.0654 | BF23: 0.0655 | BG23: 0.0657 | BH23: 0.0658 | BI23: 0.0659 | BJ23: 0.0659 | BK23: 0.066 | BL23: 0.0661 | BM23: 0.0663 | BN23: 0.0664 | BO23: 0.0665 | BP23: 0.0666 | BQ23: 0.0667 | BR23: 0.0668 | BS23: 0.067 | BT23: 0.067 | BU23: 0.0671 | BV23: 0.0672 | BW23: 0.0673 | BX23: 0.0673 | BY23: 0.0674 | BZ23: 0.0675 | CA23: 0.0675 | CB23: 0.0676 | CC23: 0.0676 | CD23: 0.0677 | CE23: 0.0677 | CF23: 0.0678 | CG23: 0.0679 | CH23: 0.0679 | CJ23: 47 | CK23: 0.064 | CL23: 0.0641 | CM23: 0.0643 | CN23: 0.0645 | CO23: 0.0646 | CP23: 0.0648 | CQ23: 0.065 | CR23: 0.0651 | CS23: 0.0653 | CT23: 0.0654 | CU23: 0.0656 | CV23: 0.0657 | CW23: 0.0658 | CX23: 0.066 | CY23: 0.0661 | CZ23: 0.0662 | DA23: 0.0662 | DB23: 0.0663 | DC23: 0.0664 | DD23: 0.0665 | DE23: 0.0666 | DF23: 0.0667 | DG23: 0.0668 | DH23: 0.0669 | DI23: 0.0671 | DJ23: 0.0672 | DK23: 0.0672 | DL23: 0.0673 | DM23: 0.0674 | DN23: 0.0675 | DO23: 0.0676 | DP23: 0.0677 | DQ23: 0.0677 | DR23: 0.0678 | DS23: 0.0678 | DT23: 0.0679 | DU23: 0.0679 | DV23: 0.068 | DW23: 0.068 | DX23: 0.0681 | DY23: 0.0681 | EA23: 47 | EB23: 0.0641 | EC23: 0.0642 | ED23: 0.0644 | EE23: 0.0646 | EF23: 0.0647 | EG23: 0.0649 | EH23: 0.0651 | EI23: 0.0652 | EJ23: 0.0654 | EK23: 0.0655 | EL23: 0.0657 | EM23: 0.0658 | EN23: 0.0659 | EO23: 0.0661 | EP23: 0.0662 | EQ23: 0.0663 | ER23: 0.0663 | ES23: 0.0664 | ET23: 0.0665 | EU23: 0.0666 | EV23: 0.0667 | EW23: 0.0668 | EX23: 0.0669 | EY23: 0.067 | EZ23: 0.0672 | FA23: 0.0673 | FB23: 0.0673 | FC23: 0.0674 | FD23: 0.0675 | FE23: 0.0676 | FF23: 0.0677 | FG23: 0.0678 | FH23: 0.0678 | FI23: 0.0679 | FJ23: 0.0679 | FK23: 0.068 | FL23: 0.068 | FM23: 0.0681 | FN23: 0.0681 | FO23: 0.0682 | FP23: 0.0682 | FR23: 47 | FS23: 0.0642 | FT23: 0.0643 | FU23: 0.0645 | FV23: 0.0647 | FW23: 0.0648 | FX23: 0.065 | FY23: 0.0652 | FZ23: 0.0653 | GA23: 0.0655 | GB23: 0.0656 | GC23: 0.0658 | GD23: 0.0659 | GE23: 0.066 | GF23: 0.0662 | GG23: 0.0663 | GH23: 0.0664 | GI23: 0.0664 | GJ23: 0.0665 | GK23: 0.0666 | GL23: 0.0667 | GM23: 0.0668 | GN23: 0.0669 | GO23: 0.067 | GP23: 0.0671 | GQ23: 0.0673 | GR23: 0.0674 | GS23: 0.0674 | GT23: 0.0675 | GU23: 0.0676 | GV23: 0.0677 | GW23: 0.0678 | GX23: 0.0679 | GY23: 0.0679 | GZ23: 0.068 | HA23: 0.068 | HB23: 0.0681 | HC23: 0.0681 | HD23: 0.0682 | HE23: 0.0682 | HF23: 0.0683 | HG23: 0.0683
B24: 48 | C24: 0.0635 | D24: 0.0637 | E24: 0.0638 | F24: 0.064 | G24: 0.0642 | H24: 0.0643 | I24: 0.0645 | J24: 0.0647 | K24: 0.0649 | L24: 0.065 | M24: 0.0652 | N24: 0.0654 | O24: 0.0655 | P24: 0.0656 | Q24: 0.0657 | R24: 0.0658 | S24: 0.0659 | T24: 0.066 | U24: 0.0662 | V24: 0.0663 | W24: 0.0664 | X24: 0.0665 | Y24: 0.0667 | Z24: 0.0668 | AA24: 0.0669 | AB24: 0.067 | AC24: 0.0671 | AD24: 0.0672 | AE24: 0.0673 | AF24: 0.0674 | AG24: 0.0675 | AH24: 0.0675 | AI24: 0.0676 | AJ24: 0.0677 | AK24: 0.0677 | AL24: 0.0678 | AM24: 0.0678 | AN24: 0.0679 | AO24: 0.068 | AP24: 0.068 | AQ24: 0.0681 | AS24: 48 | AT24: 0.0638 | AU24: 0.064 | AV24: 0.0642 | AW24: 0.0643 | AX24: 0.0645 | AY24: 0.0647 | AZ24: 0.0649 | BA24: 0.065 | BB24: 0.0652 | BC24: 0.0654 | BD24: 0.0655 | BE24: 0.0657 | BF24: 0.0658 | BG24: 0.0659 | BH24: 0.066 | BI24: 0.0661 | BJ24: 0.0662 | BK24: 0.0663 | BL24: 0.0665 | BM24: 0.0666 | BN24: 0.0667 | BO24: 0.0668 | BP24: 0.067 | BQ24: 0.0671 | BR24: 0.0672 | BS24: 0.0673 | BT24: 0.0674 | BU24: 0.0675 | BV24: 0.0676 | BW24: 0.0677 | BX24: 0.0678 | BY24: 0.0678 | BZ24: 0.0679 | CA24: 0.068 | CB24: 0.068 | CC24: 0.0681 | CD24: 0.0681 | CE24: 0.0682 | CF24: 0.0683 | CG24: 0.0683 | CH24: 0.0684 | CJ24: 48 | CK24: 0.0641 | CL24: 0.0643 | CM24: 0.0645 | CN24: 0.0646 | CO24: 0.0648 | CP24: 0.065 | CQ24: 0.0652 | CR24: 0.0653 | CS24: 0.0655 | CT24: 0.0657 | CU24: 0.0658 | CV24: 0.066 | CW24: 0.0661 | CX24: 0.0662 | CY24: 0.0663 | CZ24: 0.0664 | DA24: 0.0665 | DB24: 0.0666 | DC24: 0.0667 | DD24: 0.0669 | DE24: 0.067 | DF24: 0.0671 | DG24: 0.0672 | DH24: 0.0673 | DI24: 0.0674 | DJ24: 0.0675 | DK24: 0.0676 | DL24: 0.0677 | DM24: 0.0678 | DN24: 0.0679 | DO24: 0.068 | DP24: 0.0681 | DQ24: 0.0681 | DR24: 0.0682 | DS24: 0.0683 | DT24: 0.0683 | DU24: 0.0684 | DV24: 0.0684 | DW24: 0.0685 | DX24: 0.0685 | DY24: 0.0686 | EA24: 48 | EB24: 0.0642 | EC24: 0.0644 | ED24: 0.0646 | EE24: 0.0647 | EF24: 0.0649 | EG24: 0.0651 | EH24: 0.0653 | EI24: 0.0654 | EJ24: 0.0656 | EK24: 0.0658 | EL24: 0.0659 | EM24: 0.0661 | EN24: 0.0662 | EO24: 0.0663 | EP24: 0.0664 | EQ24: 0.0665 | ER24: 0.0666 | ES24: 0.0667 | ET24: 0.0668 | EU24: 0.067 | EV24: 0.0671 | EW24: 0.0672 | EX24: 0.0673 | EY24: 0.0674 | EZ24: 0.0675 | FA24: 0.0676 | FB24: 0.0677 | FC24: 0.0678 | FD24: 0.0679 | FE24: 0.068 | FF24: 0.0681 | FG24: 0.0682 | FH24: 0.0682 | FI24: 0.0683 | FJ24: 0.0684 | FK24: 0.0684 | FL24: 0.0685 | FM24: 0.0685 | FN24: 0.0686 | FO24: 0.0686 | FP24: 0.0687 | FR24: 48 | FS24: 0.0643 | FT24: 0.0645 | FU24: 0.0647 | FV24: 0.0648 | FW24: 0.065 | FX24: 0.0652 | FY24: 0.0654 | FZ24: 0.0655 | GA24: 0.0657 | GB24: 0.0659 | GC24: 0.066 | GD24: 0.0662 | GE24: 0.0663 | GF24: 0.0664 | GG24: 0.0665 | GH24: 0.0666 | GI24: 0.0667 | GJ24: 0.0668 | GK24: 0.0669 | GL24: 0.0671 | GM24: 0.0672 | GN24: 0.0673 | GO24: 0.0674 | GP24: 0.0675 | GQ24: 0.0676 | GR24: 0.0677 | GS24: 0.0678 | GT24: 0.0679 | GU24: 0.068 | GV24: 0.0681 | GW24: 0.0682 | GX24: 0.0683 | GY24: 0.0683 | GZ24: 0.0684 | HA24: 0.0685 | HB24: 0.0685 | HC24: 0.0686 | HD24: 0.0686 | HE24: 0.0687 | HF24: 0.0687 | HG24: 0.0688
B25: 49 | C25: 0.0637 | D25: 0.0638 | E25: 0.064 | F25: 0.0642 | G25: 0.0643 | H25: 0.0645 | I25: 0.0647 | J25: 0.0649 | K25: 0.0651 | L25: 0.0653 | M25: 0.0655 | N25: 0.0656 | O25: 0.0658 | P25: 0.0658 | Q25: 0.066 | R25: 0.0661 | S25: 0.0662 | T25: 0.0664 | U25: 0.0665 | V25: 0.0666 | W25: 0.0668 | X25: 0.0669 | Y25: 0.067 | Z25: 0.0672 | AA25: 0.0673 | AB25: 0.0674 | AC25: 0.0675 | AD25: 0.0676 | AE25: 0.0677 | AF25: 0.0678 | AG25: 0.0679 | AH25: 0.068 | AI25: 0.068 | AJ25: 0.0681 | AK25: 0.0682 | AL25: 0.0682 | AM25: 0.0683 | AN25: 0.0684 | AO25: 0.0684 | AP25: 0.0685 | AQ25: 0.0685 | AS25: 49 | AT25: 0.064 | AU25: 0.0641 | AV25: 0.0643 | AW25: 0.0645 | AX25: 0.0647 | AY25: 0.0649 | AZ25: 0.0651 | BA25: 0.0652 | BB25: 0.0654 | BC25: 0.0656 | BD25: 0.0658 | BE25: 0.0659 | BF25: 0.0661 | BG25: 0.0661 | BH25: 0.0663 | BI25: 0.0664 | BJ25: 0.0665 | BK25: 0.0667 | BL25: 0.0668 | BM25: 0.0669 | BN25: 0.0671 | BO25: 0.0672 | BP25: 0.0673 | BQ25: 0.0675 | BR25: 0.0676 | BS25: 0.0677 | BT25: 0.0678 | BU25: 0.0679 | BV25: 0.068 | BW25: 0.0681 | BX25: 0.0682 | BY25: 0.0683 | BZ25: 0.0683 | CA25: 0.0684 | CB25: 0.0685 | CC25: 0.0685 | CD25: 0.0686 | CE25: 0.0687 | CF25: 0.0687 | CG25: 0.0688 | CH25: 0.0688 | CJ25: 49 | CK25: 0.0643 | CL25: 0.0644 | CM25: 0.0646 | CN25: 0.0648 | CO25: 0.065 | CP25: 0.0652 | CQ25: 0.0654 | CR25: 0.0655 | CS25: 0.0657 | CT25: 0.0659 | CU25: 0.0661 | CV25: 0.0662 | CW25: 0.0664 | CX25: 0.0664 | CY25: 0.0666 | CZ25: 0.0667 | DA25: 0.0668 | DB25: 0.067 | DC25: 0.0671 | DD25: 0.0672 | DE25: 0.0673 | DF25: 0.0675 | DG25: 0.0676 | DH25: 0.0677 | DI25: 0.0678 | DJ25: 0.0679 | DK25: 0.068 | DL25: 0.0681 | DM25: 0.0682 | DN25: 0.0683 | DO25: 0.0684 | DP25: 0.0685 | DQ25: 0.0685 | DR25: 0.0686 | DS25: 0.0687 | DT25: 0.0688 | DU25: 0.0688 | DV25: 0.0689 | DW25: 0.0689 | DX25: 0.069 | DY25: 0.069 | EA25: 49 | EB25: 0.0644 | EC25: 0.0645 | ED25: 0.0647 | EE25: 0.0649 | EF25: 0.0651 | EG25: 0.0653 | EH25: 0.0655 | EI25: 0.0656 | EJ25: 0.0658 | EK25: 0.066 | EL25: 0.0662 | EM25: 0.0663 | EN25: 0.0665 | EO25: 0.0665 | EP25: 0.0667 | EQ25: 0.0668 | ER25: 0.0669 | ES25: 0.0671 | ET25: 0.0672 | EU25: 0.0673 | EV25: 0.0674 | EW25: 0.0676 | EX25: 0.0677 | EY25: 0.0678 | EZ25: 0.0679 | FA25: 0.068 | FB25: 0.0681 | FC25: 0.0682 | FD25: 0.0683 | FE25: 0.0684 | FF25: 0.0685 | FG25: 0.0686 | FH25: 0.0686 | FI25: 0.0687 | FJ25: 0.0688 | FK25: 0.0689 | FL25: 0.0689 | FM25: 0.069 | FN25: 0.069 | FO25: 0.0691 | FP25: 0.0691 | FR25: 49 | FS25: 0.0645 | FT25: 0.0646 | FU25: 0.0648 | FV25: 0.065 | FW25: 0.0652 | FX25: 0.0654 | FY25: 0.0656 | FZ25: 0.0657 | GA25: 0.0659 | GB25: 0.0661 | GC25: 0.0663 | GD25: 0.0664 | GE25: 0.0666 | GF25: 0.0666 | GG25: 0.0668 | GH25: 0.0669 | GI25: 0.067 | GJ25: 0.0672 | GK25: 0.0673 | GL25: 0.0674 | GM25: 0.0675 | GN25: 0.0677 | GO25: 0.0678 | GP25: 0.0679 | GQ25: 0.068 | GR25: 0.0681 | GS25: 0.0682 | GT25: 0.0683 | GU25: 0.0684 | GV25: 0.0685 | GW25: 0.0686 | GX25: 0.0687 | GY25: 0.0687 | GZ25: 0.0688 | HA25: 0.0689 | HB25: 0.069 | HC25: 0.069 | HD25: 0.0691 | HE25: 0.0691 | HF25: 0.0692 | HG25: 0.0692
B26: 50 | C26: 0.0638 | D26: 0.064 | E26: 0.0642 | F26: 0.0643 | G26: 0.0645 | H26: 0.0647 | I26: 0.0649 | J26: 0.0651 | K26: 0.0653 | L26: 0.0655 | M26: 0.0657 | N26: 0.0659 | O26: 0.0659 | P26: 0.0661 | Q26: 0.0662 | R26: 0.0664 | S26: 0.0665 | T26: 0.0667 | U26: 0.0668 | V26: 0.067 | W26: 0.0671 | X26: 0.0672 | Y26: 0.0674 | Z26: 0.0675 | AA26: 0.0677 | AB26: 0.0678 | AC26: 0.0679 | AD26: 0.068 | AE26: 0.0681 | AF26: 0.0682 | AG26: 0.0683 | AH26: 0.0684 | AI26: 0.0685 | AJ26: 0.0685 | AK26: 0.0686 | AL26: 0.0687 | AM26: 0.0688 | AN26: 0.0688 | AO26: 0.0689 | AP26: 0.0689 | AQ26: 0.069 | AS26: 50 | AT26: 0.0641 | AU26: 0.0643 | AV26: 0.0645 | AW26: 0.0647 | AX26: 0.0649 | AY26: 0.0651 | AZ26: 0.0653 | BA26: 0.0655 | BB26: 0.0656 | BC26: 0.0658 | BD26: 0.066 | BE26: 0.0662 | BF26: 0.0662 | BG26: 0.0664 | BH26: 0.0665 | BI26: 0.0667 | BJ26: 0.0668 | BK26: 0.067 | BL26: 0.0671 | BM26: 0.0673 | BN26: 0.0674 | BO26: 0.0675 | BP26: 0.0677 | BQ26: 0.0678 | BR26: 0.068 | BS26: 0.0681 | BT26: 0.0682 | BU26: 0.0683 | BV26: 0.0684 | BW26: 0.0685 | BX26: 0.0686 | BY26: 0.0687 | BZ26: 0.0688 | CA26: 0.0688 | CB26: 0.0689 | CC26: 0.069 | CD26: 0.0691 | CE26: 0.0691 | CF26: 0.0692 | CG26: 0.0692 | CH26: 0.0693 | CJ26: 50 | CK26: 0.0644 | CL26: 0.0646 | CM26: 0.0648 | CN26: 0.065 | CO26: 0.0652 | CP26: 0.0654 | CQ26: 0.0656 | CR26: 0.0658 | CS26: 0.0659 | CT26: 0.0661 | CU26: 0.0663 | CV26: 0.0665 | CW26: 0.0665 | CX26: 0.0667 | CY26: 0.0668 | CZ26: 0.067 | DA26: 0.0671 | DB26: 0.0673 | DC26: 0.0674 | DD26: 0.0676 | DE26: 0.0677 | DF26: 0.0678 | DG26: 0.0679 | DH26: 0.0681 | DI26: 0.0682 | DJ26: 0.0683 | DK26: 0.0684 | DL26: 0.0685 | DM26: 0.0686 | DN26: 0.0687 | DO26: 0.0688 | DP26: 0.0689 | DQ26: 0.069 | DR26: 0.069 | DS26: 0.0691 | DT26: 0.0692 | DU26: 0.0693 | DV26: 0.0693 | DW26: 0.0694 | DX26: 0.0694 | DY26: 0.0695 | EA26: 50 | EB26: 0.0645 | EC26: 0.0647 | ED26: 0.0649 | EE26: 0.0651 | EF26: 0.0653 | EG26: 0.0655 | EH26: 0.0657 | EI26: 0.0659 | EJ26: 0.066 | EK26: 0.0662 | EL26: 0.0664 | EM26: 0.0666 | EN26: 0.0666 | EO26: 0.0668 | EP26: 0.0669 | EQ26: 0.0671 | ER26: 0.0672 | ES26: 0.0674 | ET26: 0.0675 | EU26: 0.0677 | EV26: 0.0678 | EW26: 0.0679 | EX26: 0.068 | EY26: 0.0682 | EZ26: 0.0683 | FA26: 0.0684 | FB26: 0.0685 | FC26: 0.0686 | FD26: 0.0687 | FE26: 0.0688 | FF26: 0.0689 | FG26: 0.069 | FH26: 0.0691 | FI26: 0.0691 | FJ26: 0.0692 | FK26: 0.0693 | FL26: 0.0694 | FM26: 0.0694 | FN26: 0.0695 | FO26: 0.0695 | FP26: 0.0696 | FR26: 50 | FS26: 0.0646 | FT26: 0.0648 | FU26: 0.065 | FV26: 0.0652 | FW26: 0.0654 | FX26: 0.0656 | FY26: 0.0658 | FZ26: 0.066 | GA26: 0.0661 | GB26: 0.0663 | GC26: 0.0665 | GD26: 0.0667 | GE26: 0.0667 | GF26: 0.0669 | GG26: 0.067 | GH26: 0.0672 | GI26: 0.0673 | GJ26: 0.0675 | GK26: 0.0676 | GL26: 0.0678 | GM26: 0.0679 | GN26: 0.068 | GO26: 0.0681 | GP26: 0.0683 | GQ26: 0.0684 | GR26: 0.0685 | GS26: 0.0686 | GT26: 0.0687 | GU26: 0.0688 | GV26: 0.0689 | GW26: 0.069 | GX26: 0.0691 | GY26: 0.0692 | GZ26: 0.0692 | HA26: 0.0693 | HB26: 0.0694 | HC26: 0.0695 | HD26: 0.0695 | HE26: 0.0696 | HF26: 0.0696 | HG26: 0.0697
B27: 51 | C27: 0.0639 | D27: 0.0641 | E27: 0.0643 | F27: 0.0645 | G27: 0.0647 | H27: 0.0649 | I27: 0.0651 | J27: 0.0653 | K27: 0.0655 | L27: 0.0657 | M27: 0.0658 | N27: 0.066 | O27: 0.0662 | P27: 0.0663 | Q27: 0.0665 | R27: 0.0667 | S27: 0.0668 | T27: 0.067 | U27: 0.0671 | V27: 0.0673 | W27: 0.0674 | X27: 0.0676 | Y27: 0.0678 | Z27: 0.0679 | AA27: 0.0681 | AB27: 0.0682 | AC27: 0.0684 | AD27: 0.0685 | AE27: 0.0686 | AF27: 0.0687 | AG27: 0.0688 | AH27: 0.0689 | AI27: 0.069 | AJ27: 0.0691 | AK27: 0.0692 | AL27: 0.0693 | AM27: 0.0693 | AN27: 0.0694 | AO27: 0.0695 | AP27: 0.0695 | AQ27: 0.0696 | AS27: 51 | AT27: 0.0642 | AU27: 0.0644 | AV27: 0.0647 | AW27: 0.0649 | AX27: 0.0651 | AY27: 0.0653 | AZ27: 0.0655 | BA27: 0.0657 | BB27: 0.0658 | BC27: 0.066 | BD27: 0.0661 | BE27: 0.0663 | BF27: 0.0665 | BG27: 0.0666 | BH27: 0.0668 | BI27: 0.067 | BJ27: 0.0671 | BK27: 0.0673 | BL27: 0.0674 | BM27: 0.0676 | BN27: 0.0677 | BO27: 0.0679 | BP27: 0.0681 | BQ27: 0.0682 | BR27: 0.0684 | BS27: 0.0685 | BT27: 0.0686 | BU27: 0.0687 | BV27: 0.0689 | BW27: 0.069 | BX27: 0.0691 | BY27: 0.0692 | BZ27: 0.0693 | CA27: 0.0694 | CB27: 0.0695 | CC27: 0.0696 | CD27: 0.0696 | CE27: 0.0697 | CF27: 0.0698 | CG27: 0.0698 | CH27: 0.0699 | CJ27: 51 | CK27: 0.0645 | CL27: 0.0647 | CM27: 0.065 | CN27: 0.0652 | CO27: 0.0654 | CP27: 0.0656 | CQ27: 0.0658 | CR27: 0.066 | CS27: 0.0661 | CT27: 0.0663 | CU27: 0.0664 | CV27: 0.0666 | CW27: 0.0668 | CX27: 0.0669 | CY27: 0.0671 | CZ27: 0.0673 | DA27: 0.0674 | DB27: 0.0676 | DC27: 0.0677 | DD27: 0.0679 | DE27: 0.068 | DF27: 0.0682 | DG27: 0.0683 | DH27: 0.0684 | DI27: 0.0686 | DJ27: 0.0687 | DK27: 0.0688 | DL27: 0.0689 | DM27: 0.0691 | DN27: 0.0692 | DO27: 0.0693 | DP27: 0.0694 | DQ27: 0.0695 | DR27: 0.0696 | DS27: 0.0697 | DT27: 0.0698 | DU27: 0.0698 | DV27: 0.0699 | DW27: 0.07 | DX27: 0.07 | DY27: 0.0701 | EA27: 51 | EB27: 0.0646 | EC27: 0.0648 | ED27: 0.0651 | EE27: 0.0653 | EF27: 0.0655 | EG27: 0.0657 | EH27: 0.0659 | EI27: 0.0661 | EJ27: 0.0662 | EK27: 0.0664 | EL27: 0.0665 | EM27: 0.0667 | EN27: 0.0669 | EO27: 0.067 | EP27: 0.0672 | EQ27: 0.0674 | ER27: 0.0675 | ES27: 0.0677 | ET27: 0.0678 | EU27: 0.068 | EV27: 0.0681 | EW27: 0.0683 | EX27: 0.0684 | EY27: 0.0685 | EZ27: 0.0687 | FA27: 0.0688 | FB27: 0.0689 | FC27: 0.069 | FD27: 0.0692 | FE27: 0.0693 | FF27: 0.0694 | FG27: 0.0695 | FH27: 0.0696 | FI27: 0.0697 | FJ27: 0.0698 | FK27: 0.0699 | FL27: 0.0699 | FM27: 0.07 | FN27: 0.0701 | FO27: 0.0701 | FP27: 0.0702 | FR27: 51 | FS27: 0.0647 | FT27: 0.0649 | FU27: 0.0652 | FV27: 0.0654 | FW27: 0.0656 | FX27: 0.0658 | FY27: 0.066 | FZ27: 0.0662 | GA27: 0.0663 | GB27: 0.0665 | GC27: 0.0666 | GD27: 0.0668 | GE27: 0.067 | GF27: 0.0671 | GG27: 0.0673 | GH27: 0.0675 | GI27: 0.0676 | GJ27: 0.0678 | GK27: 0.0679 | GL27: 0.0681 | GM27: 0.0682 | GN27: 0.0684 | GO27: 0.0685 | GP27: 0.0686 | GQ27: 0.0688 | GR27: 0.0689 | GS27: 0.069 | GT27: 0.0691 | GU27: 0.0693 | GV27: 0.0694 | GW27: 0.0695 | GX27: 0.0696 | GY27: 0.0697 | GZ27: 0.0698 | HA27: 0.0699 | HB27: 0.07 | HC27: 0.07 | HD27: 0.0701 | HE27: 0.0702 | HF27: 0.0702 | HG27: 0.0703
B28: 52 | C28: 0.0641 | D28: 0.0643 | E28: 0.0645 | F28: 0.0647 | G28: 0.0649 | H28: 0.0651 | I28: 0.0653 | J28: 0.0655 | K28: 0.0657 | L28: 0.0659 | M28: 0.0661 | N28: 0.0663 | O28: 0.0664 | P28: 0.0666 | Q28: 0.0668 | R28: 0.067 | S28: 0.0671 | T28: 0.0673 | U28: 0.0675 | V28: 0.0676 | W28: 0.0678 | X28: 0.068 | Y28: 0.0681 | Z28: 0.0683 | AA28: 0.0685 | AB28: 0.0687 | AC28: 0.0688 | AD28: 0.0689 | AE28: 0.0691 | AF28: 0.0692 | AG28: 0.0693 | AH28: 0.0694 | AI28: 0.0695 | AJ28: 0.0696 | AK28: 0.0697 | AL28: 0.0698 | AM28: 0.0699 | AN28: 0.07 | AO28: 0.0701 | AP28: 0.0702 | AQ28: 0.0702 | AS28: 52 | AT28: 0.0644 | AU28: 0.0646 | AV28: 0.0648 | AW28: 0.065 | AX28: 0.0652 | AY28: 0.0655 | AZ28: 0.0657 | BA28: 0.0659 | BB28: 0.066 | BC28: 0.0662 | BD28: 0.0664 | BE28: 0.0666 | BF28: 0.0667 | BG28: 0.0669 | BH28: 0.0671 | BI28: 0.0673 | BJ28: 0.0674 | BK28: 0.0676 | BL28: 0.0678 | BM28: 0.0679 | BN28: 0.0681 | BO28: 0.0683 | BP28: 0.0684 | BQ28: 0.0686 | BR28: 0.0688 | BS28: 0.0689 | BT28: 0.0691 | BU28: 0.0692 | BV28: 0.0693 | BW28: 0.0694 | BX28: 0.0696 | BY28: 0.0697 | BZ28: 0.0698 | CA28: 0.0699 | CB28: 0.07 | CC28: 0.0701 | CD28: 0.0702 | CE28: 0.0703 | CF28: 0.0703 | CG28: 0.0704 | CH28: 0.0705 | CJ28: 52 | CK28: 0.0647 | CL28: 0.0649 | CM28: 0.0651 | CN28: 0.0653 | CO28: 0.0655 | CP28: 0.0658 | CQ28: 0.066 | CR28: 0.0662 | CS28: 0.0663 | CT28: 0.0664 | CU28: 0.0666 | CV28: 0.0668 | CW28: 0.067 | CX28: 0.0672 | CY28: 0.0674 | CZ28: 0.0676 | DA28: 0.0677 | DB28: 0.0679 | DC28: 0.0681 | DD28: 0.0682 | DE28: 0.0684 | DF28: 0.0685 | DG28: 0.0687 | DH28: 0.0688 | DI28: 0.069 | DJ28: 0.0691 | DK28: 0.0693 | DL28: 0.0694 | DM28: 0.0695 | DN28: 0.0696 | DO28: 0.0698 | DP28: 0.0699 | DQ28: 0.07 | DR28: 0.0701 | DS28: 0.0702 | DT28: 0.0703 | DU28: 0.0704 | DV28: 0.0705 | DW28: 0.0705 | DX28: 0.0706 | DY28: 0.0707 | EA28: 52 | EB28: 0.0648 | EC28: 0.065 | ED28: 0.0652 | EE28: 0.0654 | EF28: 0.0656 | EG28: 0.0659 | EH28: 0.0661 | EI28: 0.0663 | EJ28: 0.0664 | EK28: 0.0665 | EL28: 0.0667 | EM28: 0.0669 | EN28: 0.0671 | EO28: 0.0673 | EP28: 0.0675 | EQ28: 0.0677 | ER28: 0.0678 | ES28: 0.068 | ET28: 0.0682 | EU28: 0.0683 | EV28: 0.0685 | EW28: 0.0686 | EX28: 0.0688 | EY28: 0.0689 | EZ28: 0.0691 | FA28: 0.0692 | FB28: 0.0694 | FC28: 0.0695 | FD28: 0.0696 | FE28: 0.0697 | FF28: 0.0699 | FG28: 0.07 | FH28: 0.0701 | FI28: 0.0702 | FJ28: 0.0703 | FK28: 0.0704 | FL28: 0.0705 | FM28: 0.0706 | FN28: 0.0706 | FO28: 0.0707 | FP28: 0.0708 | FR28: 52 | FS28: 0.0649 | FT28: 0.0651 | FU28: 0.0653 | FV28: 0.0655 | FW28: 0.0657 | FX28: 0.066 | FY28: 0.0662 | FZ28: 0.0664 | GA28: 0.0665 | GB28: 0.0666 | GC28: 0.0668 | GD28: 0.067 | GE28: 0.0672 | GF28: 0.0674 | GG28: 0.0676 | GH28: 0.0678 | GI28: 0.0679 | GJ28: 0.0681 | GK28: 0.0683 | GL28: 0.0684 | GM28: 0.0686 | GN28: 0.0687 | GO28: 0.0689 | GP28: 0.069 | GQ28: 0.0692 | GR28: 0.0693 | GS28: 0.0695 | GT28: 0.0696 | GU28: 0.0697 | GV28: 0.0698 | GW28: 0.07 | GX28: 0.0701 | GY28: 0.0702 | GZ28: 0.0703 | HA28: 0.0704 | HB28: 0.0705 | HC28: 0.0706 | HD28: 0.0707 | HE28: 0.0707 | HF28: 0.0708 | HG28: 0.0709
B29: 53 | C29: 0.0642 | D29: 0.0644 | E29: 0.0647 | F29: 0.0649 | G29: 0.0651 | H29: 0.0653 | I29: 0.0655 | J29: 0.0657 | K29: 0.0659 | L29: 0.0661 | M29: 0.0663 | N29: 0.0665 | O29: 0.0667 | P29: 0.0669 | Q29: 0.0671 | R29: 0.0672 | S29: 0.0674 | T29: 0.0676 | U29: 0.0678 | V29: 0.0679 | W29: 0.0681 | X29: 0.0683 | Y29: 0.0685 | Z29: 0.0687 | AA29: 0.0689 | AB29: 0.0691 | AC29: 0.0693 | AD29: 0.0694 | AE29: 0.0695 | AF29: 0.0697 | AG29: 0.0698 | AH29: 0.0699 | AI29: 0.07 | AJ29: 0.0701 | AK29: 0.0703 | AL29: 0.0704 | AM29: 0.0705 | AN29: 0.0706 | AO29: 0.0707 | AP29: 0.0707 | AQ29: 0.0708 | AS29: 53 | AT29: 0.0645 | AU29: 0.0647 | AV29: 0.065 | AW29: 0.0652 | AX29: 0.0654 | AY29: 0.0656 | AZ29: 0.0658 | BA29: 0.066 | BB29: 0.0662 | BC29: 0.0664 | BD29: 0.0666 | BE29: 0.0668 | BF29: 0.067 | BG29: 0.0672 | BH29: 0.0674 | BI29: 0.0675 | BJ29: 0.0677 | BK29: 0.0679 | BL29: 0.0681 | BM29: 0.0682 | BN29: 0.0684 | BO29: 0.0686 | BP29: 0.0688 | BQ29: 0.069 | BR29: 0.0692 | BS29: 0.0694 | BT29: 0.0695 | BU29: 0.0696 | BV29: 0.0698 | BW29: 0.0699 | BX29: 0.07 | BY29: 0.0702 | BZ29: 0.0703 | CA29: 0.0704 | CB29: 0.0706 | CC29: 0.0707 | CD29: 0.0708 | CE29: 0.0708 | CF29: 0.0709 | CG29: 0.0709 | CH29: 0.071 | CJ29: 53 | CK29: 0.0648 | CL29: 0.065 | CM29: 0.0653 | CN29: 0.0655 | CO29: 0.0657 | CP29: 0.0659 | CQ29: 0.0661 | CR29: 0.0663 | CS29: 0.0665 | CT29: 0.0667 | CU29: 0.0669 | CV29: 0.0671 | CW29: 0.0673 | CX29: 0.0674 | CY29: 0.0676 | CZ29: 0.0678 | DA29: 0.068 | DB29: 0.0682 | DC29: 0.0684 | DD29: 0.0685 | DE29: 0.0687 | DF29: 0.0689 | DG29: 0.0691 | DH29: 0.0692 | DI29: 0.0694 | DJ29: 0.0696 | DK29: 0.0697 | DL29: 0.0698 | DM29: 0.07 | DN29: 0.0701 | DO29: 0.0702 | DP29: 0.0704 | DQ29: 0.0705 | DR29: 0.0706 | DS29: 0.0708 | DT29: 0.0709 | DU29: 0.071 | DV29: 0.071 | DW29: 0.0711 | DX29: 0.0711 | DY29: 0.0712 | EA29: 53 | EB29: 0.0649 | EC29: 0.0651 | ED29: 0.0654 | EE29: 0.0656 | EF29: 0.0658 | EG29: 0.066 | EH29: 0.0662 | EI29: 0.0664 | EJ29: 0.0666 | EK29: 0.0668 | EL29: 0.067 | EM29: 0.0672 | EN29: 0.0674 | EO29: 0.0675 | EP29: 0.0677 | EQ29: 0.0679 | ER29: 0.0681 | ES29: 0.0683 | ET29: 0.0685 | EU29: 0.0686 | EV29: 0.0688 | EW29: 0.069 | EX29: 0.0692 | EY29: 0.0693 | EZ29: 0.0695 | FA29: 0.0697 | FB29: 0.0698 | FC29: 0.0699 | FD29: 0.0701 | FE29: 0.0702 | FF29: 0.0703 | FG29: 0.0705 | FH29: 0.0706 | FI29: 0.0707 | FJ29: 0.0709 | FK29: 0.071 | FL29: 0.0711 | FM29: 0.0711 | FN29: 0.0712 | FO29: 0.0712 | FP29: 0.0713 | FR29: 53 | FS29: 0.065 | FT29: 0.0652 | FU29: 0.0655 | FV29: 0.0657 | FW29: 0.0659 | FX29: 0.0661 | FY29: 0.0663 | FZ29: 0.0665 | GA29: 0.0667 | GB29: 0.0669 | GC29: 0.0671 | GD29: 0.0673 | GE29: 0.0675 | GF29: 0.0676 | GG29: 0.0678 | GH29: 0.068 | GI29: 0.0682 | GJ29: 0.0684 | GK29: 0.0686 | GL29: 0.0687 | GM29: 0.0689 | GN29: 0.0691 | GO29: 0.0693 | GP29: 0.0694 | GQ29: 0.0696 | GR29: 0.0698 | GS29: 0.0699 | GT29: 0.07 | GU29: 0.0702 | GV29: 0.0703 | GW29: 0.0704 | GX29: 0.0706 | GY29: 0.0707 | GZ29: 0.0708 | HA29: 0.071 | HB29: 0.0711 | HC29: 0.0712 | HD29: 0.0712 | HE29: 0.0713 | HF29: 0.0713 | HG29: 0.0714
B30: 54 | C30: 0.0644 | D30: 0.0646 | E30: 0.0648 | F30: 0.065 | G30: 0.0653 | H30: 0.0655 | I30: 0.0657 | J30: 0.0659 | K30: 0.0661 | L30: 0.0663 | M30: 0.0666 | N30: 0.0668 | O30: 0.0669 | P30: 0.0671 | Q30: 0.0673 | R30: 0.0675 | S30: 0.0677 | T30: 0.0679 | U30: 0.0681 | V30: 0.0683 | W30: 0.0685 | X30: 0.0687 | Y30: 0.0689 | Z30: 0.0691 | AA30: 0.0693 | AB30: 0.0696 | AC30: 0.0697 | AD30: 0.0699 | AE30: 0.07 | AF30: 0.0702 | AG30: 0.0703 | AH30: 0.0704 | AI30: 0.0706 | AJ30: 0.0707 | AK30: 0.0708 | AL30: 0.0709 | AM30: 0.071 | AN30: 0.0711 | AO30: 0.0712 | AP30: 0.0713 | AQ30: 0.0714 | AS30: 54 | AT30: 0.0647 | AU30: 0.0649 | AV30: 0.0651 | AW30: 0.0654 | AX30: 0.0656 | AY30: 0.0658 | AZ30: 0.066 | BA30: 0.0662 | BB30: 0.0664 | BC30: 0.0666 | BD30: 0.0669 | BE30: 0.0671 | BF30: 0.0672 | BG30: 0.0674 | BH30: 0.0676 | BI30: 0.0678 | BJ30: 0.068 | BK30: 0.0682 | BL30: 0.0684 | BM30: 0.0686 | BN30: 0.0688 | BO30: 0.069 | BP30: 0.0692 | BQ30: 0.0694 | BR30: 0.0696 | BS30: 0.0698 | BT30: 0.0699 | BU30: 0.0701 | BV30: 0.0702 | BW30: 0.0704 | BX30: 0.0705 | BY30: 0.0707 | BZ30: 0.0708 | CA30: 0.071 | CB30: 0.0711 | CC30: 0.0712 | CD30: 0.0713 | CE30: 0.0713 | CF30: 0.0714 | CG30: 0.0715 | CH30: 0.0716 | CJ30: 54 | CK30: 0.065 | CL30: 0.0652 | CM30: 0.0654 | CN30: 0.0657 | CO30: 0.0659 | CP30: 0.0661 | CQ30: 0.0663 | CR30: 0.0664 | CS30: 0.0667 | CT30: 0.0669 | CU30: 0.0671 | CV30: 0.0673 | CW30: 0.0675 | CX30: 0.0677 | CY30: 0.0679 | CZ30: 0.0681 | DA30: 0.0683 | DB30: 0.0685 | DC30: 0.0687 | DD30: 0.0689 | DE30: 0.0691 | DF30: 0.0692 | DG30: 0.0694 | DH30: 0.0696 | DI30: 0.0698 | DJ30: 0.07 | DK30: 0.0701 | DL30: 0.0703 | DM30: 0.0704 | DN30: 0.0706 | DO30: 0.0707 | DP30: 0.0709 | DQ30: 0.071 | DR30: 0.0712 | DS30: 0.0713 | DT30: 0.0714 | DU30: 0.0715 | DV30: 0.0715 | DW30: 0.0716 | DX30: 0.0717 | DY30: 0.0718 | EA30: 54 | EB30: 0.0651 | EC30: 0.0653 | ED30: 0.0655 | EE30: 0.0658 | EF30: 0.066 | EG30: 0.0662 | EH30: 0.0664 | EI30: 0.0665 | EJ30: 0.0668 | EK30: 0.067 | EL30: 0.0672 | EM30: 0.0674 | EN30: 0.0676 | EO30: 0.0678 | EP30: 0.068 | EQ30: 0.0682 | ER30: 0.0684 | ES30: 0.0686 | ET30: 0.0688 | EU30: 0.069 | EV30: 0.0692 | EW30: 0.0693 | EX30: 0.0695 | EY30: 0.0697 | EZ30: 0.0699 | FA30: 0.0701 | FB30: 0.0702 | FC30: 0.0704 | FD30: 0.0705 | FE30: 0.0707 | FF30: 0.0708 | FG30: 0.071 | FH30: 0.0711 | FI30: 0.0713 | FJ30: 0.0714 | FK30: 0.0715 | FL30: 0.0716 | FM30: 0.0716 | FN30: 0.0717 | FO30: 0.0718 | FP30: 0.0719 | FR30: 54 | FS30: 0.0652 | FT30: 0.0654 | FU30: 0.0656 | FV30: 0.0659 | FW30: 0.0661 | FX30: 0.0663 | FY30: 0.0665 | FZ30: 0.0666 | GA30: 0.0669 | GB30: 0.0671 | GC30: 0.0673 | GD30: 0.0675 | GE30: 0.0677 | GF30: 0.0679 | GG30: 0.0681 | GH30: 0.0683 | GI30: 0.0685 | GJ30: 0.0687 | GK30: 0.0689 | GL30: 0.0691 | GM30: 0.0693 | GN30: 0.0694 | GO30: 0.0696 | GP30: 0.0698 | GQ30: 0.07 | GR30: 0.0702 | GS30: 0.0703 | GT30: 0.0705 | GU30: 0.0706 | GV30: 0.0708 | GW30: 0.0709 | GX30: 0.0711 | GY30: 0.0712 | GZ30: 0.0714 | HA30: 0.0715 | HB30: 0.0716 | HC30: 0.0717 | HD30: 0.0717 | HE30: 0.0718 | HF30: 0.0719 | HG30: 0.072
B31: 55 | C31: 0.0645 | D31: 0.0647 | E31: 0.065 | F31: 0.0652 | G31: 0.0655 | H31: 0.0657 | I31: 0.0658 | J31: 0.0661 | K31: 0.0663 | L31: 0.0666 | M31: 0.0668 | N31: 0.067 | O31: 0.0672 | P31: 0.0674 | Q31: 0.0676 | R31: 0.0678 | S31: 0.068 | T31: 0.0682 | U31: 0.0684 | V31: 0.0686 | W31: 0.0688 | X31: 0.069 | Y31: 0.0693 | Z31: 0.0695 | AA31: 0.0698 | AB31: 0.07 | AC31: 0.0702 | AD31: 0.0703 | AE31: 0.0705 | AF31: 0.0706 | AG31: 0.0708 | AH31: 0.0709 | AI31: 0.0711 | AJ31: 0.0712 | AK31: 0.0714 | AL31: 0.0715 | AM31: 0.0715 | AN31: 0.0716 | AO31: 0.0718 | AP31: 0.0719 | AQ31: 0.072 | AS31: 55 | AT31: 0.0648 | AU31: 0.065 | AV31: 0.0653 | AW31: 0.0655 | AX31: 0.0658 | AY31: 0.066 | AZ31: 0.0661 | BA31: 0.0664 | BB31: 0.0666 | BC31: 0.0669 | BD31: 0.0671 | BE31: 0.0673 | BF31: 0.0675 | BG31: 0.0677 | BH31: 0.0679 | BI31: 0.0681 | BJ31: 0.0683 | BK31: 0.0685 | BL31: 0.0687 | BM31: 0.0689 | BN31: 0.0691 | BO31: 0.0693 | BP31: 0.0696 | BQ31: 0.0698 | BR31: 0.07 | BS31: 0.0702 | BT31: 0.0704 | BU31: 0.0705 | BV31: 0.0707 | BW31: 0.0708 | BX31: 0.071 | BY31: 0.0712 | BZ31: 0.0713 | CA31: 0.0715 | CB31: 0.0716 | CC31: 0.0718 | CD31: 0.0718 | CE31: 0.0719 | CF31: 0.072 | CG31: 0.0721 | CH31: 0.0722 | CJ31: 55 | CK31: 0.0651 | CL31: 0.0653 | CM31: 0.0656 | CN31: 0.0658 | CO31: 0.0661 | CP31: 0.0663 | CQ31: 0.0664 | CR31: 0.0666 | CS31: 0.0669 | CT31: 0.0671 | CU31: 0.0673 | CV31: 0.0675 | CW31: 0.0677 | CX31: 0.068 | CY31: 0.0682 | CZ31: 0.0684 | DA31: 0.0686 | DB31: 0.0688 | DC31: 0.069 | DD31: 0.0692 | DE31: 0.0694 | DF31: 0.0696 | DG31: 0.0698 | DH31: 0.07 | DI31: 0.0702 | DJ31: 0.0704 | DK31: 0.0706 | DL31: 0.0707 | DM31: 0.0709 | DN31: 0.071 | DO31: 0.0712 | DP31: 0.0714 | DQ31: 0.0715 | DR31: 0.0717 | DS31: 0.0718 | DT31: 0.072 | DU31: 0.072 | DV31: 0.0721 | DW31: 0.0722 | DX31: 0.0723 | DY31: 0.0724 | EA31: 55 | EB31: 0.0652 | EC31: 0.0654 | ED31: 0.0657 | EE31: 0.0659 | EF31: 0.0662 | EG31: 0.0664 | EH31: 0.0665 | EI31: 0.0667 | EJ31: 0.067 | EK31: 0.0672 | EL31: 0.0674 | EM31: 0.0676 | EN31: 0.0678 | EO31: 0.0681 | EP31: 0.0683 | EQ31: 0.0685 | ER31: 0.0687 | ES31: 0.0689 | ET31: 0.0691 | EU31: 0.0693 | EV31: 0.0695 | EW31: 0.0697 | EX31: 0.0699 | EY31: 0.0701 | EZ31: 0.0703 | FA31: 0.0705 | FB31: 0.0707 | FC31: 0.0708 | FD31: 0.071 | FE31: 0.0711 | FF31: 0.0713 | FG31: 0.0715 | FH31: 0.0716 | FI31: 0.0718 | FJ31: 0.0719 | FK31: 0.0721 | FL31: 0.0721 | FM31: 0.0722 | FN31: 0.0723 | FO31: 0.0724 | FP31: 0.0725 | FR31: 55 | FS31: 0.0653 | FT31: 0.0655 | FU31: 0.0658 | FV31: 0.066 | FW31: 0.0663 | FX31: 0.0665 | FY31: 0.0666 | FZ31: 0.0668 | GA31: 0.0671 | GB31: 0.0673 | GC31: 0.0675 | GD31: 0.0677 | GE31: 0.0679 | GF31: 0.0682 | GG31: 0.0684 | GH31: 0.0686 | GI31: 0.0688 | GJ31: 0.069 | GK31: 0.0692 | GL31: 0.0694 | GM31: 0.0696 | GN31: 0.0698 | GO31: 0.07 | GP31: 0.0702 | GQ31: 0.0704 | GR31: 0.0706 | GS31: 0.0708 | GT31: 0.0709 | GU31: 0.0711 | GV31: 0.0712 | GW31: 0.0714 | GX31: 0.0716 | GY31: 0.0717 | GZ31: 0.0719 | HA31: 0.072 | HB31: 0.0722 | HC31: 0.0722 | HD31: 0.0723 | HE31: 0.0724 | HF31: 0.0725 | HG31: 0.0726
B32: 56 | C32: 0.0646 | D32: 0.0649 | E32: 0.0651 | F32: 0.0654 | G32: 0.0656 | H32: 0.0659 | I32: 0.066 | J32: 0.0663 | K32: 0.0665 | L32: 0.0668 | M32: 0.067 | N32: 0.0672 | O32: 0.0674 | P32: 0.0677 | Q32: 0.0679 | R32: 0.0681 | S32: 0.0683 | T32: 0.0685 | U32: 0.0688 | V32: 0.069 | W32: 0.0692 | X32: 0.0695 | Y32: 0.0697 | Z32: 0.07 | AA32: 0.0702 | AB32: 0.0705 | AC32: 0.0706 | AD32: 0.0708 | AE32: 0.071 | AF32: 0.0712 | AG32: 0.0713 | AH32: 0.0715 | AI32: 0.0717 | AJ32: 0.0718 | AK32: 0.0719 | AL32: 0.0721 | AM32: 0.0722 | AN32: 0.0723 | AO32: 0.0724 | AP32: 0.0726 | AQ32: 0.0727 | AS32: 56 | AT32: 0.0649 | AU32: 0.0652 | AV32: 0.0654 | AW32: 0.0657 | AX32: 0.0659 | AY32: 0.0662 | AZ32: 0.0663 | BA32: 0.0666 | BB32: 0.0668 | BC32: 0.0671 | BD32: 0.0673 | BE32: 0.0675 | BF32: 0.0677 | BG32: 0.068 | BH32: 0.0682 | BI32: 0.0684 | BJ32: 0.0686 | BK32: 0.0688 | BL32: 0.0691 | BM32: 0.0693 | BN32: 0.0695 | BO32: 0.0698 | BP32: 0.07 | BQ32: 0.0702 | BR32: 0.0704 | BS32: 0.0707 | BT32: 0.0708 | BU32: 0.071 | BV32: 0.0712 | BW32: 0.0714 | BX32: 0.0716 | BY32: 0.0717 | BZ32: 0.0719 | CA32: 0.0721 | CB32: 0.0722 | CC32: 0.0723 | CD32: 0.0725 | CE32: 0.0726 | CF32: 0.0727 | CG32: 0.0728 | CH32: 0.0729 | CJ32: 56 | CK32: 0.0652 | CL32: 0.0655 | CM32: 0.0657 | CN32: 0.066 | CO32: 0.0662 | CP32: 0.0665 | CQ32: 0.0666 | CR32: 0.0668 | CS32: 0.0671 | CT32: 0.0673 | CU32: 0.0675 | CV32: 0.0678 | CW32: 0.068 | CX32: 0.0682 | CY32: 0.0684 | CZ32: 0.0687 | DA32: 0.0689 | DB32: 0.0691 | DC32: 0.0693 | DD32: 0.0696 | DE32: 0.0698 | DF32: 0.07 | DG32: 0.0702 | DH32: 0.0704 | DI32: 0.0706 | DJ32: 0.0709 | DK32: 0.071 | DL32: 0.0712 | DM32: 0.0714 | DN32: 0.0716 | DO32: 0.0718 | DP32: 0.0719 | DQ32: 0.0721 | DR32: 0.0723 | DS32: 0.0724 | DT32: 0.0725 | DU32: 0.0727 | DV32: 0.0728 | DW32: 0.0729 | DX32: 0.073 | DY32: 0.0731 | EA32: 56 | EB32: 0.0653 | EC32: 0.0656 | ED32: 0.0658 | EE32: 0.0661 | EF32: 0.0663 | EG32: 0.0666 | EH32: 0.0667 | EI32: 0.0669 | EJ32: 0.0672 | EK32: 0.0674 | EL32: 0.0676 | EM32: 0.0679 | EN32: 0.0681 | EO32: 0.0683 | EP32: 0.0685 | EQ32: 0.0688 | ER32: 0.069 | ES32: 0.0692 | ET32: 0.0694 | EU32: 0.0697 | EV32: 0.0699 | EW32: 0.0701 | EX32: 0.0703 | EY32: 0.0705 | EZ32: 0.0707 | FA32: 0.071 | FB32: 0.0711 | FC32: 0.0713 | FD32: 0.0715 | FE32: 0.0717 | FF32: 0.0719 | FG32: 0.072 | FH32: 0.0722 | FI32: 0.0724 | FJ32: 0.0725 | FK32: 0.0726 | FL32: 0.0728 | FM32: 0.0729 | FN32: 0.073 | FO32: 0.0731 | FP32: 0.0732 | FR32: 56 | FS32: 0.0654 | FT32: 0.0657 | FU32: 0.0659 | FV32: 0.0662 | FW32: 0.0664 | FX32: 0.0667 | FY32: 0.0668 | FZ32: 0.067 | GA32: 0.0673 | GB32: 0.0675 | GC32: 0.0677 | GD32: 0.068 | GE32: 0.0682 | GF32: 0.0684 | GG32: 0.0686 | GH32: 0.0689 | GI32: 0.0691 | GJ32: 0.0693 | GK32: 0.0695 | GL32: 0.0698 | GM32: 0.07 | GN32: 0.0702 | GO32: 0.0704 | GP32: 0.0706 | GQ32: 0.0708 | GR32: 0.0711 | GS32: 0.0712 | GT32: 0.0714 | GU32: 0.0716 | GV32: 0.0718 | GW32: 0.072 | GX32: 0.0721 | GY32: 0.0723 | GZ32: 0.0725 | HA32: 0.0726 | HB32: 0.0727 | HC32: 0.0729 | HD32: 0.073 | HE32: 0.0731 | HF32: 0.0732 | HG32: 0.0733
B33: 57 | C33: 0.0647 | D33: 0.065 | E33: 0.0652 | F33: 0.0655 | G33: 0.0658 | H33: 0.0659 | I33: 0.0662 | J33: 0.0664 | K33: 0.0667 | L33: 0.0669 | M33: 0.0672 | N33: 0.0674 | O33: 0.0677 | P33: 0.0679 | Q33: 0.0682 | R33: 0.0684 | S33: 0.0686 | T33: 0.0689 | U33: 0.0691 | V33: 0.0694 | W33: 0.0696 | X33: 0.0699 | Y33: 0.0702 | Z33: 0.0704 | AA33: 0.0707 | AB33: 0.0709 | AC33: 0.0711 | AD33: 0.0713 | AE33: 0.0715 | AF33: 0.0717 | AG33: 0.0719 | AH33: 0.0721 | AI33: 0.0722 | AJ33: 0.0723 | AK33: 0.0725 | AL33: 0.0727 | AM33: 0.0729 | AN33: 0.073 | AO33: 0.0731 | AP33: 0.0733 | AQ33: 0.0734 | AS33: 57 | AT33: 0.065 | AU33: 0.0653 | AV33: 0.0655 | AW33: 0.0658 | AX33: 0.0661 | AY33: 0.0662 | AZ33: 0.0665 | BA33: 0.0667 | BB33: 0.067 | BC33: 0.0672 | BD33: 0.0675 | BE33: 0.0677 | BF33: 0.068 | BG33: 0.0682 | BH33: 0.0685 | BI33: 0.0687 | BJ33: 0.0689 | BK33: 0.0692 | BL33: 0.0694 | BM33: 0.0697 | BN33: 0.0699 | BO33: 0.0702 | BP33: 0.0704 | BQ33: 0.0707 | BR33: 0.0709 | BS33: 0.0711 | BT33: 0.0713 | BU33: 0.0715 | BV33: 0.0717 | BW33: 0.0719 | BX33: 0.0721 | BY33: 0.0723 | BZ33: 0.0724 | CA33: 0.0726 | CB33: 0.0728 | CC33: 0.073 | CD33: 0.0731 | CE33: 0.0732 | CF33: 0.0734 | CG33: 0.0735 | CH33: 0.0736 | CJ33: 57 | CK33: 0.0653 | CL33: 0.0656 | CM33: 0.0658 | CN33: 0.0661 | CO33: 0.0664 | CP33: 0.0665 | CQ33: 0.0668 | CR33: 0.067 | CS33: 0.0673 | CT33: 0.0675 | CU33: 0.0677 | CV33: 0.068 | CW33: 0.0682 | CX33: 0.0685 | CY33: 0.0687 | CZ33: 0.069 | DA33: 0.0692 | DB33: 0.0694 | DC33: 0.0697 | DD33: 0.0699 | DE33: 0.0702 | DF33: 0.0704 | DG33: 0.0706 | DH33: 0.0709 | DI33: 0.0711 | DJ33: 0.0713 | DK33: 0.0715 | DL33: 0.0717 | DM33: 0.0719 | DN33: 0.0721 | DO33: 0.0723 | DP33: 0.0725 | DQ33: 0.0726 | DR33: 0.0728 | DS33: 0.073 | DT33: 0.0732 | DU33: 0.0733 | DV33: 0.0734 | DW33: 0.0736 | DX33: 0.0737 | DY33: 0.0738 | EA33: 57 | EB33: 0.0654 | EC33: 0.0657 | ED33: 0.0659 | EE33: 0.0662 | EF33: 0.0665 | EG33: 0.0666 | EH33: 0.0669 | EI33: 0.0671 | EJ33: 0.0674 | EK33: 0.0676 | EL33: 0.0678 | EM33: 0.0681 | EN33: 0.0683 | EO33: 0.0686 | EP33: 0.0688 | EQ33: 0.0691 | ER33: 0.0693 | ES33: 0.0695 | ET33: 0.0698 | EU33: 0.07 | EV33: 0.0703 | EW33: 0.0705 | EX33: 0.0707 | EY33: 0.071 | EZ33: 0.0712 | FA33: 0.0714 | FB33: 0.0716 | FC33: 0.0718 | FD33: 0.072 | FE33: 0.0722 | FF33: 0.0724 | FG33: 0.0726 | FH33: 0.0727 | FI33: 0.0729 | FJ33: 0.0731 | FK33: 0.0733 | FL33: 0.0734 | FM33: 0.0735 | FN33: 0.0737 | FO33: 0.0738 | FP33: 0.0739 | FR33: 57 | FS33: 0.0655 | FT33: 0.0658 | FU33: 0.066 | FV33: 0.0663 | FW33: 0.0666 | FX33: 0.0667 | FY33: 0.067 | FZ33: 0.0672 | GA33: 0.0675 | GB33: 0.0677 | GC33: 0.0679 | GD33: 0.0682 | GE33: 0.0684 | GF33: 0.0687 | GG33: 0.0689 | GH33: 0.0692 | GI33: 0.0694 | GJ33: 0.0696 | GK33: 0.0699 | GL33: 0.0701 | GM33: 0.0704 | GN33: 0.0706 | GO33: 0.0708 | GP33: 0.0711 | GQ33: 0.0713 | GR33: 0.0715 | GS33: 0.0717 | GT33: 0.0719 | GU33: 0.0721 | GV33: 0.0723 | GW33: 0.0725 | GX33: 0.0727 | GY33: 0.0728 | GZ33: 0.073 | HA33: 0.0732 | HB33: 0.0734 | HC33: 0.0735 | HD33: 0.0736 | HE33: 0.0738 | HF33: 0.0739 | HG33: 0.074
B34: 58 | C34: 0.0648 | D34: 0.0651 | E34: 0.0654 | F34: 0.0656 | G34: 0.0658 | H34: 0.0661 | I34: 0.0663 | J34: 0.0666 | K34: 0.0669 | L34: 0.0671 | M34: 0.0674 | N34: 0.0677 | O34: 0.0679 | P34: 0.0682 | Q34: 0.0684 | R34: 0.0687 | S34: 0.069 | T34: 0.0692 | U34: 0.0695 | V34: 0.0698 | W34: 0.0701 | X34: 0.0703 | Y34: 0.0706 | Z34: 0.0709 | AA34: 0.0711 | AB34: 0.0714 | AC34: 0.0716 | AD34: 0.0718 | AE34: 0.072 | AF34: 0.0722 | AG34: 0.0724 | AH34: 0.0725 | AI34: 0.0727 | AJ34: 0.073 | AK34: 0.0732 | AL34: 0.0734 | AM34: 0.0735 | AN34: 0.0737 | AO34: 0.0738 | AP34: 0.074 | AQ34: 0.0741 | AS34: 58 | AT34: 0.0651 | AU34: 0.0654 | AV34: 0.0657 | AW34: 0.0659 | AX34: 0.0661 | AY34: 0.0664 | AZ34: 0.0666 | BA34: 0.0669 | BB34: 0.0672 | BC34: 0.0674 | BD34: 0.0677 | BE34: 0.068 | BF34: 0.0682 | BG34: 0.0685 | BH34: 0.0687 | BI34: 0.069 | BJ34: 0.0693 | BK34: 0.0695 | BL34: 0.0698 | BM34: 0.0701 | BN34: 0.0703 | BO34: 0.0706 | BP34: 0.0708 | BQ34: 0.0711 | BR34: 0.0713 | BS34: 0.0716 | BT34: 0.0718 | BU34: 0.072 | BV34: 0.0722 | BW34: 0.0725 | BX34: 0.0727 | BY34: 0.0728 | BZ34: 0.073 | CA34: 0.0732 | CB34: 0.0734 | CC34: 0.0736 | CD34: 0.0738 | CE34: 0.0739 | CF34: 0.074 | CG34: 0.0742 | CH34: 0.0743 | CJ34: 58 | CK34: 0.0654 | CL34: 0.0657 | CM34: 0.066 | CN34: 0.0662 | CO34: 0.0664 | CP34: 0.0667 | CQ34: 0.0669 | CR34: 0.0672 | CS34: 0.0674 | CT34: 0.0677 | CU34: 0.068 | CV34: 0.0682 | CW34: 0.0685 | CX34: 0.0687 | CY34: 0.069 | CZ34: 0.0692 | DA34: 0.0695 | DB34: 0.0698 | DC34: 0.07 | DD34: 0.0703 | DE34: 0.0705 | DF34: 0.0708 | DG34: 0.071 | DH34: 0.0713 | DI34: 0.0715 | DJ34: 0.0718 | DK34: 0.072 | DL34: 0.0722 | DM34: 0.0724 | DN34: 0.0727 | DO34: 0.0729 | DP34: 0.073 | DQ34: 0.0732 | DR34: 0.0734 | DS34: 0.0736 | DT34: 0.0738 | DU34: 0.074 | DV34: 0.0741 | DW34: 0.0742 | DX34: 0.0744 | DY34: 0.0745 | EA34: 58 | EB34: 0.0655 | EC34: 0.0658 | ED34: 0.0661 | EE34: 0.0663 | EF34: 0.0665 | EG34: 0.0668 | EH34: 0.067 | EI34: 0.0673 | EJ34: 0.0675 | EK34: 0.0678 | EL34: 0.0681 | EM34: 0.0683 | EN34: 0.0686 | EO34: 0.0688 | EP34: 0.0691 | EQ34: 0.0693 | ER34: 0.0696 | ES34: 0.0699 | ET34: 0.0701 | EU34: 0.0704 | EV34: 0.0706 | EW34: 0.0709 | EX34: 0.0711 | EY34: 0.0714 | EZ34: 0.0716 | FA34: 0.0719 | FB34: 0.0721 | FC34: 0.0723 | FD34: 0.0725 | FE34: 0.0728 | FF34: 0.073 | FG34: 0.0731 | FH34: 0.0733 | FI34: 0.0735 | FJ34: 0.0737 | FK34: 0.0739 | FL34: 0.0741 | FM34: 0.0742 | FN34: 0.0743 | FO34: 0.0745 | FP34: 0.0746 | FR34: 58 | FS34: 0.0656 | FT34: 0.0659 | FU34: 0.0662 | FV34: 0.0664 | FW34: 0.0666 | FX34: 0.0669 | FY34: 0.0671 | FZ34: 0.0674 | GA34: 0.0676 | GB34: 0.0679 | GC34: 0.0682 | GD34: 0.0684 | GE34: 0.0687 | GF34: 0.0689 | GG34: 0.0692 | GH34: 0.0694 | GI34: 0.0697 | GJ34: 0.07 | GK34: 0.0702 | GL34: 0.0705 | GM34: 0.0707 | GN34: 0.071 | GO34: 0.0712 | GP34: 0.0715 | GQ34: 0.0717 | GR34: 0.072 | GS34: 0.0722 | GT34: 0.0724 | GU34: 0.0726 | GV34: 0.0729 | GW34: 0.0731 | GX34: 0.0732 | GY34: 0.0734 | GZ34: 0.0736 | HA34: 0.0738 | HB34: 0.074 | HC34: 0.0742 | HD34: 0.0743 | HE34: 0.0744 | HF34: 0.0746 | HG34: 0.0747
B35: 59 | C35: 0.0649 | D35: 0.0652 | E35: 0.0655 | F35: 0.0657 | G35: 0.066 | H35: 0.0662 | I35: 0.0665 | J35: 0.0668 | K35: 0.0671 | L35: 0.0673 | M35: 0.0676 | N35: 0.0679 | O35: 0.0682 | P35: 0.0684 | Q35: 0.0687 | R35: 0.069 | S35: 0.0693 | T35: 0.0696 | U35: 0.0699 | V35: 0.0702 | W35: 0.0705 | X35: 0.0708 | Y35: 0.071 | Z35: 0.0713 | AA35: 0.0716 | AB35: 0.0718 | AC35: 0.0721 | AD35: 0.0723 | AE35: 0.0725 | AF35: 0.0726 | AG35: 0.0729 | AH35: 0.0731 | AI35: 0.0733 | AJ35: 0.0736 | AK35: 0.0738 | AL35: 0.074 | AM35: 0.0742 | AN35: 0.0743 | AO35: 0.0745 | AP35: 0.0746 | AQ35: 0.0748 | AS35: 59 | AT35: 0.0652 | AU35: 0.0655 | AV35: 0.0658 | AW35: 0.066 | AX35: 0.0663 | AY35: 0.0665 | AZ35: 0.0668 | BA35: 0.0671 | BB35: 0.0674 | BC35: 0.0676 | BD35: 0.0679 | BE35: 0.0682 | BF35: 0.0685 | BG35: 0.0687 | BH35: 0.069 | BI35: 0.0693 | BJ35: 0.0696 | BK35: 0.0699 | BL35: 0.0702 | BM35: 0.0704 | BN35: 0.0707 | BO35: 0.071 | BP35: 0.0712 | BQ35: 0.0715 | BR35: 0.0718 | BS35: 0.072 | BT35: 0.0723 | BU35: 0.0725 | BV35: 0.0728 | BW35: 0.0729 | BX35: 0.0731 | BY35: 0.0734 | BZ35: 0.0736 | CA35: 0.0738 | CB35: 0.074 | CC35: 0.0743 | CD35: 0.0744 | CE35: 0.0746 | CF35: 0.0747 | CG35: 0.0749 | CH35: 0.075 | CJ35: 59 | CK35: 0.0655 | CL35: 0.0658 | CM35: 0.0661 | CN35: 0.0663 | CO35: 0.0666 | CP35: 0.0668 | CQ35: 0.0671 | CR35: 0.0674 | CS35: 0.0676 | CT35: 0.0679 | CU35: 0.0682 | CV35: 0.0684 | CW35: 0.0687 | CX35: 0.069 | CY35: 0.0693 | CZ35: 0.0695 | DA35: 0.0698 | DB35: 0.0701 | DC35: 0.0704 | DD35: 0.0706 | DE35: 0.0709 | DF35: 0.0712 | DG35: 0.0714 | DH35: 0.0717 | DI35: 0.072 | DJ35: 0.0722 | DK35: 0.0725 | DL35: 0.0727 | DM35: 0.073 | DN35: 0.0731 | DO35: 0.0733 | DP35: 0.0736 | DQ35: 0.0738 | DR35: 0.074 | DS35: 0.0742 | DT35: 0.0745 | DU35: 0.0746 | DV35: 0.0748 | DW35: 0.0749 | DX35: 0.0751 | DY35: 0.0752 | EA35: 59 | EB35: 0.0656 | EC35: 0.0659 | ED35: 0.0662 | EE35: 0.0664 | EF35: 0.0667 | EG35: 0.0669 | EH35: 0.0672 | EI35: 0.0675 | EJ35: 0.0677 | EK35: 0.068 | EL35: 0.0683 | EM35: 0.0685 | EN35: 0.0688 | EO35: 0.0691 | EP35: 0.0694 | EQ35: 0.0696 | ER35: 0.0699 | ES35: 0.0702 | ET35: 0.0705 | EU35: 0.0707 | EV35: 0.071 | EW35: 0.0713 | EX35: 0.0715 | EY35: 0.0718 | EZ35: 0.0721 | FA35: 0.0723 | FB35: 0.0726 | FC35: 0.0728 | FD35: 0.0731 | FE35: 0.0732 | FF35: 0.0734 | FG35: 0.0737 | FH35: 0.0739 | FI35: 0.0741 | FJ35: 0.0743 | FK35: 0.0746 | FL35: 0.0747 | FM35: 0.0749 | FN35: 0.075 | FO35: 0.0752 | FP35: 0.0753 | FR35: 59 | FS35: 0.0657 | FT35: 0.066 | FU35: 0.0663 | FV35: 0.0665 | FW35: 0.0668 | FX35: 0.067 | FY35: 0.0673 | FZ35: 0.0676 | GA35: 0.0678 | GB35: 0.0681 | GC35: 0.0684 | GD35: 0.0686 | GE35: 0.0689 | GF35: 0.0692 | GG35: 0.0695 | GH35: 0.0697 | GI35: 0.07 | GJ35: 0.0703 | GK35: 0.0706 | GL35: 0.0708 | GM35: 0.0711 | GN35: 0.0714 | GO35: 0.0716 | GP35: 0.0719 | GQ35: 0.0722 | GR35: 0.0724 | GS35: 0.0727 | GT35: 0.0729 | GU35: 0.0732 | GV35: 0.0733 | GW35: 0.0735 | GX35: 0.0738 | GY35: 0.074 | GZ35: 0.0742 | HA35: 0.0744 | HB35: 0.0747 | HC35: 0.0748 | HD35: 0.075 | HE35: 0.0751 | HF35: 0.0753 | HG35: 0.0754
B36: 60 | C36: 0.065 | D36: 0.0653 | E36: 0.0656 | F36: 0.0658 | G36: 0.0661 | H36: 0.0664 | I36: 0.0667 | J36: 0.067 | K36: 0.0672 | L36: 0.0675 | M36: 0.0678 | N36: 0.0681 | O36: 0.0684 | P36: 0.0687 | Q36: 0.069 | R36: 0.0693 | S36: 0.0696 | T36: 0.0699 | U36: 0.0703 | V36: 0.0706 | W36: 0.0709 | X36: 0.0712 | Y36: 0.0715 | Z36: 0.0717 | AA36: 0.072 | AB36: 0.0723 | AC36: 0.0725 | AD36: 0.0728 | AE36: 0.0729 | AF36: 0.0732 | AG36: 0.0734 | AH36: 0.0737 | AI36: 0.0739 | AJ36: 0.0742 | AK36: 0.0744 | AL36: 0.0747 | AM36: 0.0749 | AN36: 0.075 | AO36: 0.0752 | AP36: 0.0753 | AQ36: 0.0755 | AS36: 60 | AT36: 0.0653 | AU36: 0.0656 | AV36: 0.0659 | AW36: 0.0661 | AX36: 0.0664 | AY36: 0.0667 | AZ36: 0.067 | BA36: 0.0673 | BB36: 0.0675 | BC36: 0.0678 | BD36: 0.0681 | BE36: 0.0684 | BF36: 0.0687 | BG36: 0.069 | BH36: 0.0693 | BI36: 0.0696 | BJ36: 0.0699 | BK36: 0.0702 | BL36: 0.0705 | BM36: 0.0708 | BN36: 0.0711 | BO36: 0.0714 | BP36: 0.0717 | BQ36: 0.0719 | BR36: 0.0722 | BS36: 0.0725 | BT36: 0.0728 | BU36: 0.073 | BV36: 0.0732 | BW36: 0.0734 | BX36: 0.0737 | BY36: 0.0739 | BZ36: 0.0742 | CA36: 0.0744 | CB36: 0.0747 | CC36: 0.0749 | CD36: 0.0751 | CE36: 0.0752 | CF36: 0.0754 | CG36: 0.0755 | CH36: 0.0757 | CJ36: 60 | CK36: 0.0656 | CL36: 0.0659 | CM36: 0.0662 | CN36: 0.0664 | CO36: 0.0667 | CP36: 0.067 | CQ36: 0.0673 | CR36: 0.0676 | CS36: 0.0678 | CT36: 0.0681 | CU36: 0.0684 | CV36: 0.0687 | CW36: 0.069 | CX36: 0.0692 | CY36: 0.0695 | CZ36: 0.0698 | DA36: 0.0701 | DB36: 0.0704 | DC36: 0.0707 | DD36: 0.071 | DE36: 0.0713 | DF36: 0.0716 | DG36: 0.0719 | DH36: 0.0721 | DI36: 0.0724 | DJ36: 0.0727 | DK36: 0.073 | DL36: 0.0732 | DM36: 0.0734 | DN36: 0.0736 | DO36: 0.0739 | DP36: 0.0741 | DQ36: 0.0744 | DR36: 0.0746 | DS36: 0.0749 | DT36: 0.0751 | DU36: 0.0753 | DV36: 0.0754 | DW36: 0.0756 | DX36: 0.0757 | DY36: 0.0759 | EA36: 60 | EB36: 0.0657 | EC36: 0.066 | ED36: 0.0663 | EE36: 0.0665 | EF36: 0.0668 | EG36: 0.0671 | EH36: 0.0674 | EI36: 0.0677 | EJ36: 0.0679 | EK36: 0.0682 | EL36: 0.0685 | EM36: 0.0688 | EN36: 0.0691 | EO36: 0.0693 | EP36: 0.0696 | EQ36: 0.0699 | ER36: 0.0702 | ES36: 0.0705 | ET36: 0.0708 | EU36: 0.0711 | EV36: 0.0714 | EW36: 0.0717 | EX36: 0.072 | EY36: 0.0722 | EZ36: 0.0725 | FA36: 0.0728 | FB36: 0.0731 | FC36: 0.0733 | FD36: 0.0735 | FE36: 0.0737 | FF36: 0.074 | FG36: 0.0742 | FH36: 0.0745 | FI36: 0.0747 | FJ36: 0.075 | FK36: 0.0752 | FL36: 0.0754 | FM36: 0.0755 | FN36: 0.0757 | FO36: 0.0758 | FP36: 0.076 | FR36: 60 | FS36: 0.0658 | FT36: 0.0661 | FU36: 0.0664 | FV36: 0.0666 | FW36: 0.0669 | FX36: 0.0672 | FY36: 0.0675 | FZ36: 0.0678 | GA36: 0.068 | GB36: 0.0683 | GC36: 0.0686 | GD36: 0.0689 | GE36: 0.0692 | GF36: 0.0694 | GG36: 0.0697 | GH36: 0.07 | GI36: 0.0703 | GJ36: 0.0706 | GK36: 0.0709 | GL36: 0.0712 | GM36: 0.0715 | GN36: 0.0718 | GO36: 0.0721 | GP36: 0.0723 | GQ36: 0.0726 | GR36: 0.0729 | GS36: 0.0732 | GT36: 0.0734 | GU36: 0.0736 | GV36: 0.0738 | GW36: 0.0741 | GX36: 0.0743 | GY36: 0.0746 | GZ36: 0.0748 | HA36: 0.0751 | HB36: 0.0753 | HC36: 0.0755 | HD36: 0.0756 | HE36: 0.0758 | HF36: 0.0759 | HG36: 0.0761
B37: 61 | C37: 0.0651 | D37: 0.0654 | E37: 0.0656 | F37: 0.0659 | G37: 0.0662 | H37: 0.0665 | I37: 0.0668 | J37: 0.0671 | K37: 0.0674 | L37: 0.0677 | M37: 0.068 | N37: 0.0683 | O37: 0.0686 | P37: 0.069 | Q37: 0.0693 | R37: 0.0696 | S37: 0.0699 | T37: 0.0703 | U37: 0.0706 | V37: 0.0709 | W37: 0.0713 | X37: 0.0716 | Y37: 0.0719 | Z37: 0.0722 | AA37: 0.0725 | AB37: 0.0728 | AC37: 0.0731 | AD37: 0.0733 | AE37: 0.0735 | AF37: 0.0738 | AG37: 0.0741 | AH37: 0.0744 | AI37: 0.0747 | AJ37: 0.0749 | AK37: 0.0752 | AL37: 0.0755 | AM37: 0.0757 | AN37: 0.0758 | AO37: 0.076 | AP37: 0.0762 | AQ37: 0.0764 | AS37: 61 | AT37: 0.0654 | AU37: 0.0657 | AV37: 0.0659 | AW37: 0.0662 | AX37: 0.0665 | AY37: 0.0668 | AZ37: 0.0671 | BA37: 0.0674 | BB37: 0.0677 | BC37: 0.068 | BD37: 0.0683 | BE37: 0.0686 | BF37: 0.0689 | BG37: 0.0693 | BH37: 0.0696 | BI37: 0.0699 | BJ37: 0.0702 | BK37: 0.0705 | BL37: 0.0708 | BM37: 0.0711 | BN37: 0.0715 | BO37: 0.0718 | BP37: 0.0721 | BQ37: 0.0724 | BR37: 0.0727 | BS37: 0.073 | BT37: 0.0733 | BU37: 0.0735 | BV37: 0.0738 | BW37: 0.0741 | BX37: 0.0744 | BY37: 0.0746 | BZ37: 0.0749 | CA37: 0.0751 | CB37: 0.0754 | CC37: 0.0757 | CD37: 0.0759 | CE37: 0.076 | CF37: 0.0762 | CG37: 0.0764 | CH37: 0.0766 | CJ37: 61 | CK37: 0.0657 | CL37: 0.066 | CM37: 0.0662 | CN37: 0.0665 | CO37: 0.0668 | CP37: 0.0671 | CQ37: 0.0674 | CR37: 0.0677 | CS37: 0.068 | CT37: 0.0683 | CU37: 0.0686 | CV37: 0.0689 | CW37: 0.0692 | CX37: 0.0695 | CY37: 0.0698 | CZ37: 0.0701 | DA37: 0.0704 | DB37: 0.0707 | DC37: 0.071 | DD37: 0.0713 | DE37: 0.0717 | DF37: 0.072 | DG37: 0.0723 | DH37: 0.0726 | DI37: 0.0729 | DJ37: 0.0732 | DK37: 0.0735 | DL37: 0.0737 | DM37: 0.074 | DN37: 0.0743 | DO37: 0.0746 | DP37: 0.0748 | DQ37: 0.0751 | DR37: 0.0753 | DS37: 0.0756 | DT37: 0.0759 | DU37: 0.076 | DV37: 0.0762 | DW37: 0.0764 | DX37: 0.0766 | DY37: 0.0768 | EA37: 61 | EB37: 0.0658 | EC37: 0.0661 | ED37: 0.0663 | EE37: 0.0666 | EF37: 0.0669 | EG37: 0.0672 | EH37: 0.0675 | EI37: 0.0678 | EJ37: 0.0681 | EK37: 0.0684 | EL37: 0.0687 | EM37: 0.069 | EN37: 0.0693 | EO37: 0.0696 | EP37: 0.0699 | EQ37: 0.0702 | ER37: 0.0705 | ES37: 0.0708 | ET37: 0.0711 | EU37: 0.0714 | EV37: 0.0718 | EW37: 0.0721 | EX37: 0.0724 | EY37: 0.0727 | EZ37: 0.073 | FA37: 0.0733 | FB37: 0.0736 | FC37: 0.0738 | FD37: 0.0741 | FE37: 0.0744 | FF37: 0.0747 | FG37: 0.0749 | FH37: 0.0752 | FI37: 0.0754 | FJ37: 0.0757 | FK37: 0.076 | FL37: 0.0761 | FM37: 0.0763 | FN37: 0.0765 | FO37: 0.0767 | FP37: 0.0769 | FR37: 61 | FS37: 0.0659 | FT37: 0.0662 | FU37: 0.0664 | FV37: 0.0667 | FW37: 0.067 | FX37: 0.0673 | FY37: 0.0676 | FZ37: 0.0679 | GA37: 0.0682 | GB37: 0.0685 | GC37: 0.0688 | GD37: 0.0691 | GE37: 0.0694 | GF37: 0.0697 | GG37: 0.07 | GH37: 0.0703 | GI37: 0.0706 | GJ37: 0.0709 | GK37: 0.0712 | GL37: 0.0715 | GM37: 0.0719 | GN37: 0.0722 | GO37: 0.0725 | GP37: 0.0728 | GQ37: 0.0731 | GR37: 0.0734 | GS37: 0.0737 | GT37: 0.0739 | GU37: 0.0742 | GV37: 0.0745 | GW37: 0.0748 | GX37: 0.075 | GY37: 0.0753 | GZ37: 0.0755 | HA37: 0.0758 | HB37: 0.0761 | HC37: 0.0762 | HD37: 0.0764 | HE37: 0.0766 | HF37: 0.0768 | HG37: 0.077
B38: 62 | C38: 0.0652 | D38: 0.0654 | E38: 0.0657 | F38: 0.066 | G38: 0.0664 | H38: 0.0667 | I38: 0.067 | J38: 0.0673 | K38: 0.0676 | L38: 0.0679 | M38: 0.0682 | N38: 0.0685 | O38: 0.0689 | P38: 0.0692 | Q38: 0.0696 | R38: 0.0699 | S38: 0.0703 | T38: 0.0706 | U38: 0.0709 | V38: 0.0713 | W38: 0.0716 | X38: 0.072 | Y38: 0.0723 | Z38: 0.0726 | AA38: 0.073 | AB38: 0.0733 | AC38: 0.0735 | AD38: 0.0738 | AE38: 0.0742 | AF38: 0.0745 | AG38: 0.0748 | AH38: 0.0751 | AI38: 0.0754 | AJ38: 0.0757 | AK38: 0.076 | AL38: 0.0763 | AM38: 0.0765 | AN38: 0.0767 | AO38: 0.0769 | AP38: 0.0771 | AQ38: 0.0773 | AS38: 62 | AT38: 0.0655 | AU38: 0.0657 | AV38: 0.066 | AW38: 0.0663 | AX38: 0.0667 | AY38: 0.067 | AZ38: 0.0673 | BA38: 0.0676 | BB38: 0.0679 | BC38: 0.0682 | BD38: 0.0685 | BE38: 0.0688 | BF38: 0.0692 | BG38: 0.0695 | BH38: 0.0699 | BI38: 0.0702 | BJ38: 0.0705 | BK38: 0.0708 | BL38: 0.0712 | BM38: 0.0715 | BN38: 0.0718 | BO38: 0.0722 | BP38: 0.0725 | BQ38: 0.0729 | BR38: 0.0732 | BS38: 0.0735 | BT38: 0.0738 | BU38: 0.0741 | BV38: 0.0744 | BW38: 0.0747 | BX38: 0.0751 | BY38: 0.0753 | BZ38: 0.0756 | CA38: 0.0759 | CB38: 0.0762 | CC38: 0.0765 | CD38: 0.0767 | CE38: 0.0769 | CF38: 0.0771 | CG38: 0.0773 | CH38: 0.0775 | CJ38: 62 | CK38: 0.0658 | CL38: 0.066 | CM38: 0.0663 | CN38: 0.0666 | CO38: 0.067 | CP38: 0.0673 | CQ38: 0.0676 | CR38: 0.0679 | CS38: 0.0682 | CT38: 0.0685 | CU38: 0.0688 | CV38: 0.0691 | CW38: 0.0694 | CX38: 0.0698 | CY38: 0.0701 | CZ38: 0.0704 | DA38: 0.0707 | DB38: 0.071 | DC38: 0.0714 | DD38: 0.0717 | DE38: 0.072 | DF38: 0.0724 | DG38: 0.0727 | DH38: 0.0731 | DI38: 0.0734 | DJ38: 0.0737 | DK38: 0.074 | DL38: 0.0743 | DM38: 0.0746 | DN38: 0.0749 | DO38: 0.0753 | DP38: 0.0755 | DQ38: 0.0758 | DR38: 0.0761 | DS38: 0.0763 | DT38: 0.0766 | DU38: 0.0768 | DV38: 0.077 | DW38: 0.0772 | DX38: 0.0775 | DY38: 0.0777 | EA38: 62 | EB38: 0.0659 | EC38: 0.0661 | ED38: 0.0664 | EE38: 0.0667 | EF38: 0.0671 | EG38: 0.0674 | EH38: 0.0677 | EI38: 0.068 | EJ38: 0.0683 | EK38: 0.0686 | EL38: 0.0689 | EM38: 0.0692 | EN38: 0.0695 | EO38: 0.0699 | EP38: 0.0702 | EQ38: 0.0705 | ER38: 0.0708 | ES38: 0.0711 | ET38: 0.0715 | EU38: 0.0718 | EV38: 0.0721 | EW38: 0.0725 | EX38: 0.0728 | EY38: 0.0732 | EZ38: 0.0735 | FA38: 0.0738 | FB38: 0.0741 | FC38: 0.0744 | FD38: 0.0747 | FE38: 0.075 | FF38: 0.0754 | FG38: 0.0756 | FH38: 0.0759 | FI38: 0.0762 | FJ38: 0.0764 | FK38: 0.0767 | FL38: 0.0769 | FM38: 0.0771 | FN38: 0.0773 | FO38: 0.0776 | FP38: 0.0778 | FR38: 62 | FS38: 0.066 | FT38: 0.0662 | FU38: 0.0665 | FV38: 0.0668 | FW38: 0.0672 | FX38: 0.0675 | FY38: 0.0678 | FZ38: 0.0681 | GA38: 0.0684 | GB38: 0.0687 | GC38: 0.069 | GD38: 0.0693 | GE38: 0.0696 | GF38: 0.07 | GG38: 0.0703 | GH38: 0.0706 | GI38: 0.0709 | GJ38: 0.0712 | GK38: 0.0716 | GL38: 0.0719 | GM38: 0.0722 | GN38: 0.0726 | GO38: 0.0729 | GP38: 0.0733 | GQ38: 0.0736 | GR38: 0.0739 | GS38: 0.0742 | GT38: 0.0745 | GU38: 0.0748 | GV38: 0.0751 | GW38: 0.0755 | GX38: 0.0757 | GY38: 0.076 | GZ38: 0.0763 | HA38: 0.0765 | HB38: 0.0768 | HC38: 0.077 | HD38: 0.0772 | HE38: 0.0774 | HF38: 0.0777 | HG38: 0.0779
B39: 63 | C39: 0.0653 | D39: 0.0655 | E39: 0.0658 | F39: 0.0662 | G39: 0.0665 | H39: 0.0668 | I39: 0.0671 | J39: 0.0675 | K39: 0.0678 | L39: 0.0681 | M39: 0.0684 | N39: 0.0688 | O39: 0.0691 | P39: 0.0695 | Q39: 0.0699 | R39: 0.0703 | S39: 0.0706 | T39: 0.0709 | U39: 0.0713 | V39: 0.0716 | W39: 0.072 | X39: 0.0723 | Y39: 0.0727 | Z39: 0.0731 | AA39: 0.0733 | AB39: 0.0737 | AC39: 0.0741 | AD39: 0.0744 | AE39: 0.0748 | AF39: 0.0751 | AG39: 0.0755 | AH39: 0.0758 | AI39: 0.0761 | AJ39: 0.0764 | AK39: 0.0767 | AL39: 0.077 | AM39: 0.0773 | AN39: 0.0775 | AO39: 0.0777 | AP39: 0.0779 | AQ39: 0.0781 | AS39: 63 | AT39: 0.0656 | AU39: 0.0658 | AV39: 0.0661 | AW39: 0.0665 | AX39: 0.0668 | AY39: 0.0671 | AZ39: 0.0674 | BA39: 0.0678 | BB39: 0.0681 | BC39: 0.0684 | BD39: 0.0687 | BE39: 0.0691 | BF39: 0.0694 | BG39: 0.0698 | BH39: 0.0702 | BI39: 0.0705 | BJ39: 0.0708 | BK39: 0.0712 | BL39: 0.0715 | BM39: 0.0718 | BN39: 0.0722 | BO39: 0.0726 | BP39: 0.0729 | BQ39: 0.0733 | BR39: 0.0736 | BS39: 0.074 | BT39: 0.0743 | BU39: 0.0747 | BV39: 0.075 | BW39: 0.0754 | BX39: 0.0757 | BY39: 0.076 | BZ39: 0.0763 | CA39: 0.0766 | CB39: 0.0769 | CC39: 0.0772 | CD39: 0.0775 | CE39: 0.0777 | CF39: 0.0779 | CG39: 0.0781 | CH39: 0.0783 | CJ39: 63 | CK39: 0.0658 | CL39: 0.0661 | CM39: 0.0664 | CN39: 0.0667 | CO39: 0.0671 | CP39: 0.0674 | CQ39: 0.0677 | CR39: 0.0681 | CS39: 0.0684 | CT39: 0.0687 | CU39: 0.069 | CV39: 0.0693 | CW39: 0.0697 | CX39: 0.07 | CY39: 0.0704 | CZ39: 0.0707 | DA39: 0.071 | DB39: 0.0714 | DC39: 0.0717 | DD39: 0.072 | DE39: 0.0724 | DF39: 0.0728 | DG39: 0.0731 | DH39: 0.0735 | DI39: 0.0738 | DJ39: 0.0742 | DK39: 0.0745 | DL39: 0.0749 | DM39: 0.0752 | DN39: 0.0756 | DO39: 0.0759 | DP39: 0.0762 | DQ39: 0.0765 | DR39: 0.0768 | DS39: 0.0771 | DT39: 0.0774 | DU39: 0.0776 | DV39: 0.0778 | DW39: 0.0781 | DX39: 0.0783 | DY39: 0.0785 | EA39: 63 | EB39: 0.0659 | EC39: 0.0662 | ED39: 0.0665 | EE39: 0.0668 | EF39: 0.0672 | EG39: 0.0675 | EH39: 0.0678 | EI39: 0.0682 | EJ39: 0.0685 | EK39: 0.0688 | EL39: 0.0691 | EM39: 0.0694 | EN39: 0.0698 | EO39: 0.0701 | EP39: 0.0705 | EQ39: 0.0708 | ER39: 0.0711 | ES39: 0.0715 | ET39: 0.0718 | EU39: 0.0721 | EV39: 0.0725 | EW39: 0.0729 | EX39: 0.0732 | EY39: 0.0736 | EZ39: 0.0739 | FA39: 0.0743 | FB39: 0.0746 | FC39: 0.075 | FD39: 0.0753 | FE39: 0.0757 | FF39: 0.076 | FG39: 0.0763 | FH39: 0.0766 | FI39: 0.0769 | FJ39: 0.0772 | FK39: 0.0775 | FL39: 0.0777 | FM39: 0.0779 | FN39: 0.0782 | FO39: 0.0784 | FP39: 0.0786 | FR39: 63 | FS39: 0.066 | FT39: 0.0663 | FU39: 0.0666 | FV39: 0.0669 | FW39: 0.0673 | FX39: 0.0676 | FY39: 0.0679 | FZ39: 0.0683 | GA39: 0.0686 | GB39: 0.0689 | GC39: 0.0692 | GD39: 0.0695 | GE39: 0.0699 | GF39: 0.0702 | GG39: 0.0706 | GH39: 0.0709 | GI39: 0.0712 | GJ39: 0.0716 | GK39: 0.0719 | GL39: 0.0722 | GM39: 0.0726 | GN39: 0.073 | GO39: 0.0733 | GP39: 0.0737 | GQ39: 0.074 | GR39: 0.0744 | GS39: 0.0747 | GT39: 0.0751 | GU39: 0.0754 | GV39: 0.0758 | GW39: 0.0761 | GX39: 0.0764 | GY39: 0.0767 | GZ39: 0.077 | HA39: 0.0773 | HB39: 0.0776 | HC39: 0.0778 | HD39: 0.078 | HE39: 0.0783 | HF39: 0.0785 | HG39: 0.0787
B40: 64 | C40: 0.0653 | D40: 0.0656 | E40: 0.066 | F40: 0.0663 | G40: 0.0666 | H40: 0.067 | I40: 0.0673 | J40: 0.0676 | K40: 0.0679 | L40: 0.0683 | M40: 0.0686 | N40: 0.069 | O40: 0.0694 | P40: 0.0698 | Q40: 0.0702 | R40: 0.0706 | S40: 0.0709 | T40: 0.0713 | U40: 0.0716 | V40: 0.072 | W40: 0.0723 | X40: 0.0727 | Y40: 0.0731 | Z40: 0.0734 | AA40: 0.0738 | AB40: 0.0742 | AC40: 0.0746 | AD40: 0.075 | AE40: 0.0754 | AF40: 0.0758 | AG40: 0.0762 | AH40: 0.0765 | AI40: 0.0768 | AJ40: 0.0772 | AK40: 0.0775 | AL40: 0.0778 | AM40: 0.0781 | AN40: 0.0783 | AO40: 0.0785 | AP40: 0.0788 | AQ40: 0.079 | AS40: 64 | AT40: 0.0656 | AU40: 0.0659 | AV40: 0.0663 | AW40: 0.0666 | AX40: 0.0669 | AY40: 0.0673 | AZ40: 0.0676 | BA40: 0.0679 | BB40: 0.0682 | BC40: 0.0686 | BD40: 0.0689 | BE40: 0.0693 | BF40: 0.0697 | BG40: 0.0701 | BH40: 0.0704 | BI40: 0.0708 | BJ40: 0.0711 | BK40: 0.0715 | BL40: 0.0718 | BM40: 0.0722 | BN40: 0.0725 | BO40: 0.0729 | BP40: 0.0734 | BQ40: 0.0737 | BR40: 0.0741 | BS40: 0.0745 | BT40: 0.0749 | BU40: 0.0753 | BV40: 0.0756 | BW40: 0.076 | BX40: 0.0764 | BY40: 0.0767 | BZ40: 0.077 | CA40: 0.0774 | CB40: 0.0777 | CC40: 0.078 | CD40: 0.0783 | CE40: 0.0785 | CF40: 0.0787 | CG40: 0.079 | CH40: 0.0792 | CJ40: 64 | CK40: 0.0658 | CL40: 0.0662 | CM40: 0.0665 | CN40: 0.0669 | CO40: 0.0672 | CP40: 0.0676 | CQ40: 0.0679 | CR40: 0.0682 | CS40: 0.0685 | CT40: 0.0689 | CU40: 0.0692 | CV40: 0.0696 | CW40: 0.0699 | CX40: 0.0703 | CY40: 0.0706 | CZ40: 0.071 | DA40: 0.0713 | DB40: 0.0717 | DC40: 0.072 | DD40: 0.0724 | DE40: 0.0727 | DF40: 0.0731 | DG40: 0.0736 | DH40: 0.0739 | DI40: 0.0743 | DJ40: 0.0747 | DK40: 0.0751 | DL40: 0.0755 | DM40: 0.0758 | DN40: 0.0762 | DO40: 0.0766 | DP40: 0.0769 | DQ40: 0.0772 | DR40: 0.0775 | DS40: 0.0778 | DT40: 0.0781 | DU40: 0.0784 | DV40: 0.0787 | DW40: 0.0789 | DX40: 0.0792 | DY40: 0.0794 | EA40: 64 | EB40: 0.0659 | EC40: 0.0663 | ED40: 0.0666 | EE40: 0.067 | EF40: 0.0673 | EG40: 0.0677 | EH40: 0.068 | EI40: 0.0683 | EJ40: 0.0686 | EK40: 0.069 | EL40: 0.0693 | EM40: 0.0697 | EN40: 0.07 | EO40: 0.0704 | EP40: 0.0707 | EQ40: 0.0711 | ER40: 0.0714 | ES40: 0.0718 | ET40: 0.0721 | EU40: 0.0725 | EV40: 0.0728 | EW40: 0.0732 | EX40: 0.0737 | EY40: 0.074 | EZ40: 0.0744 | FA40: 0.0748 | FB40: 0.0752 | FC40: 0.0756 | FD40: 0.0759 | FE40: 0.0763 | FF40: 0.0767 | FG40: 0.077 | FH40: 0.0773 | FI40: 0.0776 | FJ40: 0.0779 | FK40: 0.0782 | FL40: 0.0785 | FM40: 0.0788 | FN40: 0.079 | FO40: 0.0793 | FP40: 0.0795 | FR40: 64 | FS40: 0.066 | FT40: 0.0664 | FU40: 0.0667 | FV40: 0.0671 | FW40: 0.0674 | FX40: 0.0678 | FY40: 0.0681 | FZ40: 0.0684 | GA40: 0.0687 | GB40: 0.0691 | GC40: 0.0694 | GD40: 0.0698 | GE40: 0.0701 | GF40: 0.0705 | GG40: 0.0708 | GH40: 0.0712 | GI40: 0.0715 | GJ40: 0.0719 | GK40: 0.0722 | GL40: 0.0726 | GM40: 0.0729 | GN40: 0.0733 | GO40: 0.0738 | GP40: 0.0741 | GQ40: 0.0745 | GR40: 0.0749 | GS40: 0.0753 | GT40: 0.0757 | GU40: 0.076 | GV40: 0.0764 | GW40: 0.0768 | GX40: 0.0771 | GY40: 0.0774 | GZ40: 0.0777 | HA40: 0.078 | HB40: 0.0783 | HC40: 0.0786 | HD40: 0.0789 | HE40: 0.0791 | HF40: 0.0794 | HG40: 0.0796
